Workbook

Sheet Info
A1: Deutsch | B1: Französisch | C1: English | D1: =OFFSET(A1:A50,0,sprache-1) -> English
A2: =MainInput!B2 -> naturemade star Prüfung: Energieprodukte aus Biogasanlagen | B2: =MainInput!C2 -> Contrôle naturemade star: production d'énergie de biogaz | C2: =MainInput!D2 -> naturemade star certification: Energy products from biogas plants | D2: naturemade star certification: Energy products from biogas plants | F2: =D2 -> naturemade star certification: Energy products from biogas plants
F3: =D3 -> 
A4: Kennwertmodell zur Prüfung des globalen naturemade star Kriteriums | B4: Modèle a paramètres caractéristique pour tester le critère global de naturemade star | C4: Standardised parameter model for testing the global naturemade star criterion | D4: Standardised parameter model for testing the global naturemade star criterion | F4: Standardised parameter model for testing the global naturemade star criterion
A6: Bitte wählen Sie die Sprache | B6: Veuillez sélectionner la langue | C6: Please select the language | D6: Please select the language | F6: Please select language / Bitte Sprache wählen / Veuillez choisir la langue
F7: English
A9: Anleitung | B9: Instructions | C9: Instructions | D9: Instructions | F9: Instructions
A10: Nachdem Sie diese Anleitung gelesen haben, gehen Sie zu den Arbeitsblättern "MainInput" und "Substrates" und geben alle erforderlichen Daten (hellgelbe Felder) ein. | B10: Après avoir lu ces instructions, allez sur les feuilles de travail "MainInput" et "Substrates" et entrez toutes les données requises (champs jaune clair). | C10: After reading these instructions, go to the worksheets "MainInput" and "Substrates" and enter all required data (light yellow fields). | D10: After reading these instructions, go to the worksheets "MainInput" and "Substrates" and enter all required data (light yellow fields). | F10: After reading these instructions, go to the worksheets "MainInput" and "Substrates" and enter all required data (light yellow fields).
A11: Im Arbeitsblatt "MainInput" wählen Sie bitte das Land aus, in dem sich die Biogasanlage befindet. Setzen Sie sich mit der Geschäftsstelle des VUE naturemade in Verbindung, wenn die Anlage in einem europäischen Land steht, das nicht in der Liste aufgeführt ist. | B11: Dans la feuille "MainInput", veuillez sélectionner le pays où l'usine de biogaz est située. Contactez le bureau VUE naturemade si l'usine est située dans un pays européen qui ne figure pas dans la liste. | C11: In the worksheet "MainInput", please select the country where the biogas plant is located. Contact the VUE naturemade office if the plant is located in a European country that is not included in the list. | D11: In the worksheet "MainInput", please select the country where the biogas plant is located. Contact the VUE naturemade office if the plant is located in a European country that is not included in the list. | F11: In the worksheet "MainInput", please select the country where the biogas plant is located. Contact the VUE naturemade office if the plant is located in a European country that is not included in the list.
A12: Alle Daten müssen für einen einheitlichen Zeitraum von einem Jahr eingegeben werden. | B12: Toutes les données doivent être entrées pour une période uniforme d'un an. | C12: All data must be entered for a uniform period of one year. | D12: All data must be entered for a uniform period of one year. | F12: All data must be entered for a uniform period of one year.
A13: Der Energiegehalt von Brenn- und Treibstoffen und das erzeugte Biogas/Biomethan müssen mit dem oberen Heizwert (Brennwert) eingegeben werden. | B13: Le contenu énergétique des combustibles et du biogaz/biométhane produit doit être saisi avec le pouvoir calorifique supérieur (PCI). | C13: The energy content of fuels and the biogas/biomethane produced must be entered with the higher heating value (higher calorific value). | D13: The energy content of fuels and the biogas/biomethane produced must be entered with the higher heating value (higher calorific value). | F13: The energy content of fuels and the biogas/biomethane produced must be entered with the higher heating value (higher calorific value).
A14: In der Spalte "Hinweise und Warnungen" werden bestimmte Aspekte der Eingabe überprüft. Nach dem Ausfüllen aller Daten darf es keine Warnungen mehr geben. | B14: Dans la colonne "Notes et avertissements", certains aspects de la saisie sont vérifiés. Une fois que toutes les données ont été remplies, il ne doit plus y avoir d'avertissements. | C14: In the column "Notes and warnings" certain aspects of the entry are checked. After filling in all data, there must be no more warnings. | D14: In the column "Notes and warnings" certain aspects of the entry are checked. After filling in all data, there must be no more warnings. | F14: In the column "Notes and warnings" certain aspects of the entry are checked. After filling in all data, there must be no more warnings.
A15: Für die meisten Substrate und den Gärrest werden Angaben zu Kosten und Erträgen abgefragt. Einnahmen und Ausgaben müssen als positiver (Einnahmen) oder negativer (Ausgaben) Wert pro Jahr eingegeben werden. Transportkosten werden nicht berücksichtigt. | B15: Pour la plupart des substrats et digestats, des informations sur les dépenses et les revenus sont demandées. Les revenus et les dépenses doivent être inscrits en valeur positive (revenus) ou négative (dépenses) par an. Les coûts de transport ne sont pas pris en compte. | C15: For most substrates and the digestate, information on costs and/or revenue is requested. Income and expenditure must be entered as a positive (revenue) or negative (expenses) value per year. Transport costs are not taken into accoun | D15: For most substrates and the digestate, information on costs and/or revenue is requested. Income and expenditure must be entered as a positive (revenue) or negative (expenses) value per year. Transport costs are not taken into accoun | F15: For most substrates and the digestate, information on costs and/or revenue is requested. Income and expenditure must be entered as a positive (revenue) or negative (expenses) value per year. Transport costs are not taken into accoun
A16: Die automatische Berechnung in Excel muss eingeschaltet sein (Extras/Optionen/Kalkulation --> automatisch) oder Sie können mit der Taste [F9] jedes Mal neu berechnen. | B16: Le calcul automatique dans Excel doit être activé (Outils/Options/Calcul --> Automatique) ou vous pouvez recalculer à chaque fois en appuyant sur [F9]. | C16: The automatic calculation in Excel must be switched on (Tools/Options/Calculation --> Automatic) or you can recalculate each time with the [F9] key. | D16: The automatic calculation in Excel must be switched on (Tools/Options/Calculation --> Automatic) or you can recalculate each time with the [F9] key. | F16: The automatic calculation in Excel must be switched on (Tools/Options/Calculation --> Automatic) or you can recalculate each time with the [F9] key.
A17: Zum Schluss gehen Sie auf das Arbeitsblatt "Results" in welchem Sie das Ergebnis der naturemade star-Prüfung sehen. | B17: Enfin, allez à la feuille de travail "Résultats" dans laquelle vous pouvez voir le résultat du test naturemade star. | C17: Finally, go to the "Results" worksheet in which you can see the result of the naturemade star test. | D17: Finally, go to the "Results" worksheet in which you can see the result of the naturemade star test. | F17: Finally, go to the "Results" worksheet in which you can see the result of the naturemade star test.
A19: Systemgrenze der Biogas-Anlage | B19: Limites du système pour l'usine de biogaz | C19: System boundaries for the biogas plant | D19: System boundaries for the biogas plant | F19: System boundaries for the biogas plant
A20: Für die Berechnung des Energieverbrauchs und der Ökobilanz der Biogasanlage (inklusive Aufbereitungsanlage) muss die Systemgrenze eingehalten werden, wie sie im Handbuch beschrieben ist (siehe naturemade.ch->Dokumentation->Ökobilanzen). Grundsätzlich umfasst die Systemgrenze alle relevanten Energie- und Massenflüsse aus Sicht des Biogasanlagenbetreibers, welche im Rahmen seines wirtschaftlichen Entscheidungsbereichs liegen. | B20: Pour le calcul de la consommation d'énergie et l'analyse du cycle de vie de l'installation de biogaz (y compris l'installation de valorisation), il convient de respecter les limites du système comme décrit dans le manuel (voir naturemade.ch->Documentation->Bilans écologique). Fondamentalement, le périmètre du système comprend tous les flux énergétiques et massiques pertinents du point de vue de l'exploitant de l'installation de biogaz, qui relèvent de son champ de décision économique. | C20: For the calculation of the energy consumption and the life cycle assessment of the biogas plant (including the upgrading plant), the system boundary must be adhered to as described in the manual (see naturemade.ch->Documentation->Eco-balances). Basically, the system boundary includes all relevant energy and mass flows from the biogas plant operator's point of view, which are within his economic decision-making scope. | D20: For the calculation of the energy consumption and the life cycle assessment of the biogas plant (including the upgrading plant), the system boundary must be adhered to as described in the manual (see naturemade.ch->Documentation->Eco-balances). Basically, the system boundary includes all relevant energy and mass flows from the biogas plant operator's point of view, which are within his economic decision-making scope. | F20: For the calculation of the energy consumption and the life cycle assessment of the biogas plant (including the upgrading plant), the system boundary must be adhered to as described in the manual (see naturemade.ch->Documentation->Eco-balances). Basically, the system boundary includes all relevant energy and mass flows from the biogas plant operator's point of view, which are within his economic decision-making scope.
A21: Das Modell gilt für Biogasanlagen, die Substrate gemäß der detaillierten Liste im Blatt "Substrates" einsetzen. Bitte setzen Sie sich mit der Geschäftsstelle des VUE naturemade in Verbindung, wenn Sie Substrate einsetzen, die nicht in die Kategorien passen. | B21: Le modèle est valable pour les usines de biogaz qui utilisent des substrats selon la liste détaillée dans la fiche "Substrats". Veuillez contacter le bureau VUE naturemade, si vous avez des substrats qui ne correspondent pas aux catégories. | C21: The model is valid for biogas plants that use substrates according to the detailed list in the sheet "Substrates". Please contact the VUE naturemade office, if you have substrates that do not match the categories. | D21: The model is valid for biogas plants that use substrates according to the detailed list in the sheet "Substrates". Please contact the VUE naturemade office, if you have substrates that do not match the categories. | F21: The model is valid for biogas plants that use substrates according to the detailed list in the sheet "Substrates". Please contact the VUE naturemade office, if you have substrates that do not match the categories.
A22: Das Modell ist für Biogas aus Grüngutvergärungsanlagen, landwirtschaftlichen Biogasanlagen und Kläranlagen ausgelegt. Für Biogasanlagen in Industriebetrieben, wie z.B. Vergärung in einem Schlachthof oder einer Zuckerfabrik, ist es nur bedingt anwendbar. | B22: Le modèle est mis en place pour le biogaz provenant des usines de fermentation de déchets verts, des usines de biogaz agricoles et des usines de traitement des eaux usées. Il ne peut être appliqué que de manière limitée aux installations de biogaz d'entreprises industrielles, comme la fermentation dans un abattoir ou une sucrerie. | C22: The model is set up for biogas from green waste fermentation plants, agricultural biogas plants and wastewater treatment plants. It can only be applied to a limited extent to biogas plants at industrial enterprises such as fermentation at a slaughterhouse or sugar factory. | D22: The model is set up for biogas from green waste fermentation plants, agricultural biogas plants and wastewater treatment plants. It can only be applied to a limited extent to biogas plants at industrial enterprises such as fermentation at a slaughterhouse or sugar factory. | F22: The model is set up for biogas from green waste fermentation plants, agricultural biogas plants and wastewater treatment plants. It can only be applied to a limited extent to biogas plants at industrial enterprises such as fermentation at a slaughterhouse or sugar factory.
A24: Umweltproduktdeklaration im Blatt EPD | B24: Déclaration environnementale de produit (EPD) | C24: Environmental product declaration (EPD) | D24: Environmental product declaration (EPD) | F24: Environmental product declaration (EPD)
A25: Die Umwelt-Produktdeklaration gibt grob die Umweltauswirkungen an. Unterschiede im Vergleich von weniger als 10% sind in der Regel nicht relevant. Die Allokationsmethodik weicht von der Vorgehensweise in der ecoinvent-Datenbank ab. | B25: La déclaration environnementale de produit (EPD) indique en gros l'impact environnemental. Les différences de comparaison inférieures à 10 % ne sont généralement pas pertinentes. La méthode de répartition diffère de la procédure de la base de données ecoinvent. | C25: The environmental product declaration (EPD) roughly indicates the environmental impact. Differences in comparisons of less than 10% are usually not relevant. The allocation methodology differs from the procedure in the ecoinvent database. | D25: The environmental product declaration (EPD) roughly indicates the environmental impact. Differences in comparisons of less than 10% are usually not relevant. The allocation methodology differs from the procedure in the ecoinvent database. | F25: The environmental product declaration (EPD) roughly indicates the environmental impact. Differences in comparisons of less than 10% are usually not relevant. The allocation methodology differs from the procedure in the ecoinvent database.
A26: Zusätzlich werden im unteren Teil der Tabelle auch die Ergebnisse einer Zuordnung nach ecoinvent angezeigt. | B26: En outre, les résultats d'une répartition selon ecoinvent sont également indiqués dans la partie inférieure du tableau. | C26: In addition, the results of an allocation according to ecoinvent are also shown in the lower part of the table. | D26: In addition, the results of an allocation according to ecoinvent are also shown in the lower part of the table. | F26: In addition, the results of an allocation according to ecoinvent are also shown in the lower part of the table.
D27: 0
A29: Abfragen | B29: Questions | C29: Queries | D29: Queries | F29: Queries
A30: Bei Fragen zum Modell sollte zunächst der vollständige Hintergrundbericht eingesehen werden. Jungbluth N. (2021) Handbuch für die naturemade Kennwertmodelle: Ökobilanzen für die Prüfung des globalen Kriteriums. ESU-services im Auftrag vom Verein für umweltgerechte Energie (VUE), Schaffhausen. | B30: Pour les questions concernant le modèle, il convient d'examiner d'abord le rapport complet sur le contexte. Jungbluth N. (2021) Handbuch für die naturemade Kennwertmodelle : Ökobilanzen für die Prüfung des globalen Kriteriums. ESU-services au nom de l'Association pour une énergie respectueuse de l'environnement (VUE), Schaffhouse. | C30: For questions about the model, the full background report should be looked at first. Jungbluth N. (2021) Handbuch für die naturemade Kennwertmodelle: Ökobilanzen für die Prüfung des globalen Kriteriums. ESU-services on behalf of the Association for Environmentally Sound Energy (VUE), Schaffhausen. | D30: For questions about the model, the full background report should be looked at first. Jungbluth N. (2021) Handbuch für die naturemade Kennwertmodelle: Ökobilanzen für die Prüfung des globalen Kriteriums. ESU-services on behalf of the Association for Environmentally Sound Energy (VUE), Schaffhausen. | F30: =D30 -> For questions about the model, the full background report should be looked at first. Jungbluth N. (2021) Handbuch für die naturemade Kennwertmodelle: Ökobilanzen für die Prüfung des globalen Kriteriums. ESU-services on behalf of the Association for Environmentally Sound Energy (VUE), Schaffhausen.
A31: http://www.esu-services.ch/projects/naturemade/ | B31: http://www.esu-services.ch/projects/naturemade/ | C31: =$A31 -> http://www.esu-services.ch/projects/naturemade/ | D31: http://www.esu-services.ch/projects/naturemade/ | F31: =D31 -> http://www.esu-services.ch/projects/naturemade/
A32: Für Fragen und Rückmeldungen wenden Sie sich bitte an die Geschäftsstelle VUE naturemade. Bitte senden Sie die ausgefüllte Excel-Tabelle, gespeichert unter einem neuen Namen unter Beibehaltung der Versionsnummer, an die folgende Adresse: | B32: Pour toute question ou réaction, veuillez contacter le bureau VUE naturemade. Veuillez envoyer la feuille de calcul Excel complétée, sauvegardée sous un nouveau nom tout en conservant le numéro de version, à l'adresse suivante | C32: For questions and feedback, please contact the VUE naturemade office. Please send the completed Excel spreadsheet, saved under a new name while retaining the version number, to the following address: | D32: For questions and feedback, please contact the VUE naturemade office. Please send the completed Excel spreadsheet, saved under a new name while retaining the version number, to the following address: | F32: For questions and feedback, please contact the VUE naturemade office. Please send the completed Excel spreadsheet, saved under a new name while retaining the version number, to the following address:
A34: Auftraggeber | B34: Client | C34: Commissioner | D34: Commissioner | F34: =D34 -> Commissioner
A35: Verein für umweltgerechte Energie (VUE), naturemade Geschäftsstelle | B35: Association pour une énergie respectueuse de l'environnement (VUE), bureau naturemade | C35: Association for Environmentally Sound Energy (VUE), naturemade office | D35: Association for Environmentally Sound Energy (VUE), naturemade office | F35: Association for Environmentally Sound Energy (VUE), naturemade office
A36: Molkenstrasse 21, CH-8004 Zürich | B36: =$A36 -> Molkenstrasse 21, CH-8004 Zürich | C36: =$A36 -> Molkenstrasse 21, CH-8004 Zürich | D36: Molkenstrasse 21, CH-8004 Zürich | F36: Molkenstrasse 21, CH-8004 Zürich
A37: Valentin Graf, T: +41 44 213 10 21 | B37: Valentin Graf, T: +41 44 213 10 21 | C37: Valentin Graf, T: +41 44 213 10 21 | D37: Valentin Graf, T: +41 44 213 10 21 | F37: Valentin Graf, T: +41 44 213 10 21
A38: www.naturemade.ch | B38: www.naturemade.ch | C38: www.naturemade.ch | D38: www.naturemade.ch | F38: www.naturemade.ch
A39: valentin.graf@naturemade.ch | B39: valentin.graf@naturemade.ch | C39: valentin.graf@naturemade.ch | D39: valentin.graf@naturemade.ch | F39: valentin.graf@naturemade.ch
A41: Entwicklung des Kennwertmodels für die Ökobilanzierung | B41: Développement du modèle de valeur caractéristique pour l'évaluation du cycle de vie | C41: Development of the key parameter model for life cycle assessment | D41: Development of the key parameter model for life cycle assessment | F41: Development of the key parameter model for life cycle assessment
A42: © ESU-services GmbH | B42: © ESU-services GmbH | C42: © ESU-services GmbH | D42: © ESU-services GmbH | F42: © ESU-services GmbH
A43: Vorstadt 14, CH-8200 Schaffhausen | B43: Vorstadt 14, CH-8200 Schaffhausen | C43: Vorstadt 14, CH-8200 Schaffhausen | D43: Vorstadt 14, CH-8200 Schaffhausen | F43: Vorstadt 14, CH-8200 Schaffhausen
A44: Niels Jungbluth, T. +41 44 940 61 32 | B44: Niels Jungbluth, T. +41 44 940 61 32 | C44: Niels Jungbluth, T. +41 44 940 61 32 | D44: Niels Jungbluth, T. +41 44 940 61 32 | F44: Niels Jungbluth, T. +41 44 940 61 32
A45: jungbluth@esu-services.ch | B45: jungbluth@esu-services.ch | C45: jungbluth@esu-services.ch | D45: jungbluth@esu-services.ch | F45: jungbluth@esu-services.ch
A46: www.esu-services.ch | B46: =$A46 -> www.esu-services.ch | C46: www.esu-services.ch | D46: www.esu-services.ch | F46: www.esu-services.ch
A48: Version, verwendete Datenbank und Bewertungsmethoden | B48: Version, base de données utilisée et méthodes d'évaluation | C48: Version and background database | D48: Version and background database | F48: Version and background database
A49: Version 2021-v18.1 | B49: Version 2021-v18.1 | C49: Version 2021-v18.1 | D49: Version 2021-v18.1 | F49: Version 2021-v18.1
A50: Eco-indicator v2.10 und ESU-datenbank 2021 (basierend auf UVEK 2018), Strommixe ecoinvent v3.6 | B50: Eco-indicator v2.10 und ESU-datenbank 2021 (basierend auf UVEK 2018), Strommixe ecoinvent v3.6 | C50: Eco-indicator v2.10 and ESU-database 2021 (based on UVEK 2018), electricity mixes from ecoinvent v3.6 | D50: Eco-indicator v2.10 and ESU-database 2021 (based on UVEK 2018), electricity mixes from ecoinvent v3.6 | F50: Eco-indicator v2.10 and ESU-database 2021 (based on UVEK 2018), electricity mixes from ecoinvent v3.6
F52: 16.3.2021 - v18.1 Preisdaten für Spanien ergänzt
F53: 13.1.2021 - v18 Überarbeitung des Design, Ergänzung Spanien, Neuaufbau der Berechnungen
F54: 16.12.2020 - v17 Korrektur Berechnung Fackelverluste
F55: 17.11.2020 - v17 - Erweiterung für Grossbritannien, Update LCIA für Strommixe mit ecoinvent v3.6
F56: 19.5.2020 - Gärgut/Gärrückstände nach Gärrest umbenannt
F57: 20.3.2020 - Neuberechnung Ökobilanzdaten
F58: 18.2.2020 - Eingabe Fackel, Heizung. Verbesserungen Layout, Änderung Gärschlammentsorgung
F59: 22.1.2020 - Korrektur Transporte, Korrektur Referenzwert Klärschlamm, Neuberechnung Eco-indicator
F60: 9.12.2019 - Anpassungen zu Gaserträgen
F61: 18.10.2019 - Erweiterung für Vergärung von Abwasser aus Papierfabrik, Definition von Energiepflanzen
F62: 13.05.2019 - Anpassung TS-Gehalt Grüngut und Speisereste aus Gastronomiebetrieben
F63: 14.11.2018 - Englische Version
F64: 3.4.2018 - Einfügen Biogas als Produkt
F65: 29.3.2018 - Aufdatierung aller Indikatorwerte für Umweltdeklaration
F66: 12.3.2018 - Neuberechnung Glycerin mit festem Allokationskriterium
F67: 27.2.2018 - Neuberechnung Strom mit ecoinvent v3.4 Daten
F68: 12.2.2018 - Weitere Anpassungen für Dänemark
F69: 21.9.2017 - Ergänzungen Berechnung für Dänemark
F70: 4.7.2017 - Fehlerkorrektur Preis bei KVA
F71: 14.6.2017 - Anpassung der Texte für Verbrennung
F72: 15.7.2015 - Anpassungen für die Verwendung in Ungarn

Sheet MainInput
B1: Deutsch | C1: Französisch | D1: English | E1: =OFFSET(B1:B106,0,sprache-1) -> English | H1: =COLUMN() -> 8 | J1: Deutsch | K1: Französisch | L1: English | M1: =OFFSET(J1:J105,0,sprache-1) -> English | Q1: unterer Heizwert | R1: Faktor | S1: Brennwert | T1: Heizwert | U1: SimaPro Process | V1: 29 | W1: 35 | X1: 34 | Y1: 31 | AA1: 29 | AB1: 35 | AC1: 34 | AD1: 31
A2: 2 | B2: naturemade star Prüfung: Energieprodukte aus Biogasanlagen | C2: Contrôle naturemade star: production d'énergie de biogaz | D2: naturemade star certification: Energy products from biogas plants | E2: naturemade star certification: Energy products from biogas plants | G2: =E2 -> naturemade star certification: Energy products from biogas plants | M2: 0 | O2: Prüfungen, incl. Sprachtest | Q2: =COLUMN() -> 17 | V2: =INDEX(menuesBG!$1:$1048576,V1,sprache) -> Eco-indicator 99 points | W2: =INDEX(menuesBG!$1:$1048576,W1,sprache) -> Carbon footprint 100a 2013 | X2: =INDEX(menuesBG!$1:$1048576,X1,sprache) -> Demand for non-renewable energy resources | Y2: =INDEX(menuesBG!$1:$1048576,Y1,sprache) -> Ecological scarcity points 2013 | AA2: =INDEX(menuesBG!$1:$1048576,AA1,sprache) -> Eco-indicator 99 points | AB2: =INDEX(menuesBG!$1:$1048576,AB1,sprache) -> Carbon footprint 100a 2013 | AC2: =INDEX(menuesBG!$1:$1048576,AC1,sprache) -> Demand for non-renewable energy resources | AD2: =INDEX(menuesBG!$1:$1048576,AD1,sprache) -> Ecological scarcity points 2013
G3: =IF(H7="","",name&", "&H7) ->  | M3: 0 | V3: =SimaProEI99 -> 2 | W3: =SimaProGWP -> 3 | X3: =SimaProCED -> 4 | Y3: =SimaProUBP -> 5 | AA3: =SimaProEI99 -> 2 | AB3: =SimaProGWP -> 3 | AC3: =SimaProCED -> 4 | AD3: =SimaProEI99 -> 2
J4: Hinweise und Warnungen | K4: Notes et avertissements | L4: Notes and warnings | M4: Notes and warnings | N4: =M4 -> Notes and warnings
A5: 4 | B5: Anlage | C5: Installation | D5: Plant | E5: Plant | G5: =E5 -> Plant
B6: Name | C6: Nom | D6: Name | E6: Name | G6: Name | I6: =IF(O6,1,0) -> 0 | J6: Bitte Anlagenname eintragen | K6: Veuillez entrer le nom de la plante | L6: Please enter plant name | M6: Please enter plant name | N6: =IFERROR(IF(O6,"",M6),$M$8) -> Please enter plant name | O6: =H6>0 -> FALSE
B7: Referenzzeitraum | C7: Période de référence: | D7: Reference period | E7: Reference period | G7: Reference period | I7: =IF(O7,1,0) -> 0 | J7: Bitte Referenzzeitraum angeben (alle Eingaben umfassen 1 Jahr) | K7: Veuillez préciser la période de référence (toutes les entrées couvrent 1 an) | L7: Please specify reference period (all entries cover 1 year) | M7: Please specify reference period (all entries cover 1 year) | N7: =IFERROR(IF(O7,"",M7),$M$8) -> Please specify reference period (all entries cover 1 year) | O7: =H7>0 -> FALSE
A8: 3 | B8: Sprache | C8: Langue | D8: Language | E8: Language | G8: Language | H8: =Info!F7 -> English | J8: Auswahlmatrix für gewählte Sprache ausfüllen | K8: Remplir la matrice de sélection pour la langue sélectionnée | L8: Fill in selection matrix for selected language | M8: Fill in selection matrix for selected language | P8: =MATCH(Info!F7,menuesBG!F2:F4,0) -> 3
A9: 107 | B9: Standort | C9: Emplacement | D9: Location | E9: Location | G9: Location | I9: =IF(O9,1,0) -> 0 | J9: Bitte wählen Sie das Land in dem die Anlage steht | K9: Veuillez sélectionner le pays dans lequel l'installation est située | L9: Please select the country in which the plant is located | M9: Please select the country in which the plant is located | N9: =IFERROR(IF(O9,"",M9),$M$8) -> Please select the country in which the plant is located | O9: =ISNUMBER(Standort) -> FALSE | P9: =MATCH(MainInput!H9,menuesBG!$F$108:$F$114,0) ->  | Q9: =menuesBG!H107 -> 
A10: 6 | B10: Anlagentyp | C10: Type d'installation | D10: Plant type | E10: Plant type | G10: Plant type | I10: =IF(ISNA(O10),0,IF(O10,1,-1)) -> 0 | J10: Für die Prüfung industrieller Abwässer bitte VUE naturemade kontaktieren | K10: Pour l'analyse des eaux usées industrielles, veuillez contacter VUE naturemade | L10: For testing of industrial waste water please contact VUE naturemade | M10: For testing of industrial waste water please contact VUE naturemade | N10: =IFERROR(IF(O10,"",M10),$M$8) -> Fill in selection matrix for selected language | O10: =P10<4 ->  | P10: =MATCH(MainInput!H10,menuesBG!$F$57:$F$59,0) -> 
A11: =ROW() -> 11 | B11: Volumen des Fermenters | C11: Dimensions du digesteur | D11: Fermenter volume | E11: Fermenter volume | G11: Fermenter volume | I11: =IF(O11,1,0) -> 0 | J11: Eingabewert Fermentergrösse in m3 fehlt | K11: Valeur d'entrée taille du fermenteur (en m3) manquante | L11: Input value fermenter size (in m3) missing | M11: Input value fermenter size (in m3) missing | N11: =IFERROR(IF(O11,"",M11),$M$8) -> Input value fermenter size (in m3) missing | O11: =H11>0 -> FALSE | R11: 1 | U11: =INDEX(menuesBG!$1:$1048576,MATCH(MainInput!H10,menuesBG!F:F,0),COLUMN(menuesBG!$H$1)) ->  | V11: =INDEX(SimaPro!$1:$1048576,V$3,MATCH(MainInput!$U11,SimaPro!$1:$1,0))*$R11*$H11 ->  | W11: =INDEX(SimaPro!$1:$1048576,W$3,MATCH(MainInput!$U11,SimaPro!$1:$1,0))*$R11*$H11 ->  | X11: =INDEX(SimaPro!$1:$1048576,X$3,MATCH(MainInput!$U11,SimaPro!$1:$1,0))*$R11*$H11 ->  | Y11: =INDEX(SimaPro!$1:$1048576,Y$3,MATCH(MainInput!$U11,SimaPro!$1:$1,0))*$R11*$H11 -> 
M12: 0
A13: 7 | B13: Inputs für die Anlage | C13: Substrats pour l'usine de biogaz | D13: Substrates for the biogas plant | E13: Substrates for the biogas plant | G13: =E13 -> Substrates for the biogas plant | J13: Eingaben Substratinput im Blatt "Substrates" | K13: Toutes les entrées pour l'entrée des substrats sont faites dans la feuille "Substrats". | L13: All entries for the substrate input are made in the "Substrates" sheet | M13: All entries for the substrate input are made in the "Substrates" sheet | N13: =M13 -> All entries for the substrate input are made in the "Substrates" sheet
M14: 0
A15: 87 | G15: =INDEX(menuesBG!$1:$1048576,$A15,sprache) -> Agriculture, conversion from livestock | H15: =SUM(Substrates!F8:F22) -> 0 | M15: 0 | R15: 1000 | Z15: ="reference value, manure/kg/"&StandortCode&" U" ->  | AA15: =INDEX(SimaPro!$1:$1048576,AA$3,MATCH(MainInput!$Z15,SimaPro!$1:$1,0))*$R15*$H15 ->  | AB15: =INDEX(SimaPro!$1:$1048576,AB$3,MATCH(MainInput!$Z15,SimaPro!$1:$1,0))*$R15*$H15 ->  | AC15: =INDEX(SimaPro!$1:$1048576,AC$3,MATCH(MainInput!$Z15,SimaPro!$1:$1,0))*$R15*$H15 ->  | AD15: =INDEX(SimaPro!$1:$1048576,AD$3,MATCH(MainInput!$Z15,SimaPro!$1:$1,0))*$R15*$H15 -> 
A16: 8 | G16: =Substrates!E24 -> Residual and waste materials | H16: =SUM(Substrates!F25:F90) -> 0 | M16: 0 | P16: xxx | R16: =EinnahmeSubstratEntsorgung/Wechselkurs ->  | U16: Einnahme in CHF | Z16: reference value, co-substrate disposal/CHF/CH U | AA16: =INDEX(SimaPro!$1:$1048576,AA$3,MATCH(MainInput!$Z16,SimaPro!$1:$1,0))*$R16 ->  | AB16: =INDEX(SimaPro!$1:$1048576,AB$3,MATCH(MainInput!$Z16,SimaPro!$1:$1,0))*$R16 ->  | AC16: =INDEX(SimaPro!$1:$1048576,AC$3,MATCH(MainInput!$Z16,SimaPro!$1:$1,0))*$R16 ->  | AD16: =INDEX(SimaPro!$1:$1048576,AD$3,MATCH(MainInput!$Z16,SimaPro!$1:$1,0))*$R16 -> 
G17: =Substrates!E92 -> Intercrops not competing with food and feed | H17: =SUM(Substrates!F93:F97) -> 0 | M17: 0
G18: =Substrates!E99 -> Glycerine | H18: =SUM(Substrates!F100:F104) -> 0 | M18: 0
G19: =Substrates!E106 -> Energy crop silage | H19: =SUM(Substrates!F107:F108) -> 0 | I19: =IF(O19,"",-1) ->  | J19: Verwertung Energiepflanzen nicht gestattet | K19: L'utilisation de cultures énergétiques n'est pas autorisée | L19: Utilisation of energy crops not permitted | M19: Utilisation of energy crops not permitted | N19: =IFERROR(IF(O19,"",M19),$M$8) ->  | O19: =IF(H19=0,TRUE,FALSE) -> TRUE
A20: 5 | G20: =Substrates!E110 -> Sewage sludge and similar substrates | H20: =SUM(Substrates!F111:F115) -> 0 | M20: 0 | P20: xxx
G21: =Substrates!E117 -> Chemicals | H21: =SUM(Substrates!F118:F121) -> 0 | M21: 0
G22: =Substrates!E123 -> Industrial wastewater and substrates | H22: =SUM(Substrates!F124:F124) -> 0 | M22: 0 | R22: 1 | Z22: reference value, paper production effluent/kg/CH U | AA22: =INDEX(SimaPro!$1:$1048576,AA$3,MATCH(MainInput!$Z22,SimaPro!$1:$1,0))*$R22*$H22 -> 0 | AB22: =INDEX(SimaPro!$1:$1048576,AB$3,MATCH(MainInput!$Z22,SimaPro!$1:$1,0))*$R22*$H22 -> 0 | AC22: =INDEX(SimaPro!$1:$1048576,AC$3,MATCH(MainInput!$Z22,SimaPro!$1:$1,0))*$R22*$H22 -> 0 | AD22: =INDEX(SimaPro!$1:$1048576,AD$3,MATCH(MainInput!$Z22,SimaPro!$1:$1,0))*$R22*$H22 -> 0
A23: 61 | B23: Wasserverbrauch | C23: Consommation d'eau | D23: Water consumption | E23: Water consumption | G23: =E23 -> Water consumption | I23: =IF(O23,1,0) -> 0 | J23: Bitte Wasserverbrauch in m3 angeben | K23: Veuillez préciser la consommation d'eau en m3 | L23: Please specify water consumption in m3 | M23: Please specify water consumption in m3 | N23: =IFERROR(IF(O23,"",M23),$M$8) -> Please specify water consumption in m3 | O23: =IF(H23="",FALSE,TRUE) -> FALSE | R23: 1 | U23: tap water, unspecified natural origin RER, at user/kg/RER U | V23: =INDEX(SimaPro!$1:$1048576,V$3,MATCH(MainInput!$U23,SimaPro!$1:$1,0))*$R23*$H23 -> 0 | W23: =INDEX(SimaPro!$1:$1048576,W$3,MATCH(MainInput!$U23,SimaPro!$1:$1,0))*$R23*$H23 -> 0 | X23: =INDEX(SimaPro!$1:$1048576,X$3,MATCH(MainInput!$U23,SimaPro!$1:$1,0))*$R23*$H23 -> 0 | Y23: =INDEX(SimaPro!$1:$1048576,Y$3,MATCH(MainInput!$U23,SimaPro!$1:$1,0))*$R23*$H23 -> 0
A24: 21 | B24: Gesamtinputmenge für Anlage | C24: Quantité totale de substrats | D24: Total input quantity for the plant | E24: Total input quantity for the plant | G24: =E24 -> Total input quantity for the plant | H24: =SUM(H15:H23) -> 0 | I24: =IF(O24,1,-1) -> -1 | J24: Bitte Substrate auf sheet "Substrates" eingeben | K24: Veuillez entrer les substrats sur la feuille "Substrates" | L24: Please enter substrates on sheet "Substrates" | M24: Please enter substrates on sheet "Substrates" | N24: =IFERROR(IF(O24,"",M24),$M$8) -> Please enter substrates on sheet "Substrates" | O24: =H24>0 -> FALSE
M25: 0
A26: 93 | B26: Fremdenergieverbrauch der Biogasanlage (ohne Eigenverbrauch) | C26: Consommation d'énergie externe de l`installation de biogaz (sans consommation propre) | D26: External energy consumption of the biogas plant (without internal consumption) | E26: External energy consumption of the biogas plant (without internal consumption) | G26: =E26 -> External energy consumption of the biogas plant (without internal consumption) | J26: Systemgrenzen beachten | K26: respecter limites système | L26: observe system limits | M26: observe system limits | N26: =M26 -> observe system limits | Q26: unterer Heizwert
M27: 0 | S27: Brennwert | T27: Heizwert
B28: Netzstrom | C28: Consommation d'électricité du réseau | D28: Power supply from the grid | E28: Power supply from the grid | G28: =E28 -> Power supply from the grid | H28: =SUM(H29:H31) -> 0 | M28: 0 | S28: Ho | T28: Hu
A29: 9 | B29: nicht zertifiziert | C29: non certifié | D29: not certified | E29: not certified | G29: =E29 -> not certified | Q29: =H29 -> 0 | R29: 1 | U29: ="Electricity, medium voltage {"&StandortCode&"}| market for | Cut-off, S" ->  | V29: =INDEX(SimaPro!$1:$1048576,V$3,MATCH(MainInput!$U29,SimaPro!$1:$1,0))*$R29*$H29 ->  | W29: =INDEX(SimaPro!$1:$1048576,W$3,MATCH(MainInput!$U29,SimaPro!$1:$1,0))*$R29*$H29 ->  | X29: =INDEX(SimaPro!$1:$1048576,X$3,MATCH(MainInput!$U29,SimaPro!$1:$1,0))*$R29*$H29 ->  | Y29: =INDEX(SimaPro!$1:$1048576,Y$3,MATCH(MainInput!$U29,SimaPro!$1:$1,0))*$R29*$H29 -> 
B30: erneuerbar, naturemade star | C30: renouvelable, naturemade star | D30: renewable, naturemade star | E30: renewable, naturemade star | G30: =E30 -> renewable, naturemade star | J30: =J$41 -> Nachweis mit Zertifikat/HKN | K30: Preuve avec certificat / garantie d’origine | L30: Proof with certificate / guarantee of origin | M30: Proof with certificate / guarantee of origin | N30: =IF(H30>0,M30,"") ->  | Q30: =H30 -> 0 | R30: 1 | U30: electricity, medium voltage, naturemade star, at grid/CH U | V30: =INDEX(SimaPro!$1:$1048576,V$3,MATCH(MainInput!$U30,SimaPro!$1:$1,0))*$R30*$H30 -> 0 | W30: =INDEX(SimaPro!$1:$1048576,W$3,MATCH(MainInput!$U30,SimaPro!$1:$1,0))*$R30*$H30 -> 0 | X30: =INDEX(SimaPro!$1:$1048576,X$3,MATCH(MainInput!$U30,SimaPro!$1:$1,0))*$R30*$H30 -> 0 | Y30: =INDEX(SimaPro!$1:$1048576,Y$3,MATCH(MainInput!$U30,SimaPro!$1:$1,0))*$R30*$H30 -> 0
B31: erneuerbar, andere Zertifikate | C31: renouvelable, autres certificats | D31: renewable, other certificates | E31: renewable, other certificates | G31: =E31 -> renewable, other certificates | J31: =J$41 -> Nachweis mit Zertifikat/HKN | K31: Preuve avec certificat / garantie d’origine | L31: Proof with certificate / guarantee of origin | M31: Proof with certificate / guarantee of origin | N31: =IF(H31>0,M31,"") ->  | Q31: =H31 -> 0 | R31: 1 | U31: electricity, medium voltage, renewable, at grid/kWh/RER U | V31: =INDEX(SimaPro!$1:$1048576,V$3,MATCH(MainInput!$U31,SimaPro!$1:$1,0))*$R31*$H31 -> 0 | W31: =INDEX(SimaPro!$1:$1048576,W$3,MATCH(MainInput!$U31,SimaPro!$1:$1,0))*$R31*$H31 -> 0 | X31: =INDEX(SimaPro!$1:$1048576,X$3,MATCH(MainInput!$U31,SimaPro!$1:$1,0))*$R31*$H31 -> 0 | Y31: =INDEX(SimaPro!$1:$1048576,Y$3,MATCH(MainInput!$U31,SimaPro!$1:$1,0))*$R31*$H31 -> 0
M32: 0
B33: Treibstoffe (Heizwert angeben) | C33: Carburants (pouvoir calorifique inférieur) | D33: Fuels (lower heating value) | E33: Fuels (lower heating value) | G33: =E33 -> Fuels (lower heating value) | H33: =SUM(H34:H35) -> 0 | M33: 0
A34: 123 | B34: Dieselverbrauch (Default 10 kWh/Liter) | C34: Diesel (défaut 10 kWh/kg) | D34: Diesel (default 10 kWh/kg) | E34: Diesel (default 10 kWh/kg) | G34: =E34 -> Diesel (default 10 kWh/kg) | M34: 0 | Q34: =H34 -> 0 | R34: 1 | S34: 10.46722222 | T34: 9.913888889 | U34: diesel, burned in building machine, average/MJ/CH U | V34: =INDEX(SimaPro!$1:$1048576,V$3,MATCH(MainInput!$U34,SimaPro!$1:$1,0))*$R34*$H34 -> 0 | W34: =INDEX(SimaPro!$1:$1048576,W$3,MATCH(MainInput!$U34,SimaPro!$1:$1,0))*$R34*$H34 -> 0 | X34: =INDEX(SimaPro!$1:$1048576,X$3,MATCH(MainInput!$U34,SimaPro!$1:$1,0))*$R34*$H34 -> 0 | Y34: =INDEX(SimaPro!$1:$1048576,Y$3,MATCH(MainInput!$U34,SimaPro!$1:$1,0))*$R34*$H34 -> 0
A35: 42 | B35: Zündöl (Default 10 kWh/kg) | C35: Diesel d'allumage (défaut 10 kWh/kg) | D35: Ignition oil (default 10 kWh/kg) | E35: Ignition oil (default 10 kWh/kg) | G35: =E35 -> Ignition oil (default 10 kWh/kg) | Q35: =H35 -> 0 | R35: =1 -> 1 | S35: =S34 -> 10.46722222 | T35: =T34 -> 9.913888889 | U35: oil combustion, in cogen with ignition gas engine/MJ/CH U | V35: =INDEX(SimaPro!$1:$1048576,V$3,MATCH(MainInput!$U35,SimaPro!$1:$1,0))*$R35*$H35 -> 0 | W35: =INDEX(SimaPro!$1:$1048576,W$3,MATCH(MainInput!$U35,SimaPro!$1:$1,0))*$R35*$H35 -> 0 | X35: =INDEX(SimaPro!$1:$1048576,X$3,MATCH(MainInput!$U35,SimaPro!$1:$1,0))*$R35*$H35 -> 0 | Y35: =INDEX(SimaPro!$1:$1048576,Y$3,MATCH(MainInput!$U35,SimaPro!$1:$1,0))*$R35*$H35 -> 0
M36: 0
B37: Wärme (Brennstoffe mit Brennwert angeben) | C37: Chaleur (spécifier combustibles avec pouvoir calorifique supérieur) | D37: Heat (specify fuels with higher heating value) | E37: Heat (specify fuels with higher heating value) | G37: =E37 -> Heat (specify fuels with higher heating value) | H37: =SUM(H38:H48) -> 0 | M37: 0
A38: 10 | B38: Heizöl (Default 10.5 kWh/Liter) | C38: Consommation de mazout (défaut 10.5 kWh/litre) | D38: Fuel oil consumption (default 10.5 kWh/litre) | E38: Fuel oil consumption (default 10.5 kWh/litre) | G38: Fuel oil consumption (default 10.5 kWh/litre) | Q38: =H38*R38 -> 0 | R38: =T38/S38 -> 0.9491150442 | S38: 10.53411111 | T38: 9.998083333 | U38: light fuel oil, burned in industrial furnace 1MW, non-modulating/MJ/RER U | V38: =INDEX(SimaPro!$1:$1048576,V$3,MATCH(MainInput!$U38,SimaPro!$1:$1,0))*$R38*$H38 -> 0 | W38: =INDEX(SimaPro!$1:$1048576,W$3,MATCH(MainInput!$U38,SimaPro!$1:$1,0))*$R38*$H38 -> 0 | X38: =INDEX(SimaPro!$1:$1048576,X$3,MATCH(MainInput!$U38,SimaPro!$1:$1,0))*$R38*$H38 -> 0 | Y38: =INDEX(SimaPro!$1:$1048576,Y$3,MATCH(MainInput!$U38,SimaPro!$1:$1,0))*$R38*$H38 -> 0
A39: 18 | B39: Erdgas (Default 11.2 kWh/m3) | C39: Consommation de gaz naturel (défaut 11.2 kWh/m3) | D39: Natural gas consumption (default 11.2 kWh/m3) | E39: Natural gas consumption (default 11.2 kWh/m3) | G39: Natural gas consumption (default 11.2 kWh/m3) | Q39: =H39*R39 -> 0 | R39: =T39/S39 -> 0.9029850746 | S39: 11.16666667 | T39: 10.08333333 | U39: Natural gas, burned in boiler condensing modulating >100kW/RER U | V39: =INDEX(SimaPro!$1:$1048576,V$3,MATCH(MainInput!$U39,SimaPro!$1:$1,0))*$R39*$H39 -> 0 | W39: =INDEX(SimaPro!$1:$1048576,W$3,MATCH(MainInput!$U39,SimaPro!$1:$1,0))*$R39*$H39 -> 0 | X39: =INDEX(SimaPro!$1:$1048576,X$3,MATCH(MainInput!$U39,SimaPro!$1:$1,0))*$R39*$H39 -> 0 | Y39: =INDEX(SimaPro!$1:$1048576,Y$3,MATCH(MainInput!$U39,SimaPro!$1:$1,0))*$R39*$H39 -> 0
B40: Biomethan, naturemade star (Default 10.6 kWh/m3) | C40: Biométhane, naturemade star (défaut 10.6 kWh/m3) | D40: Biomethane, naturemade star (default 10.6 kWh/m3) | E40: Biomethane, naturemade star (default 10.6 kWh/m3) | G40: Biomethane, naturemade star (default 10.6 kWh/m3) | J40: =J$41 -> Nachweis mit Zertifikat/HKN | K40: Preuve avec certificat / garantie d’origine | L40: Proof with certificate / guarantee of origin | M40: Proof with certificate / guarantee of origin | N40: =IF(H40>0,M40,"") ->  | Q40: =H40*R40 -> 0 | R40: =T40/S40 -> 0.9031142289 | S40: 10.596 | T40: 9.569398369 | U40: biomethane, naturemade star, burned in boiler condensing modulating >100kW/RER U | V40: =INDEX(SimaPro!$1:$1048576,V$3,MATCH(MainInput!$U40,SimaPro!$1:$1,0))*$R40*$H40 -> 0 | W40: =INDEX(SimaPro!$1:$1048576,W$3,MATCH(MainInput!$U40,SimaPro!$1:$1,0))*$R40*$H40 -> 0 | X40: =INDEX(SimaPro!$1:$1048576,X$3,MATCH(MainInput!$U40,SimaPro!$1:$1,0))*$R40*$H40 -> 0 | Y40: =INDEX(SimaPro!$1:$1048576,Y$3,MATCH(MainInput!$U40,SimaPro!$1:$1,0))*$R40*$H40 -> 0
B41: Biomethan, andere Zertifikate (Default 10.6 kWh/m3) | C41: Biométhane, autres certificats (défaut 10.6 kWh/m3) | D41: Biomethane, other certificates (default 10.6 kWh/m3) | E41: Biomethane, other certificates (default 10.6 kWh/m3) | G41: Biomethane, other certificates (default 10.6 kWh/m3) | J41: Nachweis mit Zertifikat/HKN | K41: Preuve avec certificat / garantie d’origine | L41: Proof with certificate / guarantee of origin | M41: Proof with certificate / guarantee of origin | N41: =IF(H41>0,M41,"") ->  | Q41: =H41*R41 -> 0 | R41: =T41/S41 -> 0.9031142289 | S41: 10.596 | T41: 9.569398369 | U41: biomethane, burned in boiler condensing modulating >100kW/RER U | V41: =INDEX(SimaPro!$1:$1048576,V$3,MATCH(MainInput!$U41,SimaPro!$1:$1,0))*$R41*$H41 -> 0 | W41: =INDEX(SimaPro!$1:$1048576,W$3,MATCH(MainInput!$U41,SimaPro!$1:$1,0))*$R41*$H41 -> 0 | X41: =INDEX(SimaPro!$1:$1048576,X$3,MATCH(MainInput!$U41,SimaPro!$1:$1,0))*$R41*$H41 -> 0 | Y41: =INDEX(SimaPro!$1:$1048576,Y$3,MATCH(MainInput!$U41,SimaPro!$1:$1,0))*$R41*$H41 -> 0
B42: Klärschlammverbrennung | C42: Incinération des boues d'épuration | D42: Sewage sludge incineration | E42: Sewage sludge incineration | G42: Sewage sludge incineration | M42: 0 | Q42: =H42*R42 -> 0 | R42: 1 | U42: Heat, digester sludge, at incineration plant, future, allocation price/CH U | V42: =INDEX(SimaPro!$1:$1048576,V$3,MATCH(MainInput!$U42,SimaPro!$1:$1,0))*$R42*$H42 -> 0 | W42: =INDEX(SimaPro!$1:$1048576,W$3,MATCH(MainInput!$U42,SimaPro!$1:$1,0))*$R42*$H42 -> 0 | X42: =INDEX(SimaPro!$1:$1048576,X$3,MATCH(MainInput!$U42,SimaPro!$1:$1,0))*$R42*$H42 -> 0 | Y42: =INDEX(SimaPro!$1:$1048576,Y$3,MATCH(MainInput!$U42,SimaPro!$1:$1,0))*$R42*$H42 -> 0
B43: Kehrichtverbrennungsanlage | C43: Usine d'incinération des ordures ménagères | D43: Municipal Waste incineration plant | E43: Municipal Waste incineration plant | G43: Municipal Waste incineration plant | M43: 0 | Q43: =H43 -> 0 | R43: 0.0059 | U43: Werte aus Treeze KVA naturemade Zertifizierungsbericht | V43: =$R43*$H43 -> 0
B44: Kehrichtverbrennungsanlage, naturemade resources star | C44: Usine d'incinération des ordures ménagères, naturemade ressources star | D44: Municipal Waste incineration plant, naturemade resources star | E44: Municipal Waste incineration plant, naturemade resources star | G44: Municipal Waste incineration plant, naturemade resources star | J44: =J$41 -> Nachweis mit Zertifikat/HKN | K44: Preuve avec certificat / garantie d’origine | L44: Proof with certificate / guarantee of origin | M44: Proof with certificate / guarantee of origin | N44: =IF(H44>0,M44,"") ->  | Q44: 0 | R44: 0.003362299 | U44: Werte aus naturemade Zertifizierung, Mittelwert 10.2.2021 | V44: 0
B45: Holz (Default 5.6 kWh/kg) | C45: Bois (défaut 5.6 kWh/kg) | D45: Wood (default 5.6 kWh/kg) | E45: Wood (default 5.6 kWh/kg) | G45: Wood (default 5.6 kWh/kg) | M45: 0 | Q45: =H45*R45 -> 0 | R45: =T45/S45 -> 0.8571428571 | S45: 5.6 | T45: 4.8 | U45: Wood chips, from forest, mixed, burned in furnace 1000kW/CH U | V45: =INDEX(SimaPro!$1:$1048576,V$3,MATCH(MainInput!$U45,SimaPro!$1:$1,0))*$R45*$H45 -> 0 | W45: =INDEX(SimaPro!$1:$1048576,W$3,MATCH(MainInput!$U45,SimaPro!$1:$1,0))*$R45*$H45 -> 0 | X45: =INDEX(SimaPro!$1:$1048576,X$3,MATCH(MainInput!$U45,SimaPro!$1:$1,0))*$R45*$H45 -> 0 | Y45: =INDEX(SimaPro!$1:$1048576,Y$3,MATCH(MainInput!$U45,SimaPro!$1:$1,0))*$R45*$H45 -> 0
B46: Holz, naturemade star (Default 5.6 kWh/kg) | C46: Bois, naturemade star (défaut 5.6 kWh/kg) | D46: Wood, naturemade star (default 5.6 kWh/kg) | E46: Wood, naturemade star (default 5.6 kWh/kg) | G46: Wood, naturemade star (default 5.6 kWh/kg) | J46: =J$41 -> Nachweis mit Zertifikat/HKN | K46: Preuve avec certificat / garantie d’origine | L46: Proof with certificate / guarantee of origin | M46: Proof with certificate / guarantee of origin | N46: =IF(H46>0,M46,"") ->  | Q46: 0 | R46: 0.8571428571 | S46: 5.6 | T46: 4.8 | U46: Wood chips, from forest, mixed, burned in furnace 1000kW/CH U | V46: =INDEX(SimaPro!$1:$1048576,V$3,MATCH(MainInput!$U46,SimaPro!$1:$1,0))*$R46*$H46 -> 0 | W46: =INDEX(SimaPro!$1:$1048576,W$3,MATCH(MainInput!$U46,SimaPro!$1:$1,0))*$R46*$H46 -> 0 | X46: =INDEX(SimaPro!$1:$1048576,X$3,MATCH(MainInput!$U46,SimaPro!$1:$1,0))*$R46*$H46 -> 0 | Y46: =INDEX(SimaPro!$1:$1048576,Y$3,MATCH(MainInput!$U46,SimaPro!$1:$1,0))*$R46*$H46 -> 0
B47: Holzpellets (Default 5.6 kWh/kg) | C47: Pellets de bois (défaut 5.6 kWh/kg) | D47: Wood pellets (default 5.6 kWh/kg) | E47: Wood pellets (default 5.6 kWh/kg) | G47: Wood pellets (default 5.6 kWh/kg) | M47: 0 | Q47: 0 | R47: =T47/S47 -> 0.8571428571 | S47: 5.6 | T47: 4.8 | U47: Pellets, mixed, burned in furnace 50kW/CH U | V47: =INDEX(SimaPro!$1:$1048576,V$3,MATCH(MainInput!$U47,SimaPro!$1:$1,0))*$R47*$H47 -> 0 | W47: =INDEX(SimaPro!$1:$1048576,W$3,MATCH(MainInput!$U47,SimaPro!$1:$1,0))*$R47*$H47 -> 0 | X47: =INDEX(SimaPro!$1:$1048576,X$3,MATCH(MainInput!$U47,SimaPro!$1:$1,0))*$R47*$H47 -> 0 | Y47: =INDEX(SimaPro!$1:$1048576,Y$3,MATCH(MainInput!$U47,SimaPro!$1:$1,0))*$R47*$H47 -> 0
B48: Holzpellets, naturemade star (Default 5.6 kWh/kg) | C48: Pellets de bois, naturemade star (défaut 5.6 kWh/kg) | D48: Wood pellets, naturemade star (default 5.6 kWh/kg) | E48: Wood pellets, naturemade star (default 5.6 kWh/kg) | G48: Wood pellets, naturemade star (default 5.6 kWh/kg) | J48: =J$41 -> Nachweis mit Zertifikat/HKN | K48: Preuve avec certificat / garantie d’origine | L48: Proof with certificate / guarantee of origin | M48: Proof with certificate / guarantee of origin | N48: =IF(H48>0,M48,"") ->  | Q48: 0 | R48: 0.8571428571 | S48: 5.6 | T48: 4.8 | U48: Pellets, mixed, burned in furnace 50kW/CH U | V48: =INDEX(SimaPro!$1:$1048576,V$3,MATCH(MainInput!$U48,SimaPro!$1:$1,0))*$R48*$H48 -> 0 | W48: =INDEX(SimaPro!$1:$1048576,W$3,MATCH(MainInput!$U48,SimaPro!$1:$1,0))*$R48*$H48 -> 0 | X48: =INDEX(SimaPro!$1:$1048576,X$3,MATCH(MainInput!$U48,SimaPro!$1:$1,0))*$R48*$H48 -> 0 | Y48: =INDEX(SimaPro!$1:$1048576,Y$3,MATCH(MainInput!$U48,SimaPro!$1:$1,0))*$R48*$H48 -> 0
M49: 0
B50: Anteil Fernwärme an Brennstoffen und Wärme | C50: Part du chauffage à distance dans les combustibles et la chaleur | D50: Share of district heating in fuels and heat | E50: Share of district heating in fuels and heat | G50: Share of district heating in fuels and heat | H50: 0 | J50: Bitte Anteil Fernwärme am gesamten Wärmebezug ausrechnen, falls Fernwärme genutzt wird | K50: Veuillez calculer la part du chauffage urbain dans la consommation totale de chaleur si le chauffage urbain est utilisé | L50: Please calculate the share of district heating in the total heat consumption, if district heating is used | M50: Please calculate the share of district heating in the total heat consumption, if district heating is used | N50: =M50 -> Please calculate the share of district heating in the total heat consumption, if district heating is used | Q50: 0.1 | R50: =H37 -> 0 | U50: transport, district heat network, average/CH/I U | V50: =INDEX(SimaPro!$1:$1048576,V$3,MATCH(MainInput!$U50,SimaPro!$1:$1,0))*$R50*$H50+$Q50*SUM(V38:V48) -> 0 | W50: =INDEX(SimaPro!$1:$1048576,W$3,MATCH(MainInput!$U50,SimaPro!$1:$1,0))*$R50*$H50+$Q50*SUM(W38:W48) -> 0 | X50: =INDEX(SimaPro!$1:$1048576,X$3,MATCH(MainInput!$U50,SimaPro!$1:$1,0))*$R50*$H50+$Q50*SUM(X38:X48) -> 0 | Y50: =INDEX(SimaPro!$1:$1048576,Y$3,MATCH(MainInput!$U50,SimaPro!$1:$1,0))*$R50*$H50+$Q50*SUM(Y38:Y48) -> 0
M51: 0
B52: Total Fremdenergieverbrauch | C52: Consommation totale d'énergie externe | D52: Total external energy consumption | E52: Total external energy consumption | G52: Total external energy consumption | H52: =H37+H33+H28 -> 0 | M52: 0 | Q52: =Q37+Q33+Q28 -> 0 | R52: 1 | V52: =SUM(V29:V50) ->  | W52: =SUM(W29:W50) ->  | X52: =SUM(X29:X50) ->  | Y52: =SUM(Y29:Y50) -> 
B53: Abzuziehen zur Berechnung der Nettoenergie | C53: A déduire pour calculer l'énergie nette | D53: To be deducted for calculation of net energy | E53: To be deducted for calculation of net energy | G53: To be deducted for calculation of net energy | H53: =H52-H30-H40-H42-H44-H46-H48 -> 0 | M53: 0 | R53: 1
M54: 0 | R54: 1
A55: 11 | B55: Energieprodukte | C55: Produits énergétiques | D55: Energy products | E55: Energy products | G55: =E55 -> Energy products | M55: 0 | R55: 1
M56: 0 | R56: 1 | V56: =INDEX(SimaPro!$1:$1048576,V$3,MATCH(MainInput!$U56,SimaPro!$1:$1,0))*$R56*$H56 -> 0 | W56: =INDEX(SimaPro!$1:$1048576,W$3,MATCH(MainInput!$U56,SimaPro!$1:$1,0))*$R56*$H56 -> 0 | X56: =INDEX(SimaPro!$1:$1048576,X$3,MATCH(MainInput!$U56,SimaPro!$1:$1,0))*$R56*$H56 -> 0 | Y56: =INDEX(SimaPro!$1:$1048576,Y$3,MATCH(MainInput!$U56,SimaPro!$1:$1,0))*$R56*$H56 -> 0
B57: Biogas (Brennwert angeben) | C57: Biogaz (spécifier pouvoir calorifique supérieur) | D57: Biogas (specify higher heating value) | E57: Biogas (specify higher heating value) | G57: =E57 -> Biogas (specify higher heating value) | H57: kWh | M57: 0 | R57: 1 | V57: =INDEX(SimaPro!$1:$1048576,V$3,MATCH(MainInput!$U57,SimaPro!$1:$1,0))*$R57*$H57 ->  | W57: =INDEX(SimaPro!$1:$1048576,W$3,MATCH(MainInput!$U57,SimaPro!$1:$1,0))*$R57*$H57 ->  | X57: =INDEX(SimaPro!$1:$1048576,X$3,MATCH(MainInput!$U57,SimaPro!$1:$1,0))*$R57*$H57 ->  | Y57: =INDEX(SimaPro!$1:$1048576,Y$3,MATCH(MainInput!$U57,SimaPro!$1:$1,0))*$R57*$H57 -> 
A58: 12 | B58: Bruttoproduktion Biogas (Default 7.4 kWh/m3) | C58: Production brute de biogaz (défaut 7.4 kWh/m3) | D58: Gross production biogas (default 7.4 kWh/m3) | E58: Gross production biogas (default 7.4 kWh/m3) | G58: =E58 -> Gross production biogas (default 7.4 kWh/m3) | I58: =IF(O58,1,-1) -> -1 | J58: Gasertrag grösser als 125% des theoretischen Ertrages oder fehlende Eingabe | K58: Rendement du gaz supérieur à 125 % du rendement théorique ou apport manquant | L58: Gas yield greater than 125% of theoretical yield or missing input | M58: Gas yield greater than 125% of theoretical yield or missing input | N58: =IFERROR(IF(H58=0,"please specify / Bitte angeben / veuillez préciser",IF(O58,"",M58)),0) -> please specify / Bitte angeben / veuillez préciser | O58: =IF(H58=0,FALSE,Q58/5.7<Gasertrag_berechnet*1.25) -> FALSE | P58: =Gasertrag_berechnet/5.7 -> 0 | Q58: =H58*R58 -> 0 | R58: =T58/S58 -> 0.9031124883 | S58: 7.395125 | T58: 6.67862974 | V58: =INDEX(SimaPro!$1:$1048576,V$3,MATCH(MainInput!$U58,SimaPro!$1:$1,0))*$R58*$H58 -> 0 | W58: =INDEX(SimaPro!$1:$1048576,W$3,MATCH(MainInput!$U58,SimaPro!$1:$1,0))*$R58*$H58 -> 0 | X58: =INDEX(SimaPro!$1:$1048576,X$3,MATCH(MainInput!$U58,SimaPro!$1:$1,0))*$R58*$H58 -> 0 | Y58: =INDEX(SimaPro!$1:$1048576,Y$3,MATCH(MainInput!$U58,SimaPro!$1:$1,0))*$R58*$H58 -> 0
A59: 24 | B59: Methanschlupf in Aufbereitungsanlage (Default 7.4 kWh/m3) | C59: Glissement de méthane dans l'installation de traitement (défaut 7.4 kWh/m3) | D59: Methane slip in upgrading plant (default 7.4 kWh/m3) | E59: Methane slip in upgrading plant (default 7.4 kWh/m3) | G59: =E59 -> Methane slip in upgrading plant (default 7.4 kWh/m3) | I59: =IF(ISNA(O59),0,IF(O59,1,-1)) -> -1 | J59: Methanschlupf ist grösser als 1% der produzierten Biogasmenge! | K59: Le glissement du méthane est supérieur à 1 % du biogaz produit ! | L59: Methane slip is greater than 1% of the amount of biogas produced! | M59: Methane slip is greater than 1% of the amount of biogas produced! | N59: =IFERROR(IF(H59=0,"please specify / Bitte angeben / veuillez préciser",IF(O59,"",M59)),0) -> please specify / Bitte angeben / veuillez préciser | O59: =IF(H59=0,FALSE,H59/H58<1.1%) -> FALSE | P59: =Q59/Q58 ->  | Q59: 0 | R59: =R58 -> 0.9031124883 | U59: biogas, vented/CH U | V59: =INDEX(SimaPro!$1:$1048576,V$3,MATCH(MainInput!$U59,SimaPro!$1:$1,0))*$R59*$H59 -> 0 | W59: =INDEX(SimaPro!$1:$1048576,W$3,MATCH(MainInput!$U59,SimaPro!$1:$1,0))*$R59*$H59 -> 0 | X59: =INDEX(SimaPro!$1:$1048576,X$3,MATCH(MainInput!$U59,SimaPro!$1:$1,0))*$R59*$H59 -> 0 | Y59: =INDEX(SimaPro!$1:$1048576,Y$3,MATCH(MainInput!$U59,SimaPro!$1:$1,0))*$R59*$H59 -> 0
A60: 122 | B60: Biogas verbrannt in Fackel (Default 7.4 kWh/m3) | C60: Biogaz des torchères (défaut 7.4 kWh/m3) | D60: Biogas burned in flare (default 7.4 kWh/m3) | E60: Biogas burned in flare (default 7.4 kWh/m3) | G60: =E60 -> Biogas burned in flare (default 7.4 kWh/m3) | I60: =IF(H58=0,0,IF(AND(H58>0,H60=0),0,IF(O60,1,-1))) -> 0 | J60: Mehr als 3% (mit BHKW) bzw. 7% (ohne BHKW) der produzierten Biogasmenge werden abgefackelt | K60: Plus de 3% (avec cogénération) ou 7% (sans cogénération) de la quantité de biogaz produite est brûlée à la torche | L60: More than 3% (with CHP) or 7% (without CHP) of the gas produced is burned in a flare | M60: More than 3% (with CHP) or 7% (without CHP) of the gas produced is burned in a flare | N60: =IFERROR(IF(H60=0,"please specify / Bitte angeben / veuillez préciser",IF(O60,"",M60)),0) -> please specify / Bitte angeben / veuillez préciser | O60: =IF(OR(AND(H64>0,H60<H58*0.03),AND(H64=0,H60<H58*0.07)),TRUE,FALSE) -> FALSE | Q60: 0 | R60: =T60/S60 -> 0.9031124883 | S60: 7.395125 | T60: 6.67862974 | U60: biogas, burned in production flare/MJ/GLO U | V60: =INDEX(SimaPro!$1:$1048576,V$3,MATCH(MainInput!$U60,SimaPro!$1:$1,0))*$R60*$H60 -> 0 | W60: =INDEX(SimaPro!$1:$1048576,W$3,MATCH(MainInput!$U60,SimaPro!$1:$1,0))*$R60*$H60 -> 0 | X60: =INDEX(SimaPro!$1:$1048576,X$3,MATCH(MainInput!$U60,SimaPro!$1:$1,0))*$R60*$H60 -> 0 | Y60: =INDEX(SimaPro!$1:$1048576,Y$3,MATCH(MainInput!$U60,SimaPro!$1:$1,0))*$R60*$H60 -> 0
M61: 0
A62: 16 | B62: Biomethan: Verkauf und Verbrauch extern (Default 10.6 kWh/m3) | C62: Biométhane : vente et consommation externe (défaut 10.6 kWh/m3) | D62: Biomethane: sale and external consumption (default 10.6 kWh Ho/m3) | E62: Biomethane: sale and external consumption (default 10.6 kWh Ho/m3) | G62: =E62 -> Biomethane: sale and external consumption (default 10.6 kWh Ho/m3) | M62: 0 | Q62: =H62*R62 -> 0 | R62: =R63 -> 0.9031124883 | U62: methane, 96 vol-%, purification and distribution/kWh/CH U | V62: =INDEX(SimaPro!$1:$1048576,V$3,MATCH(MainInput!$U62,SimaPro!$1:$1,0))*$R62*$H62 -> 0 | W62: =INDEX(SimaPro!$1:$1048576,W$3,MATCH(MainInput!$U62,SimaPro!$1:$1,0))*$R62*$H62 -> 0 | X62: =INDEX(SimaPro!$1:$1048576,X$3,MATCH(MainInput!$U62,SimaPro!$1:$1,0))*$R62*$H62 -> 0 | Y62: =INDEX(SimaPro!$1:$1048576,Y$3,MATCH(MainInput!$U62,SimaPro!$1:$1,0))*$R62*$H62 -> 0 | Z62: threshold value, methane/kWh/CH U | AA62: =INDEX(SimaPro!$1:$1048576,AA$3,MATCH(MainInput!$Z62,SimaPro!$1:$1,0))*$R62*$H62 -> 0 | AB62: =INDEX(SimaPro!$1:$1048576,AB$3,MATCH(MainInput!$Z62,SimaPro!$1:$1,0))*$R62*$H62 -> 0 | AC62: =INDEX(SimaPro!$1:$1048576,AC$3,MATCH(MainInput!$Z62,SimaPro!$1:$1,0))*$R62*$H62 -> 0 | AD62: =INDEX(SimaPro!$1:$1048576,AD$3,MATCH(MainInput!$Z62,SimaPro!$1:$1,0))*$R62*$H62 -> 0
A63: 116 | B63: Biogas: Verkauf und Verbrauch extern (Default 7.4 kWh/m3) | C63: Biogaz : vente et consommation externe (défaut 7.4 kWh/m3) | D63: Biogas: sale and external consumption (default 7.4 kWh/m3) | E63: Biogas: sale and external consumption (default 7.4 kWh/m3) | G63: Biogas: sale and external consumption (default 7.4 kWh/m3) | M63: 0 | Q63: 0 | R63: =T63/S63 -> 0.9031124883 | S63: 7.395125 | T63: 6.67862974 | U63: raw biogas, distribution/kWh/CH U | V63: =INDEX(SimaPro!$1:$1048576,V$3,MATCH(MainInput!$U63,SimaPro!$1:$1,0))*$R63*$H63 -> 0 | W63: =INDEX(SimaPro!$1:$1048576,W$3,MATCH(MainInput!$U63,SimaPro!$1:$1,0))*$R63*$H63 -> 0 | X63: =INDEX(SimaPro!$1:$1048576,X$3,MATCH(MainInput!$U63,SimaPro!$1:$1,0))*$R63*$H63 -> 0 | Y63: =INDEX(SimaPro!$1:$1048576,Y$3,MATCH(MainInput!$U63,SimaPro!$1:$1,0))*$R63*$H63 -> 0 | Z63: threshold value, methane/kWh/CH U | AA63: =INDEX(SimaPro!$1:$1048576,AA$3,MATCH(MainInput!$Z63,SimaPro!$1:$1,0))*$R63*$H63 -> 0 | AB63: =INDEX(SimaPro!$1:$1048576,AB$3,MATCH(MainInput!$Z63,SimaPro!$1:$1,0))*$R63*$H63 -> 0 | AC63: =INDEX(SimaPro!$1:$1048576,AC$3,MATCH(MainInput!$Z63,SimaPro!$1:$1,0))*$R63*$H63 -> 0 | AD63: =INDEX(SimaPro!$1:$1048576,AD$3,MATCH(MainInput!$Z63,SimaPro!$1:$1,0))*$R63*$H63 -> 0
A64: 13 | B64: Biogas: Lokale Nutzung in Heizung oder BHKW (Default 7.4 kWh/m3) | C64: Biogaz : Utilisation locale pour chauffage or CHP (défaut 7.4 kWh/m3) | D64: Biogas: local use in heating or CHP (default 7.4 kWh/m3) | E64: Biogas: local use in heating or CHP (default 7.4 kWh/m3) | G64: Biogas: local use in heating or CHP (default 7.4 kWh/m3) | I64: =IF(AND(H64>0,H70+H76+H78=0),0,1) -> 1 | J64: Bitte Strom- bzw. Wärmeproduktion unten eintragen | K64: Veuillez entrer la production d'électricité ou de chaleur ci-dessous | L64: Please enter electricity or heat production below | M64: Please enter electricity or heat production below | N64: =IF(I64=0,M64,"") ->  | Q64: 0 | R64: =T64/S64 -> 0.9031124883 | S64: 7.395125 | T64: 6.67862974 | U64: =INDEX(menuesBG!$1:$1048576,MATCH(MainInput!H65,menuesBG!F:F,0),COLUMN(menuesBG!$H$1)) -> biogas combustion, in cogen with biogas engine/MJ/CH U | V64: =INDEX(SimaPro!$1:$1048576,V$3,MATCH(MainInput!$U64,SimaPro!$1:$1,0))*$R64*$H64 -> 0 | W64: =INDEX(SimaPro!$1:$1048576,W$3,MATCH(MainInput!$U64,SimaPro!$1:$1,0))*$R64*$H64 -> 0 | X64: =INDEX(SimaPro!$1:$1048576,X$3,MATCH(MainInput!$U64,SimaPro!$1:$1,0))*$R64*$H64 -> 0 | Y64: =INDEX(SimaPro!$1:$1048576,Y$3,MATCH(MainInput!$U64,SimaPro!$1:$1,0))*$R64*$H64 -> 0
A65: 81 | B65: Biogas: Art der lokalen Nutzung | C65: Biogaz : Type de utilisation locale | D65: Biogas: Type of local use | E65: Biogas: Type of local use | G65: Biogas: Type of local use | H65: Gas engine (candle ignition) | I65: =IF(ISNA(O65),0,IF(H64=0,1,IF(O65,1,-1))) -> 1 | N65: =IFERROR(IF(O65,"",M65),$M$8) ->  | O65: =IF(BHKW/BHKW=1,TRUE,BHKW/BHKW) -> TRUE | P65: =MATCH(MainInput!H65,menuesBG!F$82:F$86,0) -> 1 | R65: 1
A66: 103 | B66: Biogas: Stickoxide NOx als NO2 aus Heizung oder BHKW | C66: Biogaz: Oxydes d'azote NOx en NO2 provenant du chauffage ou CHP | D66: Biogas: Nitrogen oxides NOx as NO2 from heating or CHP | E66: Biogas: Nitrogen oxides NOx as NO2 from heating or CHP | G66: Biogas: Nitrogen oxides NOx as NO2 from heating or CHP | H66: 400 | I66: =IF(O66,1,-1) -> 1 | J66: Grenzwert LRV wird nicht eingehalten oder Eingabe NOx fehlt. | K66: La valeur limite OPair n'est pas observée ou l'entrée NOx est manquante. | L66: Limit value of OAPC exceeded or input NOx is missing. | M66: Limit value of OAPC exceeded or input NOx is missing. | N66: =IFERROR(IF(O66,"",M66),$M$8) ->  | O66: =IF(Q64>1,AND(0<H66,H66<=400),TRUE) -> TRUE | R66: =7.57773723372344/21.46*(H66-1100)/1000000*Q64*3.6 -> 0 | U66: emission, NOx/kg/CH U | V66: =INDEX(SimaPro!$1:$1048576,V$3,MATCH(MainInput!$U66,SimaPro!$1:$1,0))*$R66 -> 0 | W66: =INDEX(SimaPro!$1:$1048576,W$3,MATCH(MainInput!$U66,SimaPro!$1:$1,0))*$R66 -> 0 | X66: =INDEX(SimaPro!$1:$1048576,X$3,MATCH(MainInput!$U66,SimaPro!$1:$1,0))*$R66 -> 0 | Y66: =INDEX(SimaPro!$1:$1048576,Y$3,MATCH(MainInput!$U66,SimaPro!$1:$1,0))*$R66 -> 0
A67: 55 | B67: Total Biogasnutzung, Brutto | C67: Utilisation totale de biogaz, brute | D67: Total biogas use, gross | E67: Total biogas use, gross | G67: Total biogas use, gross | H67: =H62+H63+H64 -> 0 | I67: =IF(O67,1,-1) -> 1 | J67: Genutzte Biogas- und Biomethanmenge überschreitet die produzierte Biogasmenge | K67: La quantité de biogaz et de biométhane utilisée dépasse la quantité de biogaz produite | L67: Amount of biogas and biomethane used exceeds the amount of biogas produced | M67: Amount of biogas and biomethane used exceeds the amount of biogas produced | N67: =IFERROR(IF(O67,"",M67),$M$8) ->  | O67: =Q67<=Q58 -> TRUE | Q67: =Q62+Q63+Q64 -> 0 | V67: =INDEX(SimaPro!$1:$1048576,V$3,MATCH(MainInput!$U67,SimaPro!$1:$1,0))*$R67*$H67 -> 0 | W67: =INDEX(SimaPro!$1:$1048576,W$3,MATCH(MainInput!$U67,SimaPro!$1:$1,0))*$R67*$H67 -> 0 | X67: =INDEX(SimaPro!$1:$1048576,X$3,MATCH(MainInput!$U67,SimaPro!$1:$1,0))*$R67*$H67 -> 0 | Y67: =INDEX(SimaPro!$1:$1048576,Y$3,MATCH(MainInput!$U67,SimaPro!$1:$1,0))*$R67*$H67 -> 0
M68: 0 | R68: 1 | V68: =INDEX(SimaPro!$1:$1048576,V$3,MATCH(MainInput!$U68,SimaPro!$1:$1,0))*$R68*$H68 -> 0 | W68: =INDEX(SimaPro!$1:$1048576,W$3,MATCH(MainInput!$U68,SimaPro!$1:$1,0))*$R68*$H68 -> 0 | X68: =INDEX(SimaPro!$1:$1048576,X$3,MATCH(MainInput!$U68,SimaPro!$1:$1,0))*$R68*$H68 -> 0 | Y68: =INDEX(SimaPro!$1:$1048576,Y$3,MATCH(MainInput!$U68,SimaPro!$1:$1,0))*$R68*$H68 -> 0
B69: Strom aus BHKW | C69: Courant | D69: Electricity | E69: Electricity | G69: =E69 -> Electricity | H69: kWh | M69: 0 | R69: 1 | V69: =INDEX(SimaPro!$1:$1048576,V$3,MATCH(MainInput!$U69,SimaPro!$1:$1,0))*$R69*$H69 ->  | W69: =INDEX(SimaPro!$1:$1048576,W$3,MATCH(MainInput!$U69,SimaPro!$1:$1,0))*$R69*$H69 ->  | X69: =INDEX(SimaPro!$1:$1048576,X$3,MATCH(MainInput!$U69,SimaPro!$1:$1,0))*$R69*$H69 ->  | Y69: =INDEX(SimaPro!$1:$1048576,Y$3,MATCH(MainInput!$U69,SimaPro!$1:$1,0))*$R69*$H69 -> 
A70: 99 | B70: Bruttoproduktion Strom | C70: Production totale de courant, brut | D70: Total production electricity, gross | E70: Total production electricity, gross | G70: =E70 -> Total production electricity, gross | I70: =IF(AND(H64=0,H70=0),1,IF(AND(H64>0,H70=0,BHKW=5),1,IF(AND(H64>0,H70=0,NOT(BHKW=5)),-1,IF(AND(H64>0,H64>=H70,H70>0),1,-1)))) -> 1 | J70: Stromproduktion fehlt oder Stromproduktion grösser als Biogasnutzung in BHKW | K70: Production d'électricité manquante ou production d'électricité supérieure à l'utilisation de biogaz dans une unité de cogénération | L70: Electricity production missing or electricity production larger than biogas use in CHP unit | M70: Electricity production missing or electricity production larger than biogas use in CHP unit | N70: =IFERROR(IF(O70,"",M70),$M$8) ->  | O70: =NOT(I70=-1) -> TRUE | P70: =Q70/Q64 ->  | Q70: =H70 -> 0 | R70: 1 | V70: =INDEX(SimaPro!$1:$1048576,V$3,MATCH(MainInput!$U70,SimaPro!$1:$1,0))*$R70*$H70 -> 0 | W70: =INDEX(SimaPro!$1:$1048576,W$3,MATCH(MainInput!$U70,SimaPro!$1:$1,0))*$R70*$H70 -> 0 | X70: =INDEX(SimaPro!$1:$1048576,X$3,MATCH(MainInput!$U70,SimaPro!$1:$1,0))*$R70*$H70 -> 0 | Y70: =INDEX(SimaPro!$1:$1048576,Y$3,MATCH(MainInput!$U70,SimaPro!$1:$1,0))*$R70*$H70 -> 0
B71: Elektrischer Wirkungsgrad | C71: Efficacité énergétique | D71: Electrical efficiency | E71: Electrical efficiency | G71: =E71 -> Electrical efficiency | H71: =IF(H64>0,ROUND(H70/H64*100,0),0)/100 -> 0 | M71: 0 | R71: 1 | V71: =INDEX(SimaPro!$1:$1048576,V$3,MATCH(MainInput!$U71,SimaPro!$1:$1,0))*$R71*$H71 -> 0 | W71: =INDEX(SimaPro!$1:$1048576,W$3,MATCH(MainInput!$U71,SimaPro!$1:$1,0))*$R71*$H71 -> 0 | X71: =INDEX(SimaPro!$1:$1048576,X$3,MATCH(MainInput!$U71,SimaPro!$1:$1,0))*$R71*$H71 -> 0 | Y71: =INDEX(SimaPro!$1:$1048576,Y$3,MATCH(MainInput!$U71,SimaPro!$1:$1,0))*$R71*$H71 -> 0
A72: 100 | B72: Eigenverbrauch aus Bruttostromproduktion | C72: Consommation propre de l'installation | D72: Internal consumption of the plant from gross electricity production | E72: Internal consumption of the plant from gross electricity production | G72: =E72 -> Internal consumption of the plant from gross electricity production | I72: =IF(H72>H70,-1,1) -> 1 | J72: Eigenverbrauch Strom grösser Stromproduktion | K72: La consommation propre d'électricité est supérieure à la production d'électricité | L72: Own consumption of electricity greater than electricity production | M72: Own consumption of electricity greater than electricity production | N72: =IF(I72=-1,M72,"") ->  | Q72: =H72 -> 0 | R72: 1 | V72: =INDEX(SimaPro!$1:$1048576,V$3,MATCH(MainInput!$U72,SimaPro!$1:$1,0))*$R72*$H72 -> 0 | W72: =INDEX(SimaPro!$1:$1048576,W$3,MATCH(MainInput!$U72,SimaPro!$1:$1,0))*$R72*$H72 -> 0 | X72: =INDEX(SimaPro!$1:$1048576,X$3,MATCH(MainInput!$U72,SimaPro!$1:$1,0))*$R72*$H72 -> 0 | Y72: =INDEX(SimaPro!$1:$1048576,Y$3,MATCH(MainInput!$U72,SimaPro!$1:$1,0))*$R72*$H72 -> 0
A73: 14 | B73: Strom: Verkauf und Verbrauch ausserhalb der Anlage | C73: Courant : vente et consommation hors de l'installation | D73: Electricity: sale and consumption outside the plant | E73: Electricity: sale and consumption outside the plant | G73: =E73 -> Electricity: sale and consumption outside the plant | I73: =IF(O73,1,-1) -> 1 | J73: Verhältnis von Stromverkauf und -verbrauch und Stromproduktion prüfen | K73: Examiner la relation entre les ventes et la consommation d'électricité et la production d'électricité | L73: Check ratio of electricity sales and consumption to electricity production | M73: Check ratio of electricity sales and consumption to electricity production | N73: =IFERROR(IF(O73,"",M73),$M$8) ->  | O73: =AND((Q70-Q72-Q73)<=Q70*0.2,(Q70-Q72-Q73)>=0) -> TRUE | Q73: =H73 -> 0 | R73: 1 | V73: =INDEX(SimaPro!$1:$1048576,V$3,MATCH(MainInput!$U73,SimaPro!$1:$1,0))*$R73*$H73 -> 0 | W73: =INDEX(SimaPro!$1:$1048576,W$3,MATCH(MainInput!$U73,SimaPro!$1:$1,0))*$R73*$H73 -> 0 | X73: =INDEX(SimaPro!$1:$1048576,X$3,MATCH(MainInput!$U73,SimaPro!$1:$1,0))*$R73*$H73 -> 0 | Y73: =INDEX(SimaPro!$1:$1048576,Y$3,MATCH(MainInput!$U73,SimaPro!$1:$1,0))*$R73*$H73 -> 0 | Z73: threshold value, electricity/kWh/CH U | AA73: =INDEX(SimaPro!$1:$1048576,AA$3,MATCH(MainInput!$Z73,SimaPro!$1:$1,0))*$R73*$H73 -> 0 | AB73: =INDEX(SimaPro!$1:$1048576,AB$3,MATCH(MainInput!$Z73,SimaPro!$1:$1,0))*$R73*$H73 -> 0 | AC73: =INDEX(SimaPro!$1:$1048576,AC$3,MATCH(MainInput!$Z73,SimaPro!$1:$1,0))*$R73*$H73 -> 0 | AD73: =INDEX(SimaPro!$1:$1048576,AD$3,MATCH(MainInput!$Z73,SimaPro!$1:$1,0))*$R73*$H73 -> 0
M74: 0 | R74: 1 | V74: =INDEX(SimaPro!$1:$1048576,V$3,MATCH(MainInput!$U74,SimaPro!$1:$1,0))*$R74*$H74 -> 0 | W74: =INDEX(SimaPro!$1:$1048576,W$3,MATCH(MainInput!$U74,SimaPro!$1:$1,0))*$R74*$H74 -> 0 | X74: =INDEX(SimaPro!$1:$1048576,X$3,MATCH(MainInput!$U74,SimaPro!$1:$1,0))*$R74*$H74 -> 0 | Y74: =INDEX(SimaPro!$1:$1048576,Y$3,MATCH(MainInput!$U74,SimaPro!$1:$1,0))*$R74*$H74 -> 0
B75: Wärme | C75: Chaleur | D75: Heat | E75: Heat | G75: =E75 -> Heat | H75: kWh | M75: 0 | R75: 1 | V75: =INDEX(SimaPro!$1:$1048576,V$3,MATCH(MainInput!$U75,SimaPro!$1:$1,0))*$R75*$H75 ->  | W75: =INDEX(SimaPro!$1:$1048576,W$3,MATCH(MainInput!$U75,SimaPro!$1:$1,0))*$R75*$H75 ->  | X75: =INDEX(SimaPro!$1:$1048576,X$3,MATCH(MainInput!$U75,SimaPro!$1:$1,0))*$R75*$H75 ->  | Y75: =INDEX(SimaPro!$1:$1048576,Y$3,MATCH(MainInput!$U75,SimaPro!$1:$1,0))*$R75*$H75 -> 
A76: 32 | B76: Einspeisung in Fernwärmeverbund | C76: Alimentation du réseau de chaleur | D76: Feeding into district heating network | E76: Feeding into district heating network | G76: =E76 -> Feeding into district heating network | M76: 0 | N76: =IFERROR(IF(O77,"",M76),$M$8) ->  | Q76: =H76 -> 0 | R76: 1 | U76: transport, district heat network, average/CH/I U | V76: =INDEX(SimaPro!$1:$1048576,V$3,MATCH(MainInput!$U76,SimaPro!$1:$1,0))*$R76*$H76 -> 0 | W76: =INDEX(SimaPro!$1:$1048576,W$3,MATCH(MainInput!$U76,SimaPro!$1:$1,0))*$R76*$H76 -> 0 | X76: =INDEX(SimaPro!$1:$1048576,X$3,MATCH(MainInput!$U76,SimaPro!$1:$1,0))*$R76*$H76 -> 0 | Y76: =INDEX(SimaPro!$1:$1048576,Y$3,MATCH(MainInput!$U76,SimaPro!$1:$1,0))*$R76*$H76 -> 0
B77: Verteilverluste Fernwärmeverbund | C77: Pertes de distribution en réseaux de chauffage à distance | D77: Distribution losses district heating network | E77: Distribution losses district heating network | G77: =E77 -> Distribution losses district heating network | I77: =IF(O77,1,-1) -> 1 | J77: Default-Verteilungsverluste in Fernwärmeverbünden: 10% | K77: Pertes de distribution par défaut dans les réseaux de chauffage à distance : 10 % | L77: Default distribution losses in district heating network: 10% | M77: Default distribution losses in district heating network: 10% | N77: =IF(H77=10%,"",M77) -> Default distribution losses in district heating network: 10% | O77: =H77<20% -> TRUE | R77: 1 | V77: =INDEX(SimaPro!$1:$1048576,V$3,MATCH(MainInput!$U77,SimaPro!$1:$1,0))*$R77*$H77 -> 0 | W77: =INDEX(SimaPro!$1:$1048576,W$3,MATCH(MainInput!$U77,SimaPro!$1:$1,0))*$R77*$H77 -> 0 | X77: =INDEX(SimaPro!$1:$1048576,X$3,MATCH(MainInput!$U77,SimaPro!$1:$1,0))*$R77*$H77 -> 0 | Y77: =INDEX(SimaPro!$1:$1048576,Y$3,MATCH(MainInput!$U77,SimaPro!$1:$1,0))*$R77*$H77 -> 0
A78: 43 | B78: Lokale Wärmenutzung: Verkauf, Verbrauch i.d. Nähe der Anlage | C78: Utilisation locale de la chaleur : vente, conso. à proximité de de l'installation | D78: Local heat utilisation: sale, consumption in the vicinity of the plant | E78: Local heat utilisation: sale, consumption in the vicinity of the plant | G78: =E78 -> Local heat utilisation: sale, consumption in the vicinity of the plant | J78: Eigenverbrauch Wärme nicht eintragen | K78: Ne pas saisir sa propre consommation de chaleur | L78: Do not enter own heat consumption | M78: Do not enter own heat consumption | N78: =IF(H78=0,"",M78) ->  | Q78: =H78 -> 0 | R78: 1 | V78: =INDEX(SimaPro!$1:$1048576,V$3,MATCH(MainInput!$U78,SimaPro!$1:$1,0))*$R78*$H78 -> 0 | W78: =INDEX(SimaPro!$1:$1048576,W$3,MATCH(MainInput!$U78,SimaPro!$1:$1,0))*$R78*$H78 -> 0 | X78: =INDEX(SimaPro!$1:$1048576,X$3,MATCH(MainInput!$U78,SimaPro!$1:$1,0))*$R78*$H78 -> 0 | Y78: =INDEX(SimaPro!$1:$1048576,Y$3,MATCH(MainInput!$U78,SimaPro!$1:$1,0))*$R78*$H78 -> 0
A79: 62 | B79: Total Wärmeverkauf (nach Abzug Verteilverluste) | C79: Vente de chaleur (après déduction pertes) | D79: Total heat sales (after deduction of distribution losses) | E79: Total heat sales (after deduction of distribution losses) | G79: =E79 -> Total heat sales (after deduction of distribution losses) | H79: =H78+H76*(1-H77) -> 0 | I79: =IF(O79,1,-1) -> 1 | J79: Strom- und Wärmeproduktion ist grösser als Biogas in BHKW | K79: La production d'électricité et de chaleur est supérieure à celle du biogaz de l'unité de cogénération | L79: Electricity and heat production is greater than biogas in CHP unit | M79: Electricity and heat production is greater than biogas in CHP unit | N79: =IFERROR(IF(O79,"",M79),$M$8) ->  | O79: =(Q73+SUM(Q76:Q78))<=Q64/R64 -> TRUE | Q79: =H79 -> 0 | R79: 1 | V79: =INDEX(SimaPro!$1:$1048576,V$3,MATCH(MainInput!$U79,SimaPro!$1:$1,0))*$R79*$H79 -> 0 | W79: =INDEX(SimaPro!$1:$1048576,W$3,MATCH(MainInput!$U79,SimaPro!$1:$1,0))*$R79*$H79 -> 0 | X79: =INDEX(SimaPro!$1:$1048576,X$3,MATCH(MainInput!$U79,SimaPro!$1:$1,0))*$R79*$H79 -> 0 | Y79: =INDEX(SimaPro!$1:$1048576,Y$3,MATCH(MainInput!$U79,SimaPro!$1:$1,0))*$R79*$H79 -> 0 | Z79: threshold value, heat/kWh/CH U | AA79: =INDEX(SimaPro!$1:$1048576,AA$3,MATCH(MainInput!$Z79,SimaPro!$1:$1,0))*$R79*$H79 -> 0 | AB79: =INDEX(SimaPro!$1:$1048576,AB$3,MATCH(MainInput!$Z79,SimaPro!$1:$1,0))*$R79*$H79 -> 0 | AC79: =INDEX(SimaPro!$1:$1048576,AC$3,MATCH(MainInput!$Z79,SimaPro!$1:$1,0))*$R79*$H79 -> 0 | AD79: =INDEX(SimaPro!$1:$1048576,AD$3,MATCH(MainInput!$Z79,SimaPro!$1:$1,0))*$R79*$H79 -> 0
M80: 0 | P80: =H81/H58 ->  | R80: 1 | V80: =INDEX(SimaPro!$1:$1048576,V$3,MATCH(MainInput!$U80,SimaPro!$1:$1,0))*$R80*$H80 -> 0 | W80: =INDEX(SimaPro!$1:$1048576,W$3,MATCH(MainInput!$U80,SimaPro!$1:$1,0))*$R80*$H80 -> 0 | X80: =INDEX(SimaPro!$1:$1048576,X$3,MATCH(MainInput!$U80,SimaPro!$1:$1,0))*$R80*$H80 -> 0 | Y80: =INDEX(SimaPro!$1:$1048576,Y$3,MATCH(MainInput!$U80,SimaPro!$1:$1,0))*$R80*$H80 -> 0
A81: 102 | B81: Total Energieprodukte | C81: Besoin total en produits énergétiques | D81: Total quantity of energy products | E81: Total quantity of energy products | G81: =E81 -> Total quantity of energy products | H81: =H79+H62+H73+H63 -> 0 | I81: =IF(H81=0,0,IF(O81,1,-1)) -> 0 | J81: Energetische Effizienz der Biogasnutzung >1 | K81: Efficacité énergétique de l'utilisation du biogaz >1 | L81: Energy efficiency of biogas use >1 | M81: Energy efficiency of biogas use >1 | N81: =IF(H81=0,"",IFERROR(IF(O81,"",M81),$M$8)) ->  | O81: =IFERROR(P81<1,FALSE) -> FALSE | P81: =Q81/Q58 ->  | Q81: =Q79+Q62+Q73+Q63 -> 0 | R81: 1 | V81: =INDEX(SimaPro!$1:$1048576,V$3,MATCH(MainInput!$U81,SimaPro!$1:$1,0))*$R81*$H81 -> 0 | W81: =INDEX(SimaPro!$1:$1048576,W$3,MATCH(MainInput!$U81,SimaPro!$1:$1,0))*$R81*$H81 -> 0 | X81: =INDEX(SimaPro!$1:$1048576,X$3,MATCH(MainInput!$U81,SimaPro!$1:$1,0))*$R81*$H81 -> 0 | Y81: =INDEX(SimaPro!$1:$1048576,Y$3,MATCH(MainInput!$U81,SimaPro!$1:$1,0))*$R81*$H81 -> 0
M82: 0 | R82: 1 | V82: =INDEX(SimaPro!$1:$1048576,V$3,MATCH(MainInput!$U82,SimaPro!$1:$1,0))*$R82*$H82 -> 0 | W82: =INDEX(SimaPro!$1:$1048576,W$3,MATCH(MainInput!$U82,SimaPro!$1:$1,0))*$R82*$H82 -> 0 | X82: =INDEX(SimaPro!$1:$1048576,X$3,MATCH(MainInput!$U82,SimaPro!$1:$1,0))*$R82*$H82 -> 0 | Y82: =INDEX(SimaPro!$1:$1048576,Y$3,MATCH(MainInput!$U82,SimaPro!$1:$1,0))*$R82*$H82 -> 0
B83: Gärreste | C83: Digestat | D83: Fermentation residues | E83: Fermentation residues | G83: =E83 -> Fermentation residues | M83: 0 | R83: 1 | V83: =INDEX(SimaPro!$1:$1048576,V$3,MATCH(MainInput!$U83,SimaPro!$1:$1,0))*$R83*$H83 -> 0 | W83: =INDEX(SimaPro!$1:$1048576,W$3,MATCH(MainInput!$U83,SimaPro!$1:$1,0))*$R83*$H83 -> 0 | X83: =INDEX(SimaPro!$1:$1048576,X$3,MATCH(MainInput!$U83,SimaPro!$1:$1,0))*$R83*$H83 -> 0 | Y83: =INDEX(SimaPro!$1:$1048576,Y$3,MATCH(MainInput!$U83,SimaPro!$1:$1,0))*$R83*$H83 -> 0
M84: 0 | R84: 1 | V84: =INDEX(SimaPro!$1:$1048576,V$3,MATCH(MainInput!$U84,SimaPro!$1:$1,0))*$R84*$H84 -> 0 | W84: =INDEX(SimaPro!$1:$1048576,W$3,MATCH(MainInput!$U84,SimaPro!$1:$1,0))*$R84*$H84 -> 0 | X84: =INDEX(SimaPro!$1:$1048576,X$3,MATCH(MainInput!$U84,SimaPro!$1:$1,0))*$R84*$H84 -> 0 | Y84: =INDEX(SimaPro!$1:$1048576,Y$3,MATCH(MainInput!$U84,SimaPro!$1:$1,0))*$R84*$H84 -> 0
B85: Gärreste fest | C85: Digestat solide | D85: Solid fermentation residues | E85: Solid fermentation residues | G85: =E85 -> Solid fermentation residues | M85: 0 | R85: 1 | V85: =INDEX(SimaPro!$1:$1048576,V$3,MATCH(MainInput!$U85,SimaPro!$1:$1,0))*$R85*$H85 -> 0 | W85: =INDEX(SimaPro!$1:$1048576,W$3,MATCH(MainInput!$U85,SimaPro!$1:$1,0))*$R85*$H85 -> 0 | X85: =INDEX(SimaPro!$1:$1048576,X$3,MATCH(MainInput!$U85,SimaPro!$1:$1,0))*$R85*$H85 -> 0 | Y85: =INDEX(SimaPro!$1:$1048576,Y$3,MATCH(MainInput!$U85,SimaPro!$1:$1,0))*$R85*$H85 -> 0
A86: 64 | B86: Art der Behandlung | C86: Type de traitement | D86: Type of treatment | E86: Type of treatment | G86: Type of treatment | I86: =IF(ISNA(O86),0,IF(O86,1,0)) -> 0 | J86: Bitte Behandlungsart feste Gärreste angeben | K86: Veuillez préciser le type de traitement du digestat solide | L86: Please specify treatment type solid digestate | M86: Please specify treatment type solid digestate | N86: =IFERROR(IF(O86,"",M86),M86) -> Please specify treatment type solid digestate | O86: =Auswahl_Behandlung_fest<6 ->  | P86: =MATCH(MainInput!H86,menuesBG!$F$65:$F$69,0) ->  | R86: 1 | V86: =INDEX(SimaPro!$1:$1048576,V$3,MATCH(MainInput!$U86,SimaPro!$1:$1,0))*$R86*$H86 -> 0 | W86: =INDEX(SimaPro!$1:$1048576,W$3,MATCH(MainInput!$U86,SimaPro!$1:$1,0))*$R86*$H86 -> 0 | X86: =INDEX(SimaPro!$1:$1048576,X$3,MATCH(MainInput!$U86,SimaPro!$1:$1,0))*$R86*$H86 -> 0 | Y86: =INDEX(SimaPro!$1:$1048576,Y$3,MATCH(MainInput!$U86,SimaPro!$1:$1,0))*$R86*$H86 -> 0
B87: Art der Verwendung | C87: Type d'utilisation | D87: Type of use | E87: Type of use | G87: Type of use | I87: =IF(ISNA(O87),0,IF(O87,1,0)) -> 0 | J87: Wenn Klärschlamm oder ähnliche Substrate verwendet werden, muss der Gärrückstand verbrannt werden. | K87: Si des boues d'épuration ou des substrats similaires sont utilisés, le résidu de fermentation doit être incinéré. | L87: If sewage sludge or similar substrates are used, the fermentation residue must be incinerated. | M87: If sewage sludge or similar substrates are used, the fermentation residue must be incinerated. | N87: =IFERROR(IF(Auswahl_Verwendung_fest=1,"please specify / Bitte angeben / veuillez préciser",IF(O87,"",M87)),$M$8) -> Fill in selection matrix for selected language | O87: =IF(AND(SUM(Substrates!F111:F124)>0,Auswahl_Verwendung_fest<3),FALSE,TRUE) ->  | P87: =MATCH(MainInput!H87,menuesBG!$F$95:$F$98,0) ->  | Q87: =GärrestFestMenge/GärrestTotal ->  | R87: 1 | V87: =INDEX(SimaPro!$1:$1048576,V$3,MATCH(MainInput!$U87,SimaPro!$1:$1,0))*$R87*$H87 -> 0 | W87: =INDEX(SimaPro!$1:$1048576,W$3,MATCH(MainInput!$U87,SimaPro!$1:$1,0))*$R87*$H87 -> 0 | X87: =INDEX(SimaPro!$1:$1048576,X$3,MATCH(MainInput!$U87,SimaPro!$1:$1,0))*$R87*$H87 -> 0 | Y87: =INDEX(SimaPro!$1:$1048576,Y$3,MATCH(MainInput!$U87,SimaPro!$1:$1,0))*$R87*$H87 -> 0
A88: 94 | B88: Menge | C88: Quantité | D88: Quantity | E88: Quantity | G88: Quantity | H88: 0 | I88: =IF(O88,1,-1) -> -1 | J88: Input und Output der Biogasanlage stimmen nicht überein (max. 25% Abweichung) | K88: L'entrée et la sortie de l'usine de biogaz ne correspondent pas (écart maximal de 25%) | L88: Input and output of the biogas plant do not match (max 25% deviation) | M88: Input and output of the biogas plant do not match (max 25% deviation) | N88: =IFERROR(IF(O88,"",M88),$M$8) -> Input and output of the biogas plant do not match (max 25% deviation) | O88: =AND(H24/1.25<H100,H100<H24*1.25) -> FALSE | P88: =H88 -> 0 | R88: x | V88: =INDEX(SimaPro!$1:$1048576,V$3,MATCH(MainInput!$U88,SimaPro!$1:$1,0))*$R88*$H88 ->  | W88: =INDEX(SimaPro!$1:$1048576,W$3,MATCH(MainInput!$U88,SimaPro!$1:$1,0))*$R88*$H88 ->  | X88: =INDEX(SimaPro!$1:$1048576,X$3,MATCH(MainInput!$U88,SimaPro!$1:$1,0))*$R88*$H88 ->  | Y88: =INDEX(SimaPro!$1:$1048576,Y$3,MATCH(MainInput!$U88,SimaPro!$1:$1,0))*$R88*$H88 ->  | Z88: reference value, digested matter, solid/kg/CH U | AA88: =INDEX(SimaPro!$1:$1048576,AA$3,MATCH(MainInput!$Z88,SimaPro!$1:$1,0))*$R88*$H88 ->  | AB88: =INDEX(SimaPro!$1:$1048576,AB$3,MATCH(MainInput!$Z88,SimaPro!$1:$1,0))*$R88*$H88 ->  | AC88: =INDEX(SimaPro!$1:$1048576,AC$3,MATCH(MainInput!$Z88,SimaPro!$1:$1,0))*$R88*$H88 ->  | AD88: =INDEX(SimaPro!$1:$1048576,AD$3,MATCH(MainInput!$Z88,SimaPro!$1:$1,0))*$R88*$H88 -> 
B89: Kosten/Ertrag für Entsorgung/Ausbringung | C89: Coûts / rendement pour l'élimination / l'épandage | D89: Costs/yield for disposal/spreading | E89: Costs/yield for disposal/spreading | G89: Costs/yield for disposal/spreading | H89: 0 | J89: Einnahmen (plus) bzw. Ausgaben (minus) für Entsorgung bzw. Ausbringung der Gärreste (ohne Transportkosten) | K89: Revenus (plus) ou dépenses (moins) pour l'élimination ou l'épandage du digestat (à l'exclusion des frais de transport) | L89: Revenue (plus) or expenses (minus) for disposal or application of digestate (excluding transport costs) | M89: Revenue (plus) or expenses (minus) for disposal or application of digestate (excluding transport costs) | N89: =M89 -> Revenue (plus) or expenses (minus) for disposal or application of digestate (excluding transport costs) | R89: 1 | V89: =INDEX(SimaPro!$1:$1048576,V$3,MATCH(MainInput!$U89,SimaPro!$1:$1,0))*$R89*$H89 -> 0 | W89: =INDEX(SimaPro!$1:$1048576,W$3,MATCH(MainInput!$U89,SimaPro!$1:$1,0))*$R89*$H89 -> 0 | X89: =INDEX(SimaPro!$1:$1048576,X$3,MATCH(MainInput!$U89,SimaPro!$1:$1,0))*$R89*$H89 -> 0 | Y89: =INDEX(SimaPro!$1:$1048576,Y$3,MATCH(MainInput!$U89,SimaPro!$1:$1,0))*$R89*$H89 -> 0
A90: 30 | B90: Einfache Distanz Anlage - Entsorgung/Ausbringung | C90: Installation à distance simple - l'élimination / l'épandage | D90: Simple distance plant - disposal/spreading | E90: Simple distance plant - disposal/spreading | G90: Simple distance plant - disposal/spreading | H90: 0 | M90: 0 | P90: =P87<3 ->  | R90: 1 | V90: =INDEX(SimaPro!$1:$1048576,V$3,MATCH(MainInput!$U90,SimaPro!$1:$1,0))*$R90*$H90 -> 0 | W90: =INDEX(SimaPro!$1:$1048576,W$3,MATCH(MainInput!$U90,SimaPro!$1:$1,0))*$R90*$H90 -> 0 | X90: =INDEX(SimaPro!$1:$1048576,X$3,MATCH(MainInput!$U90,SimaPro!$1:$1,0))*$R90*$H90 -> 0 | Y90: =INDEX(SimaPro!$1:$1048576,Y$3,MATCH(MainInput!$U90,SimaPro!$1:$1,0))*$R90*$H90 -> 0
M91: 0 | R91: 1 | V91: =INDEX(SimaPro!$1:$1048576,V$3,MATCH(MainInput!$U91,SimaPro!$1:$1,0))*$R91*$H91 -> 0 | W91: =INDEX(SimaPro!$1:$1048576,W$3,MATCH(MainInput!$U91,SimaPro!$1:$1,0))*$R91*$H91 -> 0 | X91: =INDEX(SimaPro!$1:$1048576,X$3,MATCH(MainInput!$U91,SimaPro!$1:$1,0))*$R91*$H91 -> 0 | Y91: =INDEX(SimaPro!$1:$1048576,Y$3,MATCH(MainInput!$U91,SimaPro!$1:$1,0))*$R91*$H91 -> 0
B92: Gärreste flüssig | C92: Digestat liquide | D92: Liquid fermentation residues | E92: Liquid fermentation residues | G92: =E92 -> Liquid fermentation residues | M92: 0 | R92: 1 | V92: =INDEX(SimaPro!$1:$1048576,V$3,MATCH(MainInput!$U92,SimaPro!$1:$1,0))*$R92*$H92 -> 0 | W92: =INDEX(SimaPro!$1:$1048576,W$3,MATCH(MainInput!$U92,SimaPro!$1:$1,0))*$R92*$H92 -> 0 | X92: =INDEX(SimaPro!$1:$1048576,X$3,MATCH(MainInput!$U92,SimaPro!$1:$1,0))*$R92*$H92 -> 0 | Y92: =INDEX(SimaPro!$1:$1048576,Y$3,MATCH(MainInput!$U92,SimaPro!$1:$1,0))*$R92*$H92 -> 0
A93: 70 | B93: Art der Behandlung | C93: Type de traitement | D93: Type of treatment | E93: Type of treatment | G93: Type of treatment | I93: =IF(ISNA(O93),0,IF(O93,1,0)) -> 0 | J93: Bitte Behandlungsart flüssige Gärreste angeben | K93: Veuillez préciser le type de traitement du digestat liquide | L93: Please specify treatment type liquid digestate | M93: Please specify treatment type liquid digestate | N93: =IFERROR(IF(O93,"",M93),M93) -> Please specify treatment type liquid digestate | O93: =Auswahl_Behandlung_flüssig<4 ->  | P93: =MATCH(MainInput!H93,menuesBG!$F$71:$F$73,0) ->  | R93: 1 | V93: =INDEX(SimaPro!$1:$1048576,V$3,MATCH(MainInput!$U93,SimaPro!$1:$1,0))*$R93*$H93 -> 0 | W93: =INDEX(SimaPro!$1:$1048576,W$3,MATCH(MainInput!$U93,SimaPro!$1:$1,0))*$R93*$H93 -> 0 | X93: =INDEX(SimaPro!$1:$1048576,X$3,MATCH(MainInput!$U93,SimaPro!$1:$1,0))*$R93*$H93 -> 0 | Y93: =INDEX(SimaPro!$1:$1048576,Y$3,MATCH(MainInput!$U93,SimaPro!$1:$1,0))*$R93*$H93 -> 0
B94: Art der Verwendung | C94: Type d'utilisation | D94: Type of use | E94: Type of use | G94: Type of use | I94: =IF(ISNA(O94),0,IF(O94,1,0)) -> 0 | J94: Bitte Verwendungsart flüssige Gärreste angeben | K94: Veuillez préciser le type d'utilisation du digestat liquide | L94: Please specify type of use of liquid digestate | M94: Please specify type of use of liquid digestate | N94: =IFERROR(IF(O94,"",M94),M94) -> Please specify type of use of liquid digestate | O94: =Auswahl_Verwendung_flüssig<6 ->  | P94: =MATCH(MainInput!H94,menuesBG!F$75:F$80,0) ->  | Q94: =GärrestFlüssigMenge/GärrestTotal ->  | R94: 1 | V94: =INDEX(SimaPro!$1:$1048576,V$3,MATCH(MainInput!$U94,SimaPro!$1:$1,0))*$R94*$H94 -> 0 | W94: =INDEX(SimaPro!$1:$1048576,W$3,MATCH(MainInput!$U94,SimaPro!$1:$1,0))*$R94*$H94 -> 0 | X94: =INDEX(SimaPro!$1:$1048576,X$3,MATCH(MainInput!$U94,SimaPro!$1:$1,0))*$R94*$H94 -> 0 | Y94: =INDEX(SimaPro!$1:$1048576,Y$3,MATCH(MainInput!$U94,SimaPro!$1:$1,0))*$R94*$H94 -> 0
A95: 74 | B95: Menge | C95: Quantité | D95: Quantity | E95: Quantity | G95: Quantity | H95: 0 | I95: =IF(O95,1,-1) -> -1 | J95: Input und Output der Biogasanlage stimmen nicht überein (max. 25% Abweichung) | K95: L'entrée et la sortie de l'usine de biogaz ne correspondent pas (écart maximal de 25%) | L95: Input and output of the biogas plant do not match (max 25% deviation) | M95: Input and output of the biogas plant do not match (max 25% deviation) | O95: =AND(H24/1.25<H100,H100<H24*1.25) -> FALSE | P95: =H95 -> 0 | R95: x | V95: =INDEX(SimaPro!$1:$1048576,V$3,MATCH(MainInput!$U95,SimaPro!$1:$1,0))*$R95*$H95 ->  | W95: =INDEX(SimaPro!$1:$1048576,W$3,MATCH(MainInput!$U95,SimaPro!$1:$1,0))*$R95*$H95 ->  | X95: =INDEX(SimaPro!$1:$1048576,X$3,MATCH(MainInput!$U95,SimaPro!$1:$1,0))*$R95*$H95 ->  | Y95: =INDEX(SimaPro!$1:$1048576,Y$3,MATCH(MainInput!$U95,SimaPro!$1:$1,0))*$R95*$H95 ->  | Z95: reference value, digested matter, liquid/kg/CH U | AA95: =INDEX(SimaPro!$1:$1048576,AA$3,MATCH(MainInput!$Z95,SimaPro!$1:$1,0))*$R95*$H95 ->  | AB95: =INDEX(SimaPro!$1:$1048576,AB$3,MATCH(MainInput!$Z95,SimaPro!$1:$1,0))*$R95*$H95 ->  | AC95: =INDEX(SimaPro!$1:$1048576,AC$3,MATCH(MainInput!$Z95,SimaPro!$1:$1,0))*$R95*$H95 ->  | AD95: =INDEX(SimaPro!$1:$1048576,AD$3,MATCH(MainInput!$Z95,SimaPro!$1:$1,0))*$R95*$H95 -> 
B96: Kosten/Ertrag für Entsorgung/Ausbringung | C96: Coûts / rendement pour l'élimination / l'épandage | D96: Costs/yield for disposal/spreading | E96: Costs/yield for disposal/spreading | G96: Costs/yield for disposal/spreading | H96: 0 | J96: =J89 -> Einnahmen (plus) bzw. Ausgaben (minus) für Entsorgung bzw. Ausbringung der Gärreste (ohne Transportkosten) | K96: =K89 -> Revenus (plus) ou dépenses (moins) pour l'élimination ou l'épandage du digestat (à l'exclusion des frais de transport) | L96: Revenue (plus) or expenses (minus) for disposal or application of digestate (excluding transport costs) | M96: Revenue (plus) or expenses (minus) for disposal or application of digestate (excluding transport costs) | N96: =M96 -> Revenue (plus) or expenses (minus) for disposal or application of digestate (excluding transport costs) | R96: 1 | V96: =INDEX(SimaPro!$1:$1048576,V$3,MATCH(MainInput!$U96,SimaPro!$1:$1,0))*$R96*$H96 -> 0 | W96: =INDEX(SimaPro!$1:$1048576,W$3,MATCH(MainInput!$U96,SimaPro!$1:$1,0))*$R96*$H96 -> 0 | X96: =INDEX(SimaPro!$1:$1048576,X$3,MATCH(MainInput!$U96,SimaPro!$1:$1,0))*$R96*$H96 -> 0 | Y96: =INDEX(SimaPro!$1:$1048576,Y$3,MATCH(MainInput!$U96,SimaPro!$1:$1,0))*$R96*$H96 -> 0
B97: Einfache Distanz Anlage - Entsorgung/Ausbringung | C97: Installation à distance simple - l'élimination/l'épandage | D97: Simple distance plant - disposal/spreading | E97: Simple distance plant - disposal/spreading | G97: Simple distance plant - disposal/spreading | H97: 0 | M97: 0 | R97: 1 | V97: =INDEX(SimaPro!$1:$1048576,V$3,MATCH(MainInput!$U97,SimaPro!$1:$1,0))*$R97*$H97 -> 0 | W97: =INDEX(SimaPro!$1:$1048576,W$3,MATCH(MainInput!$U97,SimaPro!$1:$1,0))*$R97*$H97 -> 0 | X97: =INDEX(SimaPro!$1:$1048576,X$3,MATCH(MainInput!$U97,SimaPro!$1:$1,0))*$R97*$H97 -> 0 | Y97: =INDEX(SimaPro!$1:$1048576,Y$3,MATCH(MainInput!$U97,SimaPro!$1:$1,0))*$R97*$H97 -> 0
M98: 0 | R98: 1 | V98: =INDEX(SimaPro!$1:$1048576,V$3,MATCH(MainInput!$U98,SimaPro!$1:$1,0))*$R98*$H98 -> 0 | W98: =INDEX(SimaPro!$1:$1048576,W$3,MATCH(MainInput!$U98,SimaPro!$1:$1,0))*$R98*$H98 -> 0 | X98: =INDEX(SimaPro!$1:$1048576,X$3,MATCH(MainInput!$U98,SimaPro!$1:$1,0))*$R98*$H98 -> 0 | Y98: =INDEX(SimaPro!$1:$1048576,Y$3,MATCH(MainInput!$U98,SimaPro!$1:$1,0))*$R98*$H98 -> 0
B99: Total Gärreste | C99: Total des résidus de fermentation | D99: Total digestate | E99: Total digestate | G99: =E99 -> Total digestate | M99: 0 | R99: 1 | V99: =INDEX(SimaPro!$1:$1048576,V$3,MATCH(MainInput!$U99,SimaPro!$1:$1,0))*$R99*$H99 -> 0 | W99: =INDEX(SimaPro!$1:$1048576,W$3,MATCH(MainInput!$U99,SimaPro!$1:$1,0))*$R99*$H99 -> 0 | X99: =INDEX(SimaPro!$1:$1048576,X$3,MATCH(MainInput!$U99,SimaPro!$1:$1,0))*$R99*$H99 -> 0 | Y99: =INDEX(SimaPro!$1:$1048576,Y$3,MATCH(MainInput!$U99,SimaPro!$1:$1,0))*$R99*$H99 -> 0
B100: Total Menge | C100: Quantité totale | D100: Total quantity | E100: Total quantity | G100: =E100 -> Total quantity | H100: =SUM(H88,H95) -> 0 | I100: =IF(O100,1,-1) -> 1 | J100: Ausgefaulte Substratmenge ist grösser als Input | K100: La quantité de substrat encrassé est supérieure à l'entrée | L100: Fouled substrate quantity is greater than input | M100: Fouled substrate quantity is greater than input | N100: =IFERROR(IF(O100,"",M100),$M$8) ->  | O100: =H100<=H24*1.1 -> TRUE | R100: 1 | V100: =INDEX(SimaPro!$1:$1048576,V$3,MATCH(MainInput!$U100,SimaPro!$1:$1,0))*$R100*$H100 -> 0 | W100: =INDEX(SimaPro!$1:$1048576,W$3,MATCH(MainInput!$U100,SimaPro!$1:$1,0))*$R100*$H100 -> 0 | X100: =INDEX(SimaPro!$1:$1048576,X$3,MATCH(MainInput!$U100,SimaPro!$1:$1,0))*$R100*$H100 -> 0 | Y100: =INDEX(SimaPro!$1:$1048576,Y$3,MATCH(MainInput!$U100,SimaPro!$1:$1,0))*$R100*$H100 -> 0
B101: Total Kosten/Ertrag | C101: Coût / rendement total | D101: Total costs/yield | E101: Total costs/yield | G101: =E101 -> Total costs/yield | H101: =H96+H89 -> 0 | M101: 0 | R101: 1 | V101: =INDEX(SimaPro!$1:$1048576,V$3,MATCH(MainInput!$U101,SimaPro!$1:$1,0))*$R101*$H101 -> 0 | W101: =INDEX(SimaPro!$1:$1048576,W$3,MATCH(MainInput!$U101,SimaPro!$1:$1,0))*$R101*$H101 -> 0 | X101: =INDEX(SimaPro!$1:$1048576,X$3,MATCH(MainInput!$U101,SimaPro!$1:$1,0))*$R101*$H101 -> 0 | Y101: =INDEX(SimaPro!$1:$1048576,Y$3,MATCH(MainInput!$U101,SimaPro!$1:$1,0))*$R101*$H101 -> 0
B102: Total Tonnenkilometer Entsorgung/Ausbringung | C102: Total des tonnes-kilomètres d'élimination / épandage | D102: Total tonne-kilometres disposal/spreading | E102: Total tonne-kilometres disposal/spreading | G102: =E102 -> Total tonne-kilometres disposal/spreading | H102: =H95*H97+H88*H90 -> 0 | M102: 0 | N102: =IFERROR(IF(O100,"",M102),$M$8) ->  | R102: 1 | U102: transport, freight, lorry 16-32 metric ton, fleet average/RER U | V102: =INDEX(SimaPro!$1:$1048576,V$3,MATCH(MainInput!$U102,SimaPro!$1:$1,0))*$R102*$H102 -> 0 | W102: =INDEX(SimaPro!$1:$1048576,W$3,MATCH(MainInput!$U102,SimaPro!$1:$1,0))*$R102*$H102 -> 0 | X102: =INDEX(SimaPro!$1:$1048576,X$3,MATCH(MainInput!$U102,SimaPro!$1:$1,0))*$R102*$H102 -> 0 | Y102: =INDEX(SimaPro!$1:$1048576,Y$3,MATCH(MainInput!$U102,SimaPro!$1:$1,0))*$R102*$H102 -> 0
M103: 0 | R103: 1
B104: Resultate | C104: Résultats | D104: Results | E104: Results | G104: =E104 -> Results | M104: 0 | R104: 1
B105: Eingaben sind vollständig und Prüfung ist möglich | C105: Les entrées sont complètes et la vérification est possible | D105: Entries are complete and verification is possible | E105: Entries are complete and verification is possible | G105: =IF(O105,E105,"") ->  | I105: =IF(ISNA(O105),0,IF(O105,1,-1)) -> 0 | J105: Achtung, eine Teilprüfung (oben) wurde nicht bestanden | K105: Attention, un test partiel (ci-dessus) n'a pas été réussi | L105: Attention, a partial test (above) was not passed | M105: Attention, a partial test (above) was not passed | N105: =IFERROR(IF(O105,"",M105),"incomplete / unvollständig / incomplet") -> incomplete / unvollständig / incomplet | O105: =AND(O6:O101) ->  | R105: 1
B106: Weiter zur Resultatübersicht (Tabellenblatt "Results") | C106: Continuer vers la vue d'ensemble des résultats (feuille "Résulta") | D106: Continue to the results overview (worksheet "Results") | E106: Continue to the results overview (worksheet "Results") | G106: =IF(O105,E106,"") -> 

Sheet Substrates
G1: 37 | H1: 38 | I1: 39 | J1: 40 | K1: 92 | AZ1: =SimaProEI99 -> 2 | BA1: =AZ1+1 -> 3 | BB1: =BA1+1 -> 4 | BC1: 5
A2: Deutsch | B2: Französiscch | C2: English | E2: =MainInput!G2 -> naturemade star certification: Energy products from biogas plants | K2: =name -> 0 | AB2: NJ | AG2: 0.6 | AN2: 0.5 | AP2: 0.47 | AQ2: =1/6 -> 0.1666666667 | AR2: =5/6 -> 0.8333333333 | AX2: 4 | AZ2: =InputsBG!A39 -> 39 | BA2: =InputsBG!A45 -> 45 | BB2: =InputsBG!A51 -> 51 | BC2: =InputsBG!A57 -> 57
AX3: =COLUMN() -> 50
A4: Ausgangsmaterialien | B4: matériel | C4: Raw materials and substrates | E4: =IF(sprache=1,A4,IF(sprache=2,B4,C4)) -> Raw materials and substrates | F4: =INDEX(menuesBG!$1:$1048576,F1,sprache) -> Plant name and reference period | G4: =INDEX(menuesBG!$1:$1048576,G1,sprache) -> Financial income (plus) or expense (minus), excluding transport costs | H4: =INDEX(menuesBG!$1:$1048576,H1,sprache) -> Simple distance, delivery with tractor | I4: =INDEX(menuesBG!$1:$1048576,I1,sprache) -> Simple distance, delivery by truck | J4: =INDEX(menuesBG!$1:$1048576,J1,sprache) -> Number of animals | K4: =INDEX(menuesBG!$1:$1048576,K1,sprache) -> Percentage of stable housing | L4: Organische Substanz (OS) | M4: Ertrag, theoretisch | N4: Sprachen | O4: x | P4: x | Q4: x | R4: =MainInput!N4 -> Notes and warnings | S4: TS | T4: TS | U4: TS | V4: 0S | W4: 0S | X4: 0S | Y4: Ntot | Z4: Ntot | AA4: Ntot | AB4: %NH4 an Ntot | AC4: NH4 an TS | AD4: Schätzung NH3 nach Abbau | AE4: NH4 | AF4: NH4 | AG4: BG Yield | AH4: Yield | AI4: Yield | AJ4: CH4 content | AK4: CH4 Yield | AL4: C Abbau aus Lager | AM4: CH4 Referenz | AN4: NH4 Referenz, Lagerung | AO4: N2O Referenz | AP4: CH4 Anlage | AQ4: NH4 Lagerung | AR4: NH4 Ausbringung, Anlage | AS4: N2O Anlage | AT4: H2S | AU4: NMVOC | AV4: NOx | AW4: Preis bei der Anlage Anlage | AX4: Aufwand Referenzpreis | AY4: Referenzprodukt | AZ4: eco-indicator 99, (H,A) | BA4: Treibhauseffekt 100a 2007 | BB4: Bedarf nichterneuerbarer energetischer Ressourcen | BC4: Umweltbelastungspunkte 2013 | BD4: Eingabewert | BE4: Anteil Gasertrag | BF4: Anteil Eco-indicator Punkte | BG4: GVE Faktor | BH4: Anzahl (GVE) | BI4: Gülle (m3/Stück) | BJ4: Mist (t/Stück) | BK4: Gülle (m3/a) | BL4: Abwasser (m3/a) | BM4: Gülle verdünnt (m3/a) | BN4: Mist (t/a) | BO4: Total Hofdünger (t/a) | BP4: m3 CH4/ m3 Gülle | BQ4: m3 CH4/ t Mist | BR4: m3 CH4/a aus Gülle | BS4: m3 CH4/a aus Mist
A6: Landwirtschaft, Mist und Gülle aus der Tierhaltung | B6: Agriculture | C6: Agriculture, manure and slurry from animal husbandry | E6: Agriculture, manure and slurry from animal husbandry | F6: t/a | G6: =Währung&"/a" ->  | H6: km | I6: km | J6: - | K6: % | L6: kg | M6: m3 Biogas/a | S6: % FS | T6: min | U6: max | V6: % TS | W6: min | X6: max | Y6: % TS | Z6: min | AA6: max | AB6: % | AC6: %Ntot | AD6: % *) | AE6: min | AF6: max | AG6: m3/tOS | AH6: min | AI6: max | AJ6: % | AK6: m3/tOS | AL6: kg/a | AM6: kg/a | AN6: kg/a | AO6: kg/a | AP6: kg/a | AQ6: kg/a | AR6: kg/a | AS6: kg/a | AT6: kg/a | AU6: kg/a | AV6: kg/a | AW6: =Währung&"/kg" ->  | AX6: =Währung&"/kg" ->  | AZ6: points | BA6: kg CO2-eq | BB6: MJ-eq | BC6: Pkt | BD6: kg | BE6: % | BF6: %
A7: Wenn Anzahl Tiere unbekannt Wert für Tiere durch ausprobieren in J abschätzen bis Tonnen stimmen | B7: Si le nombre d'animaux est inconnu, estimer la valeur des animaux en essayant en J jusqu'à ce que les tonnes soient correctes | C7: If number of animals unknown estimate value for animals by trying on numbers until tonnes are correct | E7: If number of animals unknown estimate value for animals by trying on numbers until tonnes are correct
A8: Milchkuh | B8: Vache laitière | C8: Dairy cow | E8: Dairy cow | F8: =BK8+BN8 -> 0 | G8: 0 | H8: 0 | I8: 0 | J8: 0 | K8: 1 | L8: =F8*S8*V8/10 -> 0 | M8: =(BR8+BS8)/CH4inBG -> 0 | S8: 8.6 | V8: 78.5 | Y8: =(Z8+AA8)/2 -> 4.65 | Z8: 2.6 | AA8: 6.7 | AB8: 53.76344086 | AC8: =AD8*Y8 -> 2.325 | AD8: 0.5 | AE8: 39 | AF8: 41 | AG8: 400 | AJ8: 55 | AK8: =AJ8*$AG8/100 -> 220 | AL8: =L8*50%*28.62%*12.5% -> 0 | AM8: =L8*0.075*24%*0.78*(1+Referenz_CH4_Güllelager) -> 0 | AN8: =F8*1000*S8/100*Y8/100*AB8/100*NH3emittiert*AnteilNH3Lagerung*(1+Referenz_NH3_Gülle) -> 0 | AO8: =F8*N2O_Gülle*(1+Referenz_N2O_Gülle) -> 0 | AP8: =$M8*CH4_Gehalt*CH4_nichtabgedeckt*(1+Faktor_CH4_flüssig)*GärrestFlüssigMenge/(GärrestFestMenge+GärrestFlüssigMenge) ->  | AQ8: =F8*1000*S8/100*Y8/100*AB8/100*NH3emittiert*AnteilNH3Lagerung*(1+NH3plus)*((1+Faktor_NH3_Behandlung)*Anteil_V_fest+(1+FaktorNH3GülleBehandlung)*Anteil_V_flüssig) ->  | AR8: =IF(AR$137,F8*1000*S8/100*Y8/100*AB8/100*NH3emittiert*AR$2*(1+NH3plusAusbringung)*((1+Faktor_NH3fest_aus)*Anteil_V_fest+(1+Faktor_NH3_Ausbringung)*Anteil_V_flüssig),0) ->  | AS8: =F8*(N2O_Gülle*Anteil_V_flüssig*(1+Faktor_N2O_GülleBehandlung)+N2O_Kompost*Anteil_V_fest*(1+Faktor_N2O_Behandlung)) ->  | AW8: =IF(F8>0,G8/F8/1000,0) -> 0 | AX8: 0 | BE8: =M8/Gasertrag_berechnet ->  | BF8: =AZ8/Belastung_Substrat ->  | BG8: 1 | BH8: =J8*BG8 -> 0 | BI8: 16.5 | BJ8: 5 | BK8: =BI8*K8*J8 -> 0 | BM8: =BK8+BL8 -> 0 | BN8: =BJ8*K8*J8 -> 0 | BO8: =BM8+BN8 -> 0 | BP8: 13 | BQ8: 35 | BR8: =BK8*BP8 -> 0 | BS8: =BN8*BQ8 -> 0
A9: Mutterkuh (schwer) | B9: Vache allaitante (difficile) | C9: Suckle cow (heavy) | E9: Suckle cow (heavy) | F9: 0 | G9: 0 | H9: 0 | I9: 0 | J9: 0 | K9: 1 | L9: =F9*S9*V9/10 -> 0 | M9: 0 | S9: 8.6 | V9: 78.5 | Y9: =(Z9+AA9)/2 -> 4.65 | Z9: 2.6 | AA9: 6.7 | AB9: 53.76344086 | AC9: =AD9*Y9 -> 2.325 | AD9: 0.5 | AE9: 39 | AF9: 41 | AG9: 400 | AJ9: 55 | AK9: =AJ9*$AG9/100 -> 220 | AL9: 0 | AM9: 0 | AN9: 0 | AO9: 0 | AQ9: =F9*1000*S9/100*Y9/100*AB9/100*NH3emittiert*AnteilNH3Lagerung*(1+NH3plus)*((1+Faktor_NH3_Behandlung)*Anteil_V_fest+(1+FaktorNH3GülleBehandlung)*Anteil_V_flüssig) ->  | AW9: =IF(F9>0,G9/F9/1000,0) -> 0 | AX9: 0 | BG9: 0.8 | BH9: =J9*BG9 -> 0 | BI9: 11.6 | BJ9: 3.5 | BK9: =BI9*K9*J9 -> 0 | BL9: =BK9 -> 0 | BM9: =BK9+BL9 -> 0 | BN9: 0 | BO9: 0 | BP9: 13 | BQ9: 35 | BR9: =BK9*BP9 -> 0 | BS9: =BN9*BQ9 -> 0
A10: Jungvieh < 1-jährig | B10: Jeune bovin < 1 an | C10: Young cattle < 1 year old | E10: Young cattle < 1 year old | F10: 0 | G10: 0 | H10: 0 | I10: 0 | J10: 0 | K10: 1 | L10: 0 | M10: 0 | S10: 8.6 | V10: 78.5 | Y10: 4.65 | Z10: 2.6 | AA10: 6.7 | AB10: 53.76344086 | AC10: 2.325 | AD10: 0.5 | AE10: 39 | AF10: 41 | AG10: 400 | AJ10: 55 | AK10: 220 | AL10: 0 | AM10: 0 | AN10: 0 | AO10: 0 | AW10: 0 | AX10: 0 | BG10: 0.25 | BH10: 0 | BI10: 4.1 | BJ10: 1.3 | BK10: 0 | BL10: 0 | BM10: 0 | BN10: 0 | BO10: 0 | BP10: 13 | BQ10: 35 | BR10: 0 | BS10: 0
A11: Jungvieh 1- 2 jährig | B11: Jeune bovin 1-2 ans | C11: Young cattle 1 - 2 years old | E11: Young cattle 1 - 2 years old | F11: 0 | G11: 0 | H11: 0 | I11: 0 | J11: 0 | K11: 1 | L11: 0 | M11: 0 | S11: 8.6 | V11: 78.5 | Y11: 4.65 | Z11: 2.6 | AA11: 6.7 | AB11: 53.76344086 | AC11: 2.325 | AD11: 0.5 | AE11: 39 | AF11: 41 | AG11: 400 | AJ11: 55 | AK11: 220 | AL11: 0 | AM11: 0 | AN11: 0 | AO11: 0 | AW11: 0 | AX11: 0 | BG11: 0.4 | BH11: 0 | BI11: 6 | BJ11: 1.8 | BK11: 0 | BL11: 0 | BM11: 0 | BN11: 0 | BO11: 0 | BP11: 13 | BQ11: 35 | BR11: 0 | BS11: 0
A12: Stiere und Rinder > 2 jährig | B12: Taureaux et vaches >2 ans | C12: Bulls and cattle > 2 years old | E12: Bulls and cattle > 2 years old | F12: 0 | G12: 0 | H12: 0 | I12: 0 | J12: 0 | K12: 1 | L12: 0 | M12: 0 | S12: 8.6 | V12: 78.5 | Y12: 4.65 | Z12: 2.6 | AA12: 6.7 | AB12: 53.76344086 | AC12: 3.0225 | AD12: 0.65 | AE12: 39 | AF12: 60 | AG12: 400 | AJ12: 55 | AK12: 220 | AL12: 0 | AM12: 0 | AN12: 0 | AO12: 0 | AW12: 0 | AX12: 0 | BG12: 0.6 | BH12: 0 | BI12: 8.3 | BJ12: 2.5 | BK12: 0 | BL12: 0 | BM12: 0 | BN12: 0 | BO12: 0 | BP12: 13 | BQ12: 35 | BR12: 0 | BS12: 0
A13: Mastkalb | B13: Veau engraissé | C13: Fattened calf | E13: Fattened calf | F13: 0 | G13: 0 | H13: 0 | I13: 0 | J13: 0 | K13: 1 | L13: 0 | M13: 0 | S13: 8.6 | V13: 78.5 | Y13: 4.65 | Z13: 2.6 | AA13: 6.7 | AB13: 53.76344086 | AC13: 3.0225 | AD13: 0.65 | AE13: 39 | AF13: 60 | AG13: 400 | AJ13: 55 | AK13: 220 | AL13: 0 | AM13: 0 | AN13: 0 | AO13: 0 | AW13: 0 | AX13: 0 | BG13: 0.1 | BH13: 0 | BJ13: 2.2 | BK13: 0 | BL13: 0 | BM13: 0 | BN13: 0 | BO13: 0 | BP13: 13 | BQ13: 35 | BR13: 0 | BS13: 0
A14: Rindviehmast intensiv 65-520 kg | B14: Bœuf engraissé (intensif 65-520 kg) | C14: Cattle fattening intensive 65-520 kg | E14: Cattle fattening intensive 65-520 kg | F14: 0 | G14: 0 | H14: 0 | I14: 0 | J14: 0 | K14: 1 | L14: 0 | M14: 0 | S14: 8.6 | V14: 78.5 | Y14: 4.65 | Z14: 2.6 | AA14: 6.7 | AB14: 53.76344086 | AC14: 3.0225 | AD14: 0.65 | AE14: 39 | AF14: 60 | AG14: 400 | AJ14: 55 | AK14: 220 | AL14: 0 | AM14: 0 | AN14: 0 | AO14: 0 | AW14: 0 | AX14: 0 | BG14: 0.31 | BH14: 0 | BI14: 4.4 | BJ14: 1.3 | BK14: 0 | BL14: 0 | BM14: 0 | BN14: 0 | BO14: 0 | BP14: 13 | BQ14: 35 | BR14: 0 | BS14: 0
A15: Pferde über 3-jährig | B15: Chevaux >3ans | C15: Horses over 3 years old | E15: Horses over 3 years old | F15: 0 | G15: 0 | H15: 0 | I15: 0 | J15: 0 | K15: 1 | L15: 0 | M15: 0 | S15: 28 | V15: 75 | Y15: 2.8 | Z15: 2.1 | AA15: 3.5 | AB15: 50 | AC15: 1.4 | AD15: 0.5 | AE15: 35 | AF15: 35 | AG15: =(AH15+AI15)/2 -> 350 | AH15: 300 | AI15: 400 | AJ15: 55 | AK15: 192.5 | AL15: 0 | AM15: 0 | AN15: 0 | AO15: 0 | AW15: 0 | AX15: 0 | BG15: 0.7 | BH15: 0 | BJ15: 12 | BK15: 0 | BL15: 0 | BM15: 0 | BN15: 0 | BO15: 0 | BQ15: 35.7 | BR15: 0 | BS15: 0
A16: Mutterschafe oder Ziegen | B16: Brebis ou chèvre | C16: Ewes or goats | E16: Ewes or goats | F16: 0 | G16: 0 | H16: 0 | I16: 0 | J16: 0 | K16: 1 | L16: 0 | M16: 0 | S16: 27.5 | V16: 80 | Y16: 3 | Z16: 3 | AA16: 3 | AB16: 35 | AC16: 1.5 | AD16: 0.5 | AE16: 35 | AF16: 35 | AG16: =(AH16+AI16)/2 -> 450 | AH16: 400 | AI16: 500 | AJ16: 55 | AK16: 247.5 | AL16: 0 | AM16: 0 | AN16: 0 | AO16: 0 | AW16: 0 | AX16: 0 | BG16: 0.17 | BH16: 0 | BJ16: 1.7 | BK16: 0 | BL16: 0 | BM16: 0 | BN16: 0 | BO16: 0 | BQ16: 64.1 | BR16: 0 | BS16: 0
A17: Zuchtschweine | B17: Elevage de porcs | C17: Breeding pigs | E17: Breeding pigs | F17: 0 | G17: 0 | H17: 0 | I17: 0 | J17: 0 | K17: 1 | L17: 0 | M17: 0 | S17: 8.6 | V17: 78.5 | Y17: 12 | Z17: 6 | AA17: 18 | AB17: 83.33333333 | AC17: 8.4 | AD17: 0.7 | AE17: 50 | AF17: 92 | AG17: 450 | AJ17: 60 | AK17: 270 | AL17: 0 | AM17: 0 | AN17: 0 | AO17: 0 | AW17: 0 | AX17: 0 | BG17: 0.45 | BH17: 0 | BI17: 4.5 | BJ17: 0.9 | BK17: 0 | BL17: 0 | BM17: 0 | BN17: 0 | BO17: 0 | BP17: 12.2 | BQ17: 45.6 | BR17: 0 | BS17: 0
A18: Mastschweine / Remonten 25-100 kg | B18: Porc engraissé (25-100 kg) | C18: Pigs for fattening / Remonten 25-100 kg | E18: Pigs for fattening / Remonten 25-100 kg | F18: =BK18+BN18 -> 0 | G18: 0 | H18: 0 | I18: 0 | J18: 0 | K18: 1 | L18: 0 | M18: 0 | S18: 8.6 | V18: 78.5 | Y18: 12 | Z18: 6 | AA18: 18 | AB18: 83.33333333 | AC18: 8.4 | AD18: 0.7 | AE18: 50 | AF18: 92 | AG18: 450 | AJ18: 60 | AK18: 270 | AL18: 0 | AM18: 0 | AN18: 0 | AO18: 0 | AW18: 0 | AX18: 0 | BG18: 0.17 | BH18: 0 | BI18: 1.2 | BJ18: 0.3 | BK18: 0 | BL18: 0 | BM18: 0 | BN18: 0 | BO18: 0 | BP18: 12.2 | BQ18: 45.6 | BR18: 0 | BS18: 0
A19: Ferkel 10-35 kg | B19: Cochonnet engraissé (10-35 kg) | C19: Piglets 10-35 kg | E19: Piglets 10-35 kg | F19: =BK19+BN19 -> 0 | G19: 0 | H19: 0 | I19: 0 | J19: 0 | K19: 1 | L19: =F19*S19*V19/10 -> 0 | M19: 0 | S19: 8.6 | V19: 78.5 | Y19: 12 | Z19: 6 | AA19: 18 | AB19: 83.33333333 | AC19: =AD19*Y19 -> 8.4 | AD19: 0.7 | AE19: 50 | AF19: 92 | AG19: 450 | AJ19: 60 | AK19: 270 | AL19: =L19*50%*28.62%*12.5% -> 0 | AM19: =L19*0.075*24%*0.78*(1+Referenz_CH4_Güllelager) -> 0 | AN19: =F19*1000*S19/100*Y19/100*AB19/100*NH3emittiert*AnteilNH3Lagerung*(1+Referenz_NH3_Gülle) -> 0 | AO19: =F19*N2O_Gülle*(1+Referenz_N2O_Gülle) -> 0 | AQ19: =F19*1000*S19/100*Y19/100*AB19/100*NH3emittiert*AnteilNH3Lagerung*(1+NH3plus)*((1+Faktor_NH3_Behandlung)*Anteil_V_fest+(1+FaktorNH3GülleBehandlung)*Anteil_V_flüssig) ->  | AS19: =F19*(N2O_Gülle*Anteil_V_flüssig*(1+Faktor_N2O_GülleBehandlung)+N2O_Kompost*Anteil_V_fest*(1+Faktor_N2O_Behandlung)) ->  | AW19: =IF(F19>0,G19/F19/1000,0) -> 0 | AX19: 0 | BG19: 0.06 | BH19: 0 | BI19: =BI18/2 -> 0.6 | BJ19: =BJ18/2 -> 0.15 | BK19: 0 | BL19: 0 | BM19: 0 | BN19: 0 | BO19: 0 | BP19: 12.2 | BQ19: 45.6 | BR19: 0 | BS19: 0
A20: Zuchteber | B20: Verrats reproducteurs | C20: Breeding boar | E20: Breeding boar | F20: =BK20+BN20 -> 0 | G20: 0 | H20: 0 | I20: 0 | J20: 0 | K20: 1 | L20: 0 | M20: 0 | S20: 8.6 | V20: 78.5 | Y20: 12 | Z20: 6 | AA20: 18 | AB20: 83.33333333 | AC20: 8.4 | AD20: 0.7 | AE20: 50 | AF20: 92 | AG20: 450 | AJ20: 60 | AK20: 270 | AL20: 0 | AM20: 0 | AN20: 0 | AO20: 0 | AW20: 0 | AX20: 0 | BG20: 0.25 | BH20: 0 | BI20: 2.5 | BJ20: 0.5 | BK20: 0 | BL20: 0 | BM20: 0 | BN20: 0 | BO20: 0 | BP20: 12.2 | BQ20: 45.6 | BR20: 0 | BS20: 0
A21: Legehennen | B21: Poules pondeuses | C21: Laying hens | E21: Laying hens | F21: 0 | G21: 0 | H21: 0 | I21: 0 | J21: 0 | K21: 1 | L21: 0 | M21: 0 | S21: 32 | V21: 75 | Y21: 5.4 | Z21: 5.4 | AA21: 5.4 | AB21: 7.222222222 | AC21: 3.78 | AD21: 0.7 | AE21: 69 | AF21: 70 | AG21: 470 | AJ21: 65 | AK21: 305.5 | AL21: 0 | AM21: 0 | AN21: 0 | AO21: 0 | AW21: 0 | AX21: 0 | BG21: 0.01 | BH21: 0 | BJ21: 0.018 | BK21: 0 | BL21: 0 | BM21: 0 | BN21: 0 | BO21: 0 | BQ21: 83.5 | BR21: 0 | BS21: 0
A22: Mastpoulet | B22: Poulet engraissé | C22: Fattened chicken | E22: Fattened chicken | F22: 0 | G22: 0 | H22: 0 | I22: 0 | J22: 0 | K22: 1 | L22: 0 | M22: 0 | S22: 32 | V22: 75 | Y22: 5.4 | Z22: 5.4 | AA22: 5.4 | AB22: 7.222222222 | AC22: 3.78 | AD22: 0.7 | AE22: 69 | AF22: 70 | AG22: 470 | AJ22: 65 | AK22: =AJ22*$AG22/100 -> 305.5 | AL22: 0 | AM22: 0 | AN22: 0 | AO22: 0 | AW22: 0 | AX22: 0 | BG22: 0.004 | BH22: 0 | BJ22: 0.008 | BK22: 0 | BL22: 0 | BM22: 0 | BN22: 0 | BO22: 0 | BQ22: 127.8 | BR22: 0 | BS22: 0
A24: Rest- und Abfallstoffe | B24: Matières résiduelles et déchets | C24: Residual and waste materials | E24: Residual and waste materials | F24: =INDEX(menuesBG!$1:$1048576,120,sprache) -> t FM - tonnes fresh matter | G24: =Währung&"/a" ->  | H24: km | I24: km | L24: kg | M24: m3 Biogas/a
A25: Apfeltrester | B25: Marc de pommes | C25: Apple pomace | E25: Apple pomace | F25: 0 | G25: 0 | H25: 0 | I25: 0 | L25: =F25*S25*V25/10 -> 0 | M25: =F25*S25*V25/10000*AG25 -> 0 | R25: =IF(F25>0,IF(G25/F25/1000<AX25,INDEX(menuesBG!$1:$1048576,Warnung,sprache),""),"") ->  | S25: 25 | V25: 86 | Y25: =(Z25+AA25)/2 -> 1.1 | Z25: 1.1 | AA25: 1.1 | AB25: 13 | AC25: =AD25*Y25 -> 0.66 | AD25: 0.6 | AG25: =(AH25+AI25)/2 -> 515 | AH25: 350 | AI25: 680 | AJ25: 55 | AK25: =AJ25*$AG25/100 -> 283.25 | AL25: =L25*50%*28.62%*12.5% -> 0 | AM25: 0 | AN25: 0 | AO25: 0 | AP25: =$M25*CH4_Gehalt*CH4_nichtabgedeckt*(1+Faktor_CH4_flüssig)*GärrestFlüssigMenge/(GärrestFestMenge+GärrestFlüssigMenge) ->  | AQ25: =F25*1000*S25/100*Y25/100*AB25/100*NH3emittiert*AnteilNH3Lagerung*(1+NH3plus)*((1+Faktor_NH3_Behandlung)*Anteil_V_fest+(1+FaktorNH3GülleBehandlung)*Anteil_V_flüssig) ->  | AR25: =IF(AR$137,F25*1000*S25/100*Y25/100*AB25/100*NH3emittiert*AR$2*(1+NH3plusAusbringung)*((1+Faktor_NH3fest_aus)*Anteil_V_fest+(1+Faktor_NH3_Ausbringung)*Anteil_V_flüssig),0) ->  | AS25: =F25*(N2O_Gülle*Anteil_V_flüssig*(1+Faktor_N2O_GülleBehandlung)+N2O_Kompost*Anteil_V_fest*(1+Faktor_N2O_Behandlung)) ->  | AT25: =FaktorenBG!F$43*(1+FaktorenBG!F$56)*IF(Auswahl_Behandlung_fest<5,$F25,0) ->  | AU25: =FaktorenBG!G$43*(1+FaktorenBG!G$56)*IF(Auswahl_Behandlung_fest<5,$F25,0) ->  | AV25: =FaktorenBG!H$43*(1+FaktorenBG!H$56)*IF(Auswahl_Behandlung_fest<5,$F25,0) ->  | AW25: 0 | AX25: =INDEX(InputsBG!$1:$1048576,AX$2,MATCH(Substrates!$AY25,InputsBG!$38:$38,0)) ->  | AY25: apple ÖLN, at farm/kg/CH S | AZ25: =IF($G25<0,$G25*INDEX(InputsBG!$1:$1048576,AZ$2,MATCH(Substrates!$AY25,InputsBG!$38:$38,0))/$AX25,0) -> 0 | BA25: =IF($G25<0,$G25*INDEX(InputsBG!$1:$1048576,BA$2,MATCH(Substrates!$AY25,InputsBG!$38:$38,0))/$AX25,0) -> 0 | BB25: =IF($G25<0,$G25*INDEX(InputsBG!$1:$1048576,BB$2,MATCH(Substrates!$AY25,InputsBG!$38:$38,0))/$AX25,0) -> 0 | BC25: =IF($G25<0,$G25*INDEX(InputsBG!$1:$1048576,BC$2,MATCH(Substrates!$AY25,InputsBG!$38:$38,0))/$AX25,0) -> 0 | BD25: =IF($G25<0,$G25/$AX25,0) -> 0 | BT25: =LEFT(AY25,FIND("/",AY25)-1) -> apple ÖLN, at farm
A26: Backabfälle, Süsswarenabfälle, Teig- und Mehlreste | B26: Déchet de boulangerie et confiserie, restes de pâte et farine | C26: Bakery waste, confectionery waste, dough and flour residues | E26: Bakery waste, confectionery waste, dough and flour residues | F26: 0 | G26: 0 | H26: 0 | I26: 0 | L26: =F26*S26*V26/10 -> 0 | M26: 0 | R26: =IF(F26>0,IF(G26/F26/1000<AX26,INDEX(menuesBG!$1:$1048576,Warnung,sprache),""),"") ->  | S26: 88 | V26: 97 | Y26: =(Z26+AA26)/2 -> 2.8 | Z26: 0.6 | AA26: 5 | AB26: =AVERAGE(0.01,1.1)/AVERAGE(0.6,5)*100 -> 19.82142857 | AC26: 1.726666667 | AD26: =AD$138 -> 0.6166666667 | AE26: 45.65 | AF26: 50.55 | AG26: 790 | AJ26: 53 | AK26: 418.7 | AL26: =L26*50%*28.62%*12.5% -> 0 | AM26: 0 | AN26: 0 | AO26: 0 | AT26: =FaktorenBG!F$43*(1+FaktorenBG!F$56)*IF(Auswahl_Behandlung_fest<5,$F26,0) ->  | AU26: =FaktorenBG!G$43*(1+FaktorenBG!G$56)*IF(Auswahl_Behandlung_fest<5,$F26,0) ->  | AV26: =FaktorenBG!H$43*(1+FaktorenBG!H$56)*IF(Auswahl_Behandlung_fest<5,$F26,0) ->  | AW26: 0 | AX26: =INDEX(InputsBG!$1:$1048576,AX$2,MATCH(Substrates!$AY26,InputsBG!$38:$38,0)) ->  | AY26: bread, at bakery/kg/CH S | AZ26: =IF($G26<0,$G26*INDEX(InputsBG!$1:$1048576,AZ$2,MATCH(Substrates!$AY26,InputsBG!$38:$38,0))/$AX26,0) -> 0 | BA26: =IF($G26<0,$G26*INDEX(InputsBG!$1:$1048576,BA$2,MATCH(Substrates!$AY26,InputsBG!$38:$38,0))/$AX26,0) -> 0 | BB26: =IF($G26<0,$G26*INDEX(InputsBG!$1:$1048576,BB$2,MATCH(Substrates!$AY26,InputsBG!$38:$38,0))/$AX26,0) -> 0 | BC26: =IF($G26<0,$G26*INDEX(InputsBG!$1:$1048576,BC$2,MATCH(Substrates!$AY26,InputsBG!$38:$38,0))/$AX26,0) -> 0 | BD26: =IF($G26<0,$G26/$AX26,0) -> 0 | BT26: =LEFT(AY26,FIND("/",AY26)-1) -> bread, at bakery
A27: Baum-, Reben-, Strauchschnitt | B27: Arbre, vigne, arbuste de coupe | C27: Tree, vine and shrub pruning | E27: Tree, vine and shrub pruning | F27: 0 | G27: 0 | H27: 0 | I27: 0 | L27: 0 | M27: 0 | R27: =IF(F27>0,IF(G27/F27/1000<AX27,INDEX(menuesBG!$1:$1048576,Warnung,sprache),""),"") ->  | S27: 12 | V27: 83 | Y27: 2.993055556 | Z27: =Z$138 -> 2.327777778 | AA27: =AA$138 -> 3.658333333 | AB27: 13 | AC27: 1.845717593 | AD27: 0.6166666667 | AE27: 45.65 | AF27: 50.55 | AG27: 220 | AJ27: 50 | AK27: 110 | AL27: 0 | AM27: 0 | AN27: 0 | AO27: 0 | AT27: =FaktorenBG!F$43*(1+FaktorenBG!F$56)*IF(Auswahl_Behandlung_fest<5,$F27,0) ->  | AU27: =FaktorenBG!G$43*(1+FaktorenBG!G$56)*IF(Auswahl_Behandlung_fest<5,$F27,0) ->  | AV27: =FaktorenBG!H$43*(1+FaktorenBG!H$56)*IF(Auswahl_Behandlung_fest<5,$F27,0) ->  | AW27: 0 | AX27: =INDEX(InputsBG!$1:$1048576,AX$2,MATCH(Substrates!$AY27,InputsBG!$38:$38,0)) ->  | AY27: Durchschnitt | AZ27: =IF($G27<0,$G27*INDEX(InputsBG!$1:$1048576,AZ$2,MATCH(Substrates!$AY27,InputsBG!$38:$38,0))/$AX27,0) -> 0 | BA27: =IF($G27<0,$G27*INDEX(InputsBG!$1:$1048576,BA$2,MATCH(Substrates!$AY27,InputsBG!$38:$38,0))/$AX27,0) -> 0 | BB27: =IF($G27<0,$G27*INDEX(InputsBG!$1:$1048576,BB$2,MATCH(Substrates!$AY27,InputsBG!$38:$38,0))/$AX27,0) -> 0 | BC27: =IF($G27<0,$G27*INDEX(InputsBG!$1:$1048576,BC$2,MATCH(Substrates!$AY27,InputsBG!$38:$38,0))/$AX27,0) -> 0 | BD27: 0
A28: Biertreber siliert | B28: Ensilage de drèche de brasserie | C28: Brewer's grains ensilage | E28: Brewer's grains ensilage | F28: 0 | G28: 0 | H28: 0 | I28: 0 | L28: 0 | M28: 0 | R28: =IF(F28>0,IF(G28/F28/1000<AX28,INDEX(menuesBG!$1:$1048576,Warnung,sprache),""),"") ->  | S28: =(T28+U28)/2 -> 26.5 | T28: 25 | U28: 28 | V28: =(W28+X28)/2 -> 85 | W28: 85 | X28: 85 | Y28: 4.5 | Z28: 4.5 | AA28: 4.5 | AB28: 13 | AC28: 3.15 | AD28: 0.7 | AG28: =(AH28+AI28)/2 -> 600 | AH28: 550 | AI28: 650 | AJ28: 60 | AK28: 360 | AL28: 0 | AM28: 0 | AN28: 0 | AO28: 0 | AT28: =FaktorenBG!F$43*(1+FaktorenBG!F$56)*IF(Auswahl_Behandlung_fest<5,$F28,0) ->  | AU28: =FaktorenBG!G$43*(1+FaktorenBG!G$56)*IF(Auswahl_Behandlung_fest<5,$F28,0) ->  | AV28: =FaktorenBG!H$43*(1+FaktorenBG!H$56)*IF(Auswahl_Behandlung_fest<5,$F28,0) ->  | AW28: 0 | AX28: =INDEX(InputsBG!$1:$1048576,AX$2,MATCH(Substrates!$AY28,InputsBG!$38:$38,0)) ->  | AY28: by-products, wheat milling, at plant/kg/CH S | AZ28: =IF($G28<0,$G28*INDEX(InputsBG!$1:$1048576,AZ$2,MATCH(Substrates!$AY28,InputsBG!$38:$38,0))/$AX28,0) -> 0 | BA28: =IF($G28<0,$G28*INDEX(InputsBG!$1:$1048576,BA$2,MATCH(Substrates!$AY28,InputsBG!$38:$38,0))/$AX28,0) -> 0 | BB28: =IF($G28<0,$G28*INDEX(InputsBG!$1:$1048576,BB$2,MATCH(Substrates!$AY28,InputsBG!$38:$38,0))/$AX28,0) -> 0 | BC28: =IF($G28<0,$G28*INDEX(InputsBG!$1:$1048576,BC$2,MATCH(Substrates!$AY28,InputsBG!$38:$38,0))/$AX28,0) -> 0 | BD28: 0 | BT28: by-products, wheat milling, at plant
A29: Biertreber, Malztreber, Hopfentreber (sowie deren -Keime, -Staub, -Trub und -Schlamm) | B29: Drèche de brasserie (Marc de malt, d'houblon dont les germes, la poussière et les boues et les lies) | C29: Brewer's grains, malt grains, hop grains (and their -germ, -dust, -dull and -sludge) | E29: Brewer's grains, malt grains, hop grains (and their -germ, -dust, -dull and -sludge) | F29: 0 | G29: 0 | H29: 0 | I29: 0 | L29: 0 | M29: 0 | R29: =IF(F29>0,IF(G29/F29/1000<AX29,INDEX(menuesBG!$1:$1048576,Warnung,sprache),""),"") ->  | S29: 22.5 | T29: 15 | U29: 30 | V29: 80 | W29: 65 | X29: 95 | Y29: 4.5 | Z29: 4 | AA29: 5 | AB29: 13 | AC29: 3.15 | AD29: 0.7 | AG29: 625 | AH29: 500 | AI29: 750 | AJ29: 60 | AK29: 375 | AL29: 0 | AM29: 0 | AN29: 0 | AO29: 0 | AT29: =FaktorenBG!F$43*(1+FaktorenBG!F$56)*IF(Auswahl_Behandlung_fest<5,$F29,0) ->  | AU29: =FaktorenBG!G$43*(1+FaktorenBG!G$56)*IF(Auswahl_Behandlung_fest<5,$F29,0) ->  | AV29: =FaktorenBG!H$43*(1+FaktorenBG!H$56)*IF(Auswahl_Behandlung_fest<5,$F29,0) ->  | AW29: 0 | AX29: =INDEX(InputsBG!$1:$1048576,AX$2,MATCH(Substrates!$AY29,InputsBG!$38:$38,0)) ->  | AY29: by-products, wheat milling, at plant/kg/CH S | AZ29: =IF($G29<0,$G29*INDEX(InputsBG!$1:$1048576,AZ$2,MATCH(Substrates!$AY29,InputsBG!$38:$38,0))/$AX29,0) -> 0 | BA29: =IF($G29<0,$G29*INDEX(InputsBG!$1:$1048576,BA$2,MATCH(Substrates!$AY29,InputsBG!$38:$38,0))/$AX29,0) -> 0 | BB29: =IF($G29<0,$G29*INDEX(InputsBG!$1:$1048576,BB$2,MATCH(Substrates!$AY29,InputsBG!$38:$38,0))/$AX29,0) -> 0 | BC29: =IF($G29<0,$G29*INDEX(InputsBG!$1:$1048576,BC$2,MATCH(Substrates!$AY29,InputsBG!$38:$38,0))/$AX29,0) -> 0 | BD29: 0 | BT29: by-products, wheat milling, at plant
A30: Blut, Fettabscheiderrückstände, Fischrückstände, Fleischabfälle | B30: Sang, résidus de filtre à graisse, résidus de poissons, déchets de viande | C30: Blood, fat separator residues, fish residues, meat waste | E30: Blood, fat separator residues, fish residues, meat waste | F30: 0 | G30: 0 | H30: 0 | I30: 0 | L30: 0 | M30: 0 | R30: =IF(F30>0,IF(G30/F30/1000<AX30,INDEX(menuesBG!$1:$1048576,Warnung,sprache),""),"") ->  | S30: 30.7 | T30: =T$138 -> 30.7 | U30: =U$138 -> 30.7 | V30: =(W30+X30)/2 -> 73.9 | W30: =W$138 -> 73.9 | X30: =X$138 -> 73.9 | Y30: 1.85 | Z30: 0.1 | AA30: 3.6 | AB30: =AVERAGE(0.02,1.5)/AVERAGE(0.1,3.6)*100 -> 41.08108108 | AC30: =AD30*Y30 -> 1.140833333 | AD30: =AD$138 -> 0.6166666667 | AE30: =AE$138 -> 45.65 | AF30: =AF$138 -> 50.55 | AG30: =(AH30+AI30)/2 -> 688 | AH30: =AH$138 -> 376 | AI30: 1000 | AJ30: 59 | AK30: 405.92 | AL30: 0 | AM30: 0 | AN30: 0 | AO30: 0 | AT30: =FaktorenBG!F$43*(1+FaktorenBG!F$56)*IF(Auswahl_Behandlung_fest<5,$F30,0) ->  | AU30: =FaktorenBG!G$43*(1+FaktorenBG!G$56)*IF(Auswahl_Behandlung_fest<5,$F30,0) ->  | AV30: =FaktorenBG!H$43*(1+FaktorenBG!H$56)*IF(Auswahl_Behandlung_fest<5,$F30,0) ->  | AW30: 0 | AX30: =INDEX(InputsBG!$1:$1048576,AX$2,MATCH(Substrates!$AY30,InputsBG!$38:$38,0)) ->  | AY30: meat mixed, IP, at slaughterhouse/kg/CH S | AZ30: =IF($G30<0,$G30*INDEX(InputsBG!$1:$1048576,AZ$2,MATCH(Substrates!$AY30,InputsBG!$38:$38,0))/$AX30,0) -> 0 | BA30: =IF($G30<0,$G30*INDEX(InputsBG!$1:$1048576,BA$2,MATCH(Substrates!$AY30,InputsBG!$38:$38,0))/$AX30,0) -> 0 | BB30: =IF($G30<0,$G30*INDEX(InputsBG!$1:$1048576,BB$2,MATCH(Substrates!$AY30,InputsBG!$38:$38,0))/$AX30,0) -> 0 | BC30: =IF($G30<0,$G30*INDEX(InputsBG!$1:$1048576,BC$2,MATCH(Substrates!$AY30,InputsBG!$38:$38,0))/$AX30,0) -> 0 | BD30: 0 | BT30: meat mixed, IP, at slaughterhouse
A31: Blutmehl, Tiermehl | B31: Farine de sang, farine animale | C31: Blood meal, animal meal | E31: Blood meal, animal meal | F31: 0 | G31: 0 | H31: 0 | I31: 0 | L31: 0 | M31: 0 | R31: =IF(F31>0,IF(G31/F31/1000<AX31,INDEX(menuesBG!$1:$1048576,Warnung,sprache),""),"") ->  | S31: 90 | T31: 85 | U31: 95 | V31: 80 | W31: 75 | X31: 85 | Y31: 11 | Z31: 10 | AA31: 12 | AB31: 0.6 | AC31: 8.25 | AD31: 0.75 | AG31: =(AH31+AI31)/2 -> 670 | AH31: 550 | AI31: 790 | AJ31: 61 | AK31: 408.7 | AL31: 0 | AM31: 0 | AN31: 0 | AO31: 0 | AT31: =FaktorenBG!F$43*(1+FaktorenBG!F$56)*IF(Auswahl_Behandlung_fest<5,$F31,0) ->  | AU31: =FaktorenBG!G$43*(1+FaktorenBG!G$56)*IF(Auswahl_Behandlung_fest<5,$F31,0) ->  | AV31: =FaktorenBG!H$43*(1+FaktorenBG!H$56)*IF(Auswahl_Behandlung_fest<5,$F31,0) ->  | AW31: 0 | AX31: =INDEX(InputsBG!$1:$1048576,AX$2,MATCH(Substrates!$AY31,InputsBG!$38:$38,0)) ->  | AY31: meat mixed, IP, at slaughterhouse/kg/CH S | AZ31: =IF($G31<0,$G31*INDEX(InputsBG!$1:$1048576,AZ$2,MATCH(Substrates!$AY31,InputsBG!$38:$38,0))/$AX31,0) -> 0 | BA31: =IF($G31<0,$G31*INDEX(InputsBG!$1:$1048576,BA$2,MATCH(Substrates!$AY31,InputsBG!$38:$38,0))/$AX31,0) -> 0 | BB31: =IF($G31<0,$G31*INDEX(InputsBG!$1:$1048576,BB$2,MATCH(Substrates!$AY31,InputsBG!$38:$38,0))/$AX31,0) -> 0 | BC31: =IF($G31<0,$G31*INDEX(InputsBG!$1:$1048576,BC$2,MATCH(Substrates!$AY31,InputsBG!$38:$38,0))/$AX31,0) -> 0 | BD31: 0 | BT31: meat mixed, IP, at slaughterhouse
A32: Champignonsubstrat, Speisepilzsubstrat | B32: Substrat de champignons | C32: Mushroom substrate, edible mushroom substrate | E32: Mushroom substrate, edible mushroom substrate | F32: 0 | G32: 0 | H32: 0 | I32: 0 | L32: 0 | M32: 0 | R32: =IF(F32>0,IF(G32/F32/1000<AX32,INDEX(menuesBG!$1:$1048576,Warnung,sprache),""),"") ->  | S32: 25 | V32: 73.9 | W32: =W$138 -> 73.9 | X32: 73.9 | Y32: 2.993055556 | Z32: =Z$138 -> 2.327777778 | AA32: 3.658333333 | AB32: 13 | AC32: 1.845717593 | AD32: =AD$138 -> 0.6166666667 | AE32: 45.65 | AF32: 50.55 | AG32: 492 | AH32: =AH$138 -> 376 | AI32: 608 | AJ32: 50 | AK32: 246 | AL32: 0 | AM32: 0 | AN32: 0 | AO32: 0 | AT32: =FaktorenBG!F$43*(1+FaktorenBG!F$56)*IF(Auswahl_Behandlung_fest<5,$F32,0) ->  | AU32: =FaktorenBG!G$43*(1+FaktorenBG!G$56)*IF(Auswahl_Behandlung_fest<5,$F32,0) ->  | AV32: =FaktorenBG!H$43*(1+FaktorenBG!H$56)*IF(Auswahl_Behandlung_fest<5,$F32,0) ->  | AW32: 0 | AX32: =INDEX(InputsBG!$1:$1048576,AX$2,MATCH(Substrates!$AY32,InputsBG!$38:$38,0)) ->  | AY32: Durchschnitt | AZ32: =IF($G32<0,$G32*INDEX(InputsBG!$1:$1048576,AZ$2,MATCH(Substrates!$AY32,InputsBG!$38:$38,0))/$AX32,0) -> 0 | BA32: =IF($G32<0,$G32*INDEX(InputsBG!$1:$1048576,BA$2,MATCH(Substrates!$AY32,InputsBG!$38:$38,0))/$AX32,0) -> 0 | BB32: =IF($G32<0,$G32*INDEX(InputsBG!$1:$1048576,BB$2,MATCH(Substrates!$AY32,InputsBG!$38:$38,0))/$AX32,0) -> 0 | BC32: =IF($G32<0,$G32*INDEX(InputsBG!$1:$1048576,BC$2,MATCH(Substrates!$AY32,InputsBG!$38:$38,0))/$AX32,0) -> 0 | BD32: 0
A33: Enteisungswasser | B33: Eau de dégivrage | C33: De-icing water | E33: De-icing water | F33: 0 | G33: 0 | H33: 0 | I33: 0 | L33: 0 | M33: 0 | R33: =IF(F33>0,IF(G33/F33/1000<AX33,INDEX(menuesBG!$1:$1048576,Warnung,sprache),""),"") ->  | S33: 1 | V33: 72 | Y33: 0 | Z33: 0 | AA33: 0 | AB33: 0 | AC33: 0 | AD33: 0.6166666667 | AE33: 45.65 | AF33: 50.55 | AG33: 492 | AH33: 376 | AI33: 608 | AJ33: 61 | AK33: 300.12 | AL33: =L33*50%*28.62%*12.5% -> 0 | AM33: 0 | AN33: 0 | AO33: 0 | AT33: =FaktorenBG!F$43*(1+FaktorenBG!F$56)*IF(Auswahl_Behandlung_fest<5,$F33,0) ->  | AU33: =FaktorenBG!G$43*(1+FaktorenBG!G$56)*IF(Auswahl_Behandlung_fest<5,$F33,0) ->  | AV33: =FaktorenBG!H$43*(1+FaktorenBG!H$56)*IF(Auswahl_Behandlung_fest<5,$F33,0) ->  | AW33: 0 | AX33: =INDEX(InputsBG!$1:$1048576,AX$2,MATCH(Substrates!$AY33,InputsBG!$38:$38,0)) ->  | AY33: Durchschnitt | AZ33: =IF($G33<0,$G33*INDEX(InputsBG!$1:$1048576,AZ$2,MATCH(Substrates!$AY33,InputsBG!$38:$38,0))/$AX33,0) -> 0 | BA33: =IF($G33<0,$G33*INDEX(InputsBG!$1:$1048576,BA$2,MATCH(Substrates!$AY33,InputsBG!$38:$38,0))/$AX33,0) -> 0 | BB33: =IF($G33<0,$G33*INDEX(InputsBG!$1:$1048576,BB$2,MATCH(Substrates!$AY33,InputsBG!$38:$38,0))/$AX33,0) -> 0 | BC33: =IF($G33<0,$G33*INDEX(InputsBG!$1:$1048576,BC$2,MATCH(Substrates!$AY33,InputsBG!$38:$38,0))/$AX33,0) -> 0 | BD33: 0
A34: Fehl- und Testchargen aus Lebensmittelindustrie (pflanzlich) | B34: Lots d'essai ou défectueux de l'industrie alimentaire (légumes) | C34: Faulty and test batches from the food industry (vegetable) | E34: Faulty and test batches from the food industry (vegetable) | F34: 0 | G34: 0 | H34: 0 | I34: 0 | L34: 0 | M34: 0 | R34: =IF(F34>0,IF(G34/F34/1000<AX34,INDEX(menuesBG!$1:$1048576,Warnung,sprache),""),"") ->  | S34: 30.7 | T34: =T$138 -> 30.7 | U34: 30.7 | V34: 73.9 | W34: 73.9 | X34: 73.9 | Y34: 2.993055556 | Z34: 2.327777778 | AA34: 3.658333333 | AB34: 13 | AC34: 1.845717593 | AD34: 0.6166666667 | AE34: 45.65 | AF34: 50.55 | AG34: 492 | AH34: 376 | AI34: 608 | AJ34: 60 | AK34: 295.2 | AL34: 0 | AM34: 0 | AN34: 0 | AO34: 0 | AT34: =FaktorenBG!F$43*(1+FaktorenBG!F$56)*IF(Auswahl_Behandlung_fest<5,$F34,0) ->  | AU34: =FaktorenBG!G$43*(1+FaktorenBG!G$56)*IF(Auswahl_Behandlung_fest<5,$F34,0) ->  | AV34: =FaktorenBG!H$43*(1+FaktorenBG!H$56)*IF(Auswahl_Behandlung_fest<5,$F34,0) ->  | AW34: 0 | AX34: =INDEX(InputsBG!$1:$1048576,AX$2,MATCH(Substrates!$AY34,InputsBG!$38:$38,0)) ->  | AY34: vegetables mean, IP, at farm/kg/CH S | AZ34: =IF($G34<0,$G34*INDEX(InputsBG!$1:$1048576,AZ$2,MATCH(Substrates!$AY34,InputsBG!$38:$38,0))/$AX34,0) -> 0 | BA34: =IF($G34<0,$G34*INDEX(InputsBG!$1:$1048576,BA$2,MATCH(Substrates!$AY34,InputsBG!$38:$38,0))/$AX34,0) -> 0 | BB34: =IF($G34<0,$G34*INDEX(InputsBG!$1:$1048576,BB$2,MATCH(Substrates!$AY34,InputsBG!$38:$38,0))/$AX34,0) -> 0 | BC34: =IF($G34<0,$G34*INDEX(InputsBG!$1:$1048576,BC$2,MATCH(Substrates!$AY34,InputsBG!$38:$38,0))/$AX34,0) -> 0 | BD34: 0 | BT34: vegetables mean, IP, at farm
A35: Fett aus Fettabscheider | B35: Graisse provenant du filtre à graisse | C35: Grease from grease separator | E35: Grease from grease separator | F35: 0 | G35: 0 | H35: 0 | I35: 0 | L35: 0 | M35: 0 | R35: =IF(F35>0,IF(G35/F35/1000<AX35,INDEX(menuesBG!$1:$1048576,Warnung,sprache),""),"") ->  | S35: 36 | T35: 2 | U35: 70 | V35: 84 | W35: 75 | X35: 93 | Y35: =(Z35+AA35)/2 -> 1.85 | Z35: 0.1 | AA35: 3.6 | AB35: =AVERAGE(0.02,1.5)/AVERAGE(0.1,3.6)*100 -> 41.08108108 | AC35: 0.4625 | AD35: 0.25 | AG35: =(AH35+AI35)/2 -> 1150 | AH35: 1000 | AI35: 1300 | AJ35: 68 | AK35: 782 | AL35: 0 | AM35: 0 | AN35: 0 | AO35: 0 | AT35: =FaktorenBG!F$43*(1+FaktorenBG!F$56)*IF(Auswahl_Behandlung_fest<5,$F35,0) ->  | AU35: =FaktorenBG!G$43*(1+FaktorenBG!G$56)*IF(Auswahl_Behandlung_fest<5,$F35,0) ->  | AV35: =FaktorenBG!H$43*(1+FaktorenBG!H$56)*IF(Auswahl_Behandlung_fest<5,$F35,0) ->  | AW35: 0 | AX35: =INDEX(InputsBG!$1:$1048576,AX$2,MATCH(Substrates!$AY35,InputsBG!$38:$38,0)) ->  | AY35: Rape oil, at oil mill/RER U | AZ35: =IF($G35<0,$G35*INDEX(InputsBG!$1:$1048576,AZ$2,MATCH(Substrates!$AY35,InputsBG!$38:$38,0))/$AX35,0) -> 0 | BA35: =IF($G35<0,$G35*INDEX(InputsBG!$1:$1048576,BA$2,MATCH(Substrates!$AY35,InputsBG!$38:$38,0))/$AX35,0) -> 0 | BB35: =IF($G35<0,$G35*INDEX(InputsBG!$1:$1048576,BB$2,MATCH(Substrates!$AY35,InputsBG!$38:$38,0))/$AX35,0) -> 0 | BC35: =IF($G35<0,$G35*INDEX(InputsBG!$1:$1048576,BC$2,MATCH(Substrates!$AY35,InputsBG!$38:$38,0))/$AX35,0) -> 0 | BD35: 0 | BT35: Rape oil, at oil mill
A36: Filterrückstände aus Lebens- und Genussmittelherstellung | B36: Résidus filtrés de la production d'aliments et de boissons | C36: Filter residues from food and luxury food production | E36: Filter residues from food and luxury food production | F36: 0 | G36: 0 | H36: 0 | I36: 0 | L36: 0 | M36: 0 | R36: =IF(F36>0,IF(G36/F36/1000<AX36,INDEX(menuesBG!$1:$1048576,Warnung,sprache),""),"") ->  | S36: 81.2 | V36: 37.5 | Y36: 2.993055556 | Z36: =Z$138 -> 2.327777778 | AA36: =AA$138 -> 3.658333333 | AB36: 13 | AC36: =AD36*Y36 -> 1.845717593 | AD36: =AD$138 -> 0.6166666667 | AE36: =AE$138 -> 45.65 | AF36: =AF$138 -> 50.55 | AG36: =(AH36+AI36)/2 -> 492 | AH36: =AH$138 -> 376 | AI36: =AI$138 -> 608 | AJ36: 50 | AK36: 246 | AL36: 0 | AM36: 0 | AN36: 0 | AO36: 0 | AT36: =FaktorenBG!F$43*(1+FaktorenBG!F$56)*IF(Auswahl_Behandlung_fest<5,$F36,0) ->  | AU36: =FaktorenBG!G$43*(1+FaktorenBG!G$56)*IF(Auswahl_Behandlung_fest<5,$F36,0) ->  | AV36: =FaktorenBG!H$43*(1+FaktorenBG!H$56)*IF(Auswahl_Behandlung_fest<5,$F36,0) ->  | AW36: 0 | AX36: =INDEX(InputsBG!$1:$1048576,AX$2,MATCH(Substrates!$AY36,InputsBG!$38:$38,0)) ->  | AY36: Durchschnitt | AZ36: =IF($G36<0,$G36*INDEX(InputsBG!$1:$1048576,AZ$2,MATCH(Substrates!$AY36,InputsBG!$38:$38,0))/$AX36,0) -> 0 | BA36: =IF($G36<0,$G36*INDEX(InputsBG!$1:$1048576,BA$2,MATCH(Substrates!$AY36,InputsBG!$38:$38,0))/$AX36,0) -> 0 | BB36: =IF($G36<0,$G36*INDEX(InputsBG!$1:$1048576,BB$2,MATCH(Substrates!$AY36,InputsBG!$38:$38,0))/$AX36,0) -> 0 | BC36: =IF($G36<0,$G36*INDEX(InputsBG!$1:$1048576,BC$2,MATCH(Substrates!$AY36,InputsBG!$38:$38,0))/$AX36,0) -> 0 | BD36: 0
A37: Flotatschlämme (Schlachthof) | B37: Boues de flottation | C37: Flotation sludge (slaughterhouse) | E37: Flotation sludge (slaughterhouse) | F37: 0 | G37: 0 | H37: 0 | I37: 0 | L37: 0 | M37: 0 | R37: =IF(F37>0,IF(G37/F37/1000<AX37,INDEX(menuesBG!$1:$1048576,Warnung,sprache),""),"") ->  | S37: 14.5 | T37: 5 | U37: 24 | V37: 91.5 | W37: 85 | X37: 98 | Y37: 6 | Z37: 3.2 | AA37: 8.8 | AB37: =AVERAGE(0.01,0.06)/AVERAGE(3.2,8.9)*100 -> 0.5785123967 | AC37: 3.9 | AD37: 0.65 | AG37: 1025 | AH37: 700 | AI37: 1350 | AJ37: 59 | AK37: 604.75 | AL37: 0 | AM37: 0 | AN37: 0 | AO37: 0 | AT37: =FaktorenBG!F$43*(1+FaktorenBG!F$56)*IF(Auswahl_Behandlung_fest<5,$F37,0) ->  | AU37: =FaktorenBG!G$43*(1+FaktorenBG!G$56)*IF(Auswahl_Behandlung_fest<5,$F37,0) ->  | AV37: =FaktorenBG!H$43*(1+FaktorenBG!H$56)*IF(Auswahl_Behandlung_fest<5,$F37,0) ->  | AW37: 0 | AX37: =INDEX(InputsBG!$1:$1048576,AX$2,MATCH(Substrates!$AY37,InputsBG!$38:$38,0)) ->  | AY37: meat mixed, IP, at slaughterhouse/kg/CH S | AZ37: =IF($G37<0,$G37*INDEX(InputsBG!$1:$1048576,AZ$2,MATCH(Substrates!$AY37,InputsBG!$38:$38,0))/$AX37,0) -> 0 | BA37: =IF($G37<0,$G37*INDEX(InputsBG!$1:$1048576,BA$2,MATCH(Substrates!$AY37,InputsBG!$38:$38,0))/$AX37,0) -> 0 | BB37: =IF($G37<0,$G37*INDEX(InputsBG!$1:$1048576,BB$2,MATCH(Substrates!$AY37,InputsBG!$38:$38,0))/$AX37,0) -> 0 | BC37: =IF($G37<0,$G37*INDEX(InputsBG!$1:$1048576,BC$2,MATCH(Substrates!$AY37,InputsBG!$38:$38,0))/$AX37,0) -> 0 | BD37: 0 | BT37: meat mixed, IP, at slaughterhouse
A38: Früchteabfälle (Orangen, Zitronen, Bananen, Ananas, etc.) | B38: Déchets de fruits (oranges, citrons, bananes, ananas etc.) | C38: Fruit waste (oranges, lemons, bananas, pineapples, etc.) | E38: Fruit waste (oranges, lemons, bananas, pineapples, etc.) | F38: 0 | G38: 0 | H38: 0 | I38: 0 | L38: 0 | M38: 0 | R38: =IF(F38>0,IF(G38/F38/1000<AX38,INDEX(menuesBG!$1:$1048576,Warnung,sprache),""),"") ->  | S38: 37.5 | T38: 25 | U38: 50 | V38: 90 | W38: 85 | X38: 95 | Y38: 1.1 | Z38: 1 | AA38: 1.2 | AB38: =AVERAGE(0.05,0.2)/AVERAGE(0.5,2.7)*100 -> 7.8125 | AC38: 0.66 | AD38: 0.6 | AG38: 555 | AH38: 450 | AI38: 660 | AJ38: 57 | AK38: 316.35 | AL38: 0 | AM38: 0 | AN38: 0 | AO38: 0 | AT38: =FaktorenBG!F$43*(1+FaktorenBG!F$56)*IF(Auswahl_Behandlung_fest<5,$F38,0) ->  | AU38: =FaktorenBG!G$43*(1+FaktorenBG!G$56)*IF(Auswahl_Behandlung_fest<5,$F38,0) ->  | AV38: =FaktorenBG!H$43*(1+FaktorenBG!H$56)*IF(Auswahl_Behandlung_fest<5,$F38,0) ->  | AW38: 0 | AX38: =INDEX(InputsBG!$1:$1048576,AX$2,MATCH(Substrates!$AY38,InputsBG!$38:$38,0)) ->  | AY38: apple ÖLN, at farm/kg/CH S | AZ38: =IF($G38<0,$G38*INDEX(InputsBG!$1:$1048576,AZ$2,MATCH(Substrates!$AY38,InputsBG!$38:$38,0))/$AX38,0) -> 0 | BA38: =IF($G38<0,$G38*INDEX(InputsBG!$1:$1048576,BA$2,MATCH(Substrates!$AY38,InputsBG!$38:$38,0))/$AX38,0) -> 0 | BB38: =IF($G38<0,$G38*INDEX(InputsBG!$1:$1048576,BB$2,MATCH(Substrates!$AY38,InputsBG!$38:$38,0))/$AX38,0) -> 0 | BC38: =IF($G38<0,$G38*INDEX(InputsBG!$1:$1048576,BC$2,MATCH(Substrates!$AY38,InputsBG!$38:$38,0))/$AX38,0) -> 0 | BD38: 0 | BT38: apple ÖLN, at farm
A39: Fruchtwasser, Zuckerwasser | B39: Eau fruitée, eau sucrée | C39: Amniotic fluid, sugar water | E39: =IF(sprache=1,A39,IF(sprache=2,B39,C39)) -> Amniotic fluid, sugar water | F39: 0 | G39: 0 | H39: 0 | I39: 0 | L39: 0 | M39: 0 | R39: =IF(F39>0,IF(G39/F39/1000<AX39,INDEX(menuesBG!$1:$1048576,Warnung,sprache),""),"") ->  | S39: 4.3 | V39: 72.5 | Y39: 4.5 | Z39: 4 | AA39: 5 | AB39: =AVERAGE(0.8,1)/AVERAGE(4,5)*100 -> 20 | AC39: 2.775 | AD39: =AD$138 -> 0.6166666667 | AE39: 45.65 | AF39: 50.55 | AG39: 492 | AH39: =AH$138 -> 376 | AI39: =AI$138 -> 608 | AJ39: 55 | AK39: 270.6 | AL39: 0 | AM39: 0 | AN39: 0 | AO39: 0 | AT39: =FaktorenBG!F$43*(1+FaktorenBG!F$56)*IF(Auswahl_Behandlung_fest<5,$F39,0) ->  | AU39: =FaktorenBG!G$43*(1+FaktorenBG!G$56)*IF(Auswahl_Behandlung_fest<5,$F39,0) ->  | AV39: =FaktorenBG!H$43*(1+FaktorenBG!H$56)*IF(Auswahl_Behandlung_fest<5,$F39,0) ->  | AW39: 0 | AX39: =INDEX(InputsBG!$1:$1048576,AX$2,MATCH(Substrates!$AY39,InputsBG!$38:$38,0)) ->  | AY39: sugar beets IP, at farm/kg/CH U | AZ39: =IF($G39<0,$G39*INDEX(InputsBG!$1:$1048576,AZ$2,MATCH(Substrates!$AY39,InputsBG!$38:$38,0))/$AX39,0) -> 0 | BA39: =IF($G39<0,$G39*INDEX(InputsBG!$1:$1048576,BA$2,MATCH(Substrates!$AY39,InputsBG!$38:$38,0))/$AX39,0) -> 0 | BB39: =IF($G39<0,$G39*INDEX(InputsBG!$1:$1048576,BB$2,MATCH(Substrates!$AY39,InputsBG!$38:$38,0))/$AX39,0) -> 0 | BC39: =IF($G39<0,$G39*INDEX(InputsBG!$1:$1048576,BC$2,MATCH(Substrates!$AY39,InputsBG!$38:$38,0))/$AX39,0) -> 0 | BD39: 0 | BT39: sugar beets IP, at farm
A40: Gärgut aus Nahrungsmittelindustrie | B40: Digestat provenant de l'industrie alimentaire | C40: Fermentation material from the food industry | E40: Fermentation material from the food industry | F40: 0 | G40: 0 | H40: 0 | I40: 0 | L40: 0 | M40: 0 | R40: =IF(F40>0,IF(G40/F40/1000<AX40,INDEX(menuesBG!$1:$1048576,Warnung,sprache),""),"") ->  | S40: 30.7 | T40: =T$138 -> 30.7 | U40: =U$138 -> 30.7 | V40: 73.9 | W40: =W$138 -> 73.9 | X40: =X$138 -> 73.9 | Y40: 2.8 | Z40: 0.6 | AA40: 5 | AB40: =AVERAGE(0.01,1.1)/AVERAGE(0.6,5)*100 -> 19.82142857 | AC40: 1.726666667 | AD40: 0.6166666667 | AE40: 45.65 | AF40: 50.55 | AG40: 492 | AH40: =AH$138 -> 376 | AI40: =AI$138 -> 608 | AJ40: 50 | AK40: 246 | AL40: 0 | AM40: 0 | AN40: 0 | AO40: 0 | AT40: =FaktorenBG!F$43*(1+FaktorenBG!F$56)*IF(Auswahl_Behandlung_fest<5,$F40,0) ->  | AU40: =FaktorenBG!G$43*(1+FaktorenBG!G$56)*IF(Auswahl_Behandlung_fest<5,$F40,0) ->  | AV40: =FaktorenBG!H$43*(1+FaktorenBG!H$56)*IF(Auswahl_Behandlung_fest<5,$F40,0) ->  | AW40: 0 | AX40: =INDEX(InputsBG!$1:$1048576,AX$2,MATCH(Substrates!$AY40,InputsBG!$38:$38,0)) ->  | AY40: Durchschnitt | AZ40: =IF($G40<0,$G40*INDEX(InputsBG!$1:$1048576,AZ$2,MATCH(Substrates!$AY40,InputsBG!$38:$38,0))/$AX40,0) -> 0 | BA40: =IF($G40<0,$G40*INDEX(InputsBG!$1:$1048576,BA$2,MATCH(Substrates!$AY40,InputsBG!$38:$38,0))/$AX40,0) -> 0 | BB40: =IF($G40<0,$G40*INDEX(InputsBG!$1:$1048576,BB$2,MATCH(Substrates!$AY40,InputsBG!$38:$38,0))/$AX40,0) -> 0 | BC40: =IF($G40<0,$G40*INDEX(InputsBG!$1:$1048576,BC$2,MATCH(Substrates!$AY40,InputsBG!$38:$38,0))/$AX40,0) -> 0 | BD40: 0
A41: Grüngut | B41: Déchets verts | C41: Green waste | E41: Green waste | F41: 0 | G41: 0 | H41: 0 | I41: 0 | L41: 0 | M41: 0 | R41: =IF(F41>0,IF(G41/F41/1000<AX41,INDEX(menuesBG!$1:$1048576,Warnung,sprache),""),"") ->  | S41: 35.5 | T41: 33 | U41: 38 | V41: 85 | W41: 80 | X41: 90 | Y41: 1.25 | Z41: 1 | AA41: 1.5 | AB41: 13 | AC41: 0.625 | AD41: 0.5 | AG41: 300 | AH41: 200 | AI41: 400 | AJ41: 50 | AK41: 150 | AL41: 0 | AM41: 0 | AN41: 0 | AO41: 0 | AT41: =FaktorenBG!F$43*(1+FaktorenBG!F$56)*IF(Auswahl_Behandlung_fest<5,$F41,0) ->  | AU41: =FaktorenBG!G$43*(1+FaktorenBG!G$56)*IF(Auswahl_Behandlung_fest<5,$F41,0) ->  | AV41: =FaktorenBG!H$43*(1+FaktorenBG!H$56)*IF(Auswahl_Behandlung_fest<5,$F41,0) ->  | AW41: 0 | AX41: =INDEX(InputsBG!$1:$1048576,AX$2,MATCH(Substrates!$AY41,InputsBG!$38:$38,0)) ->  | AY41: Durchschnitt | AZ41: =IF($G41<0,$G41*INDEX(InputsBG!$1:$1048576,AZ$2,MATCH(Substrates!$AY41,InputsBG!$38:$38,0))/$AX41,0) -> 0 | BA41: =IF($G41<0,$G41*INDEX(InputsBG!$1:$1048576,BA$2,MATCH(Substrates!$AY41,InputsBG!$38:$38,0))/$AX41,0) -> 0 | BB41: =IF($G41<0,$G41*INDEX(InputsBG!$1:$1048576,BB$2,MATCH(Substrates!$AY41,InputsBG!$38:$38,0))/$AX41,0) -> 0 | BC41: =IF($G41<0,$G41*INDEX(InputsBG!$1:$1048576,BC$2,MATCH(Substrates!$AY41,InputsBG!$38:$38,0))/$AX41,0) -> 0 | BD41: 0 | BE41: =M41/Gasertrag_berechnet ->  | BF41: =AZ41/Belastung_Substrat -> 
A42: Gemüse, Rüstabfälle | B42: Epluchures de légumes | C42: Vegetables, food waste | E42: Vegetables, food waste | F42: 0 | G42: 0 | H42: 0 | I42: 0 | L42: 0 | M42: 0 | R42: =IF(F42>0,IF(G42/F42/1000<AX42,INDEX(menuesBG!$1:$1048576,Warnung,sprache),""),"") ->  | S42: 12.5 | T42: 5 | U42: 20 | V42: 83 | W42: 76 | X42: 90 | Y42: 4 | Z42: 3 | AA42: 5 | AB42: =AVERAGE(0.01,1.1)/AVERAGE(0.6,5)*100 -> 19.82142857 | AC42: 2.6 | AD42: 0.65 | AG42: 500 | AH42: 400 | AI42: 600 | AJ42: 52 | AK42: 260 | AL42: 0 | AM42: 0 | AN42: 0 | AO42: 0 | AT42: =FaktorenBG!F$43*(1+FaktorenBG!F$56)*IF(Auswahl_Behandlung_fest<5,$F42,0) ->  | AU42: =FaktorenBG!G$43*(1+FaktorenBG!G$56)*IF(Auswahl_Behandlung_fest<5,$F42,0) ->  | AV42: =FaktorenBG!H$43*(1+FaktorenBG!H$56)*IF(Auswahl_Behandlung_fest<5,$F42,0) ->  | AW42: 0 | AX42: =INDEX(InputsBG!$1:$1048576,AX$2,MATCH(Substrates!$AY42,InputsBG!$38:$38,0)) ->  | AY42: vegetables mean, IP, at farm/kg/CH S | AZ42: =IF($G42<0,$G42*INDEX(InputsBG!$1:$1048576,AZ$2,MATCH(Substrates!$AY42,InputsBG!$38:$38,0))/$AX42,0) -> 0 | BA42: =IF($G42<0,$G42*INDEX(InputsBG!$1:$1048576,BA$2,MATCH(Substrates!$AY42,InputsBG!$38:$38,0))/$AX42,0) -> 0 | BB42: =IF($G42<0,$G42*INDEX(InputsBG!$1:$1048576,BB$2,MATCH(Substrates!$AY42,InputsBG!$38:$38,0))/$AX42,0) -> 0 | BC42: =IF($G42<0,$G42*INDEX(InputsBG!$1:$1048576,BC$2,MATCH(Substrates!$AY42,InputsBG!$38:$38,0))/$AX42,0) -> 0 | BD42: 0 | BT42: vegetables mean, IP, at farm
A43: Glucose, Zuckerwasser, Fruchtsäfte | B43: Glucose, eau sucré, jus de fruits | C43: Glucose, sugar water, fruit juices | E43: Glucose, sugar water, fruit juices | F43: 0 | G43: 0 | H43: 0 | I43: 0 | L43: 0 | M43: 0 | R43: =IF(F43>0,IF(G43/F43/1000<AX43,INDEX(menuesBG!$1:$1048576,Warnung,sprache),""),"") ->  | S43: 4.3 | V43: 72.5 | Y43: 2.993055556 | Z43: =Z$138 -> 2.327777778 | AA43: =AA$138 -> 3.658333333 | AB43: 13 | AC43: =AD43*Y43 -> 1.845717593 | AD43: =AD$138 -> 0.6166666667 | AE43: =AE$138 -> 45.65 | AF43: =AF$138 -> 50.55 | AG43: =(AH43+AI43)/2 -> 492 | AH43: =AH$138 -> 376 | AI43: =AI$138 -> 608 | AJ43: 50 | AK43: 246 | AL43: 0 | AM43: 0 | AN43: 0 | AO43: 0 | AT43: =FaktorenBG!F$43*(1+FaktorenBG!F$56)*IF(Auswahl_Behandlung_fest<5,$F43,0) ->  | AU43: =FaktorenBG!G$43*(1+FaktorenBG!G$56)*IF(Auswahl_Behandlung_fest<5,$F43,0) ->  | AV43: =FaktorenBG!H$43*(1+FaktorenBG!H$56)*IF(Auswahl_Behandlung_fest<5,$F43,0) ->  | AW43: 0 | AX43: =INDEX(InputsBG!$1:$1048576,AX$2,MATCH(Substrates!$AY43,InputsBG!$38:$38,0)) ->  | AY43: Syrup, from sugar beet molasses, at distillery/CH U | AZ43: =IF($G43<0,$G43*INDEX(InputsBG!$1:$1048576,AZ$2,MATCH(Substrates!$AY43,InputsBG!$38:$38,0))/$AX43,0) -> 0 | BA43: =IF($G43<0,$G43*INDEX(InputsBG!$1:$1048576,BA$2,MATCH(Substrates!$AY43,InputsBG!$38:$38,0))/$AX43,0) -> 0 | BB43: =IF($G43<0,$G43*INDEX(InputsBG!$1:$1048576,BB$2,MATCH(Substrates!$AY43,InputsBG!$38:$38,0))/$AX43,0) -> 0 | BC43: =IF($G43<0,$G43*INDEX(InputsBG!$1:$1048576,BC$2,MATCH(Substrates!$AY43,InputsBG!$38:$38,0))/$AX43,0) -> 0 | BD43: 0 | BT43: Syrup, from sugar beet molasses, at distillery
A44: Grassilage | B44: Ensilage d'herbe | C44: Grass silage | E44: Grass silage | F44: 0 | G44: 0 | H44: 0 | I44: 0 | L44: 0 | M44: 0 | R44: =IF(F44>0,IF(G44/F44/1000<AX44,INDEX(menuesBG!$1:$1048576,Warnung,sprache),""),"") ->  | S44: 42.5 | T44: 25 | U44: 60 | V44: 82.5 | W44: 69 | X44: 96 | Y44: 5.2 | Z44: 3.5 | AA44: 6.9 | AB44: =AVERAGE(3.5,6.9)/AVERAGE(6.9,19.8)*100 -> 38.95131086 | AC44: 3.64 | AD44: 0.7 | AE44: 6.9 | AF44: 19.8 | AG44: 565 | AH44: 520 | AI44: 610 | AJ44: 54 | AK44: 305.1 | AL44: 0 | AM44: 0 | AN44: 0 | AO44: 0 | AT44: =FaktorenBG!F$43*(1+FaktorenBG!F$56)*IF(Auswahl_Behandlung_fest<5,$F44,0) ->  | AU44: =FaktorenBG!G$43*(1+FaktorenBG!G$56)*IF(Auswahl_Behandlung_fest<5,$F44,0) ->  | AV44: =FaktorenBG!H$43*(1+FaktorenBG!H$56)*IF(Auswahl_Behandlung_fest<5,$F44,0) ->  | AW44: 0 | AX44: =INDEX(InputsBG!$1:$1048576,AX$2,MATCH(Substrates!$AY44,InputsBG!$38:$38,0)) ->  | AY44: Grass silage IP, at farm/kg/CH U | AZ44: =IF($G44<0,$G44*INDEX(InputsBG!$1:$1048576,AZ$2,MATCH(Substrates!$AY44,InputsBG!$38:$38,0))/$AX44,0) -> 0 | BA44: =IF($G44<0,$G44*INDEX(InputsBG!$1:$1048576,BA$2,MATCH(Substrates!$AY44,InputsBG!$38:$38,0))/$AX44,0) -> 0 | BB44: =IF($G44<0,$G44*INDEX(InputsBG!$1:$1048576,BB$2,MATCH(Substrates!$AY44,InputsBG!$38:$38,0))/$AX44,0) -> 0 | BC44: =IF($G44<0,$G44*INDEX(InputsBG!$1:$1048576,BC$2,MATCH(Substrates!$AY44,InputsBG!$38:$38,0))/$AX44,0) -> 0 | BD44: 0 | BT44: Grass silage IP, at farm
A45: Harn, Häute, Felle, Borsten, Federn, Haare (rein) | B45: Urine, cuirs, peaux, crins, plumes, cheveux | C45: Urine, hides, skins, bristles, feathers, hair (pure) | E45: Urine, hides, skins, bristles, feathers, hair (pure) | F45: 0 | G45: 0 | H45: 0 | I45: 0 | L45: 0 | M45: 0 | R45: =IF(F45>0,IF(G45/F45/1000<AX45,INDEX(menuesBG!$1:$1048576,Warnung,sprache),""),"") ->  | S45: 30.7 | T45: =T$138 -> 30.7 | U45: =U$138 -> 30.7 | V45: 73.9 | W45: =W$138 -> 73.9 | X45: =X$138 -> 73.9 | Y45: 2.993055556 | Z45: =Z$138 -> 2.327777778 | AA45: =AA$138 -> 3.658333333 | AB45: 13 | AC45: 1.845717593 | AD45: =AD$138 -> 0.6166666667 | AE45: 45.65 | AF45: 50.55 | AG45: 492 | AH45: =AH$138 -> 376 | AI45: =AI$138 -> 608 | AJ45: 50 | AK45: 246 | AL45: 0 | AM45: 0 | AN45: 0 | AO45: 0 | AT45: =FaktorenBG!F$43*(1+FaktorenBG!F$56)*IF(Auswahl_Behandlung_fest<5,$F45,0) ->  | AU45: =FaktorenBG!G$43*(1+FaktorenBG!G$56)*IF(Auswahl_Behandlung_fest<5,$F45,0) ->  | AV45: =FaktorenBG!H$43*(1+FaktorenBG!H$56)*IF(Auswahl_Behandlung_fest<5,$F45,0) ->  | AW45: 0 | AX45: =INDEX(InputsBG!$1:$1048576,AX$2,MATCH(Substrates!$AY45,InputsBG!$38:$38,0)) ->  | AY45: meat mixed, IP, at slaughterhouse/kg/CH S | AZ45: =IF($G45<0,$G45*INDEX(InputsBG!$1:$1048576,AZ$2,MATCH(Substrates!$AY45,InputsBG!$38:$38,0))/$AX45,0) -> 0 | BA45: =IF($G45<0,$G45*INDEX(InputsBG!$1:$1048576,BA$2,MATCH(Substrates!$AY45,InputsBG!$38:$38,0))/$AX45,0) -> 0 | BB45: =IF($G45<0,$G45*INDEX(InputsBG!$1:$1048576,BB$2,MATCH(Substrates!$AY45,InputsBG!$38:$38,0))/$AX45,0) -> 0 | BC45: =IF($G45<0,$G45*INDEX(InputsBG!$1:$1048576,BC$2,MATCH(Substrates!$AY45,InputsBG!$38:$38,0))/$AX45,0) -> 0 | BD45: 0 | BT45: meat mixed, IP, at slaughterhouse
A46: Hefe | B46: Levure | C46: Yeast | E46: Yeast | F46: 0 | G46: 0 | H46: 0 | I46: 0 | L46: 0 | M46: 0 | R46: =IF(F46>0,IF(G46/F46/1000<AX46,INDEX(menuesBG!$1:$1048576,Warnung,sprache),""),"") ->  | S46: 30.7 | T46: =T$138 -> 30.7 | U46: =U$138 -> 30.7 | V46: 73.9 | W46: =W$138 -> 73.9 | X46: =X$138 -> 73.9 | Y46: 2.993055556 | Z46: =Z$138 -> 2.327777778 | AA46: =AA$138 -> 3.658333333 | AB46: 13 | AC46: 1.845717593 | AD46: 0.6166666667 | AE46: 45.65 | AF46: 50.55 | AG46: 492 | AH46: =AH$138 -> 376 | AI46: =AI$138 -> 608 | AJ46: 50 | AK46: 246 | AL46: 0 | AM46: 0 | AN46: 0 | AO46: 0 | AT46: =FaktorenBG!F$43*(1+FaktorenBG!F$56)*IF(Auswahl_Behandlung_fest<5,$F46,0) ->  | AU46: =FaktorenBG!G$43*(1+FaktorenBG!G$56)*IF(Auswahl_Behandlung_fest<5,$F46,0) ->  | AV46: =FaktorenBG!H$43*(1+FaktorenBG!H$56)*IF(Auswahl_Behandlung_fest<5,$F46,0) ->  | AW46: 0 | AX46: =INDEX(InputsBG!$1:$1048576,AX$2,MATCH(Substrates!$AY46,InputsBG!$38:$38,0)) ->  | AY46: yeast, at plant/kg/RER S | AZ46: =IF($G46<0,$G46*INDEX(InputsBG!$1:$1048576,AZ$2,MATCH(Substrates!$AY46,InputsBG!$38:$38,0))/$AX46,0) -> 0 | BA46: =IF($G46<0,$G46*INDEX(InputsBG!$1:$1048576,BA$2,MATCH(Substrates!$AY46,InputsBG!$38:$38,0))/$AX46,0) -> 0 | BB46: =IF($G46<0,$G46*INDEX(InputsBG!$1:$1048576,BB$2,MATCH(Substrates!$AY46,InputsBG!$38:$38,0))/$AX46,0) -> 0 | BC46: =IF($G46<0,$G46*INDEX(InputsBG!$1:$1048576,BC$2,MATCH(Substrates!$AY46,InputsBG!$38:$38,0))/$AX46,0) -> 0 | BD46: 0 | BT46: yeast, at plant
A47: Heilkräuterrückstand | B47: Résidus de plantes médicinales | C47: Medicinal herb residue | E47: Medicinal herb residue | F47: 0 | G47: 0 | H47: 0 | I47: 0 | L47: 0 | M47: 0 | R47: =IF(F47>0,IF(G47/F47/1000<AX47,INDEX(menuesBG!$1:$1048576,Warnung,sprache),""),"") ->  | S47: 55 | T47: 50 | U47: 60 | V47: 60 | W47: 50 | X47: 70 | Y47: 2.25 | Z47: 2 | AA47: 2.5 | AB47: 13 | AC47: 1.35 | AD47: 0.6 | AG47: 400 | AH47: 350 | AI47: 450 | AJ47: 57 | AK47: 228 | AL47: 0 | AM47: 0 | AN47: 0 | AO47: 0 | AT47: =FaktorenBG!F$43*(1+FaktorenBG!F$56)*IF(Auswahl_Behandlung_fest<5,$F47,0) ->  | AU47: =FaktorenBG!G$43*(1+FaktorenBG!G$56)*IF(Auswahl_Behandlung_fest<5,$F47,0) ->  | AV47: =FaktorenBG!H$43*(1+FaktorenBG!H$56)*IF(Auswahl_Behandlung_fest<5,$F47,0) ->  | AW47: 0 | AX47: =INDEX(InputsBG!$1:$1048576,AX$2,MATCH(Substrates!$AY47,InputsBG!$38:$38,0)) ->  | AY47: Durchschnitt | AZ47: =IF($G47<0,$G47*INDEX(InputsBG!$1:$1048576,AZ$2,MATCH(Substrates!$AY47,InputsBG!$38:$38,0))/$AX47,0) -> 0 | BA47: =IF($G47<0,$G47*INDEX(InputsBG!$1:$1048576,BA$2,MATCH(Substrates!$AY47,InputsBG!$38:$38,0))/$AX47,0) -> 0 | BB47: =IF($G47<0,$G47*INDEX(InputsBG!$1:$1048576,BB$2,MATCH(Substrates!$AY47,InputsBG!$38:$38,0))/$AX47,0) -> 0 | BC47: =IF($G47<0,$G47*INDEX(InputsBG!$1:$1048576,BC$2,MATCH(Substrates!$AY47,InputsBG!$38:$38,0))/$AX47,0) -> 0 | BD47: 0
A48: Kaffeesatz, Abgänge aus Produktion und Zubereitung von Kaffee | B48: Marc de café (production et préparation du café exclus) | C48: Coffee grounds, disposals from production and preparation of coffee | E48: Coffee grounds, disposals from production and preparation of coffee | F48: 0 | G48: 0 | H48: 0 | I48: 0 | L48: 0 | M48: 0 | R48: =IF(F48>0,IF(G48/F48/1000<AX48,INDEX(menuesBG!$1:$1048576,Warnung,sprache),""),"") ->  | S48: 36.5 | V48: =(W48+X48)/2 -> 0 | Y48: 2.993055556 | Z48: =Z$138 -> 2.327777778 | AA48: =AA$138 -> 3.658333333 | AB48: 13 | AC48: =AD48*Y48 -> 1.845717593 | AD48: =AD$138 -> 0.6166666667 | AE48: 45.65 | AF48: 50.55 | AG48: =(AH48+AI48)/2 -> 492 | AH48: =AH$138 -> 376 | AI48: =AI$138 -> 608 | AJ48: 50 | AK48: 246 | AL48: 0 | AM48: 0 | AN48: 0 | AO48: 0 | AT48: =FaktorenBG!F$43*(1+FaktorenBG!F$56)*IF(Auswahl_Behandlung_fest<5,$F48,0) ->  | AU48: =FaktorenBG!G$43*(1+FaktorenBG!G$56)*IF(Auswahl_Behandlung_fest<5,$F48,0) ->  | AV48: =FaktorenBG!H$43*(1+FaktorenBG!H$56)*IF(Auswahl_Behandlung_fest<5,$F48,0) ->  | AW48: 0 | AX48: =INDEX(InputsBG!$1:$1048576,AX$2,MATCH(Substrates!$AY48,InputsBG!$38:$38,0)) ->  | AY48: Durchschnitt | AZ48: =IF($G48<0,$G48*INDEX(InputsBG!$1:$1048576,AZ$2,MATCH(Substrates!$AY48,InputsBG!$38:$38,0))/$AX48,0) -> 0 | BA48: =IF($G48<0,$G48*INDEX(InputsBG!$1:$1048576,BA$2,MATCH(Substrates!$AY48,InputsBG!$38:$38,0))/$AX48,0) -> 0 | BB48: =IF($G48<0,$G48*INDEX(InputsBG!$1:$1048576,BB$2,MATCH(Substrates!$AY48,InputsBG!$38:$38,0))/$AX48,0) -> 0 | BC48: =IF($G48<0,$G48*INDEX(InputsBG!$1:$1048576,BC$2,MATCH(Substrates!$AY48,InputsBG!$38:$38,0))/$AX48,0) -> 0 | BD48: 0
A49: Kakaoschalen | B49: Ecorce de cacao | C49: Cocoa husks | E49: Cocoa husks | F49: 0 | G49: 0 | H49: 0 | I49: 0 | L49: 0 | M49: 0 | R49: =IF(F49>0,IF(G49/F49/1000<AX49,INDEX(menuesBG!$1:$1048576,Warnung,sprache),""),"") ->  | S49: 95 | V49: 91 | Y49: 2.2 | AB49: 13 | AC49: =AD49*Y49 -> 1.356666667 | AD49: 0.6166666667 | AE49: 45.65 | AF49: 50.55 | AG49: =(AH49+AI49)/2 -> 492 | AH49: =AH$138 -> 376 | AI49: =AI$138 -> 608 | AJ49: 60 | AK49: 295.2 | AL49: 0 | AM49: 0 | AN49: 0 | AO49: 0 | AT49: =FaktorenBG!F$43*(1+FaktorenBG!F$56)*IF(Auswahl_Behandlung_fest<5,$F49,0) ->  | AU49: =FaktorenBG!G$43*(1+FaktorenBG!G$56)*IF(Auswahl_Behandlung_fest<5,$F49,0) ->  | AV49: =FaktorenBG!H$43*(1+FaktorenBG!H$56)*IF(Auswahl_Behandlung_fest<5,$F49,0) ->  | AW49: 0 | AX49: =INDEX(InputsBG!$1:$1048576,AX$2,MATCH(Substrates!$AY49,InputsBG!$38:$38,0)) ->  | AY49: Durchschnitt | AZ49: =IF($G49<0,$G49*INDEX(InputsBG!$1:$1048576,AZ$2,MATCH(Substrates!$AY49,InputsBG!$38:$38,0))/$AX49,0) -> 0 | BA49: =IF($G49<0,$G49*INDEX(InputsBG!$1:$1048576,BA$2,MATCH(Substrates!$AY49,InputsBG!$38:$38,0))/$AX49,0) -> 0 | BB49: =IF($G49<0,$G49*INDEX(InputsBG!$1:$1048576,BB$2,MATCH(Substrates!$AY49,InputsBG!$38:$38,0))/$AX49,0) -> 0 | BC49: =IF($G49<0,$G49*INDEX(InputsBG!$1:$1048576,BC$2,MATCH(Substrates!$AY49,InputsBG!$38:$38,0))/$AX49,0) -> 0 | BD49: 0
A50: Kartoffeln | B50: Pommes de terres | C50: Potatoes | E50: Potatoes | F50: 0 | G50: 0 | H50: 0 | I50: 0 | L50: 0 | M50: 0 | R50: =IF(F50>0,IF(G50/F50/1000<AX50,INDEX(menuesBG!$1:$1048576,Warnung,sprache),""),"") ->  | S50: 25 | T50: 20 | U50: 30 | V50: 80 | W50: 75 | X50: 85 | Y50: 1.5 | Z50: 1.5 | AA50: 1.5 | AB50: =AVERAGE(0.04)/AVERAGE(0.5,1)*100 -> 5.333333333 | AC50: 0.975 | AD50: 0.65 | AG50: 550 | AH50: 500 | AI50: 600 | AJ50: 51 | AK50: 280.5 | AL50: 0 | AM50: 0 | AN50: 0 | AO50: 0 | AT50: =FaktorenBG!F$43*(1+FaktorenBG!F$56)*IF(Auswahl_Behandlung_fest<5,$F50,0) ->  | AU50: =FaktorenBG!G$43*(1+FaktorenBG!G$56)*IF(Auswahl_Behandlung_fest<5,$F50,0) ->  | AV50: =FaktorenBG!H$43*(1+FaktorenBG!H$56)*IF(Auswahl_Behandlung_fest<5,$F50,0) ->  | AW50: 0 | AX50: =INDEX(InputsBG!$1:$1048576,AX$2,MATCH(Substrates!$AY50,InputsBG!$38:$38,0)) ->  | AY50: Potatoes IP, at farm/CH U | AZ50: =IF($G50<0,$G50*INDEX(InputsBG!$1:$1048576,AZ$2,MATCH(Substrates!$AY50,InputsBG!$38:$38,0))/$AX50,0) -> 0 | BA50: =IF($G50<0,$G50*INDEX(InputsBG!$1:$1048576,BA$2,MATCH(Substrates!$AY50,InputsBG!$38:$38,0))/$AX50,0) -> 0 | BB50: =IF($G50<0,$G50*INDEX(InputsBG!$1:$1048576,BB$2,MATCH(Substrates!$AY50,InputsBG!$38:$38,0))/$AX50,0) -> 0 | BC50: =IF($G50<0,$G50*INDEX(InputsBG!$1:$1048576,BC$2,MATCH(Substrates!$AY50,InputsBG!$38:$38,0))/$AX50,0) -> 0 | BD50: 0 | BT50: Potatoes IP, at farm
A51: Käseabfall | B51: Déchets de fromage | C51: Cheese waste | E51: Cheese waste | F51: 0 | G51: 0 | H51: 0 | I51: 0 | L51: 0 | M51: 0 | R51: =IF(F51>0,IF(G51/F51/1000<AX51,INDEX(menuesBG!$1:$1048576,Warnung,sprache),""),"") ->  | S51: 83.5 | V51: 93.1 | Y51: 2.993055556 | Z51: =Z$138 -> 2.327777778 | AA51: =AA$138 -> 3.658333333 | AB51: 13 | AC51: =AD51*Y51 -> 1.845717593 | AD51: =AD$138 -> 0.6166666667 | AE51: =AE$138 -> 45.65 | AF51: =AF$138 -> 50.55 | AG51: =(AH51+AI51)/2 -> 795 | AH51: 690 | AI51: 900 | AJ51: 68 | AK51: 540.6 | AL51: 0 | AM51: 0 | AN51: 0 | AO51: 0 | AT51: =FaktorenBG!F$43*(1+FaktorenBG!F$56)*IF(Auswahl_Behandlung_fest<5,$F51,0) ->  | AU51: =FaktorenBG!G$43*(1+FaktorenBG!G$56)*IF(Auswahl_Behandlung_fest<5,$F51,0) ->  | AV51: =FaktorenBG!H$43*(1+FaktorenBG!H$56)*IF(Auswahl_Behandlung_fest<5,$F51,0) ->  | AW51: 0 | AX51: =INDEX(InputsBG!$1:$1048576,AX$2,MATCH(Substrates!$AY51,InputsBG!$38:$38,0)) ->  | AY51: raw milk, silo zone, at farm/kg/CH S | AZ51: =IF($G51<0,$G51*INDEX(InputsBG!$1:$1048576,AZ$2,MATCH(Substrates!$AY51,InputsBG!$38:$38,0))/$AX51,0) -> 0 | BA51: =IF($G51<0,$G51*INDEX(InputsBG!$1:$1048576,BA$2,MATCH(Substrates!$AY51,InputsBG!$38:$38,0))/$AX51,0) -> 0 | BB51: =IF($G51<0,$G51*INDEX(InputsBG!$1:$1048576,BB$2,MATCH(Substrates!$AY51,InputsBG!$38:$38,0))/$AX51,0) -> 0 | BC51: =IF($G51<0,$G51*INDEX(InputsBG!$1:$1048576,BC$2,MATCH(Substrates!$AY51,InputsBG!$38:$38,0))/$AX51,0) -> 0 | BD51: 0 | BT51: raw milk, silo zone, at farm
A52: Lecithin | B52: Lécithine | C52: Lecithin | E52: =IF(sprache=1,A52,IF(sprache=2,B52,C52)) -> Lecithin | F52: 0 | G52: 0 | H52: 0 | I52: 0 | L52: =F52*S52*V52/10 -> 0 | M52: =F52*S52*V52/10000*AG52 -> 0 | R52: =IF(F52>0,IF(G52/F52/1000<AX52,INDEX(menuesBG!$1:$1048576,Warnung,sprache),""),"") ->  | S52: =T100 -> 62.5 | V52: =W100 -> 100 | Y52: =(Z52+AA52)/2 -> 6.5 | Z52: =AA100 -> 0 | AA52: =AB100 -> 13 | AB52: =AC100 -> 0 | AC52: =AD52*Y52 -> 552.5 | AD52: =AE100 -> 85 | AE52: =AF100 -> 85 | AF52: =AG100 -> 1160 | AG52: =(AH52+AI52)/2 -> 745.5 | AH52: =AI100 -> 1440 | AI52: =AJ100 -> 51 | AJ52: =AK100 -> 591.6 | AK52: =AJ52*$AG52/100 -> 4410.378 | AL52: =L52*50%*28.62%*12.5% -> 0 | AM52: 0 | AN52: 0 | AO52: 0 | AQ52: =F52*1000*S52/100*Y52/100*AB52/100*NH3emittiert*AnteilNH3Lagerung*(1+NH3plus)*((1+Faktor_NH3_Behandlung)*Anteil_V_fest+(1+FaktorNH3GülleBehandlung)*Anteil_V_flüssig) ->  | AS52: =F52*(N2O_Gülle*Anteil_V_flüssig*(1+Faktor_N2O_GülleBehandlung)+N2O_Kompost*Anteil_V_fest*(1+Faktor_N2O_Behandlung)) ->  | AT52: =FaktorenBG!F$43*(1+FaktorenBG!F$56)*IF(Auswahl_Behandlung_fest<5,$F52,0) ->  | AU52: =FaktorenBG!G$43*(1+FaktorenBG!G$56)*IF(Auswahl_Behandlung_fest<5,$F52,0) ->  | AV52: =FaktorenBG!H$43*(1+FaktorenBG!H$56)*IF(Auswahl_Behandlung_fest<5,$F52,0) ->  | AW52: =IF(F52>0,G52/F52/1000,0) -> 0 | AX52: =INDEX(InputsBG!$1:$1048576,AX$2,MATCH(Substrates!$AY52,InputsBG!$38:$38,0)) ->  | AY52: Soybean lecithin, at oil mill/GLO U | AZ52: =IF($G52<0,$G52*INDEX(InputsBG!$1:$1048576,AZ$2,MATCH(Substrates!$AY52,InputsBG!$38:$38,0))/$AX52,0) -> 0 | BA52: =IF($G52<0,$G52*INDEX(InputsBG!$1:$1048576,BA$2,MATCH(Substrates!$AY52,InputsBG!$38:$38,0))/$AX52,0) -> 0 | BB52: =IF($G52<0,$G52*INDEX(InputsBG!$1:$1048576,BB$2,MATCH(Substrates!$AY52,InputsBG!$38:$38,0))/$AX52,0) -> 0 | BC52: =IF($G52<0,$G52*INDEX(InputsBG!$1:$1048576,BC$2,MATCH(Substrates!$AY52,InputsBG!$38:$38,0))/$AX52,0) -> 0 | BD52: 0 | BE52: =M52/Gasertrag_berechnet ->  | BF52: =AZ52/Belastung_Substrat ->  | BT52: Soybean lecithin, at oil mill
A53: Magen-Darminhalt (Schwein) | B53: Contenu d'intestins de porc | C53: Gastrointestinal contents (pig) | E53: Gastrointestinal contents (pig) | F53: 0 | G53: 0 | H53: 0 | I53: 0 | L53: =F53*S53*V53/10 -> 0 | M53: =F53*S53*V53/10000*AG53 -> 0 | R53: =IF(F53>0,IF(G53/F53/1000<AX53,INDEX(menuesBG!$1:$1048576,Warnung,sprache),""),"") ->  | S53: 13.5 | T53: 12 | U53: 15 | V53: 81 | W53: 76 | X53: 86 | Y53: 3.8 | Z53: 2.6 | AA53: 5 | AB53: 13 | AC53: 2.66 | AD53: 0.7 | AG53: 475 | AH53: 400 | AI53: 550 | AJ53: 55 | AK53: 261.25 | AL53: 0 | AM53: 0 | AN53: 0 | AO53: 0 | AT53: =FaktorenBG!F$43*(1+FaktorenBG!F$56)*IF(Auswahl_Behandlung_fest<5,$F53,0) ->  | AU53: =FaktorenBG!G$43*(1+FaktorenBG!G$56)*IF(Auswahl_Behandlung_fest<5,$F53,0) ->  | AV53: =FaktorenBG!H$43*(1+FaktorenBG!H$56)*IF(Auswahl_Behandlung_fest<5,$F53,0) ->  | AW53: 0 | AX53: =INDEX(InputsBG!$1:$1048576,AX$2,MATCH(Substrates!$AY53,InputsBG!$38:$38,0)) ->  | AY53: Durchschnitt | AZ53: =IF($G53<0,$G53*INDEX(InputsBG!$1:$1048576,AZ$2,MATCH(Substrates!$AY53,InputsBG!$38:$38,0))/$AX53,0) -> 0 | BA53: =IF($G53<0,$G53*INDEX(InputsBG!$1:$1048576,BA$2,MATCH(Substrates!$AY53,InputsBG!$38:$38,0))/$AX53,0) -> 0 | BB53: =IF($G53<0,$G53*INDEX(InputsBG!$1:$1048576,BB$2,MATCH(Substrates!$AY53,InputsBG!$38:$38,0))/$AX53,0) -> 0 | BC53: =IF($G53<0,$G53*INDEX(InputsBG!$1:$1048576,BC$2,MATCH(Substrates!$AY53,InputsBG!$38:$38,0))/$AX53,0) -> 0 | BD53: 0
A54: Mähgut Strassenböschungen, -ränder | B54: Récolte de fauche en bord de route (remblais) | C54: Mowed material Road embankments and edges | E54: Mowed material Road embankments and edges | F54: 0 | G54: 0 | H54: 0 | I54: 0 | L54: 0 | M54: 0 | R54: =IF(F54>0,IF(G54/F54/1000<AX54,INDEX(menuesBG!$1:$1048576,Warnung,sprache),""),"") ->  | S54: 29.5 | T54: 22 | U54: 37 | V54: 94.5 | W54: 93 | X54: 96 | Y54: 2.5 | Z54: 2 | AA54: 3 | AB54: =AVERAGE(3.5,6.9)/AVERAGE(6.9,19.8)*100 -> 38.95131086 | AC54: 1.5 | AD54: 0.6 | AG54: 500 | AH54: 450 | AI54: 550 | AJ54: 57 | AK54: 285 | AL54: 0 | AM54: 0 | AN54: 0 | AO54: 0 | AT54: =FaktorenBG!F$43*(1+FaktorenBG!F$56)*IF(Auswahl_Behandlung_fest<5,$F54,0) ->  | AU54: =FaktorenBG!G$43*(1+FaktorenBG!G$56)*IF(Auswahl_Behandlung_fest<5,$F54,0) ->  | AV54: =FaktorenBG!H$43*(1+FaktorenBG!H$56)*IF(Auswahl_Behandlung_fest<5,$F54,0) ->  | AW54: 0 | AX54: =INDEX(InputsBG!$1:$1048576,AX$2,MATCH(Substrates!$AY54,InputsBG!$38:$38,0)) ->  | AY54: Durchschnitt | AZ54: =IF($G54<0,$G54*INDEX(InputsBG!$1:$1048576,AZ$2,MATCH(Substrates!$AY54,InputsBG!$38:$38,0))/$AX54,0) -> 0 | BA54: =IF($G54<0,$G54*INDEX(InputsBG!$1:$1048576,BA$2,MATCH(Substrates!$AY54,InputsBG!$38:$38,0))/$AX54,0) -> 0 | BB54: =IF($G54<0,$G54*INDEX(InputsBG!$1:$1048576,BB$2,MATCH(Substrates!$AY54,InputsBG!$38:$38,0))/$AX54,0) -> 0 | BC54: =IF($G54<0,$G54*INDEX(InputsBG!$1:$1048576,BC$2,MATCH(Substrates!$AY54,InputsBG!$38:$38,0))/$AX54,0) -> 0 | BD54: 0
A55: Mähgut, (allg., Golfplätze, Naturschutzgebiete, Ried, etc.) | B55: Récolte de fauche (gnrl: terrains de golf, réserves naturelles, marais etc.) | C55: Mowing material, (general, golf courses, nature reserves, reed, etc.) | E55: Mowing material, (general, golf courses, nature reserves, reed, etc.) | F55: 0 | G55: 0 | H55: 0 | I55: 0 | L55: 0 | M55: 0 | R55: =IF(F55>0,IF(G55/F55/1000<AX55,INDEX(menuesBG!$1:$1048576,Warnung,sprache),""),"") ->  | S55: 29.5 | T55: 22 | U55: 37 | V55: 94.5 | W55: 93 | X55: 96 | Y55: 2.5 | Z55: 2 | AA55: 3 | AB55: =AVERAGE(3.5,6.9)/AVERAGE(6.9,19.8)*100 -> 38.95131086 | AC55: 1.5 | AD55: 0.6 | AG55: 500 | AH55: 450 | AI55: 550 | AJ55: 57 | AK55: 285 | AL55: 0 | AM55: 0 | AN55: 0 | AO55: 0 | AT55: =FaktorenBG!F$43*(1+FaktorenBG!F$56)*IF(Auswahl_Behandlung_fest<5,$F55,0) ->  | AU55: =FaktorenBG!G$43*(1+FaktorenBG!G$56)*IF(Auswahl_Behandlung_fest<5,$F55,0) ->  | AV55: =FaktorenBG!H$43*(1+FaktorenBG!H$56)*IF(Auswahl_Behandlung_fest<5,$F55,0) ->  | AW55: 0 | AX55: =INDEX(InputsBG!$1:$1048576,AX$2,MATCH(Substrates!$AY55,InputsBG!$38:$38,0)) ->  | AY55: Durchschnitt | AZ55: =IF($G55<0,$G55*INDEX(InputsBG!$1:$1048576,AZ$2,MATCH(Substrates!$AY55,InputsBG!$38:$38,0))/$AX55,0) -> 0 | BA55: =IF($G55<0,$G55*INDEX(InputsBG!$1:$1048576,BA$2,MATCH(Substrates!$AY55,InputsBG!$38:$38,0))/$AX55,0) -> 0 | BB55: =IF($G55<0,$G55*INDEX(InputsBG!$1:$1048576,BB$2,MATCH(Substrates!$AY55,InputsBG!$38:$38,0))/$AX55,0) -> 0 | BC55: =IF($G55<0,$G55*INDEX(InputsBG!$1:$1048576,BC$2,MATCH(Substrates!$AY55,InputsBG!$38:$38,0))/$AX55,0) -> 0 | BD55: 0
A56: Maissilage | B56: Ensilage de maïs | C56: Maize silage | E56: Maize silage | F56: 0 | G56: 0 | H56: 0 | I56: 0 | L56: 0 | M56: 0 | R56: =IF(F56>0,IF(G56/F56/1000<AX56,INDEX(menuesBG!$1:$1048576,Warnung,sprache),""),"") ->  | S56: 30 | T56: 25 | U56: 35 | V56: 91 | W56: 86 | X56: 96 | Y56: 1.55 | Z56: 1.1 | AA56: 2 | AB56: =AVERAGE(0.15,0.3)/AVERAGE(1.1,2)*100 -> 14.51612903 | AC56: 1.0075 | AD56: 0.65 | AG56: 610 | AH56: 520 | AI56: 700 | AJ56: 52 | AK56: 317.2 | AL56: 0 | AM56: 0 | AN56: 0 | AO56: 0 | AQ56: =F56*1000*S56/100*Y56/100*AB56/100*NH3emittiert*AnteilNH3Lagerung*(1+NH3plus)*((1+Faktor_NH3_Behandlung)*Anteil_V_fest+(1+FaktorNH3GülleBehandlung)*Anteil_V_flüssig) ->  | AS56: =F56*(N2O_Gülle*Anteil_V_flüssig*(1+Faktor_N2O_GülleBehandlung)+N2O_Kompost*Anteil_V_fest*(1+Faktor_N2O_Behandlung)) ->  | AT56: =FaktorenBG!F$43*(1+FaktorenBG!F$56)*IF(Auswahl_Behandlung_fest<5,$F56,0) ->  | AU56: =FaktorenBG!G$43*(1+FaktorenBG!G$56)*IF(Auswahl_Behandlung_fest<5,$F56,0) ->  | AV56: =FaktorenBG!H$43*(1+FaktorenBG!H$56)*IF(Auswahl_Behandlung_fest<5,$F56,0) ->  | AW56: 0 | AX56: =INDEX(InputsBG!$1:$1048576,AX$2,MATCH(Substrates!$AY56,InputsBG!$38:$38,0)) ->  | AY56: Silage maize IP, at farm/kg/CH U | AZ56: =IF($G56<0,$G56*INDEX(InputsBG!$1:$1048576,AZ$2,MATCH(Substrates!$AY56,InputsBG!$38:$38,0))/$AX56,0) -> 0 | BA56: =IF($G56<0,$G56*INDEX(InputsBG!$1:$1048576,BA$2,MATCH(Substrates!$AY56,InputsBG!$38:$38,0))/$AX56,0) -> 0 | BB56: =IF($G56<0,$G56*INDEX(InputsBG!$1:$1048576,BB$2,MATCH(Substrates!$AY56,InputsBG!$38:$38,0))/$AX56,0) -> 0 | BC56: =IF($G56<0,$G56*INDEX(InputsBG!$1:$1048576,BC$2,MATCH(Substrates!$AY56,InputsBG!$38:$38,0))/$AX56,0) -> 0 | BD56: 0 | BT56: Silage maize IP, at farm
A57: Maisstroh | B57: Paille de maïs | C57: Maize straw | E57: Maize straw | F57: 0 | G57: 0 | H57: 0 | I57: 0 | L57: 0 | M57: 0 | R57: =IF(F57>0,IF(G57/F57/1000<AX57,INDEX(menuesBG!$1:$1048576,Warnung,sprache),""),"") ->  | S57: 86 | T57: 86 | U57: 86 | V57: 72.5 | W57: 70 | X57: 75 | Y57: 1.2 | Z57: 1.2 | AA57: 1.2 | AB57: 14.5 | AC57: 0.66 | AD57: 0.55 | AG57: 475 | AH57: 450 | AI57: 500 | AJ57: 57 | AK57: 270.75 | AL57: 0 | AM57: 0 | AN57: 0 | AO57: 0 | AP57: =$M57*CH4_Gehalt*CH4_nichtabgedeckt*(1+Faktor_CH4_flüssig)*GärrestFlüssigMenge/(GärrestFestMenge+GärrestFlüssigMenge) ->  | AR57: =IF(AR$137,F57*1000*S57/100*Y57/100*AB57/100*NH3emittiert*AR$2*(1+NH3plusAusbringung)*((1+Faktor_NH3fest_aus)*Anteil_V_fest+(1+Faktor_NH3_Ausbringung)*Anteil_V_flüssig),0) ->  | AT57: =FaktorenBG!F$43*(1+FaktorenBG!F$56)*IF(Auswahl_Behandlung_fest<5,$F57,0) ->  | AU57: =FaktorenBG!G$43*(1+FaktorenBG!G$56)*IF(Auswahl_Behandlung_fest<5,$F57,0) ->  | AV57: =FaktorenBG!H$43*(1+FaktorenBG!H$56)*IF(Auswahl_Behandlung_fest<5,$F57,0) ->  | AW57: 0 | AX57: =INDEX(InputsBG!$1:$1048576,AX$2,MATCH(Substrates!$AY57,InputsBG!$38:$38,0)) ->  | AY57: Silage maize IP, at farm/kg/CH U | AZ57: =IF($G57<0,$G57*INDEX(InputsBG!$1:$1048576,AZ$2,MATCH(Substrates!$AY57,InputsBG!$38:$38,0))/$AX57,0) -> 0 | BA57: =IF($G57<0,$G57*INDEX(InputsBG!$1:$1048576,BA$2,MATCH(Substrates!$AY57,InputsBG!$38:$38,0))/$AX57,0) -> 0 | BB57: =IF($G57<0,$G57*INDEX(InputsBG!$1:$1048576,BB$2,MATCH(Substrates!$AY57,InputsBG!$38:$38,0))/$AX57,0) -> 0 | BC57: =IF($G57<0,$G57*INDEX(InputsBG!$1:$1048576,BC$2,MATCH(Substrates!$AY57,InputsBG!$38:$38,0))/$AX57,0) -> 0 | BD57: 0 | BT57: Silage maize IP, at farm
A58: Masser- und Gehaltsrübe | B58: Betteraves | C58: Mass- and content beet | E58: Mass- and content beet | F58: 0 | G58: 0 | H58: 0 | I58: 0 | L58: 0 | M58: 0 | R58: =IF(F58>0,IF(G58/F58/1000<AX58,INDEX(menuesBG!$1:$1048576,Warnung,sprache),""),"") ->  | S58: 12 | T58: 12 | U58: 12 | V58: 80 | W58: 75 | X58: 85 | Y58: 1.9 | Z58: 1.9 | AA58: 1.9 | AB58: =AVERAGE(0.3,0.4)/AVERAGE(1.9)*100 -> 18.42105263 | AC58: 1.235 | AD58: 0.65 | AG58: 735 | AH58: 620 | AI58: 850 | AJ58: 51 | AK58: 374.85 | AL58: 0 | AM58: 0 | AN58: 0 | AO58: 0 | AT58: =FaktorenBG!F$43*(1+FaktorenBG!F$56)*IF(Auswahl_Behandlung_fest<5,$F58,0) ->  | AU58: =FaktorenBG!G$43*(1+FaktorenBG!G$56)*IF(Auswahl_Behandlung_fest<5,$F58,0) ->  | AV58: =FaktorenBG!H$43*(1+FaktorenBG!H$56)*IF(Auswahl_Behandlung_fest<5,$F58,0) ->  | AW58: 0 | AX58: =INDEX(InputsBG!$1:$1048576,AX$2,MATCH(Substrates!$AY58,InputsBG!$38:$38,0)) ->  | AY58: sugar beets IP, at farm/kg/CH U | AZ58: =IF($G58<0,$G58*INDEX(InputsBG!$1:$1048576,AZ$2,MATCH(Substrates!$AY58,InputsBG!$38:$38,0))/$AX58,0) -> 0 | BA58: =IF($G58<0,$G58*INDEX(InputsBG!$1:$1048576,BA$2,MATCH(Substrates!$AY58,InputsBG!$38:$38,0))/$AX58,0) -> 0 | BB58: =IF($G58<0,$G58*INDEX(InputsBG!$1:$1048576,BB$2,MATCH(Substrates!$AY58,InputsBG!$38:$38,0))/$AX58,0) -> 0 | BC58: =IF($G58<0,$G58*INDEX(InputsBG!$1:$1048576,BC$2,MATCH(Substrates!$AY58,InputsBG!$38:$38,0))/$AX58,0) -> 0 | BD58: 0 | BT58: sugar beets IP, at farm
A59: Material aus Wasch-, Reinigungs-, Schäl-, Zentrifugier- und Abtrennprozessen (pflanzlich) | B59: Résidus végétaux après lavage, nettoyage, épluchage, séparation et centrifugation | C59: Material from washing, cleaning, peeling, centrifuging and separation processes (vegetable) | E59: Material from washing, cleaning, peeling, centrifuging and separation processes (vegetable) | F59: 0 | G59: 0 | H59: 0 | I59: 0 | L59: 0 | M59: 0 | R59: =IF(F59>0,IF(G59/F59/1000<AX59,INDEX(menuesBG!$1:$1048576,Warnung,sprache),""),"") ->  | S59: 30.7 | T59: =T$138 -> 30.7 | U59: =U$138 -> 30.7 | V59: =(W59+X59)/2 -> 73.9 | W59: =W$138 -> 73.9 | X59: =X$138 -> 73.9 | Y59: 2.993055556 | Z59: =Z$138 -> 2.327777778 | AA59: =AA$138 -> 3.658333333 | AB59: =AVERAGE(0.6,0.8)/AVERAGE(7,8)*100 -> 9.333333333 | AC59: =AD59*Y59 -> 1.845717593 | AD59: =AD$138 -> 0.6166666667 | AE59: =AE$138 -> 45.65 | AF59: =AF$138 -> 50.55 | AG59: =(AH59+AI59)/2 -> 492 | AH59: =AH$138 -> 376 | AI59: =AI$138 -> 608 | AJ59: 57 | AK59: 280.44 | AL59: 0 | AM59: 0 | AN59: 0 | AO59: 0 | AT59: =FaktorenBG!F$43*(1+FaktorenBG!F$56)*IF(Auswahl_Behandlung_fest<5,$F59,0) ->  | AU59: =FaktorenBG!G$43*(1+FaktorenBG!G$56)*IF(Auswahl_Behandlung_fest<5,$F59,0) ->  | AV59: =FaktorenBG!H$43*(1+FaktorenBG!H$56)*IF(Auswahl_Behandlung_fest<5,$F59,0) ->  | AW59: 0 | AX59: =INDEX(InputsBG!$1:$1048576,AX$2,MATCH(Substrates!$AY59,InputsBG!$38:$38,0)) ->  | AY59: vegetables mean, IP, at farm/kg/CH S | AZ59: =IF($G59<0,$G59*INDEX(InputsBG!$1:$1048576,AZ$2,MATCH(Substrates!$AY59,InputsBG!$38:$38,0))/$AX59,0) -> 0 | BA59: =IF($G59<0,$G59*INDEX(InputsBG!$1:$1048576,BA$2,MATCH(Substrates!$AY59,InputsBG!$38:$38,0))/$AX59,0) -> 0 | BB59: =IF($G59<0,$G59*INDEX(InputsBG!$1:$1048576,BB$2,MATCH(Substrates!$AY59,InputsBG!$38:$38,0))/$AX59,0) -> 0 | BC59: =IF($G59<0,$G59*INDEX(InputsBG!$1:$1048576,BC$2,MATCH(Substrates!$AY59,InputsBG!$38:$38,0))/$AX59,0) -> 0 | BD59: 0 | BT59: vegetables mean, IP, at farm
A60: Melasse | B60: Mélasse | C60: Molasses | E60: Molasses | F60: 0 | G60: 0 | H60: 0 | I60: 0 | L60: 0 | M60: 0 | R60: =IF(F60>0,IF(G60/F60/1000<AX60,INDEX(menuesBG!$1:$1048576,Warnung,sprache),""),"") ->  | S60: 85 | T60: 80 | U60: 90 | V60: 90 | W60: 85 | X60: 95 | Y60: 1.5 | Z60: 1.5 | AA60: 1.5 | AB60: 13 | AC60: 0.9 | AD60: 0.6 | AG60: 549.0196078 | AH60: =1/S60/V60*10000*350 -> 457.5163399 | AI60: =1/S60/V60*10000*490 -> 640.5228758 | AJ60: 55 | AK60: 301.9607843 | AL60: 0 | AM60: 0 | AN60: 0 | AO60: 0 | AT60: =FaktorenBG!F$43*(1+FaktorenBG!F$56)*IF(Auswahl_Behandlung_fest<5,$F60,0) ->  | AU60: =FaktorenBG!G$43*(1+FaktorenBG!G$56)*IF(Auswahl_Behandlung_fest<5,$F60,0) ->  | AV60: =FaktorenBG!H$43*(1+FaktorenBG!H$56)*IF(Auswahl_Behandlung_fest<5,$F60,0) ->  | AW60: 0 | AX60: =INDEX(InputsBG!$1:$1048576,AX$2,MATCH(Substrates!$AY60,InputsBG!$38:$38,0)) ->  | AY60: Molasses, from sugar beet, at sugar refinery/CH U | AZ60: =IF($G60<0,$G60*INDEX(InputsBG!$1:$1048576,AZ$2,MATCH(Substrates!$AY60,InputsBG!$38:$38,0))/$AX60,0) -> 0 | BA60: =IF($G60<0,$G60*INDEX(InputsBG!$1:$1048576,BA$2,MATCH(Substrates!$AY60,InputsBG!$38:$38,0))/$AX60,0) -> 0 | BB60: =IF($G60<0,$G60*INDEX(InputsBG!$1:$1048576,BB$2,MATCH(Substrates!$AY60,InputsBG!$38:$38,0))/$AX60,0) -> 0 | BC60: =IF($G60<0,$G60*INDEX(InputsBG!$1:$1048576,BC$2,MATCH(Substrates!$AY60,InputsBG!$38:$38,0))/$AX60,0) -> 0 | BD60: 0 | BT60: Molasses, from sugar beet, at sugar refinery
A61: Melassen Schlempe | B61: Mélasse écrasée | C61: Molasses pulp | E61: Molasses pulp | F61: 0 | G61: 0 | H61: 0 | I61: 0 | L61: 0 | M61: 0 | R61: =IF(F61>0,IF(G61/F61/1000<AX61,INDEX(menuesBG!$1:$1048576,Warnung,sprache),""),"") ->  | S61: 10.5 | T61: 10 | U61: 11 | V61: 72.5 | W61: 70 | X61: 75 | Y61: 1.5 | Z61: 1.5 | AA61: 1.5 | AB61: 13 | AC61: 0.9 | AD61: 0.6 | AG61: 475 | AH61: 400 | AI61: 550 | AJ61: 55 | AK61: 261.25 | AL61: 0 | AM61: 0 | AN61: 0 | AO61: 0 | AT61: =FaktorenBG!F$43*(1+FaktorenBG!F$56)*IF(Auswahl_Behandlung_fest<5,$F61,0) ->  | AU61: =FaktorenBG!G$43*(1+FaktorenBG!G$56)*IF(Auswahl_Behandlung_fest<5,$F61,0) ->  | AV61: =FaktorenBG!H$43*(1+FaktorenBG!H$56)*IF(Auswahl_Behandlung_fest<5,$F61,0) ->  | AW61: 0 | AX61: =INDEX(InputsBG!$1:$1048576,AX$2,MATCH(Substrates!$AY61,InputsBG!$38:$38,0)) ->  | AY61: Molasses, from sugar beet, at sugar refinery/CH U | AZ61: =IF($G61<0,$G61*INDEX(InputsBG!$1:$1048576,AZ$2,MATCH(Substrates!$AY61,InputsBG!$38:$38,0))/$AX61,0) -> 0 | BA61: =IF($G61<0,$G61*INDEX(InputsBG!$1:$1048576,BA$2,MATCH(Substrates!$AY61,InputsBG!$38:$38,0))/$AX61,0) -> 0 | BB61: =IF($G61<0,$G61*INDEX(InputsBG!$1:$1048576,BB$2,MATCH(Substrates!$AY61,InputsBG!$38:$38,0))/$AX61,0) -> 0 | BC61: =IF($G61<0,$G61*INDEX(InputsBG!$1:$1048576,BC$2,MATCH(Substrates!$AY61,InputsBG!$38:$38,0))/$AX61,0) -> 0 | BD61: 0 | BT61: Molasses, from sugar beet, at sugar refinery
A62: Milch- und Fermentationsserum, Penicilinmilch, Magermilch, Sauermolke, Milchpermeat (allg. Rückstände aus Milchverarbeitung) | B62: Sérum de lait et de fermentation lactique, lait contenant de la pénicilline, lait écrémé, petit lait aigre, perméat de lait (résidus de la transformation du lait) | C62: Milk and fermentation serum, penicillin milk, skimmed milk, sour whey, milk permeate (general residues from milk processing) | E62: Milk and fermentation serum, penicillin milk, skimmed milk, sour whey, milk permeate (general residues from milk processing) | F62: 0 | G62: 0 | H62: 0 | I62: 0 | L62: 0 | M62: 0 | R62: =IF(F62>0,IF(G62/F62/1000<AX62,INDEX(menuesBG!$1:$1048576,Warnung,sprache),""),"") ->  | S62: 7 | V62: 90.5 | Y62: 2.993055556 | Z62: =Z$138 -> 2.327777778 | AA62: =AA$138 -> 3.658333333 | AB62: 13 | AC62: =AD62*Y62 -> 1.845717593 | AD62: =AD$138 -> 0.6166666667 | AE62: 45.65 | AF62: 50.55 | AG62: 760 | AJ62: 58 | AK62: 440.8 | AL62: 0 | AM62: 0 | AN62: 0 | AO62: 0 | AT62: =FaktorenBG!F$43*(1+FaktorenBG!F$56)*IF(Auswahl_Behandlung_fest<5,$F62,0) ->  | AU62: =FaktorenBG!G$43*(1+FaktorenBG!G$56)*IF(Auswahl_Behandlung_fest<5,$F62,0) ->  | AV62: =FaktorenBG!H$43*(1+FaktorenBG!H$56)*IF(Auswahl_Behandlung_fest<5,$F62,0) ->  | AW62: 0 | AX62: =INDEX(InputsBG!$1:$1048576,AX$2,MATCH(Substrates!$AY62,InputsBG!$38:$38,0)) ->  | AY62: raw milk, silo zone, at farm/kg/CH S | AZ62: =IF($G62<0,$G62*INDEX(InputsBG!$1:$1048576,AZ$2,MATCH(Substrates!$AY62,InputsBG!$38:$38,0))/$AX62,0) -> 0 | BA62: =IF($G62<0,$G62*INDEX(InputsBG!$1:$1048576,BA$2,MATCH(Substrates!$AY62,InputsBG!$38:$38,0))/$AX62,0) -> 0 | BB62: =IF($G62<0,$G62*INDEX(InputsBG!$1:$1048576,BB$2,MATCH(Substrates!$AY62,InputsBG!$38:$38,0))/$AX62,0) -> 0 | BC62: =IF($G62<0,$G62*INDEX(InputsBG!$1:$1048576,BC$2,MATCH(Substrates!$AY62,InputsBG!$38:$38,0))/$AX62,0) -> 0 | BD62: 0 | BT62: raw milk, silo zone, at farm
A63: Mist aus Tierhaltungen (Schlachthöfe, Zirkus, Zoo, Reitställe ausserhalb LZ) | B63: Fumier provenant des animaux d'élevage (cirque, zoo, centre équestre) | C63: Manure from animal farms (slaughterhouses, circus, zoo, riding stables outside LZ) | E63: Manure from animal farms (slaughterhouses, circus, zoo, riding stables outside LZ) | F63: 0 | G63: 0 | H63: 0 | I63: 0 | L63: 0 | M63: 0 | R63: =IF(F63>0,IF(G63/F63/1000<AX63,INDEX(menuesBG!$1:$1048576,Warnung,sprache),""),"") ->  | S63: 30.7 | T63: =T$138 -> 30.7 | U63: =U$138 -> 30.7 | V63: =(W63+X63)/2 -> 73.9 | W63: =W$138 -> 73.9 | X63: =X$138 -> 73.9 | Y63: 2.993055556 | Z63: =Z$138 -> 2.327777778 | AA63: =AA$138 -> 3.658333333 | AB63: 13 | AC63: =AD63*Y63 -> 1.845717593 | AD63: 0.6166666667 | AE63: 45.65 | AF63: 50.55 | AG63: =(AH63+AI63)/2 -> 492 | AH63: =AH$138 -> 376 | AI63: =AI$138 -> 608 | AJ63: 55 | AK63: 270.6 | AL63: 0 | AM63: 0 | AN63: 0 | AO63: 0 | AT63: =FaktorenBG!F$43*(1+FaktorenBG!F$56)*IF(Auswahl_Behandlung_fest<5,$F63,0) ->  | AU63: =FaktorenBG!G$43*(1+FaktorenBG!G$56)*IF(Auswahl_Behandlung_fest<5,$F63,0) ->  | AV63: =FaktorenBG!H$43*(1+FaktorenBG!H$56)*IF(Auswahl_Behandlung_fest<5,$F63,0) ->  | AW63: 0 | AX63: =INDEX(InputsBG!$1:$1048576,AX$2,MATCH(Substrates!$AY63,InputsBG!$38:$38,0)) ->  | AY63: Durchschnitt | AZ63: =IF($G63<0,$G63*INDEX(InputsBG!$1:$1048576,AZ$2,MATCH(Substrates!$AY63,InputsBG!$38:$38,0))/$AX63,0) -> 0 | BA63: =IF($G63<0,$G63*INDEX(InputsBG!$1:$1048576,BA$2,MATCH(Substrates!$AY63,InputsBG!$38:$38,0))/$AX63,0) -> 0 | BB63: =IF($G63<0,$G63*INDEX(InputsBG!$1:$1048576,BB$2,MATCH(Substrates!$AY63,InputsBG!$38:$38,0))/$AX63,0) -> 0 | BC63: =IF($G63<0,$G63*INDEX(InputsBG!$1:$1048576,BC$2,MATCH(Substrates!$AY63,InputsBG!$38:$38,0))/$AX63,0) -> 0 | BD63: 0
A64: Molke | B64: Petit-lait | C64: Whey | E64: Whey | F64: 0 | G64: 0 | H64: 0 | I64: 0 | L64: 0 | M64: 0 | R64: =IF(F64>0,IF(G64/F64/1000<AX64,INDEX(menuesBG!$1:$1048576,Warnung,sprache),""),"") ->  | S64: 5.4 | T64: 4.3 | U64: 6.5 | V64: 86 | W64: 80 | X64: 92 | Y64: 1.1 | Z64: 0.7 | AA64: 1.5 | AB64: 13 | AC64: 0.715 | AD64: 0.65 | AG64: 775 | AH64: 650 | AI64: 900 | AJ64: 53 | AK64: 410.75 | AL64: 0 | AM64: 0 | AN64: 0 | AO64: 0 | AT64: =FaktorenBG!F$43*(1+FaktorenBG!F$56)*IF(Auswahl_Behandlung_fest<5,$F64,0) ->  | AU64: =FaktorenBG!G$43*(1+FaktorenBG!G$56)*IF(Auswahl_Behandlung_fest<5,$F64,0) ->  | AV64: =FaktorenBG!H$43*(1+FaktorenBG!H$56)*IF(Auswahl_Behandlung_fest<5,$F64,0) ->  | AW64: 0 | AX64: =INDEX(InputsBG!$1:$1048576,AX$2,MATCH(Substrates!$AY64,InputsBG!$38:$38,0)) ->  | AY64: whey, at cheese dairy/kg/CH S | AZ64: =IF($G64<0,$G64*INDEX(InputsBG!$1:$1048576,AZ$2,MATCH(Substrates!$AY64,InputsBG!$38:$38,0))/$AX64,0) -> 0 | BA64: =IF($G64<0,$G64*INDEX(InputsBG!$1:$1048576,BA$2,MATCH(Substrates!$AY64,InputsBG!$38:$38,0))/$AX64,0) -> 0 | BB64: =IF($G64<0,$G64*INDEX(InputsBG!$1:$1048576,BB$2,MATCH(Substrates!$AY64,InputsBG!$38:$38,0))/$AX64,0) -> 0 | BC64: =IF($G64<0,$G64*INDEX(InputsBG!$1:$1048576,BC$2,MATCH(Substrates!$AY64,InputsBG!$38:$38,0))/$AX64,0) -> 0 | BD64: 0 | BT64: whey, at cheese dairy
A65: Müllereiabfälle, Getreideabgang, Ölsaatrückstand | B65: déchets de minoteries, résidus de graines oléagineuses | C65: Milling waste, grain disposal, oilseed residue | E65: Milling waste, grain disposal, oilseed residue | F65: 0 | G65: 0 | H65: 0 | I65: 0 | L65: 0 | M65: 0 | R65: =IF(F65>0,IF(G65/F65/1000<AX65,INDEX(menuesBG!$1:$1048576,Warnung,sprache),""),"") ->  | S65: 87.5 | T65: 85 | U65: 90 | V65: =(W65+X65)/2 -> 87 | W65: 85 | X65: 89 | Y65: 0.5 | Z65: 0.5 | AA65: 0.5 | AB65: 13 | AC65: =AD65*Y65 -> 0.25 | AD65: 0.5 | AG65: =(AH65+AI65)/2 -> 300 | AH65: 250 | AI65: 350 | AJ65: 57 | AK65: 171 | AL65: 0 | AM65: 0 | AN65: 0 | AO65: 0 | AT65: =FaktorenBG!F$43*(1+FaktorenBG!F$56)*IF(Auswahl_Behandlung_fest<5,$F65,0) ->  | AU65: =FaktorenBG!G$43*(1+FaktorenBG!G$56)*IF(Auswahl_Behandlung_fest<5,$F65,0) ->  | AV65: =FaktorenBG!H$43*(1+FaktorenBG!H$56)*IF(Auswahl_Behandlung_fest<5,$F65,0) ->  | AW65: 0 | AX65: =INDEX(InputsBG!$1:$1048576,AX$2,MATCH(Substrates!$AY65,InputsBG!$38:$38,0)) ->  | AY65: by-products, wheat milling, at plant/kg/CH S | AZ65: =IF($G65<0,$G65*INDEX(InputsBG!$1:$1048576,AZ$2,MATCH(Substrates!$AY65,InputsBG!$38:$38,0))/$AX65,0) -> 0 | BA65: =IF($G65<0,$G65*INDEX(InputsBG!$1:$1048576,BA$2,MATCH(Substrates!$AY65,InputsBG!$38:$38,0))/$AX65,0) -> 0 | BB65: =IF($G65<0,$G65*INDEX(InputsBG!$1:$1048576,BB$2,MATCH(Substrates!$AY65,InputsBG!$38:$38,0))/$AX65,0) -> 0 | BC65: =IF($G65<0,$G65*INDEX(InputsBG!$1:$1048576,BC$2,MATCH(Substrates!$AY65,InputsBG!$38:$38,0))/$AX65,0) -> 0 | BD65: 0 | BT65: by-products, wheat milling, at plant
A66: Obst,- Getreide-, Kartoffelschlempen, allg. Rückstande aus Destillerieprozess | B66: Résidus de la distillation (fruits, céréales, pommes de terre) | C66: Fruit, cereal, potato stills, general residues from distillery process | E66: Fruit, cereal, potato stills, general residues from distillery process | F66: 0 | G66: 0 | H66: 0 | I66: 0 | L66: 0 | M66: 0 | R66: =IF(F66>0,IF(G66/F66/1000<AX66,INDEX(menuesBG!$1:$1048576,Warnung,sprache),""),"") ->  | S66: 10.5 | T66: 6 | U66: 15 | V66: 90 | W66: 85 | X66: 95 | Y66: 9 | Z66: 5 | AA66: 13 | AB66: =AVERAGE(0.04)/AVERAGE(0.5,1)*100 -> 5.333333333 | AC66: 5.85 | AD66: 0.65 | AG66: 525 | AH66: 400 | AI66: 650 | AJ66: 51 | AK66: 267.75 | AL66: 0 | AM66: 0 | AN66: 0 | AO66: 0 | AT66: =FaktorenBG!F$43*(1+FaktorenBG!F$56)*IF(Auswahl_Behandlung_fest<5,$F66,0) ->  | AU66: =FaktorenBG!G$43*(1+FaktorenBG!G$56)*IF(Auswahl_Behandlung_fest<5,$F66,0) ->  | AV66: =FaktorenBG!H$43*(1+FaktorenBG!H$56)*IF(Auswahl_Behandlung_fest<5,$F66,0) ->  | AW66: 0 | AX66: =INDEX(InputsBG!$1:$1048576,AX$2,MATCH(Substrates!$AY66,InputsBG!$38:$38,0)) ->  | AY66: Potatoes IP, at farm/CH U | AZ66: =IF($G66<0,$G66*INDEX(InputsBG!$1:$1048576,AZ$2,MATCH(Substrates!$AY66,InputsBG!$38:$38,0))/$AX66,0) -> 0 | BA66: =IF($G66<0,$G66*INDEX(InputsBG!$1:$1048576,BA$2,MATCH(Substrates!$AY66,InputsBG!$38:$38,0))/$AX66,0) -> 0 | BB66: =IF($G66<0,$G66*INDEX(InputsBG!$1:$1048576,BB$2,MATCH(Substrates!$AY66,InputsBG!$38:$38,0))/$AX66,0) -> 0 | BC66: =IF($G66<0,$G66*INDEX(InputsBG!$1:$1048576,BC$2,MATCH(Substrates!$AY66,InputsBG!$38:$38,0))/$AX66,0) -> 0 | BD66: 0 | BT66: Potatoes IP, at farm
A67: Panseninhalt | B67: Contenu de panse | C67: Rumen content | E67: Rumen content | F67: 0 | G67: 0 | H67: 0 | I67: 0 | L67: 0 | M67: 0 | R67: =IF(F67>0,IF(G67/F67/1000<AX67,INDEX(menuesBG!$1:$1048576,Warnung,sprache),""),"") ->  | S67: 15 | T67: 11 | U67: 19 | V67: 85 | W67: 80 | X67: 90 | Y67: 1.75 | Z67: 1.3 | AA67: 2.2 | AB67: =AVERAGE(0.4,0.7)/AVERAGE(1.3,2.2)*100 -> 31.42857143 | AC67: 1.05 | AD67: 0.6 | AG67: 375 | AH67: 300 | AI67: 450 | AJ67: 55 | AK67: 206.25 | AL67: 0 | AM67: 0 | AN67: 0 | AO67: 0 | AT67: =FaktorenBG!F$43*(1+FaktorenBG!F$56)*IF(Auswahl_Behandlung_fest<5,$F67,0) ->  | AU67: =FaktorenBG!G$43*(1+FaktorenBG!G$56)*IF(Auswahl_Behandlung_fest<5,$F67,0) ->  | AV67: =FaktorenBG!H$43*(1+FaktorenBG!H$56)*IF(Auswahl_Behandlung_fest<5,$F67,0) ->  | AW67: 0 | AX67: =INDEX(InputsBG!$1:$1048576,AX$2,MATCH(Substrates!$AY67,InputsBG!$38:$38,0)) ->  | AY67: Durchschnitt | AZ67: =IF($G67<0,$G67*INDEX(InputsBG!$1:$1048576,AZ$2,MATCH(Substrates!$AY67,InputsBG!$38:$38,0))/$AX67,0) -> 0 | BA67: =IF($G67<0,$G67*INDEX(InputsBG!$1:$1048576,BA$2,MATCH(Substrates!$AY67,InputsBG!$38:$38,0))/$AX67,0) -> 0 | BB67: =IF($G67<0,$G67*INDEX(InputsBG!$1:$1048576,BB$2,MATCH(Substrates!$AY67,InputsBG!$38:$38,0))/$AX67,0) -> 0 | BC67: =IF($G67<0,$G67*INDEX(InputsBG!$1:$1048576,BC$2,MATCH(Substrates!$AY67,InputsBG!$38:$38,0))/$AX67,0) -> 0 | BD67: 0
A68: Rapsextraktionsschrot, Rapskuchen | B68: Tourteau de colza, tourteau de pression | C68: Rapeseed extraction meal, rapeseed cake | E68: Rapeseed extraction meal, rapeseed cake | F68: 0 | G68: 0 | H68: 0 | I68: 0 | L68: 0 | M68: 0 | R68: =IF(F68>0,IF(G68/F68/1000<AX68,INDEX(menuesBG!$1:$1048576,Warnung,sprache),""),"") ->  | S68: 88 | T68: 86 | U68: 90 | V68: 92.5 | W68: 90 | X68: 95 | Y68: 5.5 | Z68: 5 | AA68: 6 | AB68: 13 | AC68: 3.85 | AD68: 0.7 | AG68: =(AH68+AI68)/2 -> 740 | AH68: 500 | AI68: 980 | AJ68: 63 | AK68: 466.2 | AL68: 0 | AM68: 0 | AN68: 0 | AO68: 0 | AT68: =FaktorenBG!F$43*(1+FaktorenBG!F$56)*IF(Auswahl_Behandlung_fest<5,$F68,0) ->  | AU68: =FaktorenBG!G$43*(1+FaktorenBG!G$56)*IF(Auswahl_Behandlung_fest<5,$F68,0) ->  | AV68: =FaktorenBG!H$43*(1+FaktorenBG!H$56)*IF(Auswahl_Behandlung_fest<5,$F68,0) ->  | AW68: 0 | AX68: =INDEX(InputsBG!$1:$1048576,AX$2,MATCH(Substrates!$AY68,InputsBG!$38:$38,0)) ->  | AY68: Rape meal, at oil mill/RER U | AZ68: =IF($G68<0,$G68*INDEX(InputsBG!$1:$1048576,AZ$2,MATCH(Substrates!$AY68,InputsBG!$38:$38,0))/$AX68,0) -> 0 | BA68: =IF($G68<0,$G68*INDEX(InputsBG!$1:$1048576,BA$2,MATCH(Substrates!$AY68,InputsBG!$38:$38,0))/$AX68,0) -> 0 | BB68: =IF($G68<0,$G68*INDEX(InputsBG!$1:$1048576,BB$2,MATCH(Substrates!$AY68,InputsBG!$38:$38,0))/$AX68,0) -> 0 | BC68: =IF($G68<0,$G68*INDEX(InputsBG!$1:$1048576,BC$2,MATCH(Substrates!$AY68,InputsBG!$38:$38,0))/$AX68,0) -> 0 | BD68: 0 | BT68: Rape meal, at oil mill
A69: Rasenschnitt, Grasschnitt, frisches Grüngut | B69: Tonte de pelouse, fauche, végétaux verts frais | C69: Lawn cut, grass cut, fresh green waste | E69: Lawn cut, grass cut, fresh green waste | F69: 0 | G69: 0 | H69: 0 | I69: 0 | L69: 0 | M69: 0 | R69: =IF(F69>0,IF(G69/F69/1000<AX69,INDEX(menuesBG!$1:$1048576,Warnung,sprache),""),"") ->  | S69: 11.5 | T69: 11 | U69: 12 | V69: 87.5 | W69: 83 | X69: 92 | Y69: 3.15 | Z69: 2 | AA69: 4.3 | AB69: =AVERAGE(3.5,6.9)/AVERAGE(6.9,19.8)*100 -> 38.95131086 | AC69: 2.0475 | AD69: 0.65 | AG69: 615 | AH69: 550 | AI69: 680 | AJ69: 57 | AK69: 350.55 | AL69: 0 | AM69: 0 | AN69: 0 | AO69: 0 | AT69: =FaktorenBG!F$43*(1+FaktorenBG!F$56)*IF(Auswahl_Behandlung_fest<5,$F69,0) ->  | AU69: =FaktorenBG!G$43*(1+FaktorenBG!G$56)*IF(Auswahl_Behandlung_fest<5,$F69,0) ->  | AV69: =FaktorenBG!H$43*(1+FaktorenBG!H$56)*IF(Auswahl_Behandlung_fest<5,$F69,0) ->  | AW69: 0 | AX69: =INDEX(InputsBG!$1:$1048576,AX$2,MATCH(Substrates!$AY69,InputsBG!$38:$38,0)) ->  | AY69: Hay intensive IP, at farm/CH U | AZ69: =IF($G69<0,$G69*INDEX(InputsBG!$1:$1048576,AZ$2,MATCH(Substrates!$AY69,InputsBG!$38:$38,0))/$AX69,0) -> 0 | BA69: =IF($G69<0,$G69*INDEX(InputsBG!$1:$1048576,BA$2,MATCH(Substrates!$AY69,InputsBG!$38:$38,0))/$AX69,0) -> 0 | BB69: =IF($G69<0,$G69*INDEX(InputsBG!$1:$1048576,BB$2,MATCH(Substrates!$AY69,InputsBG!$38:$38,0))/$AX69,0) -> 0 | BC69: =IF($G69<0,$G69*INDEX(InputsBG!$1:$1048576,BC$2,MATCH(Substrates!$AY69,InputsBG!$38:$38,0))/$AX69,0) -> 0 | BD69: 0 | BT69: Hay intensive IP, at farm
A70: Rechengut, Schwemmgut, Abfischgut | B70: Projections, débris | C70: Screenings, floating debris, waste material | E70: Screenings, floating debris, waste material | F70: 0 | G70: 0 | H70: 0 | I70: 0 | L70: 0 | M70: 0 | R70: =IF(F70>0,IF(G70/F70/1000<AX70,INDEX(menuesBG!$1:$1048576,Warnung,sprache),""),"") ->  | S70: 30.7 | T70: =T$138 -> 30.7 | U70: =U$138 -> 30.7 | V70: =(W70+X70)/2 -> 73.9 | W70: =W$138 -> 73.9 | X70: =X$138 -> 73.9 | Y70: 2.993055556 | Z70: =Z$138 -> 2.327777778 | AA70: =AA$138 -> 3.658333333 | AB70: 13 | AC70: =AD70*Y70 -> 1.845717593 | AD70: =AD$138 -> 0.6166666667 | AE70: =AE$138 -> 45.65 | AF70: =AF$138 -> 50.55 | AG70: =(AH70+AI70)/2 -> 492 | AH70: =AH$138 -> 376 | AI70: =AI$138 -> 608 | AJ70: 57 | AK70: 280.44 | AL70: 0 | AM70: 0 | AN70: 0 | AO70: 0 | AT70: =FaktorenBG!F$43*(1+FaktorenBG!F$56)*IF(Auswahl_Behandlung_fest<5,$F70,0) ->  | AU70: =FaktorenBG!G$43*(1+FaktorenBG!G$56)*IF(Auswahl_Behandlung_fest<5,$F70,0) ->  | AV70: =FaktorenBG!H$43*(1+FaktorenBG!H$56)*IF(Auswahl_Behandlung_fest<5,$F70,0) ->  | AW70: 0 | AX70: =INDEX(InputsBG!$1:$1048576,AX$2,MATCH(Substrates!$AY70,InputsBG!$38:$38,0)) ->  | AY70: Durchschnitt | AZ70: =IF($G70<0,$G70*INDEX(InputsBG!$1:$1048576,AZ$2,MATCH(Substrates!$AY70,InputsBG!$38:$38,0))/$AX70,0) -> 0 | BA70: =IF($G70<0,$G70*INDEX(InputsBG!$1:$1048576,BA$2,MATCH(Substrates!$AY70,InputsBG!$38:$38,0))/$AX70,0) -> 0 | BB70: =IF($G70<0,$G70*INDEX(InputsBG!$1:$1048576,BB$2,MATCH(Substrates!$AY70,InputsBG!$38:$38,0))/$AX70,0) -> 0 | BC70: =IF($G70<0,$G70*INDEX(InputsBG!$1:$1048576,BC$2,MATCH(Substrates!$AY70,InputsBG!$38:$38,0))/$AX70,0) -> 0 | BD70: 0
A71: Roggensilage (Ganzpflanzensilage) | B71: Seigle (ensilage plante entière) | C71: Rye silage (whole plant silage) | E71: Rye silage (whole plant silage) | F71: 0 | G71: 0 | H71: 0 | I71: 0 | L71: 0 | M71: 0 | R71: =IF(F71>0,IF(G71/F71/1000<AX71,INDEX(menuesBG!$1:$1048576,Warnung,sprache),""),"") ->  | S71: 32.5 | T71: 30 | U71: 35 | V71: 95 | W71: 92 | X71: 98 | Y71: 4 | Z71: 4 | AA71: 4 | AB71: =AVERAGE(0.47)/AVERAGE(4)*100 -> 11.75 | AC71: 2.8 | AD71: 0.7 | AG71: 615 | AH71: 550 | AI71: 680 | AJ71: 54 | AK71: 332.1 | AL71: 0 | AM71: 0 | AN71: 0 | AO71: 0 | AT71: =FaktorenBG!F$43*(1+FaktorenBG!F$56)*IF(Auswahl_Behandlung_fest<5,$F71,0) ->  | AU71: =FaktorenBG!G$43*(1+FaktorenBG!G$56)*IF(Auswahl_Behandlung_fest<5,$F71,0) ->  | AV71: =FaktorenBG!H$43*(1+FaktorenBG!H$56)*IF(Auswahl_Behandlung_fest<5,$F71,0) ->  | AW71: 0 | AX71: =INDEX(InputsBG!$1:$1048576,AX$2,MATCH(Substrates!$AY71,InputsBG!$38:$38,0)) ->  | AY71: Rye grains IP, at farm/kg/CH U | AZ71: =IF($G71<0,$G71*INDEX(InputsBG!$1:$1048576,AZ$2,MATCH(Substrates!$AY71,InputsBG!$38:$38,0))/$AX71,0) -> 0 | BA71: =IF($G71<0,$G71*INDEX(InputsBG!$1:$1048576,BA$2,MATCH(Substrates!$AY71,InputsBG!$38:$38,0))/$AX71,0) -> 0 | BB71: =IF($G71<0,$G71*INDEX(InputsBG!$1:$1048576,BB$2,MATCH(Substrates!$AY71,InputsBG!$38:$38,0))/$AX71,0) -> 0 | BC71: =IF($G71<0,$G71*INDEX(InputsBG!$1:$1048576,BC$2,MATCH(Substrates!$AY71,InputsBG!$38:$38,0))/$AX71,0) -> 0 | BD71: 0 | BT71: Rye grains IP, at farm
A72: Rübenblatt | B72: Feuilles de betteraves | C72: Beet leaf | E72: =IF(sprache=1,A72,IF(sprache=2,B72,C72)) -> Beet leaf | F72: 0 | G72: 0 | H72: 0 | I72: 0 | L72: 0 | M72: 0 | R72: =IF(F72>0,IF(G72/F72/1000<AX72,INDEX(menuesBG!$1:$1048576,Warnung,sprache),""),"") ->  | S72: 16.5 | T72: 15 | U72: 18 | V72: 78 | W72: 76 | X72: 80 | Y72: 0.3 | Z72: 0.2 | AA72: 0.4 | AB72: =AVERAGE(0.3,0.4)/AVERAGE(1.9)*100 -> 18.42105263 | AC72: 0.18 | AD72: 0.6 | AG72: 550 | AH72: 400 | AI72: 700 | AJ72: 54 | AK72: 297 | AL72: 0 | AM72: 0 | AN72: 0 | AO72: 0 | AT72: =FaktorenBG!F$43*(1+FaktorenBG!F$56)*IF(Auswahl_Behandlung_fest<5,$F72,0) ->  | AU72: =FaktorenBG!G$43*(1+FaktorenBG!G$56)*IF(Auswahl_Behandlung_fest<5,$F72,0) ->  | AV72: =FaktorenBG!H$43*(1+FaktorenBG!H$56)*IF(Auswahl_Behandlung_fest<5,$F72,0) ->  | AW72: 0 | AX72: =INDEX(InputsBG!$1:$1048576,AX$2,MATCH(Substrates!$AY72,InputsBG!$38:$38,0)) ->  | AY72: sugar beets IP, at farm/kg/CH U | AZ72: =IF($G72<0,$G72*INDEX(InputsBG!$1:$1048576,AZ$2,MATCH(Substrates!$AY72,InputsBG!$38:$38,0))/$AX72,0) -> 0 | BA72: =IF($G72<0,$G72*INDEX(InputsBG!$1:$1048576,BA$2,MATCH(Substrates!$AY72,InputsBG!$38:$38,0))/$AX72,0) -> 0 | BB72: =IF($G72<0,$G72*INDEX(InputsBG!$1:$1048576,BB$2,MATCH(Substrates!$AY72,InputsBG!$38:$38,0))/$AX72,0) -> 0 | BC72: =IF($G72<0,$G72*INDEX(InputsBG!$1:$1048576,BC$2,MATCH(Substrates!$AY72,InputsBG!$38:$38,0))/$AX72,0) -> 0 | BD72: 0 | BE72: =M72/Gasertrag_berechnet ->  | BF72: =AZ72/Belastung_Substrat ->  | BT72: sugar beets IP, at farm
A73: Rübenpressschnitzel | B73: Pulpe de betterave sucrière | C73: Beet pulp | E73: Beet pulp | F73: 0 | G73: 0 | H73: 0 | I73: 0 | L73: 0 | M73: 0 | R73: =IF(F73>0,IF(G73/F73/1000<AX73,INDEX(menuesBG!$1:$1048576,Warnung,sprache),""),"") ->  | S73: 24 | V73: 92.5 | Y73: 1.9 | Z73: 1.9 | AA73: 1.9 | AB73: =AVERAGE(0.3,0.4)/AVERAGE(1.9)*100 -> 18.42105263 | AC73: 1.171666667 | AD73: =AD$138 -> 0.6166666667 | AE73: =AE$138 -> 45.65 | AF73: =AF$138 -> 50.55 | AG73: =(AH73+AI73)/2 -> 480 | AH73: 250 | AI73: 710 | AJ73: 55 | AK73: 264 | AL73: 0 | AM73: 0 | AN73: 0 | AO73: 0 | AT73: =FaktorenBG!F$43*(1+FaktorenBG!F$56)*IF(Auswahl_Behandlung_fest<5,$F73,0) ->  | AU73: =FaktorenBG!G$43*(1+FaktorenBG!G$56)*IF(Auswahl_Behandlung_fest<5,$F73,0) ->  | AV73: =FaktorenBG!H$43*(1+FaktorenBG!H$56)*IF(Auswahl_Behandlung_fest<5,$F73,0) ->  | AW73: 0 | AX73: =INDEX(InputsBG!$1:$1048576,AX$2,MATCH(Substrates!$AY73,InputsBG!$38:$38,0)) ->  | AY73: Pulps, from sugar beet, at sugar refinery/CH U | AZ73: =IF($G73<0,$G73*INDEX(InputsBG!$1:$1048576,AZ$2,MATCH(Substrates!$AY73,InputsBG!$38:$38,0))/$AX73,0) -> 0 | BA73: =IF($G73<0,$G73*INDEX(InputsBG!$1:$1048576,BA$2,MATCH(Substrates!$AY73,InputsBG!$38:$38,0))/$AX73,0) -> 0 | BB73: =IF($G73<0,$G73*INDEX(InputsBG!$1:$1048576,BB$2,MATCH(Substrates!$AY73,InputsBG!$38:$38,0))/$AX73,0) -> 0 | BC73: =IF($G73<0,$G73*INDEX(InputsBG!$1:$1048576,BC$2,MATCH(Substrates!$AY73,InputsBG!$38:$38,0))/$AX73,0) -> 0 | BD73: 0 | BT73: Pulps, from sugar beet, at sugar refinery
A74: Rückstände aus der Herstellung von Nahrungsmittelkonserven (pflanzlich) | B74: Résidus de la production d'aliments en conserve (végétal) | C74: Residues from the manufacture of canned food (vegetable) | E74: Residues from the manufacture of canned food (vegetable) | F74: 0 | G74: 0 | H74: 0 | I74: 0 | L74: 0 | M74: 0 | R74: =IF(F74>0,IF(G74/F74/1000<AX74,INDEX(menuesBG!$1:$1048576,Warnung,sprache),""),"") ->  | S74: 13 | T74: 11 | U74: 15 | V74: =(W74+X74)/2 -> 90 | W74: 85 | X74: 95 | Y74: 0.75 | Z74: 0.5 | AA74: 1 | AB74: =AVERAGE(0.01,1.1)/AVERAGE(0.6,5)*100 -> 19.82142857 | AC74: =AD74*Y74 -> 0.45 | AD74: 0.6 | AG74: =(AH74+AI74)/2 -> 700 | AH74: 650 | AI74: 750 | AJ74: 57 | AK74: 399 | AL74: 0 | AM74: 0 | AN74: 0 | AO74: 0 | AT74: =FaktorenBG!F$43*(1+FaktorenBG!F$56)*IF(Auswahl_Behandlung_fest<5,$F74,0) ->  | AU74: =FaktorenBG!G$43*(1+FaktorenBG!G$56)*IF(Auswahl_Behandlung_fest<5,$F74,0) ->  | AV74: =FaktorenBG!H$43*(1+FaktorenBG!H$56)*IF(Auswahl_Behandlung_fest<5,$F74,0) ->  | AW74: 0 | AX74: =INDEX(InputsBG!$1:$1048576,AX$2,MATCH(Substrates!$AY74,InputsBG!$38:$38,0)) ->  | AY74: Durchschnitt | AZ74: =IF($G74<0,$G74*INDEX(InputsBG!$1:$1048576,AZ$2,MATCH(Substrates!$AY74,InputsBG!$38:$38,0))/$AX74,0) -> 0 | BA74: =IF($G74<0,$G74*INDEX(InputsBG!$1:$1048576,BA$2,MATCH(Substrates!$AY74,InputsBG!$38:$38,0))/$AX74,0) -> 0 | BB74: =IF($G74<0,$G74*INDEX(InputsBG!$1:$1048576,BB$2,MATCH(Substrates!$AY74,InputsBG!$38:$38,0))/$AX74,0) -> 0 | BC74: =IF($G74<0,$G74*INDEX(InputsBG!$1:$1048576,BC$2,MATCH(Substrates!$AY74,InputsBG!$38:$38,0))/$AX74,0) -> 0 | BD74: 0
A75: Rückstände aus der Kartoffel-, Mais- oder Reisstärkeherstellung | B75: Résidus de la production d'amidon de pommes de terre, de maïs ou de riz | C75: Residues from the manufacture of potato, maize or rice starch | E75: Residues from the manufacture of potato, maize or rice starch | F75: 0 | G75: 0 | H75: 0 | I75: 0 | L75: 0 | M75: 0 | R75: =IF(F75>0,IF(G75/F75/1000<AX75,INDEX(menuesBG!$1:$1048576,Warnung,sprache),""),"") ->  | S75: 30.7 | T75: =T$138 -> 30.7 | U75: 30.7 | V75: 73.9 | W75: =W$138 -> 73.9 | X75: 73.9 | Y75: 2.993055556 | Z75: =Z$138 -> 2.327777778 | AA75: 3.658333333 | AB75: =AVERAGE(0.04)/AVERAGE(0.5,1)*100 -> 5.333333333 | AC75: 1.845717593 | AD75: =AD$138 -> 0.6166666667 | AE75: 45.65 | AF75: 50.55 | AG75: 492 | AH75: =AH$138 -> 376 | AI75: 608 | AJ75: 55 | AK75: 270.6 | AL75: 0 | AM75: 0 | AN75: 0 | AO75: 0 | AT75: =FaktorenBG!F$43*(1+FaktorenBG!F$56)*IF(Auswahl_Behandlung_fest<5,$F75,0) ->  | AU75: =FaktorenBG!G$43*(1+FaktorenBG!G$56)*IF(Auswahl_Behandlung_fest<5,$F75,0) ->  | AV75: =FaktorenBG!H$43*(1+FaktorenBG!H$56)*IF(Auswahl_Behandlung_fest<5,$F75,0) ->  | AW75: =IF(F75>0,G75/F75/1000,0) -> 0 | AX75: =INDEX(InputsBG!$1:$1048576,AX$2,MATCH(Substrates!$AY75,InputsBG!$38:$38,0)) ->  | AY75: Potatoes IP, at farm/CH U | AZ75: =IF($G75<0,$G75*INDEX(InputsBG!$1:$1048576,AZ$2,MATCH(Substrates!$AY75,InputsBG!$38:$38,0))/$AX75,0) -> 0 | BA75: =IF($G75<0,$G75*INDEX(InputsBG!$1:$1048576,BA$2,MATCH(Substrates!$AY75,InputsBG!$38:$38,0))/$AX75,0) -> 0 | BB75: =IF($G75<0,$G75*INDEX(InputsBG!$1:$1048576,BB$2,MATCH(Substrates!$AY75,InputsBG!$38:$38,0))/$AX75,0) -> 0 | BC75: =IF($G75<0,$G75*INDEX(InputsBG!$1:$1048576,BC$2,MATCH(Substrates!$AY75,InputsBG!$38:$38,0))/$AX75,0) -> 0 | BD75: 0 | BT75: Potatoes IP, at farm
A76: Schlämme aus Lebensmittelproduktion (pflanzlich) | B76: Boues provenant de la production d'aliments (végétal) | C76: Sludges from food production (vegetable) | E76: Sludges from food production (vegetable) | F76: 0 | G76: 0 | H76: 0 | I76: 0 | L76: 0 | M76: 0 | R76: =IF(F76>0,IF(G76/F76/1000<AX76,INDEX(menuesBG!$1:$1048576,Warnung,sprache),""),"") ->  | S76: 30.7 | T76: 30.7 | U76: 30.7 | V76: 73.9 | W76: 73.9 | X76: 73.9 | Y76: 2.993055556 | Z76: 2.327777778 | AA76: 3.658333333 | AB76: 13 | AC76: 1.845717593 | AD76: 0.6166666667 | AE76: 45.65 | AF76: 50.55 | AG76: 492 | AH76: 376 | AI76: 608 | AJ76: 55 | AK76: 270.6 | AL76: 0 | AM76: 0 | AN76: 0 | AO76: 0 | AT76: =FaktorenBG!F$43*(1+FaktorenBG!F$56)*IF(Auswahl_Behandlung_fest<5,$F76,0) ->  | AU76: =FaktorenBG!G$43*(1+FaktorenBG!G$56)*IF(Auswahl_Behandlung_fest<5,$F76,0) ->  | AV76: =FaktorenBG!H$43*(1+FaktorenBG!H$56)*IF(Auswahl_Behandlung_fest<5,$F76,0) ->  | AW76: 0 | AX76: =INDEX(InputsBG!$1:$1048576,AX$2,MATCH(Substrates!$AY76,InputsBG!$38:$38,0)) ->  | AY76: vegetables mean, IP, at farm/kg/CH S | AZ76: =IF($G76<0,$G76*INDEX(InputsBG!$1:$1048576,AZ$2,MATCH(Substrates!$AY76,InputsBG!$38:$38,0))/$AX76,0) -> 0 | BA76: =IF($G76<0,$G76*INDEX(InputsBG!$1:$1048576,BA$2,MATCH(Substrates!$AY76,InputsBG!$38:$38,0))/$AX76,0) -> 0 | BB76: =IF($G76<0,$G76*INDEX(InputsBG!$1:$1048576,BB$2,MATCH(Substrates!$AY76,InputsBG!$38:$38,0))/$AX76,0) -> 0 | BC76: =IF($G76<0,$G76*INDEX(InputsBG!$1:$1048576,BC$2,MATCH(Substrates!$AY76,InputsBG!$38:$38,0))/$AX76,0) -> 0 | BD76: 0 | BT76: vegetables mean, IP, at farm
A77: Sortier- und Rüstabgang (Pilze, Gemüse, Früchte, etc.) | B77: Déchets après tri, épluchures (champignons, légume, fruits etc.) | C77: Sorting and food waste (mushrooms, vegetables, fruits, etc.) | E77: Sorting and food waste (mushrooms, vegetables, fruits, etc.) | F77: 0 | G77: 0 | H77: 0 | I77: 0 | L77: 0 | M77: 0 | R77: =IF(F77>0,IF(G77/F77/1000<AX77,INDEX(menuesBG!$1:$1048576,Warnung,sprache),""),"") ->  | S77: 12.5 | V77: 90 | Y77: 2.993055556 | Z77: 2.327777778 | AA77: 3.658333333 | AB77: =AVERAGE(0.01,1.1)/AVERAGE(0.6,5)*100 -> 19.82142857 | AC77: 1.845717593 | AD77: 0.6166666667 | AE77: 45.65 | AF77: 50.55 | AG77: =(AH77+AI77)/2 -> 550 | AH77: 400 | AI77: 700 | AJ77: 52 | AK77: 286 | AL77: 0 | AM77: 0 | AN77: 0 | AO77: 0 | AT77: =FaktorenBG!F$43*(1+FaktorenBG!F$56)*IF(Auswahl_Behandlung_fest<5,$F77,0) ->  | AU77: =FaktorenBG!G$43*(1+FaktorenBG!G$56)*IF(Auswahl_Behandlung_fest<5,$F77,0) ->  | AV77: =FaktorenBG!H$43*(1+FaktorenBG!H$56)*IF(Auswahl_Behandlung_fest<5,$F77,0) ->  | AW77: 0 | AX77: =INDEX(InputsBG!$1:$1048576,AX$2,MATCH(Substrates!$AY77,InputsBG!$38:$38,0)) ->  | AY77: vegetables mean, IP, at farm/kg/CH S | AZ77: =IF($G77<0,$G77*INDEX(InputsBG!$1:$1048576,AZ$2,MATCH(Substrates!$AY77,InputsBG!$38:$38,0))/$AX77,0) -> 0 | BA77: =IF($G77<0,$G77*INDEX(InputsBG!$1:$1048576,BA$2,MATCH(Substrates!$AY77,InputsBG!$38:$38,0))/$AX77,0) -> 0 | BB77: =IF($G77<0,$G77*INDEX(InputsBG!$1:$1048576,BB$2,MATCH(Substrates!$AY77,InputsBG!$38:$38,0))/$AX77,0) -> 0 | BC77: =IF($G77<0,$G77*INDEX(InputsBG!$1:$1048576,BC$2,MATCH(Substrates!$AY77,InputsBG!$38:$38,0))/$AX77,0) -> 0 | BD77: 0 | BT77: vegetables mean, IP, at farm
A78: Speiseölabfälle, Speisefettabfälle, Rückstände und Schlämme aus Öl- und Fettabscheidern (nicht aufbereitet) | B78: Déchets d'huiles et de graisses alimentaires, résidus et boues provenant des filtres à graisse et à huile (non transformé) | C78: Edible oil waste, edible fat waste, residues and sludges from oil and fat separators (not treated) | E78: Edible oil waste, edible fat waste, residues and sludges from oil and fat separators (not treated) | F78: 0 | G78: 0 | H78: 0 | I78: 0 | L78: 0 | M78: 0 | R78: =IF(F78>0,IF(G78/F78/1000<AX78,INDEX(menuesBG!$1:$1048576,Warnung,sprache),""),"") ->  | S78: 99 | T78: 98 | U78: 100 | V78: 99.5 | W78: 99 | X78: 100 | Y78: 0.45 | Z78: 0.1 | AA78: 0.8 | AB78: =AVERAGE(0.02,1.5)/AVERAGE(0.1,3.6)*100 -> 41.08108108 | AC78: 0.1125 | AD78: 0.25 | AG78: 1100 | AH78: 1000 | AI78: 1200 | AJ78: 67 | AK78: 737 | AL78: 0 | AM78: 0 | AN78: 0 | AO78: 0 | AT78: =FaktorenBG!F$43*(1+FaktorenBG!F$56)*IF(Auswahl_Behandlung_fest<5,$F78,0) ->  | AU78: =FaktorenBG!G$43*(1+FaktorenBG!G$56)*IF(Auswahl_Behandlung_fest<5,$F78,0) ->  | AV78: =FaktorenBG!H$43*(1+FaktorenBG!H$56)*IF(Auswahl_Behandlung_fest<5,$F78,0) ->  | AW78: 0 | AX78: =INDEX(InputsBG!$1:$1048576,AX$2,MATCH(Substrates!$AY78,InputsBG!$38:$38,0)) ->  | AY78: Rape oil, at oil mill/RER U | AZ78: =IF($G78<0,$G78*INDEX(InputsBG!$1:$1048576,AZ$2,MATCH(Substrates!$AY78,InputsBG!$38:$38,0))/$AX78,0) -> 0 | BA78: =IF($G78<0,$G78*INDEX(InputsBG!$1:$1048576,BA$2,MATCH(Substrates!$AY78,InputsBG!$38:$38,0))/$AX78,0) -> 0 | BB78: =IF($G78<0,$G78*INDEX(InputsBG!$1:$1048576,BB$2,MATCH(Substrates!$AY78,InputsBG!$38:$38,0))/$AX78,0) -> 0 | BC78: =IF($G78<0,$G78*INDEX(InputsBG!$1:$1048576,BC$2,MATCH(Substrates!$AY78,InputsBG!$38:$38,0))/$AX78,0) -> 0 | BD78: 0 | BT78: Rape oil, at oil mill
A79: Speisereste aus Gastronomiebetrieben | B79: Déchets alimentaires de la restauration | C79: Food leftovers from catering establishments | E79: Food leftovers from catering establishments | F79: 0 | G79: 0 | H79: 0 | I79: 0 | L79: 0 | M79: 0 | R79: =IF(F79>0,IF(G79/F79/1000<AX79,INDEX(menuesBG!$1:$1048576,Warnung,sprache),""),"") ->  | S79: 26 | T79: 15 | U79: 37 | V79: =(W79+X79)/2 -> 89 | W79: 80 | X79: 98 | Y79: 3 | Z79: 1 | AA79: 5 | AB79: =AVERAGE(0.01,1.1)/AVERAGE(0.6,5)*100 -> 19.82142857 | AC79: =AD79*Y79 -> 1.95 | AD79: 0.65 | AG79: =(AH79+AI79)/2 -> 555 | AH79: 460 | AI79: 650 | AJ79: 61 | AK79: 338.55 | AL79: 0 | AM79: 0 | AN79: 0 | AO79: 0 | AT79: =FaktorenBG!F$43*(1+FaktorenBG!F$56)*IF(Auswahl_Behandlung_fest<5,$F79,0) ->  | AU79: =FaktorenBG!G$43*(1+FaktorenBG!G$56)*IF(Auswahl_Behandlung_fest<5,$F79,0) ->  | AV79: =FaktorenBG!H$43*(1+FaktorenBG!H$56)*IF(Auswahl_Behandlung_fest<5,$F79,0) ->  | AW79: 0 | AX79: =INDEX(InputsBG!$1:$1048576,AX$2,MATCH(Substrates!$AY79,InputsBG!$38:$38,0)) ->  | AY79: Durchschnitt | AZ79: =IF($G79<0,$G79*INDEX(InputsBG!$1:$1048576,AZ$2,MATCH(Substrates!$AY79,InputsBG!$38:$38,0))/$AX79,0) -> 0 | BA79: =IF($G79<0,$G79*INDEX(InputsBG!$1:$1048576,BA$2,MATCH(Substrates!$AY79,InputsBG!$38:$38,0))/$AX79,0) -> 0 | BB79: =IF($G79<0,$G79*INDEX(InputsBG!$1:$1048576,BB$2,MATCH(Substrates!$AY79,InputsBG!$38:$38,0))/$AX79,0) -> 0 | BC79: =IF($G79<0,$G79*INDEX(InputsBG!$1:$1048576,BC$2,MATCH(Substrates!$AY79,InputsBG!$38:$38,0))/$AX79,0) -> 0 | BD79: 0
A80: Tabak, Tabakstaub, -grus, -rippen, -schlamm | B80: Tabac, poussière de tabac, tiges de tabac, boues de tabac | C80: Tobacco, tobacco dust, tobacco breeze, tobacco ribs, tobacco sludge | E80: Tobacco, tobacco dust, tobacco breeze, tobacco ribs, tobacco sludge | F80: 0 | G80: 0 | H80: 0 | I80: 0 | L80: 0 | M80: 0 | R80: =IF(F80>0,IF(G80/F80/1000<AX80,INDEX(menuesBG!$1:$1048576,Warnung,sprache),""),"") ->  | S80: 30.7 | T80: =T$138 -> 30.7 | U80: =U$138 -> 30.7 | V80: 73.9 | W80: =W$138 -> 73.9 | X80: =X$138 -> 73.9 | Y80: 2.993055556 | Z80: =Z$138 -> 2.327777778 | AA80: =AA$138 -> 3.658333333 | AB80: 13 | AC80: 1.845717593 | AD80: =AD$138 -> 0.6166666667 | AE80: 45.65 | AF80: 50.55 | AG80: 492 | AH80: =AH$138 -> 376 | AI80: =AI$138 -> 608 | AJ80: 57 | AK80: 280.44 | AL80: 0 | AM80: 0 | AN80: 0 | AO80: 0 | AT80: =FaktorenBG!F$43*(1+FaktorenBG!F$56)*IF(Auswahl_Behandlung_fest<5,$F80,0) ->  | AU80: =FaktorenBG!G$43*(1+FaktorenBG!G$56)*IF(Auswahl_Behandlung_fest<5,$F80,0) ->  | AV80: =FaktorenBG!H$43*(1+FaktorenBG!H$56)*IF(Auswahl_Behandlung_fest<5,$F80,0) ->  | AW80: 0 | AX80: =INDEX(InputsBG!$1:$1048576,AX$2,MATCH(Substrates!$AY80,InputsBG!$38:$38,0)) ->  | AY80: Durchschnitt | AZ80: =IF($G80<0,$G80*INDEX(InputsBG!$1:$1048576,AZ$2,MATCH(Substrates!$AY80,InputsBG!$38:$38,0))/$AX80,0) -> 0 | BA80: =IF($G80<0,$G80*INDEX(InputsBG!$1:$1048576,BA$2,MATCH(Substrates!$AY80,InputsBG!$38:$38,0))/$AX80,0) -> 0 | BB80: =IF($G80<0,$G80*INDEX(InputsBG!$1:$1048576,BB$2,MATCH(Substrates!$AY80,InputsBG!$38:$38,0))/$AX80,0) -> 0 | BC80: =IF($G80<0,$G80*INDEX(InputsBG!$1:$1048576,BC$2,MATCH(Substrates!$AY80,InputsBG!$38:$38,0))/$AX80,0) -> 0 | BD80: 0
A81: Teetreber, Teesatz, Abgänge aus der Produktion und Zubereitung von Tee | B81: Marc de thé, prélèvements sur le lieu de production et de préparation du thé | C81: Tea grains, tea substitutes, waste from production and preparation of tea | E81: Tea grains, tea substitutes, waste from production and preparation of tea | F81: 0 | G81: 0 | H81: 0 | I81: 0 | L81: 0 | M81: 0 | R81: =IF(F81>0,IF(G81/F81/1000<AX81,INDEX(menuesBG!$1:$1048576,Warnung,sprache),""),"") ->  | S81: 13.5 | V81: 73.9 | W81: =W$138 -> 73.9 | X81: =X$138 -> 73.9 | Y81: 2.993055556 | Z81: =Z$138 -> 2.327777778 | AA81: =AA$138 -> 3.658333333 | AB81: 13 | AC81: 1.845717593 | AD81: 0.6166666667 | AE81: 45.65 | AF81: 50.55 | AG81: 492 | AH81: =AH$138 -> 376 | AI81: =AI$138 -> 608 | AJ81: 57 | AK81: 280.44 | AL81: 0 | AM81: 0 | AN81: 0 | AO81: 0 | AT81: =FaktorenBG!F$43*(1+FaktorenBG!F$56)*IF(Auswahl_Behandlung_fest<5,$F81,0) ->  | AU81: =FaktorenBG!G$43*(1+FaktorenBG!G$56)*IF(Auswahl_Behandlung_fest<5,$F81,0) ->  | AV81: =FaktorenBG!H$43*(1+FaktorenBG!H$56)*IF(Auswahl_Behandlung_fest<5,$F81,0) ->  | AW81: 0 | AX81: =INDEX(InputsBG!$1:$1048576,AX$2,MATCH(Substrates!$AY81,InputsBG!$38:$38,0)) ->  | AY81: vegetables mean, IP, at farm/kg/CH S | AZ81: =IF($G81<0,$G81*INDEX(InputsBG!$1:$1048576,AZ$2,MATCH(Substrates!$AY81,InputsBG!$38:$38,0))/$AX81,0) -> 0 | BA81: =IF($G81<0,$G81*INDEX(InputsBG!$1:$1048576,BA$2,MATCH(Substrates!$AY81,InputsBG!$38:$38,0))/$AX81,0) -> 0 | BB81: =IF($G81<0,$G81*INDEX(InputsBG!$1:$1048576,BB$2,MATCH(Substrates!$AY81,InputsBG!$38:$38,0))/$AX81,0) -> 0 | BC81: =IF($G81<0,$G81*INDEX(InputsBG!$1:$1048576,BC$2,MATCH(Substrates!$AY81,InputsBG!$38:$38,0))/$AX81,0) -> 0 | BD81: 0 | BT81: vegetables mean, IP, at farm
A82: Traubentrester | B82: Marc de raisin | C82: Grape marc | E82: Grape marc | F82: 0 | G82: 0 | H82: 0 | I82: 0 | L82: =F82*S82*V82/10 -> 0 | M82: =F82*S82*V82/10000*AG82 -> 0 | R82: =IF(F82>0,IF(G82/F82/1000<AX82,INDEX(menuesBG!$1:$1048576,Warnung,sprache),""),"") ->  | S82: 45 | T82: 40 | U82: 50 | V82: 87 | W82: 80 | X82: 94 | Y82: 2.25 | Z82: 1.5 | AA82: 3 | AB82: 13 | AC82: 1.4625 | AD82: 0.65 | AG82: 590 | AH82: 490 | AI82: 690 | AJ82: 65 | AK82: 383.5 | AL82: 0 | AM82: 0 | AN82: 0 | AO82: 0 | AT82: =FaktorenBG!F$43*(1+FaktorenBG!F$56)*IF(Auswahl_Behandlung_fest<5,$F82,0) ->  | AU82: =FaktorenBG!G$43*(1+FaktorenBG!G$56)*IF(Auswahl_Behandlung_fest<5,$F82,0) ->  | AV82: =FaktorenBG!H$43*(1+FaktorenBG!H$56)*IF(Auswahl_Behandlung_fest<5,$F82,0) ->  | AW82: 0 | AX82: =INDEX(InputsBG!$1:$1048576,AX$2,MATCH(Substrates!$AY82,InputsBG!$38:$38,0)) ->  | AY82: Durchschnitt | AZ82: =IF($G82<0,$G82*INDEX(InputsBG!$1:$1048576,AZ$2,MATCH(Substrates!$AY82,InputsBG!$38:$38,0))/$AX82,0) -> 0 | BA82: =IF($G82<0,$G82*INDEX(InputsBG!$1:$1048576,BA$2,MATCH(Substrates!$AY82,InputsBG!$38:$38,0))/$AX82,0) -> 0 | BB82: =IF($G82<0,$G82*INDEX(InputsBG!$1:$1048576,BB$2,MATCH(Substrates!$AY82,InputsBG!$38:$38,0))/$AX82,0) -> 0 | BC82: =IF($G82<0,$G82*INDEX(InputsBG!$1:$1048576,BC$2,MATCH(Substrates!$AY82,InputsBG!$38:$38,0))/$AX82,0) -> 0 | BD82: 0
A83: Vinasse | B83: Vinasse | C83: Vinasse | E83: Vinasse | F83: 0 | G83: 0 | H83: 0 | I83: 0 | L83: 0 | M83: 0 | R83: =IF(F83>0,IF(G83/F83/1000<AX83,INDEX(menuesBG!$1:$1048576,Warnung,sprache),""),"") ->  | S83: =(T83+U83)/2 -> 5.5 | T83: 3 | U83: 8 | V83: =(W83+X83)/2 -> 90.5 | W83: 83 | X83: 98 | Y83: 7.95 | Z83: 6 | AA83: 9.9 | AB83: 13 | AC83: 5.1675 | AD83: 0.65 | AG83: =(AH83+AI83)/2 -> 500 | AH83: 400 | AI83: 600 | AJ83: 57 | AK83: 285 | AL83: =L83*50%*28.62%*12.5% -> 0 | AM83: 0 | AN83: 0 | AO83: 0 | AT83: =FaktorenBG!F$43*(1+FaktorenBG!F$56)*IF(Auswahl_Behandlung_fest<5,$F83,0) ->  | AU83: =FaktorenBG!G$43*(1+FaktorenBG!G$56)*IF(Auswahl_Behandlung_fest<5,$F83,0) ->  | AV83: =FaktorenBG!H$43*(1+FaktorenBG!H$56)*IF(Auswahl_Behandlung_fest<5,$F83,0) ->  | AW83: 0 | AX83: =INDEX(InputsBG!$1:$1048576,AX$2,MATCH(Substrates!$AY83,InputsBG!$38:$38,0)) ->  | AY83: Vinasse, at fermentation plant/CH U | AZ83: =IF($G83<0,$G83*INDEX(InputsBG!$1:$1048576,AZ$2,MATCH(Substrates!$AY83,InputsBG!$38:$38,0))/$AX83,0) -> 0 | BA83: =IF($G83<0,$G83*INDEX(InputsBG!$1:$1048576,BA$2,MATCH(Substrates!$AY83,InputsBG!$38:$38,0))/$AX83,0) -> 0 | BB83: =IF($G83<0,$G83*INDEX(InputsBG!$1:$1048576,BB$2,MATCH(Substrates!$AY83,InputsBG!$38:$38,0))/$AX83,0) -> 0 | BC83: =IF($G83<0,$G83*INDEX(InputsBG!$1:$1048576,BC$2,MATCH(Substrates!$AY83,InputsBG!$38:$38,0))/$AX83,0) -> 0 | BD83: 0 | BT83: Vinasse, at fermentation plant
A84: Waschwasser aus Biodieselproduktion | B84: Eau de lavage de la production de biodiesel | C84: Wash water from biodiesel production | E84: Wash water from biodiesel production | F84: 0 | G84: 0 | H84: 0 | I84: 0 | L84: 0 | M84: 0 | R84: =IF(F84>0,IF(G84/F84/1000<AX84,INDEX(menuesBG!$1:$1048576,Warnung,sprache),""),"") ->  | S84: 3 | V84: 91.8 | Y84: 2.993055556 | Z84: =Z$138 -> 2.327777778 | AA84: 3.658333333 | AB84: 13 | AC84: 1.845717593 | AD84: =AD$138 -> 0.6166666667 | AE84: 45.65 | AF84: 50.55 | AG84: 492 | AH84: =AH$138 -> 376 | AI84: 608 | AJ84: 57 | AK84: 280.44 | AL84: 0 | AM84: 0 | AN84: 0 | AO84: 0 | AT84: =FaktorenBG!F$43*(1+FaktorenBG!F$56)*IF(Auswahl_Behandlung_fest<5,$F84,0) ->  | AU84: =FaktorenBG!G$43*(1+FaktorenBG!G$56)*IF(Auswahl_Behandlung_fest<5,$F84,0) ->  | AV84: =FaktorenBG!H$43*(1+FaktorenBG!H$56)*IF(Auswahl_Behandlung_fest<5,$F84,0) ->  | AW84: 0 | AX84: =INDEX(InputsBG!$1:$1048576,AX$2,MATCH(Substrates!$AY84,InputsBG!$38:$38,0)) ->  | AY84: Durchschnitt | AZ84: =IF($G84<0,$G84*INDEX(InputsBG!$1:$1048576,AZ$2,MATCH(Substrates!$AY84,InputsBG!$38:$38,0))/$AX84,0) -> 0 | BA84: =IF($G84<0,$G84*INDEX(InputsBG!$1:$1048576,BA$2,MATCH(Substrates!$AY84,InputsBG!$38:$38,0))/$AX84,0) -> 0 | BB84: =IF($G84<0,$G84*INDEX(InputsBG!$1:$1048576,BB$2,MATCH(Substrates!$AY84,InputsBG!$38:$38,0))/$AX84,0) -> 0 | BC84: =IF($G84<0,$G84*INDEX(InputsBG!$1:$1048576,BC$2,MATCH(Substrates!$AY84,InputsBG!$38:$38,0))/$AX84,0) -> 0 | BD84: 0
A85: Wasserpflanzen, Schilf | B85: Plantes aquatiques, roseaux | C85: Aquatic plants, reeds | E85: Aquatic plants, reeds | F85: 0 | G85: 0 | H85: 0 | I85: 0 | L85: 0 | M85: 0 | R85: =IF(F85>0,IF(G85/F85/1000<AX85,INDEX(menuesBG!$1:$1048576,Warnung,sprache),""),"") ->  | S85: 30.7 | T85: =T$138 -> 30.7 | U85: 30.7 | V85: 73.9 | W85: =W$138 -> 73.9 | X85: 73.9 | Y85: 2.993055556 | Z85: 2.327777778 | AA85: 3.658333333 | AB85: 13 | AC85: 1.845717593 | AD85: 0.6166666667 | AE85: 45.65 | AF85: 50.55 | AG85: 160 | AJ85: 60 | AK85: 96 | AL85: 0 | AM85: 0 | AN85: 0 | AO85: 0 | AT85: =FaktorenBG!F$43*(1+FaktorenBG!F$56)*IF(Auswahl_Behandlung_fest<5,$F85,0) ->  | AU85: =FaktorenBG!G$43*(1+FaktorenBG!G$56)*IF(Auswahl_Behandlung_fest<5,$F85,0) ->  | AV85: =FaktorenBG!H$43*(1+FaktorenBG!H$56)*IF(Auswahl_Behandlung_fest<5,$F85,0) ->  | AW85: 0 | AX85: =INDEX(InputsBG!$1:$1048576,AX$2,MATCH(Substrates!$AY85,InputsBG!$38:$38,0)) ->  | AY85: Durchschnitt | AZ85: =IF($G85<0,$G85*INDEX(InputsBG!$1:$1048576,AZ$2,MATCH(Substrates!$AY85,InputsBG!$38:$38,0))/$AX85,0) -> 0 | BA85: =IF($G85<0,$G85*INDEX(InputsBG!$1:$1048576,BA$2,MATCH(Substrates!$AY85,InputsBG!$38:$38,0))/$AX85,0) -> 0 | BB85: =IF($G85<0,$G85*INDEX(InputsBG!$1:$1048576,BB$2,MATCH(Substrates!$AY85,InputsBG!$38:$38,0))/$AX85,0) -> 0 | BC85: =IF($G85<0,$G85*INDEX(InputsBG!$1:$1048576,BC$2,MATCH(Substrates!$AY85,InputsBG!$38:$38,0))/$AX85,0) -> 0 | BD85: 0
A86: Weintrub, Trappen, Schlamm aus der Weinbereitung | B86: Lie de vin, boues de la vinification | C86: Wine lees, bustards, sludge from wine making | E86: Wine lees, bustards, sludge from wine making | F86: 0 | G86: 0 | H86: 0 | I86: 0 | L86: 0 | M86: 0 | R86: =IF(F86>0,IF(G86/F86/1000<AX86,INDEX(menuesBG!$1:$1048576,Warnung,sprache),""),"") ->  | S86: 30.7 | T86: 30.7 | U86: 30.7 | V86: 73.9 | W86: 73.9 | X86: 73.9 | Y86: 2.993055556 | Z86: 2.327777778 | AA86: 3.658333333 | AB86: 13 | AC86: 1.845717593 | AD86: 0.6166666667 | AE86: 45.65 | AF86: 50.55 | AG86: 492 | AH86: 376 | AI86: 608 | AJ86: 57 | AK86: 280.44 | AL86: 0 | AM86: 0 | AN86: 0 | AO86: 0 | AT86: =FaktorenBG!F$43*(1+FaktorenBG!F$56)*IF(Auswahl_Behandlung_fest<5,$F86,0) ->  | AU86: =FaktorenBG!G$43*(1+FaktorenBG!G$56)*IF(Auswahl_Behandlung_fest<5,$F86,0) ->  | AV86: =FaktorenBG!H$43*(1+FaktorenBG!H$56)*IF(Auswahl_Behandlung_fest<5,$F86,0) ->  | AW86: 0 | AX86: =INDEX(InputsBG!$1:$1048576,AX$2,MATCH(Substrates!$AY86,InputsBG!$38:$38,0)) ->  | AY86: Durchschnitt | AZ86: =IF($G86<0,$G86*INDEX(InputsBG!$1:$1048576,AZ$2,MATCH(Substrates!$AY86,InputsBG!$38:$38,0))/$AX86,0) -> 0 | BA86: =IF($G86<0,$G86*INDEX(InputsBG!$1:$1048576,BA$2,MATCH(Substrates!$AY86,InputsBG!$38:$38,0))/$AX86,0) -> 0 | BB86: =IF($G86<0,$G86*INDEX(InputsBG!$1:$1048576,BB$2,MATCH(Substrates!$AY86,InputsBG!$38:$38,0))/$AX86,0) -> 0 | BC86: =IF($G86<0,$G86*INDEX(InputsBG!$1:$1048576,BC$2,MATCH(Substrates!$AY86,InputsBG!$38:$38,0))/$AX86,0) -> 0 | BD86: 0
A87: Wollrückstände, -staub (unbehandelt) | B87: Résidus et poussière de laine | C87: Wool residues, dust (untreated) | E87: Wool residues, dust (untreated) | F87: 0 | G87: 0 | H87: 0 | I87: 0 | L87: 0 | M87: 0 | R87: =IF(F87>0,IF(G87/F87/1000<AX87,INDEX(menuesBG!$1:$1048576,Warnung,sprache),""),"") ->  | S87: 30.7 | T87: 30.7 | U87: 30.7 | V87: 73.9 | W87: 73.9 | X87: 73.9 | Y87: 2.993055556 | Z87: 2.327777778 | AA87: 3.658333333 | AB87: 13 | AC87: 1.845717593 | AD87: 0.6166666667 | AE87: 45.65 | AF87: 50.55 | AG87: 492 | AH87: 376 | AI87: 608 | AJ87: 57 | AK87: 280.44 | AL87: 0 | AM87: 0 | AN87: 0 | AO87: 0 | AT87: =FaktorenBG!F$43*(1+FaktorenBG!F$56)*IF(Auswahl_Behandlung_fest<5,$F87,0) ->  | AU87: =FaktorenBG!G$43*(1+FaktorenBG!G$56)*IF(Auswahl_Behandlung_fest<5,$F87,0) ->  | AV87: =FaktorenBG!H$43*(1+FaktorenBG!H$56)*IF(Auswahl_Behandlung_fest<5,$F87,0) ->  | AW87: 0 | AX87: =INDEX(InputsBG!$1:$1048576,AX$2,MATCH(Substrates!$AY87,InputsBG!$38:$38,0)) ->  | AY87: Durchschnitt | AZ87: =IF($G87<0,$G87*INDEX(InputsBG!$1:$1048576,AZ$2,MATCH(Substrates!$AY87,InputsBG!$38:$38,0))/$AX87,0) -> 0 | BA87: =IF($G87<0,$G87*INDEX(InputsBG!$1:$1048576,BA$2,MATCH(Substrates!$AY87,InputsBG!$38:$38,0))/$AX87,0) -> 0 | BB87: =IF($G87<0,$G87*INDEX(InputsBG!$1:$1048576,BB$2,MATCH(Substrates!$AY87,InputsBG!$38:$38,0))/$AX87,0) -> 0 | BC87: =IF($G87<0,$G87*INDEX(InputsBG!$1:$1048576,BC$2,MATCH(Substrates!$AY87,InputsBG!$38:$38,0))/$AX87,0) -> 0 | BD87: 0
A88: Würzmittelrückstände, Würze-Treber | B88: Résidus de condiments | C88: Wort residues, wort spent grains | E88: Wort residues, wort spent grains | F88: 0 | G88: 0 | H88: 0 | I88: 0 | L88: 0 | M88: 0 | R88: =IF(F88>0,IF(G88/F88/1000<AX88,INDEX(menuesBG!$1:$1048576,Warnung,sprache),""),"") ->  | S88: 57.5 | V88: 22.5 | Y88: 2.993055556 | Z88: 2.327777778 | AA88: 3.658333333 | AB88: 13 | AC88: 1.845717593 | AD88: 0.6166666667 | AE88: 45.65 | AF88: 50.55 | AG88: 492 | AH88: 376 | AI88: 608 | AJ88: 57 | AK88: =AJ88*$AG88/100 -> 280.44 | AL88: 0 | AM88: 0 | AN88: 0 | AO88: 0 | AT88: =FaktorenBG!F$43*(1+FaktorenBG!F$56)*IF(Auswahl_Behandlung_fest<5,$F88,0) ->  | AU88: =FaktorenBG!G$43*(1+FaktorenBG!G$56)*IF(Auswahl_Behandlung_fest<5,$F88,0) ->  | AV88: =FaktorenBG!H$43*(1+FaktorenBG!H$56)*IF(Auswahl_Behandlung_fest<5,$F88,0) ->  | AW88: 0 | AX88: =INDEX(InputsBG!$1:$1048576,AX$2,MATCH(Substrates!$AY88,InputsBG!$38:$38,0)) ->  | AY88: Rye grains IP, at farm/kg/CH U | AZ88: =IF($G88<0,$G88*INDEX(InputsBG!$1:$1048576,AZ$2,MATCH(Substrates!$AY88,InputsBG!$38:$38,0))/$AX88,0) -> 0 | BA88: =IF($G88<0,$G88*INDEX(InputsBG!$1:$1048576,BA$2,MATCH(Substrates!$AY88,InputsBG!$38:$38,0))/$AX88,0) -> 0 | BB88: =IF($G88<0,$G88*INDEX(InputsBG!$1:$1048576,BB$2,MATCH(Substrates!$AY88,InputsBG!$38:$38,0))/$AX88,0) -> 0 | BC88: =IF($G88<0,$G88*INDEX(InputsBG!$1:$1048576,BC$2,MATCH(Substrates!$AY88,InputsBG!$38:$38,0))/$AX88,0) -> 0 | BD88: 0 | BT88: Rye grains IP, at farm
A89: Zichorien-Treber, Cereal-Treber | B89: Marc de chicorée, Marc de céréales | C89: Chicory grains, cereal grains | E89: Chicory grains, cereal grains | F89: 0 | G89: 0 | H89: 0 | I89: 0 | L89: =F89*S89*V89/10 -> 0 | M89: =F89*S89*V89/10000*AG89 -> 0 | R89: =IF(F89>0,IF(G89/F89/1000<AX89,INDEX(menuesBG!$1:$1048576,Warnung,sprache),""),"") ->  | S89: 10 | V89: =(W89+X89)/2 -> 73.9 | W89: 73.9 | X89: 73.9 | Y89: =(Z89+AA89)/2 -> 2.993055556 | Z89: 2.327777778 | AA89: 3.658333333 | AB89: 13 | AC89: =AD89*Y89 -> 1.845717593 | AD89: 0.6166666667 | AE89: 45.65 | AF89: 50.55 | AG89: =(AH89+AI89)/2 -> 492 | AH89: 376 | AI89: 608 | AJ89: 57 | AK89: 280.44 | AL89: =L89*50%*28.62%*12.5% -> 0 | AM89: 0 | AN89: 0 | AO89: 0 | AQ89: =F89*1000*S89/100*Y89/100*AB89/100*NH3emittiert*AnteilNH3Lagerung*(1+NH3plus)*((1+Faktor_NH3_Behandlung)*Anteil_V_fest+(1+FaktorNH3GülleBehandlung)*Anteil_V_flüssig) ->  | AS89: =F89*(N2O_Gülle*Anteil_V_flüssig*(1+Faktor_N2O_GülleBehandlung)+N2O_Kompost*Anteil_V_fest*(1+Faktor_N2O_Behandlung)) ->  | AT89: =FaktorenBG!F$43*(1+FaktorenBG!F$56)*IF(Auswahl_Behandlung_fest<5,$F89,0) ->  | AU89: =FaktorenBG!G$43*(1+FaktorenBG!G$56)*IF(Auswahl_Behandlung_fest<5,$F89,0) ->  | AV89: =FaktorenBG!H$43*(1+FaktorenBG!H$56)*IF(Auswahl_Behandlung_fest<5,$F89,0) ->  | AW89: =IF(F89>0,G89/F89/1000,0) -> 0 | AX89: =INDEX(InputsBG!$1:$1048576,AX$2,MATCH(Substrates!$AY89,InputsBG!$38:$38,0)) ->  | AY89: Rye grains IP, at farm/kg/CH U | AZ89: =IF($G89<0,$G89*INDEX(InputsBG!$1:$1048576,AZ$2,MATCH(Substrates!$AY89,InputsBG!$38:$38,0))/$AX89,0) -> 0 | BA89: =IF($G89<0,$G89*INDEX(InputsBG!$1:$1048576,BA$2,MATCH(Substrates!$AY89,InputsBG!$38:$38,0))/$AX89,0) -> 0 | BB89: =IF($G89<0,$G89*INDEX(InputsBG!$1:$1048576,BB$2,MATCH(Substrates!$AY89,InputsBG!$38:$38,0))/$AX89,0) -> 0 | BC89: =IF($G89<0,$G89*INDEX(InputsBG!$1:$1048576,BC$2,MATCH(Substrates!$AY89,InputsBG!$38:$38,0))/$AX89,0) -> 0 | BD89: 0 | BT89: Rye grains IP, at farm
A90: Zuckerrübe | B90: Betteraves sucrières | C90: Sugar beet | E90: Sugar beet | F90: 0 | G90: 0 | H90: 0 | I90: 0 | L90: 0 | M90: 0 | R90: =IF(F90>0,IF(G90/F90/1000<AX90,INDEX(menuesBG!$1:$1048576,Warnung,sprache),""),"") ->  | S90: =(T90+U90)/2 -> 23 | T90: 23 | U90: 23 | V90: 95 | W90: 95 | X90: 95 | Y90: 2.6 | Z90: 2.6 | AA90: 2.6 | AB90: =AVERAGE(0.2)/AVERAGE(2.6)*100 -> 7.692307692 | AC90: 1.69 | AD90: 0.65 | AG90: 630 | AH90: 400 | AI90: 860 | AJ90: 57 | AK90: 359.1 | AL90: 0 | AM90: 0 | AN90: 0 | AO90: 0 | AT90: =FaktorenBG!F$43*(1+FaktorenBG!F$56)*IF(Auswahl_Behandlung_fest<5,$F90,0) ->  | AU90: =FaktorenBG!G$43*(1+FaktorenBG!G$56)*IF(Auswahl_Behandlung_fest<5,$F90,0) ->  | AV90: =FaktorenBG!H$43*(1+FaktorenBG!H$56)*IF(Auswahl_Behandlung_fest<5,$F90,0) ->  | AW90: 0 | AX90: =INDEX(InputsBG!$1:$1048576,AX$2,MATCH(Substrates!$AY90,InputsBG!$38:$38,0)) ->  | AY90: sugar beets IP, at farm/kg/CH U | AZ90: =IF($G90<0,$G90*INDEX(InputsBG!$1:$1048576,AZ$2,MATCH(Substrates!$AY90,InputsBG!$38:$38,0))/$AX90,0) -> 0 | BA90: =IF($G90<0,$G90*INDEX(InputsBG!$1:$1048576,BA$2,MATCH(Substrates!$AY90,InputsBG!$38:$38,0))/$AX90,0) -> 0 | BB90: =IF($G90<0,$G90*INDEX(InputsBG!$1:$1048576,BB$2,MATCH(Substrates!$AY90,InputsBG!$38:$38,0))/$AX90,0) -> 0 | BC90: =IF($G90<0,$G90*INDEX(InputsBG!$1:$1048576,BC$2,MATCH(Substrates!$AY90,InputsBG!$38:$38,0))/$AX90,0) -> 0 | BD90: 0 | BT90: =LEFT(AY90,FIND("/",AY90)-1) -> sugar beets IP, at farm
A92: Zwischenfrüchte ohne Konkurrenz zu Nahrungs- und Futtermitteln | B92: Les cultures intercalaires ne sont pas en concurrence avec les denrées alimentaires et les aliments pour animaux | C92: Intercrops not competing with food and feed | E92: =IF(sprache=1,A92,IF(sprache=2,B92,C92)) -> Intercrops not competing with food and feed | F92: t/a | G92: =Währung&"/a" ->  | H92: km | I92: km | L92: kg | M92: m3 Biogas/a
A93: Grünroggen | B93: Seigle vert | C93: Green rye | E93: =IF(sprache=1,A93,IF(sprache=2,B93,C93)) -> Green rye | F93: 0 | H93: 0 | I93: 0 | L93: =F93*S93*V93/10 -> 0 | M93: =F93*S93*V93/10000*AG93 -> 0 | S93: =(T93+U93)/2 -> 32.5 | T93: 30 | U93: 35 | V93: =(W93+X93)/2 -> 95 | W93: 92 | X93: 98 | Y93: =(Z93+AA93)/2 -> 4 | Z93: 4 | AA93: 4 | AB93: =AVERAGE(0.47)/AVERAGE(4)*100 -> 11.75 | AC93: =AD93*Y93 -> 2.8 | AD93: 0.7 | AG93: =(AH93+AI93)/2 -> 615 | AH93: 550 | AI93: 680 | AJ93: 52 | AK93: =AJ93*$AG93/100 -> 319.8 | AL93: =L93*50%*28.62%*12.5% -> 0 | AP93: =$M93*CH4_Gehalt*CH4_nichtabgedeckt*(1+Faktor_CH4_flüssig)*GärrestFlüssigMenge/(GärrestFestMenge+GärrestFlüssigMenge) ->  | AQ93: =F93*1000*S93/100*Y93/100*AB93/100*NH3emittiert*AnteilNH3Lagerung*(1+NH3plus)*((1+Faktor_NH3_Behandlung)*Anteil_V_fest+(1+FaktorNH3GülleBehandlung)*Anteil_V_flüssig) ->  | AR93: =IF(AR$137,F93*1000*S93/100*Y93/100*AB93/100*NH3emittiert*AR$2*(1+NH3plusAusbringung)*((1+Faktor_NH3fest_aus)*Anteil_V_fest+(1+Faktor_NH3_Ausbringung)*Anteil_V_flüssig),0) ->  | AS93: =F93*(N2O_Gülle*Anteil_V_flüssig*(1+Faktor_N2O_GülleBehandlung)+N2O_Kompost*Anteil_V_fest*(1+Faktor_N2O_Behandlung)) ->  | AT93: =FaktorenBG!F$43*(1+FaktorenBG!F$56)*IF(Auswahl_Behandlung_fest<5,$F93,0) ->  | AU93: =FaktorenBG!G$43*(1+FaktorenBG!G$56)*IF(Auswahl_Behandlung_fest<5,$F93,0) ->  | AV93: =FaktorenBG!H$43*(1+FaktorenBG!H$56)*IF(Auswahl_Behandlung_fest<5,$F93,0) ->  | AY93: green rye conventional, at farm/kg/RER U | AZ93: =INDEX(SimaPro!$1:$1048576,AZ$1,MATCH(Substrates!$AY93,SimaPro!$1:$1,0))*$F93*1000 -> 0 | BA93: =INDEX(SimaPro!$1:$1048576,BA$1,MATCH(Substrates!$AY93,SimaPro!$1:$1,0))*$F93*1000 -> 0 | BB93: =INDEX(SimaPro!$1:$1048576,BB$1,MATCH(Substrates!$AY93,SimaPro!$1:$1,0))*$F93*1000 -> 0 | BC93: =INDEX(SimaPro!$1:$1048576,BC$1,MATCH(Substrates!$AY93,SimaPro!$1:$1,0))*$F93*1000 -> 0 | BD93: x | BE93: =M93/Gasertrag_berechnet ->  | BF93: =AZ93/Belastung_Substrat -> 
A94: Kleegras | B94: Herbe et Trèfle | C94: Clover grass | E94: =IF(sprache=1,A94,IF(sprache=2,B94,C94)) -> Clover grass | F94: 0 | H94: 0 | I94: 0 | L94: 0 | M94: 0 | S94: =(T94+U94)/2 -> 42.5 | T94: 25 | U94: 60 | V94: =(W94+X94)/2 -> 82.5 | W94: 69 | X94: 96 | Y94: =(Z94+AA94)/2 -> 5.2 | Z94: 3.5 | AA94: 6.9 | AB94: =AVERAGE(3.5,6.9)/AVERAGE(6.9,19.8)*100 -> 38.95131086 | AC94: =AD94*Y94 -> 3.64 | AD94: 0.7 | AE94: 6.9 | AF94: 19.8 | AG94: =(AH94+AI94)/2 -> 565 | AH94: 520 | AI94: 610 | AJ94: 52 | AK94: =AJ94*$AG94/100 -> 293.8 | AL94: 0 | AP94: =$M94*CH4_Gehalt*CH4_nichtabgedeckt*(1+Faktor_CH4_flüssig)*GärrestFlüssigMenge/(GärrestFestMenge+GärrestFlüssigMenge) ->  | AR94: =IF(AR$137,F94*1000*S94/100*Y94/100*AB94/100*NH3emittiert*AR$2*(1+NH3plusAusbringung)*((1+Faktor_NH3fest_aus)*Anteil_V_fest+(1+Faktor_NH3_Ausbringung)*Anteil_V_flüssig),0) ->  | AT94: =FaktorenBG!F$43*(1+FaktorenBG!F$56)*IF(Auswahl_Behandlung_fest<5,$F94,0) ->  | AU94: =FaktorenBG!G$43*(1+FaktorenBG!G$56)*IF(Auswahl_Behandlung_fest<5,$F94,0) ->  | AV94: =FaktorenBG!H$43*(1+FaktorenBG!H$56)*IF(Auswahl_Behandlung_fest<5,$F94,0) ->  | AY94: Grass silage IP, at farm/kg/CH U | AZ94: =INDEX(SimaPro!$1:$1048576,AZ$1,MATCH(Substrates!$AY94,SimaPro!$1:$1,0))*$F94*1000 -> 0 | BA94: =INDEX(SimaPro!$1:$1048576,BA$1,MATCH(Substrates!$AY94,SimaPro!$1:$1,0))*$F94*1000 -> 0 | BB94: =INDEX(SimaPro!$1:$1048576,BB$1,MATCH(Substrates!$AY94,SimaPro!$1:$1,0))*$F94*1000 -> 0 | BC94: =INDEX(SimaPro!$1:$1048576,BC$1,MATCH(Substrates!$AY94,SimaPro!$1:$1,0))*$F94*1000 -> 0 | BD94: x | BE94: =M94/Gasertrag_berechnet ->  | BF94: =AZ94/Belastung_Substrat -> 
A95: Gras IP | B95: Herbe IP | C95: Grass IP | E95: =IF(sprache=1,A95,IF(sprache=2,B95,C95)) -> Grass IP | F95: 0 | H95: 0 | I95: 0 | L95: =F95*S95*V95/10 -> 0 | M95: =F95*S95*V95/10000*AG95 -> 0 | S95: =(T95+U95)/2 -> 42.5 | T95: 25 | U95: 60 | V95: =(W95+X95)/2 -> 82.5 | W95: 69 | X95: 96 | Y95: =(Z95+AA95)/2 -> 5.2 | Z95: 3.5 | AA95: 6.9 | AB95: =AVERAGE(3.5,6.9)/AVERAGE(6.9,19.8)*100 -> 38.95131086 | AC95: =AD95*Y95 -> 3.64 | AD95: 0.7 | AE95: 6.9 | AF95: 19.8 | AG95: =(AH95+AI95)/2 -> 565 | AH95: 520 | AI95: 610 | AJ95: 52 | AK95: =AJ95*$AG95/100 -> 293.8 | AL95: =L95*50%*28.62%*12.5% -> 0 | AP95: =$M95*CH4_Gehalt*CH4_nichtabgedeckt*(1+Faktor_CH4_flüssig)*GärrestFlüssigMenge/(GärrestFestMenge+GärrestFlüssigMenge) ->  | AQ95: =F95*1000*S95/100*Y95/100*AB95/100*NH3emittiert*AnteilNH3Lagerung*(1+NH3plus)*((1+Faktor_NH3_Behandlung)*Anteil_V_fest+(1+FaktorNH3GülleBehandlung)*Anteil_V_flüssig) ->  | AR95: =IF(AR$137,F95*1000*S95/100*Y95/100*AB95/100*NH3emittiert*AR$2*(1+NH3plusAusbringung)*((1+Faktor_NH3fest_aus)*Anteil_V_fest+(1+Faktor_NH3_Ausbringung)*Anteil_V_flüssig),0) ->  | AS95: =F95*(N2O_Gülle*Anteil_V_flüssig*(1+Faktor_N2O_GülleBehandlung)+N2O_Kompost*Anteil_V_fest*(1+Faktor_N2O_Behandlung)) ->  | AT95: =FaktorenBG!F$43*(1+FaktorenBG!F$56)*IF(Auswahl_Behandlung_fest<5,$F95,0) ->  | AU95: =FaktorenBG!G$43*(1+FaktorenBG!G$56)*IF(Auswahl_Behandlung_fest<5,$F95,0) ->  | AV95: =FaktorenBG!H$43*(1+FaktorenBG!H$56)*IF(Auswahl_Behandlung_fest<5,$F95,0) ->  | AY95: Grass silage IP, at farm/kg/CH U | AZ95: =INDEX(SimaPro!$1:$1048576,AZ$1,MATCH(Substrates!$AY95,SimaPro!$1:$1,0))*$F95*1000 -> 0 | BA95: =INDEX(SimaPro!$1:$1048576,BA$1,MATCH(Substrates!$AY95,SimaPro!$1:$1,0))*$F95*1000 -> 0 | BB95: =INDEX(SimaPro!$1:$1048576,BB$1,MATCH(Substrates!$AY95,SimaPro!$1:$1,0))*$F95*1000 -> 0 | BC95: =INDEX(SimaPro!$1:$1048576,BC$1,MATCH(Substrates!$AY95,SimaPro!$1:$1,0))*$F95*1000 -> 0 | BD95: x | BE95: =M95/Gasertrag_berechnet ->  | BF95: =AZ95/Belastung_Substrat -> 
A96: Gras Bio | B96: Herbe biologique | C96: Grass Organic | E96: =IF(sprache=1,A96,IF(sprache=2,B96,C96)) -> Grass Organic | F96: 0 | H96: 0 | I96: 0 | L96: 0 | M96: 0 | S96: 42.5 | T96: 25 | U96: 60 | V96: 82.5 | W96: 69 | X96: 96 | Y96: 5.2 | Z96: 3.5 | AA96: 6.9 | AB96: 38.95131086 | AC96: 3.64 | AD96: 0.7 | AE96: 6.9 | AF96: 19.8 | AG96: 565 | AH96: 520 | AI96: 610 | AJ96: 52 | AK96: =AJ96*$AG96/100 -> 293.8 | AL96: 0 | AP96: =$M96*CH4_Gehalt*CH4_nichtabgedeckt*(1+Faktor_CH4_flüssig)*GärrestFlüssigMenge/(GärrestFestMenge+GärrestFlüssigMenge) ->  | AR96: =IF(AR$137,F96*1000*S96/100*Y96/100*AB96/100*NH3emittiert*AR$2*(1+NH3plusAusbringung)*((1+Faktor_NH3fest_aus)*Anteil_V_fest+(1+Faktor_NH3_Ausbringung)*Anteil_V_flüssig),0) ->  | AT96: =FaktorenBG!F$43*(1+FaktorenBG!F$56)*IF(Auswahl_Behandlung_fest<5,$F96,0) ->  | AU96: =FaktorenBG!G$43*(1+FaktorenBG!G$56)*IF(Auswahl_Behandlung_fest<5,$F96,0) ->  | AV96: =FaktorenBG!H$43*(1+FaktorenBG!H$56)*IF(Auswahl_Behandlung_fest<5,$F96,0) ->  | AY96: grass silage organic, at farm/kg/CH U | AZ96: =INDEX(SimaPro!$1:$1048576,AZ$1,MATCH(Substrates!$AY96,SimaPro!$1:$1,0))*$F96*1000 -> 0 | BA96: =INDEX(SimaPro!$1:$1048576,BA$1,MATCH(Substrates!$AY96,SimaPro!$1:$1,0))*$F96*1000 -> 0 | BB96: =INDEX(SimaPro!$1:$1048576,BB$1,MATCH(Substrates!$AY96,SimaPro!$1:$1,0))*$F96*1000 -> 0 | BC96: =INDEX(SimaPro!$1:$1048576,BC$1,MATCH(Substrates!$AY96,SimaPro!$1:$1,0))*$F96*1000 -> 0 | BD96: x | BE96: =M96/Gasertrag_berechnet ->  | BF96: =AZ96/Belastung_Substrat -> 
A97: Wiese extensiv | B97: Pré agriculture extensive | C97: Extensive meadow | E97: =IF(sprache=1,A97,IF(sprache=2,B97,C97)) -> Extensive meadow | F97: 0 | H97: 0 | I97: 0 | L97: 0 | M97: 0 | S97: =(T97+U97)/2 -> 42.5 | T97: 25 | U97: 60 | V97: =(W97+X97)/2 -> 82.5 | W97: 69 | X97: 96 | Y97: =(Z97+AA97)/2 -> 5.2 | Z97: 3.5 | AA97: 6.9 | AB97: =AVERAGE(3.5,6.9)/AVERAGE(6.9,19.8)*100 -> 38.95131086 | AC97: =AD97*Y97 -> 3.64 | AD97: 0.7 | AE97: 6.9 | AF97: 19.8 | AG97: =(AH97+AI97)/2 -> 565 | AH97: 520 | AI97: 610 | AJ97: 54 | AK97: =AJ97*$AG97/100 -> 305.1 | AL97: 0 | AP97: =$M97*CH4_Gehalt*CH4_nichtabgedeckt*(1+Faktor_CH4_flüssig)*GärrestFlüssigMenge/(GärrestFestMenge+GärrestFlüssigMenge) ->  | AR97: =IF(AR$137,F97*1000*S97/100*Y97/100*AB97/100*NH3emittiert*AR$2*(1+NH3plusAusbringung)*((1+Faktor_NH3fest_aus)*Anteil_V_fest+(1+Faktor_NH3_Ausbringung)*Anteil_V_flüssig),0) ->  | AT97: =FaktorenBG!F$43*(1+FaktorenBG!F$56)*IF(Auswahl_Behandlung_fest<5,$F97,0) ->  | AU97: =FaktorenBG!G$43*(1+FaktorenBG!G$56)*IF(Auswahl_Behandlung_fest<5,$F97,0) ->  | AV97: =FaktorenBG!H$43*(1+FaktorenBG!H$56)*IF(Auswahl_Behandlung_fest<5,$F97,0) ->  | AY97: Grass from natural meadow intensive IP, at field/kg/CH U | AZ97: =INDEX(SimaPro!$1:$1048576,AZ$1,MATCH(Substrates!$AY97,SimaPro!$1:$1,0))*$F97*1000 -> 0 | BA97: =INDEX(SimaPro!$1:$1048576,BA$1,MATCH(Substrates!$AY97,SimaPro!$1:$1,0))*$F97*1000 -> 0 | BB97: =INDEX(SimaPro!$1:$1048576,BB$1,MATCH(Substrates!$AY97,SimaPro!$1:$1,0))*$F97*1000 -> 0 | BC97: =INDEX(SimaPro!$1:$1048576,BC$1,MATCH(Substrates!$AY97,SimaPro!$1:$1,0))*$F97*1000 -> 0 | BD97: x | BE97: =M97/Gasertrag_berechnet ->  | BF97: =AZ97/Belastung_Substrat -> 
A99: Glycerin | B99: Glycérine | C99: Glycerine | E99: Glycerine | F99: t/a | G99: =Währung&"/a" ->  | H99: km | I99: km | L99: kg | M99: m3 Biogas/a | BD99: x | BE99: =M99/Gasertrag_berechnet ->  | BF99: =AZ99/Belastung_Substrat -> 
A100: Glycerin aus tierischen Fetten | B100: Glycérine provenant de graisses animales | C100: Glycerine from animal fats | E100: Glycerine from animal fats | F100: 0 | H100: 0 | I100: 0 | L100: =F100*S100*V100/10 -> 0 | M100: =F100*S100*V100/10000*AG100 -> 0 | R100: =IF(F100>0,IF(G100/F100/1000<AX100,INDEX(menuesBG!$1:$1048576,Warnung,sprache),""),"") ->  | S100: =(T100+U100)/2 -> 62.5 | T100: 62.5 | U100: 62.5 | V100: =(W100+X100)/2 -> 100 | W100: 100 | X100: 100 | Y100: =(Z100+AA100)/2 -> 0 | Z100: 0 | AA100: 0 | AB100: 13 | AC100: =AD100*Y100 -> 0 | AD100: 0.7 | AE100: 85 | AF100: 85 | AG100: =(AH100+AI100)/2 -> 1160 | AH100: =1/S100/V100*10000*550 -> 880 | AI100: =1/S100/V100*10000*900 -> 1440 | AJ100: 51 | AK100: =AJ100*$AG100/100 -> 591.6 | AL100: =L100*50%*28.62%*12.5% -> 0 | AM100: 0 | AN100: 0 | AO100: 0 | AP100: =$M100*CH4_Gehalt*CH4_nichtabgedeckt*(1+Faktor_CH4_flüssig)*GärrestFlüssigMenge/(GärrestFestMenge+GärrestFlüssigMenge) ->  | AQ100: =F100*1000*S100/100*Y100/100*AB100/100*NH3emittiert*AnteilNH3Lagerung*(1+NH3plus)*((1+Faktor_NH3_Behandlung)*Anteil_V_fest+(1+FaktorNH3GülleBehandlung)*Anteil_V_flüssig) ->  | AR100: =IF(AR$137,F100*1000*S100/100*Y100/100*AB100/100*NH3emittiert*AR$2*(1+NH3plusAusbringung)*((1+Faktor_NH3fest_aus)*Anteil_V_fest+(1+Faktor_NH3_Ausbringung)*Anteil_V_flüssig),0) ->  | AS100: =F100*(N2O_Gülle*Anteil_V_flüssig*(1+Faktor_N2O_GülleBehandlung)+N2O_Kompost*Anteil_V_fest*(1+Faktor_N2O_Behandlung)) ->  | AT100: =FaktorenBG!F$43*(1+FaktorenBG!F$56)*IF(Auswahl_Behandlung_fest<5,$F100,0) ->  | AU100: =FaktorenBG!G$43*(1+FaktorenBG!G$56)*IF(Auswahl_Behandlung_fest<5,$F100,0) ->  | AV100: =FaktorenBG!H$43*(1+FaktorenBG!H$56)*IF(Auswahl_Behandlung_fest<5,$F100,0) ->  | AY100: glycerine, from animal fat, at esterification plant/kg/RER U | AZ100: =INDEX(SimaPro!$1:$1048576,AZ$1,MATCH(Substrates!$AY100,SimaPro!$1:$1,0))*$F100*1000 -> 0 | BA100: =INDEX(SimaPro!$1:$1048576,BA$1,MATCH(Substrates!$AY100,SimaPro!$1:$1,0))*$F100*1000 -> 0 | BB100: =INDEX(SimaPro!$1:$1048576,BB$1,MATCH(Substrates!$AY100,SimaPro!$1:$1,0))*$F100*1000 -> 0 | BC100: =INDEX(SimaPro!$1:$1048576,BC$1,MATCH(Substrates!$AY100,SimaPro!$1:$1,0))*$F100*1000 -> 0 | BD100: x
A101: Glycerin aus Altpflanzenöl | B101: Glycérine provenant de déchets d'huile végétale | C101: Glycerine from waste vegetable oil | E101: Glycerine from waste vegetable oil | F101: 0 | H101: 0 | I101: 0 | L101: 0 | M101: 0 | R101: =IF(F101>0,IF(G101/F101/1000<AX101,INDEX(menuesBG!$1:$1048576,Warnung,sprache),""),"") ->  | S101: 62.5 | T101: 62.5 | U101: 62.5 | V101: 100 | W101: 100 | X101: 100 | Y101: 0 | Z101: 0 | AA101: 0 | AB101: 13 | AC101: 0 | AD101: 0.7 | AE101: 85 | AF101: 85 | AG101: 1344 | AH101: =1/S101/V101*10000*700 -> 1120 | AI101: =1/S101/V101*10000*980 -> 1568 | AJ101: 51 | AK101: 685.44 | AL101: 0 | AM101: 0 | AN101: 0 | AO101: 0 | AP101: =$M101*CH4_Gehalt*CH4_nichtabgedeckt*(1+Faktor_CH4_flüssig)*GärrestFlüssigMenge/(GärrestFestMenge+GärrestFlüssigMenge) ->  | AQ101: =F101*1000*S101/100*Y101/100*AB101/100*NH3emittiert*AnteilNH3Lagerung*(1+NH3plus)*((1+Faktor_NH3_Behandlung)*Anteil_V_fest+(1+FaktorNH3GülleBehandlung)*Anteil_V_flüssig) ->  | AR101: =IF(AR$137,F101*1000*S101/100*Y101/100*AB101/100*NH3emittiert*AR$2*(1+NH3plusAusbringung)*((1+Faktor_NH3fest_aus)*Anteil_V_fest+(1+Faktor_NH3_Ausbringung)*Anteil_V_flüssig),0) ->  | AS101: =F101*(N2O_Gülle*Anteil_V_flüssig*(1+Faktor_N2O_GülleBehandlung)+N2O_Kompost*Anteil_V_fest*(1+Faktor_N2O_Behandlung)) ->  | AT101: =FaktorenBG!F$43*(1+FaktorenBG!F$56)*IF(Auswahl_Behandlung_fest<5,$F101,0) ->  | AU101: =FaktorenBG!G$43*(1+FaktorenBG!G$56)*IF(Auswahl_Behandlung_fest<5,$F101,0) ->  | AV101: =FaktorenBG!H$43*(1+FaktorenBG!H$56)*IF(Auswahl_Behandlung_fest<5,$F101,0) ->  | AY101: glycerine, from vegetable oil, at esterification plant/kg/RER U | AZ101: =INDEX(SimaPro!$1:$1048576,AZ$1,MATCH(Substrates!$AY101,SimaPro!$1:$1,0))*$F101*1000 -> 0 | BA101: =INDEX(SimaPro!$1:$1048576,BA$1,MATCH(Substrates!$AY101,SimaPro!$1:$1,0))*$F101*1000 -> 0 | BB101: =INDEX(SimaPro!$1:$1048576,BB$1,MATCH(Substrates!$AY101,SimaPro!$1:$1,0))*$F101*1000 -> 0 | BC101: =INDEX(SimaPro!$1:$1048576,BC$1,MATCH(Substrates!$AY101,SimaPro!$1:$1,0))*$F101*1000 -> 0 | BD101: x
A102: Glycerin aus Rapsöl | B102: Glycérine de l'huile de colza | C102: Glycerine from rapeseed oil | E102: Glycerine from rapeseed oil | F102: 0 | H102: 0 | I102: 0 | L102: =F102*S102*V102/10 -> 0 | M102: =F102*S102*V102/10000*AG102 -> 0 | R102: =IF(F102>0,IF(G102/F102/1000<AX102,INDEX(menuesBG!$1:$1048576,Warnung,sprache),""),"") ->  | S102: =(T102+U102)/2 -> 62.5 | T102: 62.5 | U102: 62.5 | V102: =(W102+X102)/2 -> 100 | W102: 100 | X102: 100 | Y102: =(Z102+AA102)/2 -> 0 | Z102: 0 | AA102: 0 | AB102: 13 | AC102: =AD102*Y102 -> 0 | AD102: 0.7 | AE102: 85 | AF102: 85 | AG102: =(AH102+AI102)/2 -> 1252 | AH102: =AVERAGE(AH$100:AH$101) -> 1000 | AI102: =AVERAGE(AI$100:AI$101) -> 1504 | AJ102: 51 | AK102: =AJ102*$AG102/100 -> 638.52 | AL102: =L102*50%*28.62%*12.5% -> 0 | AM102: 0 | AN102: 0 | AO102: 0 | AP102: =$M102*CH4_Gehalt*CH4_nichtabgedeckt*(1+Faktor_CH4_flüssig)*GärrestFlüssigMenge/(GärrestFestMenge+GärrestFlüssigMenge) ->  | AQ102: =F102*1000*S102/100*Y102/100*AB102/100*NH3emittiert*AnteilNH3Lagerung*(1+NH3plus)*((1+Faktor_NH3_Behandlung)*Anteil_V_fest+(1+FaktorNH3GülleBehandlung)*Anteil_V_flüssig) ->  | AR102: =IF(AR$137,F102*1000*S102/100*Y102/100*AB102/100*NH3emittiert*AR$2*(1+NH3plusAusbringung)*((1+Faktor_NH3fest_aus)*Anteil_V_fest+(1+Faktor_NH3_Ausbringung)*Anteil_V_flüssig),0) ->  | AS102: =F102*(N2O_Gülle*Anteil_V_flüssig*(1+Faktor_N2O_GülleBehandlung)+N2O_Kompost*Anteil_V_fest*(1+Faktor_N2O_Behandlung)) ->  | AT102: =FaktorenBG!F$43*(1+FaktorenBG!F$56)*IF(Auswahl_Behandlung_fest<5,$F102,0) ->  | AU102: =FaktorenBG!G$43*(1+FaktorenBG!G$56)*IF(Auswahl_Behandlung_fest<5,$F102,0) ->  | AV102: =FaktorenBG!H$43*(1+FaktorenBG!H$56)*IF(Auswahl_Behandlung_fest<5,$F102,0) ->  | AY102: glycerine, from rape oil, at esterification plant/kg/RER U | AZ102: =INDEX(SimaPro!$1:$1048576,AZ$1,MATCH(Substrates!$AY102,SimaPro!$1:$1,0))*$F102*1000 -> 0 | BA102: =INDEX(SimaPro!$1:$1048576,BA$1,MATCH(Substrates!$AY102,SimaPro!$1:$1,0))*$F102*1000 -> 0 | BB102: =INDEX(SimaPro!$1:$1048576,BB$1,MATCH(Substrates!$AY102,SimaPro!$1:$1,0))*$F102*1000 -> 0 | BC102: =INDEX(SimaPro!$1:$1048576,BC$1,MATCH(Substrates!$AY102,SimaPro!$1:$1,0))*$F102*1000 -> 0 | BD102: x | BE102: =M102/Gasertrag_berechnet ->  | BF102: =AZ102/Belastung_Substrat -> 
A103: Glycerin aus Sojaöl | B103: Glycérine de l'huile de soja | C103: Glycerine from soybean oil | E103: Glycerine from soybean oil | F103: 0 | H103: 0 | I103: 0 | L103: =F103*S103*V103/10 -> 0 | M103: =F103*S103*V103/10000*AG103 -> 0 | R103: =IF(F103>0,IF(G103/F103/1000<AX103,INDEX(menuesBG!$1:$1048576,Warnung,sprache),""),"") ->  | S103: =(T103+U103)/2 -> 62.5 | T103: 62.5 | U103: 62.5 | V103: =(W103+X103)/2 -> 100 | W103: 100 | X103: 100 | Y103: =(Z103+AA103)/2 -> 0 | Z103: 0 | AA103: 0 | AB103: 13 | AC103: =AD103*Y103 -> 0 | AD103: 0.7 | AE103: 85 | AF103: 85 | AG103: =(AH103+AI103)/2 -> 1252 | AH103: =AVERAGE(AH$100:AH$101) -> 1000 | AI103: 1504 | AJ103: 51 | AK103: =AJ103*$AG103/100 -> 638.52 | AL103: =L103*50%*28.62%*12.5% -> 0 | AM103: 0 | AN103: 0 | AO103: 0 | AP103: =$M103*CH4_Gehalt*CH4_nichtabgedeckt*(1+Faktor_CH4_flüssig)*GärrestFlüssigMenge/(GärrestFestMenge+GärrestFlüssigMenge) ->  | AQ103: =F103*1000*S103/100*Y103/100*AB103/100*NH3emittiert*AnteilNH3Lagerung*(1+NH3plus)*((1+Faktor_NH3_Behandlung)*Anteil_V_fest+(1+FaktorNH3GülleBehandlung)*Anteil_V_flüssig) ->  | AR103: =IF(AR$137,F103*1000*S103/100*Y103/100*AB103/100*NH3emittiert*AR$2*(1+NH3plusAusbringung)*((1+Faktor_NH3fest_aus)*Anteil_V_fest+(1+Faktor_NH3_Ausbringung)*Anteil_V_flüssig),0) ->  | AS103: =F103*(N2O_Gülle*Anteil_V_flüssig*(1+Faktor_N2O_GülleBehandlung)+N2O_Kompost*Anteil_V_fest*(1+Faktor_N2O_Behandlung)) ->  | AT103: =FaktorenBG!F$43*(1+FaktorenBG!F$56)*IF(Auswahl_Behandlung_fest<5,$F103,0) ->  | AU103: =FaktorenBG!G$43*(1+FaktorenBG!G$56)*IF(Auswahl_Behandlung_fest<5,$F103,0) ->  | AV103: =FaktorenBG!H$43*(1+FaktorenBG!H$56)*IF(Auswahl_Behandlung_fest<5,$F103,0) ->  | AY103: glycerine, from soybean oil, at esterification plant/kg/RER U | AZ103: =INDEX(SimaPro!$1:$1048576,AZ$1,MATCH(Substrates!$AY103,SimaPro!$1:$1,0))*$F103*1000 -> 0 | BA103: =INDEX(SimaPro!$1:$1048576,BA$1,MATCH(Substrates!$AY103,SimaPro!$1:$1,0))*$F103*1000 -> 0 | BB103: =INDEX(SimaPro!$1:$1048576,BB$1,MATCH(Substrates!$AY103,SimaPro!$1:$1,0))*$F103*1000 -> 0 | BC103: =INDEX(SimaPro!$1:$1048576,BC$1,MATCH(Substrates!$AY103,SimaPro!$1:$1,0))*$F103*1000 -> 0 | BD103: x | BE103: =M103/Gasertrag_berechnet ->  | BF103: =AZ103/Belastung_Substrat -> 
A104: Glycerin aus Palmöl | B104: Glycérine de l'huile de palme | C104: Glycerine from palm oil | E104: Glycerine from palm oil | F104: 0 | H104: 0 | I104: 0 | L104: 0 | M104: 0 | R104: =IF(F104>0,IF(G104/F104/1000<AX104,INDEX(menuesBG!$1:$1048576,Warnung,sprache),""),"") ->  | S104: 62.5 | T104: 62.5 | U104: 62.5 | V104: 100 | W104: 100 | X104: 100 | Y104: 0 | Z104: 0 | AA104: 0 | AB104: 13 | AC104: 0 | AD104: 0.7 | AE104: 85 | AF104: 85 | AG104: 1252 | AH104: 1000 | AI104: 1504 | AJ104: 51 | AK104: 638.52 | AL104: 0 | AM104: 0 | AN104: 0 | AO104: 0 | AP104: =$M104*CH4_Gehalt*CH4_nichtabgedeckt*(1+Faktor_CH4_flüssig)*GärrestFlüssigMenge/(GärrestFestMenge+GärrestFlüssigMenge) ->  | AQ104: =F104*1000*S104/100*Y104/100*AB104/100*NH3emittiert*AnteilNH3Lagerung*(1+NH3plus)*((1+Faktor_NH3_Behandlung)*Anteil_V_fest+(1+FaktorNH3GülleBehandlung)*Anteil_V_flüssig) ->  | AR104: =IF(AR$137,F104*1000*S104/100*Y104/100*AB104/100*NH3emittiert*AR$2*(1+NH3plusAusbringung)*((1+Faktor_NH3fest_aus)*Anteil_V_fest+(1+Faktor_NH3_Ausbringung)*Anteil_V_flüssig),0) ->  | AS104: =F104*(N2O_Gülle*Anteil_V_flüssig*(1+Faktor_N2O_GülleBehandlung)+N2O_Kompost*Anteil_V_fest*(1+Faktor_N2O_Behandlung)) ->  | AT104: =FaktorenBG!F$43*(1+FaktorenBG!F$56)*IF(Auswahl_Behandlung_fest<5,$F104,0) ->  | AU104: =FaktorenBG!G$43*(1+FaktorenBG!G$56)*IF(Auswahl_Behandlung_fest<5,$F104,0) ->  | AV104: =FaktorenBG!H$43*(1+FaktorenBG!H$56)*IF(Auswahl_Behandlung_fest<5,$F104,0) ->  | AY104: glycerine, from palm oil, at esterification plant/kg/RER U | AZ104: =INDEX(SimaPro!$1:$1048576,AZ$1,MATCH(Substrates!$AY104,SimaPro!$1:$1,0))*$F104*1000 -> 0 | BA104: =INDEX(SimaPro!$1:$1048576,BA$1,MATCH(Substrates!$AY104,SimaPro!$1:$1,0))*$F104*1000 -> 0 | BB104: =INDEX(SimaPro!$1:$1048576,BB$1,MATCH(Substrates!$AY104,SimaPro!$1:$1,0))*$F104*1000 -> 0 | BC104: =INDEX(SimaPro!$1:$1048576,BC$1,MATCH(Substrates!$AY104,SimaPro!$1:$1,0))*$F104*1000 -> 0 | BD104: x | BE104: =M104/Gasertrag_berechnet ->  | BF104: =AZ104/Belastung_Substrat -> 
A106: Energiepflanzen-Silage | B106: Ensilage de plantes énergétiques | C106: Energy crop silage | E106: Energy crop silage | F106: t/a | G106: =Währung&"/a" ->  | H106: km | I106: km | L106: kg | M106: m3 Biogas/a | BD106: x
A107: Mais | B107: Ensilage de maïs | C107: Maize | E107: Maize | F107: 0 | H107: 0 | I107: 0 | L107: =F107*S107*V107/10 -> 0 | M107: =F107*S107*V107/10000*AG107 -> 0 | S107: =(T107+U107)/2 -> 30 | T107: 25 | U107: 35 | V107: =(W107+X107)/2 -> 91 | W107: 86 | X107: 96 | Y107: =(Z107+AA107)/2 -> 1.55 | Z107: 1.1 | AA107: 2 | AB107: =AVERAGE(0.15,0.3)/AVERAGE(1.1,2)*100 -> 14.51612903 | AC107: =AD107*Y107 -> 1.0075 | AD107: 0.65 | AG107: =(AH107+AI107)/2 -> 610 | AH107: 520 | AI107: 700 | AJ107: 52 | AK107: =AJ107*$AG107/100 -> 317.2 | AL107: =L107*50%*28.62%*12.5% -> 0 | AP107: =$M107*CH4_Gehalt*CH4_nichtabgedeckt*(1+Faktor_CH4_flüssig)*GärrestFlüssigMenge/(GärrestFestMenge+GärrestFlüssigMenge) ->  | AQ107: =F107*1000*S107/100*Y107/100*AB107/100*NH3emittiert*AnteilNH3Lagerung*(1+NH3plus)*((1+Faktor_NH3_Behandlung)*Anteil_V_fest+(1+FaktorNH3GülleBehandlung)*Anteil_V_flüssig) ->  | AR107: =IF(AR$137,F107*1000*S107/100*Y107/100*AB107/100*NH3emittiert*AR$2*(1+NH3plusAusbringung)*((1+Faktor_NH3fest_aus)*Anteil_V_fest+(1+Faktor_NH3_Ausbringung)*Anteil_V_flüssig),0) ->  | AS107: =F107*(N2O_Gülle*Anteil_V_flüssig*(1+Faktor_N2O_GülleBehandlung)+N2O_Kompost*Anteil_V_fest*(1+Faktor_N2O_Behandlung)) ->  | AT107: =FaktorenBG!F$43*(1+FaktorenBG!F$56)*IF(Auswahl_Behandlung_fest<5,$F107,0) ->  | AU107: =FaktorenBG!G$43*(1+FaktorenBG!G$56)*IF(Auswahl_Behandlung_fest<5,$F107,0) ->  | AV107: =FaktorenBG!H$43*(1+FaktorenBG!H$56)*IF(Auswahl_Behandlung_fest<5,$F107,0) ->  | AY107: Silage maize IP, at farm/kg/CH U | AZ107: =INDEX(SimaPro!$1:$1048576,AZ$1,MATCH(Substrates!$AY107,SimaPro!$1:$1,0))*$F107*1000 -> 0 | BA107: =INDEX(SimaPro!$1:$1048576,BA$1,MATCH(Substrates!$AY107,SimaPro!$1:$1,0))*$F107*1000 -> 0 | BB107: =INDEX(SimaPro!$1:$1048576,BB$1,MATCH(Substrates!$AY107,SimaPro!$1:$1,0))*$F107*1000 -> 0 | BC107: =INDEX(SimaPro!$1:$1048576,BC$1,MATCH(Substrates!$AY107,SimaPro!$1:$1,0))*$F107*1000 -> 0 | BD107: x
A108: Wiese intensiv | B108: Pré agriculture intensive | C108: Intense meadow | E108: =IF(sprache=1,A108,IF(sprache=2,B108,C108)) -> Intense meadow | F108: 0 | H108: 0 | I108: 0 | L108: =F108*S108*V108/10 -> 0 | M108: =F108*S108*V108/10000*AG108 -> 0 | S108: =(T108+U108)/2 -> 42.5 | T108: 25 | U108: 60 | V108: =(W108+X108)/2 -> 82.5 | W108: 69 | X108: 96 | Y108: =(Z108+AA108)/2 -> 5.2 | Z108: 3.5 | AA108: 6.9 | AB108: 38.95131086 | AC108: =AD108*Y108 -> 3.64 | AD108: 0.7 | AE108: 6.9 | AF108: 19.8 | AG108: =(AH108+AI108)/2 -> 565 | AH108: 520 | AI108: 610 | AJ108: 54 | AK108: 305.1 | AL108: =L108*50%*28.62%*12.5% -> 0 | AP108: =$M108*CH4_Gehalt*CH4_nichtabgedeckt*(1+Faktor_CH4_flüssig)*GärrestFlüssigMenge/(GärrestFestMenge+GärrestFlüssigMenge) ->  | AQ108: =F108*1000*S108/100*Y108/100*AB108/100*NH3emittiert*AnteilNH3Lagerung*(1+NH3plus)*((1+Faktor_NH3_Behandlung)*Anteil_V_fest+(1+FaktorNH3GülleBehandlung)*Anteil_V_flüssig) ->  | AR108: =IF(AR$137,F108*1000*S108/100*Y108/100*AB108/100*NH3emittiert*AR$2*(1+NH3plusAusbringung)*((1+Faktor_NH3fest_aus)*Anteil_V_fest+(1+Faktor_NH3_Ausbringung)*Anteil_V_flüssig),0) ->  | AS108: =F108*(N2O_Gülle*Anteil_V_flüssig*(1+Faktor_N2O_GülleBehandlung)+N2O_Kompost*Anteil_V_fest*(1+Faktor_N2O_Behandlung)) ->  | AT108: =FaktorenBG!F$43*(1+FaktorenBG!F$56)*IF(Auswahl_Behandlung_fest<5,$F108,0) ->  | AU108: =FaktorenBG!G$43*(1+FaktorenBG!G$56)*IF(Auswahl_Behandlung_fest<5,$F108,0) ->  | AV108: =FaktorenBG!H$43*(1+FaktorenBG!H$56)*IF(Auswahl_Behandlung_fest<5,$F108,0) ->  | AY108: Grass from meadow intensive IP, at field/kg/CH U | AZ108: =INDEX(SimaPro!$1:$1048576,AZ$1,MATCH(Substrates!$AY108,SimaPro!$1:$1,0))*$F108*1000 -> 0 | BA108: =INDEX(SimaPro!$1:$1048576,BA$1,MATCH(Substrates!$AY108,SimaPro!$1:$1,0))*$F108*1000 -> 0 | BB108: =INDEX(SimaPro!$1:$1048576,BB$1,MATCH(Substrates!$AY108,SimaPro!$1:$1,0))*$F108*1000 -> 0 | BC108: =INDEX(SimaPro!$1:$1048576,BC$1,MATCH(Substrates!$AY108,SimaPro!$1:$1,0))*$F108*1000 -> 0 | BD108: x
A110: Klärschlamm und ähnliche Substrate | B110: Cosubstrat, résidus organiques | C110: Sewage sludge and similar substrates | E110: Sewage sludge and similar substrates | F110: t/a | G110: =Währung&"/a" ->  | H110: km | I110: km | L110: kg | M110: m3 Biogas/a | BD110: x
A111: Frischklärschlamm, nass | B111: Boues d'épuration fraîches, humides | C111: Fresh sludge, wet | E111: =IF(sprache=1,A111,IF(sprache=2,B111,C111)) -> Fresh sludge, wet | F111: 0 | G111: 0 | H111: 0 | I111: 0 | L111: =F111*S111*V111/10 -> 0 | M111: =F111*S111*V111/10000*AG111 -> 0 | R111: =IF(F111>0,IF(G111/F111/1000<AX111,INDEX(menuesBG!$1:$1048576,Warnung,sprache),""),"") ->  | S111: 3.5 | V111: 55 | Y111: =(Z111+AA111)/2 -> 2.993055556 | Z111: =Z$138 -> 2.327777778 | AA111: 3.658333333 | AB111: 13 | AC111: =AD111*Y111 -> 1.845717593 | AD111: =AD$138 -> 0.6166666667 | AE111: 45.65 | AF111: 50.55 | AG111: 475 | AH111: 450 | AI111: 500 | AJ111: 67 | AK111: =AJ111*$AG111/100 -> 318.25 | AP111: =$M111*CH4_Gehalt*CH4_nichtabgedeckt*(1+Faktor_CH4_flüssig)*GärrestFlüssigMenge/(GärrestFestMenge+GärrestFlüssigMenge) ->  | AW111: =IF(F111>0,G111/F111/1000,0) -> 0 | BD111: x | BE111: =M111/Gasertrag_berechnet ->  | BF111: =AZ111/Belastung_Substrat -> 
A112: Faulschlamm, nass | B112: Boues digérées, humides | C112: Digested sludge, wet | E112: Digested sludge, wet | F112: 0 | G112: 0 | H112: 0 | I112: 0 | L112: 0 | M112: 0 | R112: =IF(F112>0,IF(G112/F112/1000<AX112,INDEX(menuesBG!$1:$1048576,Warnung,sprache),""),"") ->  | S112: 2.7 | V112: 31 | Y112: 2.993055556 | Z112: 2.327777778 | AA112: 3.658333333 | AB112: 13 | AC112: 1.845717593 | AD112: 0.6166666667 | AE112: 45.65 | AF112: 50.55 | AG112: 60 | AH112: 45 | AI112: 75 | AJ112: 50 | AK112: 30 | AP112: =$M112*CH4_Gehalt*CH4_nichtabgedeckt*(1+Faktor_CH4_flüssig)*GärrestFlüssigMenge/(GärrestFestMenge+GärrestFlüssigMenge) ->  | AW112: 0 | BD112: x
A113: Faulschlamm, entwässert | B113: Boues digérées, égouttées | C113: Digested sludge, dewatered | E113: Digested sludge, dewatered | F113: 0 | G113: 0 | H113: 0 | I113: 0 | L113: 0 | M113: 0 | R113: =IF(F113>0,IF(G113/F113/1000<AX113,INDEX(menuesBG!$1:$1048576,Warnung,sprache),""),"") ->  | S113: 36 | V113: 31 | Y113: 2.993055556 | Z113: 2.327777778 | AA113: 3.658333333 | AB113: 13 | AC113: 1.845717593 | AD113: 0.6166666667 | AE113: 45.65 | AF113: 50.55 | AG113: 60 | AH113: 45 | AI113: 75 | AJ113: 50 | AK113: 30 | AP113: =$M113*CH4_Gehalt*CH4_nichtabgedeckt*(1+Faktor_CH4_flüssig)*GärrestFlüssigMenge/(GärrestFestMenge+GärrestFlüssigMenge) ->  | AW113: 0 | BD113: x
A114: Hausklärschlamm | B114: Boues d'épuration domestiques | C114: Domestic sewage sludge | E114: Domestic sewage sludge | F114: 0 | G114: 0 | H114: 0 | I114: 0 | L114: 0 | M114: 0 | R114: =IF(F114>0,IF(G114/F114/1000<AX114,INDEX(menuesBG!$1:$1048576,Warnung,sprache),""),"") ->  | S114: =(T114+U114)/2 -> 5 | T114: 5 | U114: 5 | V114: =(W114+X114)/2 -> 73.9 | W114: =W$138 -> 73.9 | X114: =X$138 -> 73.9 | Y114: 2.993055556 | Z114: 2.327777778 | AA114: 3.658333333 | AB114: 13 | AC114: 1.845717593 | AD114: =AD$138 -> 0.6166666667 | AE114: 45.65 | AF114: 50.55 | AG114: =(AH114+AI114)/2 -> 492 | AH114: =AH$138 -> 376 | AI114: =AI$138 -> 608 | AJ114: 57 | AK114: 280.44 | AP114: =$M114*CH4_Gehalt*CH4_nichtabgedeckt*(1+Faktor_CH4_flüssig)*GärrestFlüssigMenge/(GärrestFestMenge+GärrestFlüssigMenge) ->  | AW114: =IF(F114>0,G114/F114/1000,0) -> 0 | BD114: x
A115: Schlachtabfälle Kategorie 1 | B115: Déchets d'abattoir catégorie 1 | C115: Slaughterhouse waste Category 1 | E115: =IF(sprache=1,A115,IF(sprache=2,B115,C115)) -> Slaughterhouse waste Category 1 | F115: 0 | G115: 0 | H115: 0 | I115: 0 | L115: =F115*S115*V115/10 -> 0 | M115: =F115*S115*V115/10000*AG115 -> 0 | R115: =IF(F115>0,IF(G115/F115/1000<AX115,INDEX(menuesBG!$1:$1048576,Warnung,sprache),""),"") ->  | S115: =(T115+U115)/2 -> 30.7 | T115: =T$138 -> 30.7 | U115: =U$138 -> 30.7 | V115: =(W115+X115)/2 -> 73.9 | W115: =W$138 -> 73.9 | X115: =X$138 -> 73.9 | Y115: =(Z115+AA115)/2 -> 1.85 | Z115: 0.1 | AA115: 3.6 | AB115: =AVERAGE(0.02,1.5)/AVERAGE(0.1,3.6)*100 -> 41.08108108 | AC115: =AD115*Y115 -> 1.140833333 | AD115: 0.6166666667 | AE115: 45.65 | AF115: 50.55 | AG115: =(AH115+AI115)/2 -> 688 | AH115: =AH$138 -> 376 | AI115: 1000 | AJ115: 59 | AK115: =AJ115*$AG115/100 -> 405.92 | AL115: =L115*50%*28.62%*12.5% -> 0 | AP115: =$M115*CH4_Gehalt*CH4_nichtabgedeckt*(1+Faktor_CH4_flüssig)*GärrestFlüssigMenge/(GärrestFestMenge+GärrestFlüssigMenge) ->  | AW115: =IF(F115>0,G115/F115/1000,0) -> 0 | BD115: =$F115*1000 -> 0 | BE115: =M115/Gasertrag_berechnet ->  | BF115: =AZ115/Belastung_Substrat -> 
A117: Chemikalien | B117: Supports achetés | C117: Chemicals | E117: Chemicals | F117: t/a | G117: =Währung&"/a" ->  | H117: km | I117: km | L117: kg | M117: m3 Biogas/a
A118: Harnstoff | B118: Urée | C118: Urea | E118: Urea | F118: 0 | H118: 0 | I118: 0 | R118: =IF(F118>0,IF(G118/F118/1000<AX118,INDEX(menuesBG!$1:$1048576,Warnung,sprache),""),"") ->  | AY118: Urea, as N, at regional storehouse/RER U | AZ118: =INDEX(SimaPro!$1:$1048576,AZ$1,MATCH(Substrates!$AY118,SimaPro!$1:$1,0))*$F118*1000 -> 0 | BA118: =INDEX(SimaPro!$1:$1048576,BA$1,MATCH(Substrates!$AY118,SimaPro!$1:$1,0))*$F118*1000 -> 0 | BB118: =INDEX(SimaPro!$1:$1048576,BB$1,MATCH(Substrates!$AY118,SimaPro!$1:$1,0))*$F118*1000 -> 0 | BC118: =INDEX(SimaPro!$1:$1048576,BC$1,MATCH(Substrates!$AY118,SimaPro!$1:$1,0))*$F118*1000 -> 0 | BD118: =$F118*1000*46.6% -> 0
A119: NaOH | B119: NaOH | C119: Sodium hydroxide | E119: Sodium hydroxide | F119: 0 | H119: 0 | I119: 0 | R119: =IF(F119>0,IF(G119/F119/1000<AX119,INDEX(menuesBG!$1:$1048576,Warnung,sprache),""),"") ->  | AY119: Sodium hydroxide, 50% in H2O, production mix, at plant/RER U | AZ119: =INDEX(SimaPro!$1:$1048576,AZ$1,MATCH(Substrates!$AY119,SimaPro!$1:$1,0))*$F119*1000 -> 0 | BA119: =INDEX(SimaPro!$1:$1048576,BA$1,MATCH(Substrates!$AY119,SimaPro!$1:$1,0))*$F119*1000 -> 0 | BB119: =INDEX(SimaPro!$1:$1048576,BB$1,MATCH(Substrates!$AY119,SimaPro!$1:$1,0))*$F119*1000 -> 0 | BC119: =INDEX(SimaPro!$1:$1048576,BC$1,MATCH(Substrates!$AY119,SimaPro!$1:$1,0))*$F119*1000 -> 0 | BD119: =$F119*1000*50% -> 0
A120: Wasserstoffperoxid | B120: peroxyde d'hydrogène | C120: Hydrogen peroxide | E120: Hydrogen peroxide | F120: 0 | H120: 0 | I120: 0 | R120: =IF(F120>0,IF(G120/F120/1000<AX120,INDEX(menuesBG!$1:$1048576,Warnung,sprache),""),"") ->  | AY120: Hydrogen peroxide, 50% in H2O, at plant/RER U | AZ120: =INDEX(SimaPro!$1:$1048576,AZ$1,MATCH(Substrates!$AY120,SimaPro!$1:$1,0))*$F120*1000 -> 0 | BA120: =INDEX(SimaPro!$1:$1048576,BA$1,MATCH(Substrates!$AY120,SimaPro!$1:$1,0))*$F120*1000 -> 0 | BB120: =INDEX(SimaPro!$1:$1048576,BB$1,MATCH(Substrates!$AY120,SimaPro!$1:$1,0))*$F120*1000 -> 0 | BC120: =INDEX(SimaPro!$1:$1048576,BC$1,MATCH(Substrates!$AY120,SimaPro!$1:$1,0))*$F120*1000 -> 0 | BD120: =$F120*1000*35% -> 0 | BE120: =M120/Gasertrag_berechnet ->  | BF120: =AZ120/Belastung_Substrat -> 
A121: Eisenchlorid | B121: chlorure ferrique | C121: Iron (III) chloride | E121: =IF(sprache=1,A121,IF(sprache=2,B121,C121)) -> Iron (III) chloride | F121: 0 | H121: 0 | I121: 0 | R121: =IF(F121>0,IF(G121/F121/1000<AX121,INDEX(menuesBG!$1:$1048576,Warnung,sprache),""),"") ->  | AY121: Iron (III) chloride, 40% in H2O, at plant/CH U | AZ121: =INDEX(SimaPro!$1:$1048576,AZ$1,MATCH(Substrates!$AY121,SimaPro!$1:$1,0))*$F121*1000 -> 0 | BA121: =INDEX(SimaPro!$1:$1048576,BA$1,MATCH(Substrates!$AY121,SimaPro!$1:$1,0))*$F121*1000 -> 0 | BB121: =INDEX(SimaPro!$1:$1048576,BB$1,MATCH(Substrates!$AY121,SimaPro!$1:$1,0))*$F121*1000 -> 0 | BC121: =INDEX(SimaPro!$1:$1048576,BC$1,MATCH(Substrates!$AY121,SimaPro!$1:$1,0))*$F121*1000 -> 0 | BD121: =$F121*1000*40% -> 0 | BE121: =M121/Gasertrag_berechnet ->  | BF121: =AZ121/Belastung_Substrat -> 
A123: Industrieabwässer und Substrate | B123: Eaux usées industrielles et substrats | C123: Industrial wastewater and substrates | E123: =IF(sprache=1,A123,IF(sprache=2,B123,C123)) -> Industrial wastewater and substrates | BD123: =$F123*1000 -> 0 | BE123: =M123/Gasertrag_berechnet ->  | BF123: =AZ123/Belastung_Substrat -> 
A124: Abwasser, Papierfabrik | B124: Eaux usées, papeterie | C124: Effluent, paper mill | E124: =IF(sprache=1,A124,IF(sprache=2,B124,C124)) -> Effluent, paper mill | F124: 0 | G124: 0 | H124: 0 | I124: 0 | J124: =IF(F124>0,IF(G124/F124/1000<AX124,INDEX(menuesBG!$1:$1048576,Warnung,sprache),""),"") ->  | L124: =F124*S124*V124/10 -> 0 | M124: =F124*S124*V124/10000*AG124 -> 0 | S124: 0.4534 | V124: =1.075*69.7 -> 74.9275 | Y124: =(Z124+AA124)/2 -> 0.06837229819 | Z124: =3.1/1000/(S124/100*1000)*100 -> 0.06837229819 | AA124: =Z124 -> 0.06837229819 | AB124: 100 | AC124: =AD124*Y124 -> 0.09483899427 | AD124: =4.3/3.1 -> 1.387096774 | AG124: 676 | AH124: 650 | AI124: 700 | AJ124: 67 | AK124: =AJ124*$AG124/100 -> 452.92 | AP124: 0 | AW124: =IF(F124>0,G124/F124/1000,0) -> 0 | BD124: =$F124*1000 -> 0 | BE124: =M124/Gasertrag_berechnet ->  | BF124: =AZ124/Belastung_Substrat -> 
A126: Total | B126: Total | C126: Total | E126: Total | F126: =SUM(F8:F124) -> 0 | G126: =SUM(G8:G124) ->  | L126: =SUM(L8:L124) -> 0 | M126: =SUM(M8:M124) -> 0 | AM126: =SUM(AM8:AM124) -> 0 | AN126: =SUM(AN8:AN124) -> 0 | AO126: =SUM(AO8:AO124) -> 0 | AP126: =SUM(AP8:AP124)+AP137 ->  | AQ126: =SUM(AQ8:AQ124) ->  | AZ126: =SUM(AZ8:AZ124) -> 0 | BA126: =SUM(BA8:BA124) -> 0 | BB126: =SUM(BB8:BB124) -> 0 | BC126: =SUM(BC8:BC124) -> 0
A128: Tonnenkilometer Transport, Traktor | B128: Transport de tonnes-kilomètres, tracteur | C128: Tonne-kilometres transport, tractor | E128: =IF(sprache=1,A128,IF(sprache=2,B128,C128)) -> Tonne-kilometres transport, tractor | F128: =SUMPRODUCT(H8:H124,$F8:$F124) -> 0 | AY128: Transport, tractor and trailer/CH U | AZ128: =INDEX(SimaPro!$1:$1048576,AZ$1,MATCH(Substrates!$AY128,SimaPro!$1:$1,0))*$F128 -> 0 | BA128: =INDEX(SimaPro!$1:$1048576,BA$1,MATCH(Substrates!$AY128,SimaPro!$1:$1,0))*$F128 -> 0 | BB128: =INDEX(SimaPro!$1:$1048576,BB$1,MATCH(Substrates!$AY128,SimaPro!$1:$1,0))*$F128 -> 0 | BC128: =INDEX(SimaPro!$1:$1048576,BC$1,MATCH(Substrates!$AY128,SimaPro!$1:$1,0))*$F128 -> 0
A129: Tonnenkilometer Transport, Lkw | B129: Transport de tonnes-kilomètres, camion | C129: Tonne-kilometres transport, truck | E129: Tonne-kilometres transport, truck | F129: =SUMPRODUCT(I8:I124,$F8:$F124) -> 0 | AY129: transport, freight, lorry 16-32 metric ton, fleet average/RER U | AZ129: =INDEX(SimaPro!$1:$1048576,AZ$1,MATCH(Substrates!$AY129,SimaPro!$1:$1,0))*$F129 -> 0 | BA129: =INDEX(SimaPro!$1:$1048576,BA$1,MATCH(Substrates!$AY129,SimaPro!$1:$1,0))*$F129 -> 0 | BB129: =INDEX(SimaPro!$1:$1048576,BB$1,MATCH(Substrates!$AY129,SimaPro!$1:$1,0))*$F129 -> 0 | BC129: =INDEX(SimaPro!$1:$1048576,BC$1,MATCH(Substrates!$AY129,SimaPro!$1:$1,0))*$F129 -> 0
A130: Tonnenkilometer Transport, Total | B130: Tonnes-kilomètres de transport, total | C130: Tonne-kilometres transport, total | E130: Tonne-kilometres transport, total | F130: =tkm_lkw+tkm_traktor -> 0
A131: Einnahmen Substratentsorgung | B131: Recettes de l'élimination des substrats | C131: Substrate disposal revenue | E131: Substrate disposal revenue | F131: =SUMIF(Substrates!G25:G90,">0",Substrates!G25:G90) -> 0
A132: Ausgaben für Substrate | B132: Dépenses relatives aux substrats | C132: Expenditure on substrates | E132: Expenditure on substrates | F132: =SUMIF(Substrates!G25:G90,"<0",Substrates!G25:G90) -> 0
A133: Einnahmen Klärschlammentsorgung | B133: Recettes de l'élimination des boues d'épuration | C133: Revenue sewage sludge disposal | E133: Revenue sewage sludge disposal | F133: =SUMIF(Substrates!G111:G115,">0",Substrates!G111:G115) -> 0
A134: Ausgaben für Klärschlamm | B134: Dépenses relatives aux boues d'épuration | C134: Expenditure on sewage sludge | E134: Expenditure on sewage sludge | F134: =SUMIF(Substrates!G111:G115,"<0",Substrates!G111:G115) -> 0
E135: =Substrates!G4 -> Financial income (plus) or expense (minus), excluding transport costs | F135: =F131+F132+F133+F134 -> 0
A137: Einkauf | B137: Achat | C137: Purchase | E137: =IF(sprache=1,A137,IF(sprache=2,B137,C137)) -> Purchase | F137: =G137/SUM(F25:F90) ->  | G137: =SUMIF(G8:G124,"<0",G8:G124) -> 0 | AL137: =SUM(AL25:AL93) -> 0 | AP137: =MainInput!P88*CH4_GärgutFestLager_Standard*(1+Faktor_CH4) ->  | AR137: =AND(Preis_Entsorgung_flüssig<0,Auswahl_Verwendung_flüssig<5) -> 
A138: Entsorgung | B138: Élimination | C138: Disposal | E138: =IF(sprache=1,A138,IF(sprache=2,B138,C138)) -> Disposal | F138: =G138/SUM(F25:F90) ->  | G138: =SUMIF(G8:G124,">0",G8:G124) -> 0 | L138: =1*S138*V138/10 -> 226.873 | M138: =1*S138*V138/10000*AG138 -> 111.621516 | S138: =(T138+U138)/2 -> 30.7 | T138: 30.7 | U138: 30.7 | V138: =(W138+X138)/2 -> 73.9 | W138: 73.9 | X138: 73.9 | Y138: =(Z138+AA138)/2 -> 2.993055556 | Z138: 2.327777778 | AA138: 3.658333333 | AC138: =AD138*Y138 -> 1.845717593 | AD138: 0.6166666667 | AE138: 45.65 | AF138: 50.55 | AG138: =(AH138+AI138)/2 -> 492 | AH138: 376 | AI138: 608 | AJ138: 57 | AK138: =AJ138*$AG138/100 -> 280.44
A139: Durchschnitt | B139: Moyenne | C139: Average | E139: =IF(sprache=1,A139,IF(sprache=2,B139,C139)) -> Average | F139: =SUM(F25:F108)/F126 ->  | G139: =SUM(G25:G90)/SUM(F25:F90)/1000 ->  | I139: =tkm_lkw/F126 ->  | AM139: emission, CH4, biogenic/kg/CH U | AN139: emission, NH3/kg/CH U | AO139: emission, N2O/kg/CH U | AP139: emission, CH4, biogenic/kg/CH U | AQ139: emission, NH3/kg/CH U | AR139: emission, NH3/kg/CH U | AS139: emission, N2O/kg/CH U | AT139: emission, H2S/kg/CH U | AU139: emission, NMVOC/kg/CH U | AV139: emission, NOx/kg/CH U
A140: Zurück zur Prüfung | B140: Retour à tester | C140: Back to the exam sheet | E140: =IF(sprache=1,A140,IF(sprache=2,B140,C140)) -> Back to the exam sheet
T141: Diese Zahlen müssen noch kontrolliert werden. Bisher wurde der Durchschnitt verwendet. | AI141: Eco-indicator | AL141: =DirekteEmissionen!A29 -> 29 | AM141: =INDEX(DirekteEmissionen!$1:$1048576,Substrates!$AL141,MATCH(Substrates!AM$139,DirekteEmissionen!$28:$28,0)) -> 0.17401619 | AN141: =INDEX(DirekteEmissionen!$1:$1048576,Substrates!$AL141,MATCH(Substrates!AN$139,DirekteEmissionen!$28:$28,0)) -> 4.9680544 | AO141: =INDEX(DirekteEmissionen!$1:$1048576,Substrates!$AL141,MATCH(Substrates!AO$139,DirekteEmissionen!$28:$28,0)) -> 3.14916 | AP141: =INDEX(DirekteEmissionen!$1:$1048576,Substrates!$AL141,MATCH(Substrates!AP$139,DirekteEmissionen!$28:$28,0)) -> 0.17401619 | AQ141: =INDEX(DirekteEmissionen!$1:$1048576,Substrates!$AL141,MATCH(Substrates!AQ$139,DirekteEmissionen!$28:$28,0)) -> 4.9680544 | AR141: =INDEX(DirekteEmissionen!$1:$1048576,Substrates!$AL141,MATCH(Substrates!AR$139,DirekteEmissionen!$28:$28,0)) -> 4.9680544 | AS141: =INDEX(DirekteEmissionen!$1:$1048576,Substrates!$AL141,MATCH(Substrates!AS$139,DirekteEmissionen!$28:$28,0)) -> 3.14916 | AT141: =INDEX(DirekteEmissionen!$1:$1048576,Substrates!$AL141,MATCH(Substrates!AT$139,DirekteEmissionen!$28:$28,0)) -> 0 | AU141: =INDEX(DirekteEmissionen!$1:$1048576,Substrates!$AL141,MATCH(Substrates!AU$139,DirekteEmissionen!$28:$28,0)) -> 0.0584192 | AV141: =INDEX(DirekteEmissionen!$1:$1048576,Substrates!$AL141,MATCH(Substrates!AV$139,DirekteEmissionen!$28:$28,0)) -> 4.447721
E142: *) Die Literaturwerte beziehen sich auf das Ausgangsmaterial. Hier wird geschätzt, wie viel Ammonium nach dem Abbau vorhanden sein wird. | AI142: IPCC GWP 100a | AL142: =DirekteEmissionen!A63 -> 63 | AM142: =INDEX(DirekteEmissionen!$1:$1048576,Substrates!$AL142,MATCH(Substrates!AM$139,DirekteEmissionen!$28:$28,0)) -> 27.75 | AN142: =INDEX(DirekteEmissionen!$1:$1048576,Substrates!$AL142,MATCH(Substrates!AN$139,DirekteEmissionen!$28:$28,0)) -> 0 | AO142: =INDEX(DirekteEmissionen!$1:$1048576,Substrates!$AL142,MATCH(Substrates!AO$139,DirekteEmissionen!$28:$28,0)) -> 265 | AP142: =INDEX(DirekteEmissionen!$1:$1048576,Substrates!$AL142,MATCH(Substrates!AP$139,DirekteEmissionen!$28:$28,0)) -> 27.75 | AQ142: =INDEX(DirekteEmissionen!$1:$1048576,Substrates!$AL142,MATCH(Substrates!AQ$139,DirekteEmissionen!$28:$28,0)) -> 0 | AR142: =INDEX(DirekteEmissionen!$1:$1048576,Substrates!$AL142,MATCH(Substrates!AR$139,DirekteEmissionen!$28:$28,0)) -> 0 | AS142: =INDEX(DirekteEmissionen!$1:$1048576,Substrates!$AL142,MATCH(Substrates!AS$139,DirekteEmissionen!$28:$28,0)) -> 265 | AT142: =INDEX(DirekteEmissionen!$1:$1048576,Substrates!$AL142,MATCH(Substrates!AT$139,DirekteEmissionen!$28:$28,0)) -> 0 | AU142: =INDEX(DirekteEmissionen!$1:$1048576,Substrates!$AL142,MATCH(Substrates!AU$139,DirekteEmissionen!$28:$28,0)) -> 0 | AV142: =INDEX(DirekteEmissionen!$1:$1048576,Substrates!$AL142,MATCH(Substrates!AV$139,DirekteEmissionen!$28:$28,0)) -> 0
E143: Es wurde berücksichtigt, dass nicht alle Substrate gleich gut abbaubar sind und dass daher mehr oder weniger Ammonium frei wird. (vgl. auch Edelmann Ökobilanz S. 34, S. 67 ff) | AI143: Cumulative Energy Demand, differenziert V1.04 / CED, non-renewable | AM143: =AP143 -> 0 | AN143: 0 | AO143: =AS143 -> 0 | AP143: 0 | AQ143: 0 | AR143: =AQ143 -> 0 | AS143: 0 | AT143: 0 | AU143: 0 | AV143: 0
E144: Annahme, dass bei höherer Gasproduktion auch prozentual mehr Stickstoff frei wird; bei Mist geht vor der Gärung schon einiges verloren; | AI144: Ecological Scarcity 2006 V1.02 / Ecological scarcity 2006 | AL144: =DirekteEmissionen!A93 -> 93 | AM144: =INDEX(DirekteEmissionen!$1:$1048576,Substrates!$AL144,MATCH(Substrates!AM$139,DirekteEmissionen!$28:$28,0)) -> 12000 | AN144: =INDEX(DirekteEmissionen!$1:$1048576,Substrates!$AL144,MATCH(Substrates!AN$139,DirekteEmissionen!$28:$28,0)) -> 67000 | AO144: =INDEX(DirekteEmissionen!$1:$1048576,Substrates!$AL144,MATCH(Substrates!AO$139,DirekteEmissionen!$28:$28,0)) -> 140000 | AP144: =INDEX(DirekteEmissionen!$1:$1048576,Substrates!$AL144,MATCH(Substrates!AP$139,DirekteEmissionen!$28:$28,0)) -> 12000 | AQ144: =INDEX(DirekteEmissionen!$1:$1048576,Substrates!$AL144,MATCH(Substrates!AQ$139,DirekteEmissionen!$28:$28,0)) -> 67000 | AR144: =INDEX(DirekteEmissionen!$1:$1048576,Substrates!$AL144,MATCH(Substrates!AR$139,DirekteEmissionen!$28:$28,0)) -> 67000 | AS144: =INDEX(DirekteEmissionen!$1:$1048576,Substrates!$AL144,MATCH(Substrates!AS$139,DirekteEmissionen!$28:$28,0)) -> 140000 | AT144: =INDEX(DirekteEmissionen!$1:$1048576,Substrates!$AL144,MATCH(Substrates!AT$139,DirekteEmissionen!$28:$28,0)) -> 39000 | AU144: =INDEX(DirekteEmissionen!$1:$1048576,Substrates!$AL144,MATCH(Substrates!AU$139,DirekteEmissionen!$28:$28,0)) -> 14000 | AV144: =INDEX(DirekteEmissionen!$1:$1048576,Substrates!$AL144,MATCH(Substrates!AV$139,DirekteEmissionen!$28:$28,0)) -> 39000
E145: Gülle und Mist haben schon vor der Gärung einen gewissen Ammoniumanteil, da sie schon durch den Verdauungstrakt gingen. Pflanzliche Substrate hingegen haben vor der Gärung noch | AX145: Substrate
E146: wenig Ammonium. Ein Teil des Stickstoffs wird in der Bakterienbiomasse gebunden, ein Teil bleibt im unvergorenen Rest: | AI146: Eco-indicator | AM146: =AM141*AM$126 -> 0 | AN146: 0 | AO146: 0 | AQ146: =AQ141*AQ$126 ->  | AT146: =AT141*AT$126 ->  | AX146: =TRANSPOSE(AZ126:BC126) -> 0
E147: wenig Stickstoff, wenig Gas: weniger Ammonium wird freigesetzt | AI147: IPCC GWP 100a | AM147: =AM142*AM$126 -> 0 | AN147: 0 | AO147: 0 | AP147: =AP142*AP$126 ->  | AQ147: =AQ142*AQ$126 ->  | AX147: 0
E148: wenig Stickstoff, viel Gas: sehr wenig wird freigesetzt; viel in Biomasse! (Fett) | AI148: Cumulative Energy Demand, differenziert V1.04 / CED, non-renewable | AM148: 0 | AN148: 0 | AO148: 0 | AP148: =AP143*AP$126 ->  | AX148: 0
E149: sehr viel Stickstoff, hoher Abbau: (sehr) viel wird freigesetzt (Eiweiss bei Fleisch und Blut) | AI149: Ecological Scarcity 2006 V1.02 / Ecological scarcity 2006 | AM149: 0 | AN149: 0 | AO149: 0 | AP149: =AP144*AP$126 ->  | AX149: 0
E151: Zahlen gültig für Aufstallungssystem nach Wirz Taschenbuch: Laufstallmist + viel Vollgülle (10-40% eingestreut) pro Jahr
E152: Biogaserträge eher konservativ gerechnet: Biogas aus Nachgärbehälter nicht eingerechnet! Die CH4-Ertragszahlen sind abgeglichen mit Ökostrom Schweiz und Genesys.
E153: Gülleverdünnung ist mit 1:1 gerechnet (Abwasser aus Stallreinigung und Tierpflege, Platzwasser…)
S154: Landwrtschaft / Substrate: Ökostrom Schweiz, A. Wellinger 2012
S155: Klärschlamm: eigene Messwerte aus zahlreichen Messungen, A. Wellinger 2012
S156: Ergänzungen M. Stucki, 2011
S157: Default Wert, Durchschnitt der Substrate
S158: Aktualisierung TS-Gehalte 2019 mit A. Wellinger & A. Utiger auf Datengrundlage des Berichts "Bestimmung der TS- und OS-Gehalte von Ausgangsmaterialien für die Feststoffvergärung

Sheet Results
C1: Deutsch | D1: Französisch | E1: English | F1: =OFFSET(C1:C51,0,sprache-1) -> English
B2: 2 | F2: 0 | G2: =MainInput!G2 -> naturemade star certification: Energy products from biogas plants
F3: 0 | G3: =IF(NOT(name=0),name,"") -> 
C4: Link zur Eingabeseite | D4: Lien vers la page d'entrée principale | E4: Link to the main input page | F4: Link to the main input page | G4: =F4 -> Link to the main input page
C5: Globales Kriterium Resultate Übersicht | D5: Aperçu des résultats | E5: Global criterion results overview | F5: Global criterion results overview | G5: =F5 -> Global criterion results overview
F6: 0 | H6: =menuesBG!$D$29 -> Eco-indicator 99 points
C7: Prüfwert naturemade star | D7: Test de valeur naturemade star | E7: Test value naturemade star | F7: Test value naturemade star | G7: =F7 -> Test value naturemade star | H7: =H51 -> 
C8: =name -> 0 | D8: =name -> 0 | E8: =name -> 0 | F8: 0 | G8: =F8 -> 0 | H8: =H37 -> 
C9: Erfüllungsgrad globales Kriterium | D9: Degré de réalisation du critère global | E9: Degree of fulfilment of global criterion | F9: Degree of fulfilment of global criterion | G9: =F9 -> Degree of fulfilment of global criterion | H9: =H8/H7 -> 
F10: 0
C11: Grenzwert Umweltbelastung eingehalten | D11: Limite des nuisances environnementales respectée | E11: Environmental impact threshold value met | F11: Environmental impact threshold value met | G11: =IF(H11>0,F11,F14) ->  | H11: =IF(H8<H7,1,-1) -> 
C12: Die Daten sind plausibel | D12: Les données sont plausibles | E12: data is plausible | F12: data is plausible | G12: =IF(H12>0,F12,F16) -> The data is not plausible, please check your entries | H12: =MainInput!I105 -> 0
C13: Die naturemade star-Prüfung ist bestanden | D13: Le test de naturemade star est réussi | E13: The naturemade star test has been passed | F13: The naturemade star test has been passed | G13: =IF(H13>0,F13,IF(H12<=0,F18,F17)) ->  | H13: =SUM(H11:H12) -> 
C14: Grenzwert Umweltbelastung überschritten | D14: Dépassement de la limite des nuisances environnementales | E14: Environmental impact threshold value exceeded | F14: Environmental impact threshold value exceeded
C15: Die Nutzung von Energiepflanzen ist nicht erlaubt | D15: L'utilisation de cultures énergétiques n'est pas autorisée | E15: Use of energy crops is not allowed | F15: Use of energy crops is not allowed
C16: Die Daten sind nicht plausibel, bitte überprüfen Sie Ihre Eingaben | D16: Les données ne sont pas plausibles, veuillez vérifier vos entrées | E16: The data is not plausible, please check your entries | F16: The data is not plausible, please check your entries
C17: Die naturemade star-Prüfung ist nicht bestanden | D17: Le test de naturemade star n'est pas réussi | E17: The naturemade star test has not been passed | F17: The naturemade star test has not been passed
C18: Die naturemade star-Prüfung ist teilweise nicht bestanden | D18: Le test de naturemade star est partiellement raté | E18: The naturemade star test has partially not been passed | F18: The naturemade star test has partially not been passed
C19: naturemade star zertifizierbare Energiemenge | D19: quantité d'énergie certifiable naturemade star | E19: naturemade star certifiable energy quantity | F19: naturemade star certifiable energy quantity | G19: =F19 -> naturemade star certifiable energy quantity | H19: kWh
C20: Gas | D20: Gaz | E20: Gas | F20: Gas | G20: =F20 -> Gas | H20: =MainInput!H62+MainInput!H63-MainInput!H53*((MainInput!H62+MainInput!H63)/(MainInput!H62+MainInput!H63+MainInput!H73+MainInput!H79)) -> 
C21: Strom | D21: Électricité | E21: Electricity | F21: Electricity | G21: =F21 -> Electricity | H21: =MainInput!H73-MainInput!H53*((MainInput!H73)/(MainInput!H62+MainInput!H63+MainInput!H73+MainInput!H79)) -> 
C22: Wärme | D22: Chaleur | E22: Heat | F22: Heat | G22: =F22 -> Heat | H22: =MainInput!H79-MainInput!H53*((MainInput!H79)/(MainInput!H62+MainInput!H63+MainInput!H73+MainInput!H79)) -> 
F23: 0
C24: Ökobilanz Resultate | D24: Résultats de l'analyse d'impact du cycle de vie | E24: Life cycle impact assessment results | F24: Life cycle impact assessment results | G24: =F24 -> Life cycle impact assessment results
F25: 0
B26: 4 | F26: 0 | G26: =name -> 0 | H26: =menuesBG!$D$29 -> Eco-indicator 99 points
F27: 0 | G27: =EPD!F4 -> Infrastructure | H27: =SUM(LCIAbg!$C$8:$E$8) -> 
F28: 0 | G28: =EPD!F5 -> External energy demand | H28: =MainInput!V52 -> 
F29: 0 | G29: =EPD!F6 -> Purchased substrates | H29: =Substrates!AX146+MainInput!V23 -> 0
F30: 0 | G30: =EPD!F7 -> Direct emissions (e.g. slurry storage, post-rotting) | H30: =LCIAbg!$N$8 -> 
F31: 0 | G31: =EPD!F8 -> Transports | H31: =SUM(Substrates!AZ128:AZ129,MainInput!V102) -> 0
F32: 0 | G32: =EPD!F9 -> Biogas losses (methane slip, treatment, interruptions) | H32: =MainInput!V59 -> 0
F33: 0 | G33: =EPD!F10 -> Biomethane: sales and consumption outside the plant (11.4 kWh Ho/m3) | H33: =MainInput!V62 -> 0
F34: 0 | G34: =EPD!F11 -> Biogas: sale and consumption outside the plant (6.5 kWh Ho/m3) | H34: =MainInput!V63 -> 0
F35: 0 | G35: =EPD!F12 -> Incineration | H35: =SUM(MainInput!V60,MainInput!V64,MainInput!V66,MainInput!V76) -> 0
F36: 0 | G36: =EPD!F13 -> Treatment and storage of digestate | H36: =SUM(LCIAbg!$F$8:$L$8) -> 
C37: Total | D37: Total | E37: Total | F37: Total | G37: =F37 -> Total | H37: =SUM(H27:H36) -> 
F38: 0
C39: Zusammensetzung naturemade star Prüfwert | D39: Composition valeur d'essai naturemade star | E39: Composition naturemade star test value | F39: Composition naturemade star test value | G39: =F39 -> Composition naturemade star test value | H39: =menuesBG!$D$29 -> Eco-indicator 99 points
F40: 0 | G40: =EPD!F18 -> Limit value, electricity | H40: =MainInput!AA73 -> 0
F41: 0 | G41: =EPD!F19 -> Limit value, heat | H41: =MainInput!AA79 -> 0
F42: 0 | G42: =EPD!F20 -> Limit value, biomethane | H42: =MainInput!AA62 -> 0
F43: 0 | G43: =EPD!F21 -> Limit value, biogas | H43: =MainInput!AA63 -> 0
F44: 0 | G44: =EPD!F22 -> Reference, disposal | H44: =MainInput!AA16 -> 
F45: 0 | G45: =EPD!F23 -> Reference, liquid manure storage | H45: =MainInput!AA15 -> 
F46: 0 | G46: =EPD!F24 -> Reference, compost | H46: =EPD!H24 -> 
F47: 0 | G47: =EPD!F25 -> Reference, fresh sewage sludge | H47: =EPD!H25 -> 0
F48: 0 | G48: =EPD!F26 -> Reference, waste water, paper mill | H48: =MainInput!AA22 -> 0
F49: 0 | G49: =EPD!F27 -> Reference, fuel, cement plant | H49: =EPD!H27 -> 
F50: 0 | G50: =EPD!F28 -> Reference, direct emissions | H50: =SUM(Substrates!AM146:AO146) -> 0
C51: Summe, naturemade star Prüfwert | D51: Total, valeur du test naturemade star | E51: Total, naturemade star test value | F51: Total, naturemade star test value | G51: =F51 -> Total, naturemade star test value | H51: =SUM(H40:H50) -> 

Sheet Plant types
B2: Auswahlhilfe Anlagentyp
B5: Bezeichnung/Auswahl | C5: Andere Bezeichnungen | D5: Hauptsubstrat | E5: Infrastruktur und Standort | F5: Verwendung Gärrest | G5: Hauptzweck | H5: Referenz Co-Produkte
B6: Grüngut und industrielle Vergärungsanlagen | C6: Kompogas | D6: Grüngut, Verschiedene Substrate aus Haushalten und Betrieben | E6: Inkl. Vor- und Nachbehandlung, in Industriegebiet | F6: Kompost | G6: Energie | H6: Kompost
D7: Gastroabfälle, Schlachtabfälle Kat. 2 und 3 | E7: Inkl. Vor- und Nachbehandlung, in Industriegebiet, Hygienisierung | F7: Kompost | G7: Energie | H7: Kompost
C8: Industrielle Vergärung | D8: Schlachtabfälle, Tierkadaver, Kategorie 1, (auch in kleinen Anteilen) | E8: Inkl. Vor- und Nachbehandlung, in Industriegebiet oder Grüngutanlage, Hygienisierung | F8: Verbrennung in KVA oder Zementwerk | G8: Abfallbehandlung | H8: Direkte Verbrennung von Kat. 1, keine Referenz für andere Inputs
B9: Landwirtschaft | D9: 50% Gülle und Mist plus Co-Substrat | E9: Teilweise Vor- und Nachbehandlung, beim Bauernhof in Landwirtschaftszone | F9: Hofdünger, evtl. Kompost | G9: Energie | H9: Direkte Ausbringung
B10: Kläranlage | D10: Klärschlamm | E10: Hauptsächlich Gärbehälter, bei kommunaler Kläranlage | F10: Verbrennung | G10: Abfallbehandlung | H10: =H8 -> Direkte Verbrennung von Kat. 1, keine Referenz für andere Inputs
B12: Energiepflanzen, Nicht zur naturemade Prüfung zugelassen | D12: Energiepflanzen (Mais, Grassilage, Grünroggen, GPS, etc.) | E12: =E9 -> Teilweise Vor- und Nachbehandlung, beim Bauernhof in Landwirtschaftszone | F12: Hofdünger, evtl. Kompost | G12: Energie | H12: Keine
B13: Industrielle Abwässer (Prüfung z.Zt. nur für Einzelfälle möglich) | C13: Industrielle Vergärung | D13: Abwasser aus einem Produktionsprozess | E13: Hauptsächlich Gärbehälter, Industriebetrieb in dem Abwässer anfallen | F13: Einleitung in Gewässer bzw. kommunale Kläranlage | G13: Vorklärung | H13: Abbau CSB in Vorklärung oder kommunaler Kläranlage
B15: Zurück zur Eingabe

Sheet OwnCalculations

Sheet EPD
L1: 29 | M1: 35 | N1: 34 | O1: 31
A2: 29 | B2: Deutsch | C2: Französisch | D2: Englisch | E2: =OFFSET(B2:B56,0,sprache-1) -> Englisch | F2: =name -> 0 | H2: =L2 -> Eco-indicator 99 points | I2: Anteil | L2: =INDEX(menuesBG!$1:$1048576,L1,sprache) -> Eco-indicator 99 points | M2: =INDEX(menuesBG!$1:$1048576,$M1,sprache) -> Carbon footprint 100a 2013 | N2: =INDEX(menuesBG!$1:$1048576,N1,sprache) -> Demand for non-renewable energy resources | O2: =INDEX(menuesBG!$1:$1048576,O1,sprache) -> Ecological scarcity points 2013 | P2: =M2 -> Carbon footprint 100a 2013 | Q2: =N2 -> Demand for non-renewable energy resources | R2: =O2 -> Ecological scarcity points 2013
A3: 56 | E3: 0 | H3: =L3 -> Pkt | L3: Pkt | M3: kg CO2-eq | N3: MJ-eq | O3: Pkt | P3: % | Q3: % | R3: %
A4: 50 | B4: Infrastruktur | C4: Infrastructure | D4: Infrastructure | E4: Infrastructure | F4: =E4 -> Infrastructure | I4: =L4/L$14 ->  | L4: =Results!H27 ->  | M4: =SUM(LCIAbg!$C$9:$E$9) ->  | N4: =SUM(LCIAbg!$C$10:$E$10) ->  | O4: =SUM(LCIAbg!$C$11:$E$11) ->  | P4: =M4/M$14 ->  | Q4: =N4/N$14 ->  | R4: =O4/O$14 -> 
A5: 45 | B5: Fremdenergiebedarf | C5: Consommations d'énergie additionnelle | D5: External energy demand | E5: External energy demand | F5: =E5 -> External energy demand | L5: =Results!H28 ->  | M5: =MainInput!W52 ->  | N5: =MainInput!X52 ->  | O5: =MainInput!Y52 -> 
A6: 46 | B6: eingekaufte Substrate | C6: Substrats achetés | D6: Purchased substrates | E6: Purchased substrates | F6: Purchased substrates | L6: =Results!H29 -> 0 | M6: =Substrates!$AX147+MainInput!W23 -> 0 | N6: =Substrates!$AX148+MainInput!X23 -> 0 | O6: =Substrates!$AX149+MainInput!Y23 -> 0
A7: 20 | B7: direkte Emissionen (z.B. Güllelager, Nachrotte) | C7: Émissions directes | D7: Direct emissions (e.g. slurry storage, post-rotting) | E7: Direct emissions (e.g. slurry storage, post-rotting) | F7: Direct emissions (e.g. slurry storage, post-rotting) | L7: =Results!H30 ->  | M7: =LCIAbg!$N$9 ->  | N7: =LCIAbg!$N$10 ->  | O7: =LCIAbg!$N$11 -> 
A8: 47 | B8: Transporte | C8: Transports | D8: Transports | E8: Transports | F8: Transports | L8: =Results!H31 -> 0 | M8: =SUM(Substrates!BA128:BA129,MainInput!W102) -> 0 | N8: =SUM(Substrates!BB128:BB129,MainInput!X102) -> 0 | O8: =SUM(Substrates!BC128:BC129,MainInput!Y102) -> 0
A9: 24 | B9: Biogas Verluste | C9: Pertes de biogaz (volatilisation, conditionnement et interruptions) | D9: Biogas losses (methane slip, treatment, interruptions) | E9: Biogas losses (methane slip, treatment, interruptions) | F9: Biogas losses (methane slip, treatment, interruptions) | L9: =Results!H32 -> 0 | M9: =MainInput!W59 -> 0 | N9: =MainInput!X59 -> 0 | O9: =MainInput!Y59 -> 0
A10: 16 | B10: Biomethan: Verkauf und ausserhalb Verbrauch | C10: Biométhane: vente et conso. hors installation (11.4 kWh Ho/m3) | D10: Biomethane: sales and consumption outside the plant (11.4 kWh Ho/m3) | E10: Biomethane: sales and consumption outside the plant (11.4 kWh Ho/m3) | F10: Biomethane: sales and consumption outside the plant (11.4 kWh Ho/m3) | L10: =Results!H33 -> 0 | M10: =MainInput!W62 -> 0 | N10: =MainInput!X62 -> 0 | O10: =MainInput!Y62 -> 0
A11: 116 | B11: Biogas: Verkauf und ausserhalb Verbrauch | C11: Biogaz: vente et conso. hors installation (6.5 kWh Ho/m3) | D11: Biogas: sale and consumption outside the plant (6.5 kWh Ho/m3) | E11: Biogas: sale and consumption outside the plant (6.5 kWh Ho/m3) | F11: Biogas: sale and consumption outside the plant (6.5 kWh Ho/m3) | L11: =Results!H34 -> 0 | M11: =MainInput!W63 -> 0 | N11: =MainInput!X63 -> 0 | O11: =MainInput!Y63 -> 0
A12: 48 | B12: Verbrennung | C12: Combustion | D12: Incineration | E12: Incineration | F12: Incineration | L12: =Results!H35 -> 0 | M12: =SUM(MainInput!W60,MainInput!W64,MainInput!W66,MainInput!W76) -> 0 | N12: =SUM(MainInput!X60,MainInput!X64,MainInput!X66,MainInput!X76) -> 0 | O12: =SUM(MainInput!Y60,MainInput!Y64,MainInput!Y66,MainInput!Y76) -> 0
A13: 28 | B13: Gärreste Behandlung und Lagerung | C13: Traitement et stockage du digestat | D13: Treatment and storage of digestate | E13: Treatment and storage of digestate | F13: Treatment and storage of digestate | L13: =Results!H36 ->  | M13: =SUM(LCIAbg!$F$9:$K$9) ->  | N13: =SUM(LCIAbg!$F$10:$K$10) ->  | O13: =SUM(LCIAbg!$F$11:$K$11) -> 
A14: 17 | B14: Total | C14: Total | D14: Total | E14: Total | F14: Total | I14: =SUM(I4:I13) ->  | L14: =SUM(L4:L13) ->  | M14: =SUM(M4:M13) ->  | N14: =SUM(N4:N13) ->  | O14: =SUM(O4:O13) ->  | P14: =SUM(P4:P13) ->  | Q14: =SUM(Q4:Q13) -> 
A15: 49 | E15: 0
A16: 56 | B16: naturemade Prüfwert | C16: Valeur de contrôle naturemade | D16: naturemade certification value | E16: naturemade certification value | F16: =E16 -> naturemade certification value | G16: =F14 -> Total | K16: =name -> 0 | O16: =INDEX(menuesBG!$1:$1048576,$A15,sprache) -> Environmental product declaration
B17: Total | C17: Total | D17: Total | E17: Total | G17: a | L17: =L3 -> Pkt | M17: =M3 -> kg CO2-eq | N17: =N3 -> MJ-eq | O17: =O3 -> Pkt
A18: 51 | B18: Grenzwert Strom | C18: Valeur-limite courant | D18: Limit value, electricity | E18: Limit value, electricity | F18: =E18 -> Limit value, electricity | G18: =INDEX(Prüfwert!$1:$1048576,8,MATCH($A18,Prüfwert!$1:$1,0)) -> 0 | H18: =Results!H40 -> 0 | I18: =H18/H$29 ->  | K18: =REPLACE(F18,1,IF(sprache=3,13,IF(sprache=1,10,14)),"")&", kWh" -> electricity, kWh | L18: =IF($G18>0,$I18*L$14/$G18,0) -> 0 | M18: =IF($G18>0,$I18*M$14/$G18,0) -> 0 | N18: 0 | O18: 0
A19: 52 | B19: Grenzwert Wärme | C19: Valeur-limite chaleur | D19: Limit value, heat | E19: Limit value, heat | F19: =E19 -> Limit value, heat | G19: =INDEX(Prüfwert!$1:$1048576,8,MATCH($A19,Prüfwert!$1:$1,0)) -> 0 | H19: =Results!H41 -> 0 | K19: =REPLACE(F19,1,IF(sprache=3,13,IF(sprache=1,10,14)),"")&", kWh" -> heat, kWh | L19: =IF($G19>0,$I19*L$14/$G19,0) -> 0 | M19: 0 | N19: 0 | O19: 0
A20: 53 | B20: Grenzwert Biomethan | C20: Valeur-limite biométhane | D20: Limit value, biomethane | E20: Limit value, biomethane | F20: Limit value, biomethane | G20: =INDEX(Prüfwert!$1:$1048576,8,MATCH($A20,Prüfwert!$1:$1,0)) -> 0 | H20: =Results!H42 -> 0 | K20: =REPLACE(F20,1,IF(sprache=3,13,IF(sprache=1,10,14)),"")&", kWh" -> biomethane, kWh | L20: =IF($G20>0,$I20*L$14/$G20,0) -> 0 | M20: 0 | N20: 0 | O20: 0
A21: 117 | B21: Grenzwert Biogas | C21: Valeur-limite biogaz | D21: Limit value, biogas | E21: Limit value, biogas | F21: Limit value, biogas | G21: =INDEX(Prüfwert!$1:$1048576,8,MATCH($A21,Prüfwert!$1:$1,0)) -> 0 | H21: =Results!H43 -> 0 | K21: =REPLACE(F21,1,IF(sprache=3,13,IF(sprache=1,10,14)),"")&", kWh" -> biogas, kWh | L21: =IF($G21>0,$I21*L$14/$G21,0) -> 0 | M21: 0 | N21: 0 | O21: 0
A22: 54 | B22: Referenz, Entsorgung | C22: Référence pour le traitement des déchets | D22: Reference, disposal | E22: Reference, disposal | F22: Reference, disposal | G22: =INDEX(Prüfwert!$1:$1048576,6,MATCH($A22,Prüfwert!$1:$1,0)) -> 0 | H22: =Results!H44 -> 
A23: 88 | B23: Referenz, Güllelager | C23: Référence pour le dépôt de lisier | D23: Reference, liquid manure storage | E23: Reference, liquid manure storage | F23: Reference, liquid manure storage | G23: =INDEX(Prüfwert!$1:$1048576,4,MATCH($A23,Prüfwert!$1:$1,0)) -> 0 | H23: =Results!H45 -> 
A24: 89 | B24: Referenz, Kompost | C24: Référence pour le compost | D24: Reference, compost | E24: Reference, compost | F24: Reference, compost | G24: =INDEX(Prüfwert!$1:$1048576,8,MATCH($A24,Prüfwert!$1:$1,0)) -> 0 | H24: =INDEX(Prüfwert!$1:$1048576,10,MATCH($A24,Prüfwert!$1:$1,0)) -> 
A25: 90 | B25: Referenz, Frischklärschlamm | C25: Référence pour les boues d'épuration fraîches | D25: Reference, fresh sewage sludge | E25: Reference, fresh sewage sludge | F25: Reference, fresh sewage sludge | G25: =INDEX(Prüfwert!$1:$1048576,5,MATCH($A25,Prüfwert!$1:$1,0)) -> 0 | H25: =INDEX(Prüfwert!$1:$1048576,10,MATCH($A25,Prüfwert!$1:$1,0)) -> 0
A26: 121 | B26: Referenz, Abwasser, Papierfabrik | C26: Référence, eaux usées, papeterie | D26: Reference, waste water, paper mill | E26: Reference, waste water, paper mill | F26: Reference, waste water, paper mill | G26: =INDEX(Prüfwert!$1:$1048576,5,MATCH($A26,Prüfwert!$1:$1,0)) -> 0 | H26: =Results!H48 -> 0
A27: 101 | B27: Referenz, Brennstoff, Zementwerk | C27: Référence pour le carburant, en cimenterie | D27: Reference, fuel, cement plant | E27: Reference, fuel, cement plant | F27: Reference, fuel, cement plant | G27: =INDEX(Prüfwert!$1:$1048576,5,MATCH($A27,Prüfwert!$1:$1,0)) -> 0 | H27: =INDEX(Prüfwert!$1:$1048576,10,MATCH($A27,Prüfwert!$1:$1,0)) -> 
A28: 63 | B28: Referenz, direkte Emissionen | C28: Référence pour les émissions directes | D28: Reference, direct emissions | E28: Reference, direct emissions | F28: Reference, direct emissions | H28: =Results!H50 -> 0
A29: 17 | B29: Total | C29: Total | D29: Total | E29: Total | F29: Total | H29: =SUM(H18:H28) ->  | K29: =Results!G9 -> Degree of fulfilment of global criterion | O29: =L14/H29 -> 
B30: Einfache Distanz Anlage - Ausbringung/Entsorgung | C30: Distance simple installation - épandage/traitement des déchets | D30: Simple distance plant - Spreading/Disposal | E30: Simple distance plant - Spreading/Disposal
A31: 106 | B31: Allokation nach Exergie-Gehalt (ecoinvent) | C31: Allocation d'après contenu exégétique (fiche supplémentaire) | D31: Allocation according to exergy content (ecoinvent) | E31: Allocation according to exergy content (ecoinvent) | F31: =E31 -> Allocation according to exergy content (ecoinvent) | G31: =F29 -> Total | K31: =name -> 0 | O31: =F31 -> Allocation according to exergy content (ecoinvent)
B32: Einspeisung in Fernwärmenetz | C32: Alimentation chauffage à distance / pertes de distribution | D32: Feed into a heat network / distribution losses district heating network | E32: Feed into a heat network / distribution losses district heating network | F32: =E32 -> Feed into a heat network / distribution losses district heating network | G32: a | H32: kWh | L32: =L17 -> Pkt | M32: =M17 -> kg CO2-eq | N32: MJ-eq | O32: Pkt
A33: 51 | B33: Grenzwert Strom | C33: Valeur-limite courant | D33: Limit value, electricity | E33: Limit value, electricity | F33: =E33 -> Limit value, electricity | G33: =INDEX(Prüfwert!$1:$1048576,8,MATCH($A33,Prüfwert!$1:$1,0)) -> 0 | H33: =G33 -> 0 | I33: =(1-SUM(I$37:I$42))*H33/SUM(H$33:H$36) ->  | K33: =REPLACE(F33,1,TextEPD,"")&", kWh" -> electricity, kWh | L33: =IF($G33>0,($I33*L$38+L$12*$H33/SUM($H$33:$H$34))/$G33,0) -> 0 | M33: 0 | N33: 0 | O33: 0
A34: 52 | B34: Grenzwert Wärme | C34: Valeur-limite chaleur | D34: Limit value, heat | E34: Limit value, heat | F34: Limit value, heat | G34: =INDEX(Prüfwert!$1:$1048576,8,MATCH($A34,Prüfwert!$1:$1,0)) -> 0 | H34: =0.17*G34 -> 0 | I34: =(1-SUM(I$37:I$42))*H34/SUM(H$33:H$36) ->  | K34: =REPLACE(F34,1,TextEPD,"")&", kWh" -> heat, kWh | L34: 0 | M34: 0 | N34: 0 | O34: 0
A35: 53 | B35: Grenzwert Biomethan | C35: Valeur-limite biométhane | D35: Limit value, biomethane | E35: Limit value, biomethane | F35: Limit value, biomethane | G35: =INDEX(Prüfwert!$1:$1048576,8,MATCH($A35,Prüfwert!$1:$1,0)) -> 0 | H35: =G35 -> 0 | K35: =REPLACE(F35,1,TextEPD,"")&", kWh" -> biomethane, kWh | L35: =IF($G35>0,($I35/SUM($I$35:$I$36)*(L$14-SUM(L$39:L$40,L$10:L$11))+L10)/$G35,0) -> 0 | M35: =IF($G35>0,($I35/SUM($I$35:$I$36)*(M$14-SUM(M$39:M$40,M$10:M$11))+M10)/$G35,0) -> 0 | N35: 0 | O35: 0
A36: 117 | B36: Grenzwert Biogas | C36: Valeur-limite biogaz | D36: Limit value, biogas | E36: Limit value, biogas | F36: Limit value, biogas | G36: =INDEX(Prüfwert!$1:$1048576,8,MATCH($A36,Prüfwert!$1:$1,0)) -> 0 | H36: =G36 -> 0 | K36: =REPLACE(F36,1,TextEPD,"")&", kWh" -> biogas, kWh | L36: =IF($G36>0,($I36/SUM($I$35:$I$36)*(L$14-SUM(L$39:L$40,L$10:L$11))+L11)/$G36,0) -> 0 | M36: =IF($G36>0,($I36/SUM($I$35:$I$36)*(M$14-SUM(M$39:M$40,M$10:M$11))+M11)/$G36,0) -> 0 | N36: 0 | O36: 0
A37: 54 | B37: Referenz, Entsorgung | C37: Référence pour le traitement des déchets | D37: Reference, disposal | E37: Reference, disposal | F37: Reference, disposal | G37: =Substrates!F135 -> 0 | I37: =IF(G43>0,G37/G$43*H$44,0) -> 0
A38: 88 | B38: Referenz, Güllelager | C38: Référence pour le dépôt de lisier | D38: Reference, liquid manure storage | E38: Reference, liquid manure storage | F38: Reference, liquid manure storage | I38: 0 | K38: Total | L38: =L14-SUM(L10:L12) ->  | M38: =M14-SUM(M10:M12) ->  | P38: ohne getrennt alloziert
A39: 89 | B39: Referenz, Kompost | C39: Référence pour le compost | D39: Reference, compost | E39: Reference, compost | F39: Reference, compost | G39: =Preis_Entsorgung_fest -> 0 | I39: 0 | K39: Kontrolle | L39: =$G33*L33 -> 0 | M39: 0 | N39: 0 | O39: 0
A40: 90 | B40: Referenz, Frischklärschlamm | C40: Référence pour les boues d'épuration fraîches | D40: Reference, fresh sewage sludge | E40: Reference, fresh sewage sludge | F40: Reference, fresh sewage sludge | I40: 0 | L40: 0 | M40: 0 | N40: 0 | O40: 0
A41: 101 | B41: Referenz, Brennstoff, Zementwerk | C41: Référence pour le carburant, en cimenterie | D41: Reference, fuel, cement plant | E41: Reference, fuel, cement plant | F41: Reference, fuel, cement plant | I41: 0 | L41: 0 | M41: 0 | N41: 0 | O41: 0
A42: 63 | B42: Referenz, direkte Emissionen | C42: Référence pour les émissions directes | D42: Reference, direct emissions | E42: Reference, direct emissions | F42: Reference, direct emissions | I42: 0 | L42: 0 | M42: 0 | N42: 0 | O42: 0
A43: 17 | B43: Total | C43: Total | D43: Total | E43: Total | F43: Total | G43: =SUM(G37:G42) -> 0 | I43: =H44/H$29 ->  | K43: Total, Kontrolle | L43: =SUM(L39:L42) -> 0 | M43: =SUM(M39:M42) -> 0 | N43: =SUM(N39:N42) -> 0 | O43: 0
B44: Achtung hier bitte Wert für Anteil Nebenprodukte an Gesamtertrag eingeben | C44: Attention : Veuillez indiquer ici la valeur de la part des sous-produits dans le rendement total. | D44: Please enter here the value for the share of by-products in the total yield. | E44: Please enter here the value for the share of by-products in the total yield. | F44: =E44 -> Please enter here the value for the share of by-products in the total yield. | H44: 0
E45: 0
E46: 0
E47: 0
E48: 0
E49: 0
E50: 0
E51: 0
E52: 0
E53: 0
E54: 0
E55: 0
E56: 0

Sheet SimaPro (hidden)
C1: =$B$2+10 -> 117 | E1: =INDEX($1:$1048576,$C1,COLUMN()) -> anaerobic digestion plant covered, agriculture/CH/I U | F1: =INDEX($1:$1048576,$C1,COLUMN()) -> Anaerobic digestion plant, sewage sludge/CH/I U | G1: =INDEX($1:$1048576,$C1,COLUMN()) -> anaerobic digestion plant, biowaste/CH/I U | H1: =INDEX($1:$1048576,$C1,COLUMN()) -> tap water, unspecified natural origin RER, at user/kg/RER U | I1: =INDEX($1:$1048576,$C1,COLUMN()) -> Electricity, medium voltage {CH}| market for | Cut-off, S | J1: =INDEX($1:$1048576,$C1,COLUMN()) -> Electricity, medium voltage {DE}| market for | Cut-off, S | K1: =INDEX($1:$1048576,$C1,COLUMN()) -> Electricity, medium voltage {HU}| market for | Cut-off, S | L1: =INDEX($1:$1048576,$C1,COLUMN()) -> Electricity, medium voltage {DK}| market for | Cut-off, S | M1: =INDEX($1:$1048576,$C1,COLUMN()) -> Electricity, medium voltage {GB}| market for | Cut-off, S | N1: =INDEX($1:$1048576,$C1,COLUMN()) -> Electricity, medium voltage {ES}| market for | Cut-off, S | O1: =INDEX($1:$1048576,$C1,COLUMN()) -> electricity, medium voltage, naturemade star, at grid/CH U | P1: =INDEX($1:$1048576,$C1,COLUMN()) -> electricity, medium voltage, renewable, at grid/kWh/RER U | Q1: =INDEX($1:$1048576,$C1,COLUMN()) -> light fuel oil, burned in industrial furnace 1MW, non-modulating/MJ/RER U | R1: =INDEX($1:$1048576,$C1,COLUMN()) -> oil combustion, in cogen with ignition gas engine/MJ/CH U | S1: =INDEX($1:$1048576,$C1,COLUMN()) -> diesel, burned in building machine, average/MJ/CH U | T1: =INDEX($1:$1048576,$C1,COLUMN()) -> Natural gas, burned in boiler condensing modulating >100kW/RER U | U1: =INDEX($1:$1048576,$C1,COLUMN()) -> biomethane, burned in boiler condensing modulating >100kW/RER U | V1: =INDEX($1:$1048576,$C1,COLUMN()) -> biomethane, naturemade star, burned in boiler condensing modulating >100kW/RER U | W1: =INDEX($1:$1048576,$C1,COLUMN()) -> Heat from waste, at municipal waste incineration plant/CH U | X1: =INDEX($1:$1048576,$C1,COLUMN()) -> Heat, digester sludge, at incineration plant, future, allocation price/CH U | Y1: =INDEX($1:$1048576,$C1,COLUMN()) -> Wood chips, from forest, mixed, burned in furnace 1000kW/CH U | Z1: =INDEX($1:$1048576,$C1,COLUMN()) -> Pellets, mixed, burned in furnace 50kW/CH U | AA1: =INDEX($1:$1048576,$C1,COLUMN()) -> transport, district heat network, average/CH/I U | AB1: =INDEX($1:$1048576,$C1,COLUMN()) -> transport, freight, lorry 16-32 metric ton, fleet average/RER U | AC1: =INDEX($1:$1048576,$C1,COLUMN()) -> Transport, tractor and trailer/CH U | AD1: =INDEX($1:$1048576,$C1,COLUMN()) -> biogas, vented/CH U | AE1: =INDEX($1:$1048576,$C1,COLUMN()) -> methane, 96 vol-%, purification and distribution/kWh/CH U | AF1: =INDEX($1:$1048576,$C1,COLUMN()) -> raw biogas, distribution/kWh/CH U | AG1: =INDEX($1:$1048576,$C1,COLUMN()) -> biogas, burned in production flare/MJ/GLO U | AH1: =INDEX($1:$1048576,$C1,COLUMN()) -> biogas combustion, in cogen with biogas engine/MJ/CH U | AI1: =INDEX($1:$1048576,$C1,COLUMN()) -> biogas combustion, in cogen with ignition gas engine/MJ/CH U | AJ1: =INDEX($1:$1048576,$C1,COLUMN()) -> biogas combustion, in cogen 200kWe lean burn/MJ/CH U | AK1: =INDEX($1:$1048576,$C1,COLUMN()) -> biogas combustion, in micro gas turbine 100kWe/MJ/CH U | AL1: =INDEX($1:$1048576,$C1,COLUMN()) -> biogas, burned in industrial furnace >100kW/RER U | AM1: =INDEX($1:$1048576,$C1,COLUMN()) -> emission, NOx/kg/CH U | AN1: =INDEX($1:$1048576,$C1,COLUMN()) -> transport, district heat network, average/CH/I U | AO1: =INDEX($1:$1048576,$C1,COLUMN()) -> application, digested matter, on agricultural land/kg/CH U | AP1: =INDEX($1:$1048576,$C1,COLUMN()) -> application, digested matter, liquid, on agricultural land/m3/CH U | AQ1: =INDEX($1:$1048576,$C1,COLUMN()) -> disposal, digester sludge, to municipal incineration/kg/CH U | AR1: =INDEX($1:$1048576,$C1,COLUMN()) -> digester sewage sludge, in cement plant/kg/CH U | AS1: =INDEX($1:$1048576,$C1,COLUMN()) -> Treatment, sewage, to wastewater treatment, class 4/CH U | AT1: =INDEX($1:$1048576,$C1,COLUMN()) -> treatment, sugar factory effluent, to wastewater treatment, class 4/HU U | AU1: =INDEX($1:$1048576,$C1,COLUMN()) -> treatment, paper production, pre-treated by digestion, to wastewater treatment, class 3/m3/CH U | AV1: =INDEX($1:$1048576,$C1,COLUMN()) -> apple ÖLN, at farm/kg/CH S | AW1: =INDEX($1:$1048576,$C1,COLUMN()) -> bread, at bakery/kg/CH S | AX1: =INDEX($1:$1048576,$C1,COLUMN()) -> meat mixed, IP, at slaughterhouse/kg/CH S | AY1: =INDEX($1:$1048576,$C1,COLUMN()) -> vegetables mean, IP, at farm/kg/CH S | AZ1: =INDEX($1:$1048576,$C1,COLUMN()) -> by-products, wheat milling, at plant/kg/CH S | BA1: =INDEX($1:$1048576,$C1,COLUMN()) -> yeast, at plant/kg/RER S | BB1: =INDEX($1:$1048576,$C1,COLUMN()) -> raw milk, silo zone, at farm/kg/CH S | BC1: =INDEX($1:$1048576,$C1,COLUMN()) -> whey, at cheese dairy/kg/CH S | BD1: =INDEX($1:$1048576,$C1,COLUMN()) -> Soybean lecithin, at oil mill/GLO U | BE1: =INDEX($1:$1048576,$C1,COLUMN()) -> Rape oil, at oil mill/RER U | BF1: =INDEX($1:$1048576,$C1,COLUMN()) -> wheat straw IP, at farm/kg/CH U | BG1: =INDEX($1:$1048576,$C1,COLUMN()) -> Syrup, from sugar beet molasses, at distillery/CH U | BH1: =INDEX($1:$1048576,$C1,COLUMN()) -> grass silage IP, at farm/kg/CH U | BI1: =INDEX($1:$1048576,$C1,COLUMN()) -> grass silage organic, at farm/kg/CH U | BJ1: =INDEX($1:$1048576,$C1,COLUMN()) -> Hay intensive IP, at farm/CH U | BK1: =INDEX($1:$1048576,$C1,COLUMN()) -> Potatoes IP, at farm/CH U | BL1: =INDEX($1:$1048576,$C1,COLUMN()) -> Clover seed IP, at farm/CH U | BM1: =INDEX($1:$1048576,$C1,COLUMN()) -> silage maize IP, at farm/kg/CH U | BN1: =INDEX($1:$1048576,$C1,COLUMN()) -> Molasses, from sugar beet, at sugar refinery/CH U | BO1: =INDEX($1:$1048576,$C1,COLUMN()) -> Rape meal, at oil mill/RER U | BP1: =INDEX($1:$1048576,$C1,COLUMN()) -> rye grains IP, at farm/kg/CH U | BQ1: =INDEX($1:$1048576,$C1,COLUMN()) -> sugar beets IP, at farm/kg/CH U | BR1: =INDEX($1:$1048576,$C1,COLUMN()) -> green rye conventional, at farm/kg/RER U | BS1: =INDEX($1:$1048576,$C1,COLUMN()) -> grass from meadow intensive IP, at field/kg/CH U | BT1: =INDEX($1:$1048576,$C1,COLUMN()) -> grass from natural meadow intensive IP, at field/kg/CH U | BU1: =INDEX($1:$1048576,$C1,COLUMN()) -> Vegetable oil, from waste cooking oil, at plant/CH U | BV1: =INDEX($1:$1048576,$C1,COLUMN()) -> Vinasse, at fermentation plant/CH U | BW1: =INDEX($1:$1048576,$C1,COLUMN()) -> glycerine, from vegetable oil, at esterification plant/kg/RER U | BX1: =INDEX($1:$1048576,$C1,COLUMN()) -> glycerine, from animal fat, at esterification plant/kg/RER U | BY1: =INDEX($1:$1048576,$C1,COLUMN()) -> glycerine, from vegetable oil, at esterification plant/kg/RER U | BZ1: =INDEX($1:$1048576,$C1,COLUMN()) -> glycerine, from rape oil, at esterification plant/kg/RER U | CA1: =INDEX($1:$1048576,$C1,COLUMN()) -> glycerine, from soybean oil, at esterification plant/kg/RER U | CB1: =INDEX($1:$1048576,$C1,COLUMN()) -> glycerine, from palm oil, at esterification plant/kg/RER U | CC1: =INDEX($1:$1048576,$C1,COLUMN()) -> Pulps, from sugar beet, at sugar refinery/CH U | CD1: =INDEX($1:$1048576,$C1,COLUMN()) -> Urea, as N, at regional storehouse/RER U | CE1: =INDEX($1:$1048576,$C1,COLUMN()) -> Sodium hydroxide, 50% in H2O, production mix, at plant/RER U | CF1: =INDEX($1:$1048576,$C1,COLUMN()) -> Hydrogen peroxide, 50% in H2O, at plant/RER U | CG1: =INDEX($1:$1048576,$C1,COLUMN()) -> Iron (III) chloride, 40% in H2O, at plant/CH U | CH1: =INDEX($1:$1048576,$C1,COLUMN()) -> threshold value, methane/kWh/CH U | CI1: =INDEX($1:$1048576,$C1,COLUMN()) -> threshold value, heat/kWh/CH U | CJ1: =INDEX($1:$1048576,$C1,COLUMN()) -> threshold value, electricity/kWh/CH U | CK1: =INDEX($1:$1048576,$C1,COLUMN()) -> threshold value, cooling/kWh/CH U | CL1: =INDEX($1:$1048576,$C1,COLUMN()) -> reference value, manure/kg/CH U | CM1: =INDEX($1:$1048576,$C1,COLUMN()) -> reference value, manure/kg/DE U | CN1: =INDEX($1:$1048576,$C1,COLUMN()) -> reference value, manure/kg/DK U | CO1: =INDEX($1:$1048576,$C1,COLUMN()) -> reference value, manure/kg/GB U | CP1: =INDEX($1:$1048576,$C1,COLUMN()) -> reference value, manure/kg/HU U | CQ1: =INDEX($1:$1048576,$C1,COLUMN()) -> reference value, manure/kg/ES U | CR1: =INDEX($1:$1048576,$C1,COLUMN()) -> reference value, digested matter, liquid/kg/CH U | CS1: =INDEX($1:$1048576,$C1,COLUMN()) -> reference value, digested matter, solid/kg/CH U | CT1: =INDEX($1:$1048576,$C1,COLUMN()) -> reference value, co-substrate disposal/CHF/CH U | CU1: =INDEX($1:$1048576,$C1,COLUMN()) -> reference value, raw sewage sludge treatment/kg/CH U | CV1: =INDEX($1:$1048576,$C1,COLUMN()) -> reference value, fuel from digester sludge/kg/CH U | CW1: =INDEX($1:$1048576,$C1,COLUMN()) -> reference value, paper production effluent/kg/CH U | CX1: =INDEX($1:$1048576,$C1,COLUMN()) -> 0 | CY1: =INDEX($1:$1048576,$C1,COLUMN()) -> 0 | CZ1: =INDEX($1:$1048576,$C1,COLUMN()) -> 0 | DA1: =INDEX($1:$1048576,$C1,COLUMN()) -> 0 | DB1: =INDEX($1:$1048576,$C1,COLUMN()) -> 0
A2: Eco-indicator 99 (H) V2.10 / Europe EI 99 H/A | B2: =MATCH(A2,D:D,0) -> 107 | C2: =$B2+11 -> 118 | D2: =ROW() -> 2 | E2: =INDEX($1:$1048576,$C2,COLUMN()) -> 1.1202815 | F2: =INDEX($1:$1048576,$C2,COLUMN()) -> 0.22316033 | G2: =INDEX($1:$1048576,$C2,COLUMN()) -> 3.8709559 | H2: =INDEX($1:$1048576,$C2,COLUMN()) -> 0.026856211 | I2: =INDEX($1:$1048576,$C2,COLUMN()) -> 0.0077551724 | J2: =INDEX($1:$1048576,$C2,COLUMN()) -> 0.02179062 | K2: =INDEX($1:$1048576,$C2,COLUMN()) -> 0.030534234 | L2: =INDEX($1:$1048576,$C2,COLUMN()) -> 0.017094894 | M2: =INDEX($1:$1048576,$C2,COLUMN()) -> 0.029890849 | N2: =INDEX($1:$1048576,$C2,COLUMN()) -> 0.028508488 | O2: =INDEX($1:$1048576,$C2,COLUMN()) -> 0.0011786945 | P2: =INDEX($1:$1048576,$C2,COLUMN()) -> 0.0024904208 | Q2: =INDEX($1:$1048576,$C2,COLUMN()) -> 0.023107166 | R2: =INDEX($1:$1048576,$C2,COLUMN()) -> 0.024387327 | S2: =INDEX($1:$1048576,$C2,COLUMN()) -> 0.031423139 | T2: =INDEX($1:$1048576,$C2,COLUMN()) -> 0.019630523 | U2: =INDEX($1:$1048576,$C2,COLUMN()) -> 0.01566945 | V2: =INDEX($1:$1048576,$C2,COLUMN()) -> 0.0056241117 | W2: =INDEX($1:$1048576,$C2,COLUMN()) -> 0 | X2: =INDEX($1:$1048576,$C2,COLUMN()) -> 0.0076548137 | Y2: =INDEX($1:$1048576,$C2,COLUMN()) -> 0.0110153 | Z2: =INDEX($1:$1048576,$C2,COLUMN()) -> 0.0081645636 | AA2: =INDEX($1:$1048576,$C2,COLUMN()) -> 0.00018041396 | AB2: =INDEX($1:$1048576,$C2,COLUMN()) -> 0.019633494 | AC2: =INDEX($1:$1048576,$C2,COLUMN()) -> 0.038704224 | AD2: =INDEX($1:$1048576,$C2,COLUMN()) -> 0.012469478 | AE2: =INDEX($1:$1048576,$C2,COLUMN()) -> 8.0497669e-05 | AF2: =INDEX($1:$1048576,$C2,COLUMN()) -> 0.00013248165 | AG2: =INDEX($1:$1048576,$C2,COLUMN()) -> 0.0041329888 | AH2: =INDEX($1:$1048576,$C2,COLUMN()) -> 0.0068145254 | AI2: =INDEX($1:$1048576,$C2,COLUMN()) -> 0.0068324414 | AJ2: =INDEX($1:$1048576,$C2,COLUMN()) -> 0.0068722653 | AK2: =INDEX($1:$1048576,$C2,COLUMN()) -> 0.0066364822 | AL2: =INDEX($1:$1048576,$C2,COLUMN()) -> 0.0062607936 | AM2: =INDEX($1:$1048576,$C2,COLUMN()) -> 4.447721 | AN2: =INDEX($1:$1048576,$C2,COLUMN()) -> 0.00018041396 | AO2: =INDEX($1:$1048576,$C2,COLUMN()) -> 55.835212 | AP2: =INDEX($1:$1048576,$C2,COLUMN()) -> 56.857431 | AQ2: =INDEX($1:$1048576,$C2,COLUMN()) -> 5.9220684 | AR2: =INDEX($1:$1048576,$C2,COLUMN()) -> 59.342305 | AS2: =INDEX($1:$1048576,$C2,COLUMN()) -> 0.051576712 | AT2: =INDEX($1:$1048576,$C2,COLUMN()) -> 0.21488637 | AU2: =INDEX($1:$1048576,$C2,COLUMN()) -> 0.031186946 | AV2: =INDEX($1:$1048576,$C2,COLUMN()) -> 0.043371292 | AW2: =INDEX($1:$1048576,$C2,COLUMN()) -> 0.19922277 | AX2: =INDEX($1:$1048576,$C2,COLUMN()) -> 3.3835951 | AY2: =INDEX($1:$1048576,$C2,COLUMN()) -> 0.085317971 | AZ2: =INDEX($1:$1048576,$C2,COLUMN()) -> 0.069144762 | BA2: =INDEX($1:$1048576,$C2,COLUMN()) -> 0.05135103 | BB2: =INDEX($1:$1048576,$C2,COLUMN()) -> 0.16934111 | BC2: =INDEX($1:$1048576,$C2,COLUMN()) -> 0.086701998 | BD2: =INDEX($1:$1048576,$C2,COLUMN()) -> 1.0494499 | BE2: =INDEX($1:$1048576,$C2,COLUMN()) -> 1.1411246 | BF2: =INDEX($1:$1048576,$C2,COLUMN()) -> 0.066147995 | BG2: =INDEX($1:$1048576,$C2,COLUMN()) -> 0.02411944 | BH2: =INDEX($1:$1048576,$C2,COLUMN()) -> 0.034792174 | BI2: =INDEX($1:$1048576,$C2,COLUMN()) -> 0.043218414 | BJ2: =INDEX($1:$1048576,$C2,COLUMN()) -> 0.1285546 | BK2: =INDEX($1:$1048576,$C2,COLUMN()) -> 0.038401251 | BL2: =INDEX($1:$1048576,$C2,COLUMN()) -> 2.6938026 | BM2: =INDEX($1:$1048576,$C2,COLUMN()) -> 0.020938856 | BN2: =INDEX($1:$1048576,$C2,COLUMN()) -> 0.018123849 | BO2: =INDEX($1:$1048576,$C2,COLUMN()) -> 0.2435765 | BP2: =INDEX($1:$1048576,$C2,COLUMN()) -> 0.15934189 | BQ2: =INDEX($1:$1048576,$C2,COLUMN()) -> 0.011710329 | BR2: =INDEX($1:$1048576,$C2,COLUMN()) -> 0.047983638 | BS2: =INDEX($1:$1048576,$C2,COLUMN()) -> 0.013784966 | BT2: =INDEX($1:$1048576,$C2,COLUMN()) -> 0.010637446 | BU2: =INDEX($1:$1048576,$C2,COLUMN()) -> 0.013148842 | BV2: =INDEX($1:$1048576,$C2,COLUMN()) -> 0.0033223924 | BW2: =INDEX($1:$1048576,$C2,COLUMN()) -> 0.014619866 | BX2: =INDEX($1:$1048576,$C2,COLUMN()) -> 0.02896956 | BY2: =INDEX($1:$1048576,$C2,COLUMN()) -> 0.014619866 | BZ2: =INDEX($1:$1048576,$C2,COLUMN()) -> 0.46450737 | CA2: =INDEX($1:$1048576,$C2,COLUMN()) -> 0.42199742 | CB2: =INDEX($1:$1048576,$C2,COLUMN()) -> 0.18302265 | CC2: =INDEX($1:$1048576,$C2,COLUMN()) -> 0.0024965226 | CD2: =INDEX($1:$1048576,$C2,COLUMN()) -> 0.37133206 | CE2: =INDEX($1:$1048576,$C2,COLUMN()) -> 0.06286884 | CF2: =INDEX($1:$1048576,$C2,COLUMN()) -> 0.093247557 | CG2: =INDEX($1:$1048576,$C2,COLUMN()) -> 0.05587842 | CH2: =INDEX($1:$1048576,$C2,COLUMN()) -> 0.0094314772 | CI2: =INDEX($1:$1048576,$C2,COLUMN()) -> 0.0096189564 | CJ2: =INDEX($1:$1048576,$C2,COLUMN()) -> 0.016873467 | CK2: =INDEX($1:$1048576,$C2,COLUMN()) -> 0.0025983502 | CL2: =INDEX($1:$1048576,$C2,COLUMN()) -> 3.3569796e-06 | CM2: =INDEX($1:$1048576,$C2,COLUMN()) -> 8.6202727e-06 | CN2: =INDEX($1:$1048576,$C2,COLUMN()) -> 6.8593751e-06 | CO2: =INDEX($1:$1048576,$C2,COLUMN()) -> 1.1657858e-05 | CP2: =INDEX($1:$1048576,$C2,COLUMN()) -> 1.1899128e-05 | CQ2: =INDEX($1:$1048576,$C2,COLUMN()) -> 1.1139473e-05 | CR2: =INDEX($1:$1048576,$C2,COLUMN()) -> 0.00024415177 | CS2: =INDEX($1:$1048576,$C2,COLUMN()) -> 0.0010290385 | CT2: =INDEX($1:$1048576,$C2,COLUMN()) -> 0.038237027 | CU2: =INDEX($1:$1048576,$C2,COLUMN()) -> 0.0072851484 | CV2: =INDEX($1:$1048576,$C2,COLUMN()) -> 0.027296598 | CW2: =INDEX($1:$1048576,$C2,COLUMN()) -> 0.07689382 | CX2: =INDEX($1:$1048576,$C2,COLUMN()) -> 0 | CY2: =INDEX($1:$1048576,$C2,COLUMN()) -> 0 | CZ2: =INDEX($1:$1048576,$C2,COLUMN()) -> 0 | DA2: =INDEX($1:$1048576,$C2,COLUMN()) -> 0 | DB2: =INDEX($1:$1048576,$C2,COLUMN()) -> 0
A3: IPCC 2013 GWP 100a with RFI V1.04 | B3: =MATCH(A3,D:D,0) -> 227 | C3: =$B3+10 -> 237 | D3: =ROW() -> 3 | E3: =INDEX($1:$1048576,$C3,COLUMN()) -> 9.6459116 | F3: =INDEX($1:$1048576,$C3,COLUMN()) -> 2.0817703 | G3: =INDEX($1:$1048576,$C3,COLUMN()) -> 41.245741 | H3: =INDEX($1:$1048576,$C3,COLUMN()) -> 0.43377016 | I3: =INDEX($1:$1048576,$C3,COLUMN()) -> 0.098195333 | J3: =INDEX($1:$1048576,$C3,COLUMN()) -> 0.61522162 | K3: =INDEX($1:$1048576,$C3,COLUMN()) -> 0.46872118 | L3: =INDEX($1:$1048576,$C3,COLUMN()) -> 0.32377841 | M3: =INDEX($1:$1048576,$C3,COLUMN()) -> 0.37382535 | N3: =INDEX($1:$1048576,$C3,COLUMN()) -> 0.31993858 | O3: =INDEX($1:$1048576,$C3,COLUMN()) -> 0.012618241 | P3: =INDEX($1:$1048576,$C3,COLUMN()) -> 0.028919219 | Q3: =INDEX($1:$1048576,$C3,COLUMN()) -> 0.35511542 | R3: =INDEX($1:$1048576,$C3,COLUMN()) -> 0.35963354 | S3: =INDEX($1:$1048576,$C3,COLUMN()) -> 0.39764159 | T3: =INDEX($1:$1048576,$C3,COLUMN()) -> 0.26504651 | U3: =INDEX($1:$1048576,$C3,COLUMN()) -> 0.18548255 | V3: =INDEX($1:$1048576,$C3,COLUMN()) -> 0.12373965 | W3: =INDEX($1:$1048576,$C3,COLUMN()) -> 0 | X3: =INDEX($1:$1048576,$C3,COLUMN()) -> 0.064853483 | Y3: =INDEX($1:$1048576,$C3,COLUMN()) -> 0.01679788 | Z3: =INDEX($1:$1048576,$C3,COLUMN()) -> 0.034773997 | AA3: =INDEX($1:$1048576,$C3,COLUMN()) -> 0.0031971303 | AB3: =INDEX($1:$1048576,$C3,COLUMN()) -> 0.1860802 | AC3: =INDEX($1:$1048576,$C3,COLUMN()) -> 0.31627283 | AD3: =INDEX($1:$1048576,$C3,COLUMN()) -> 1.9884818 | AE3: =INDEX($1:$1048576,$C3,COLUMN()) -> 0.0017409275 | AF3: =INDEX($1:$1048576,$C3,COLUMN()) -> 0.0022635983 | AG3: =INDEX($1:$1048576,$C3,COLUMN()) -> 0.0350607 | AH3: =INDEX($1:$1048576,$C3,COLUMN()) -> 0.013300893 | AI3: =INDEX($1:$1048576,$C3,COLUMN()) -> 0.023246961 | AJ3: =INDEX($1:$1048576,$C3,COLUMN()) -> 0.03701211 | AK3: =INDEX($1:$1048576,$C3,COLUMN()) -> 0.0027611261 | AL3: =INDEX($1:$1048576,$C3,COLUMN()) -> 0.00040108635 | AM3: =INDEX($1:$1048576,$C3,COLUMN()) -> 0 | AN3: =INDEX($1:$1048576,$C3,COLUMN()) -> 0.0031971303 | AO3: =INDEX($1:$1048576,$C3,COLUMN()) -> 3.4506384 | AP3: =INDEX($1:$1048576,$C3,COLUMN()) -> 1.322713 | AQ3: =INDEX($1:$1048576,$C3,COLUMN()) -> 53.293982 | AR3: =INDEX($1:$1048576,$C3,COLUMN()) -> 83.806856 | AS3: =INDEX($1:$1048576,$C3,COLUMN()) -> 0.43343807 | AT3: =INDEX($1:$1048576,$C3,COLUMN()) -> 2.8380448 | AU3: =INDEX($1:$1048576,$C3,COLUMN()) -> 0.49922933 | AV3: =INDEX($1:$1048576,$C3,COLUMN()) -> 0.14767585 | AW3: =INDEX($1:$1048576,$C3,COLUMN()) -> 1.0290319 | AX3: =INDEX($1:$1048576,$C3,COLUMN()) -> 13.539124 | AY3: =INDEX($1:$1048576,$C3,COLUMN()) -> 0.51963713 | AZ3: =INDEX($1:$1048576,$C3,COLUMN()) -> 0.3100741 | BA3: =INDEX($1:$1048576,$C3,COLUMN()) -> 0.55494337 | BB3: =INDEX($1:$1048576,$C3,COLUMN()) -> 0.95460245 | BC3: =INDEX($1:$1048576,$C3,COLUMN()) -> 0.49799824 | BD3: =INDEX($1:$1048576,$C3,COLUMN()) -> 10.409007 | BE3: =INDEX($1:$1048576,$C3,COLUMN()) -> 2.6307475 | BF3: =INDEX($1:$1048576,$C3,COLUMN()) -> 0.097867873 | BG3: =INDEX($1:$1048576,$C3,COLUMN()) -> 0.3107837 | BH3: =INDEX($1:$1048576,$C3,COLUMN()) -> 0.087099866 | BI3: =INDEX($1:$1048576,$C3,COLUMN()) -> 0.075660719 | BJ3: =INDEX($1:$1048576,$C3,COLUMN()) -> 0.22039791 | BK3: =INDEX($1:$1048576,$C3,COLUMN()) -> 0.10490057 | BL3: =INDEX($1:$1048576,$C3,COLUMN()) -> 3.1691595 | BM3: =INDEX($1:$1048576,$C3,COLUMN()) -> 0.056959547 | BN3: =INDEX($1:$1048576,$C3,COLUMN()) -> 0.11457455 | BO3: =INDEX($1:$1048576,$C3,COLUMN()) -> 0.56102805 | BP3: =INDEX($1:$1048576,$C3,COLUMN()) -> 0.38890175 | BQ3: =INDEX($1:$1048576,$C3,COLUMN()) -> 0.055972186 | BR3: =INDEX($1:$1048576,$C3,COLUMN()) -> 0.037781717 | BS3: =INDEX($1:$1048576,$C3,COLUMN()) -> 0.026730118 | BT3: =INDEX($1:$1048576,$C3,COLUMN()) -> 0.023989527 | BU3: =INDEX($1:$1048576,$C3,COLUMN()) -> 0.13233482 | BV3: =INDEX($1:$1048576,$C3,COLUMN()) -> 0.021613257 | BW3: =INDEX($1:$1048576,$C3,COLUMN()) -> 0.12896605 | BX3: =INDEX($1:$1048576,$C3,COLUMN()) -> 0.33318985 | BY3: =INDEX($1:$1048576,$C3,COLUMN()) -> 0.12896605 | BZ3: =INDEX($1:$1048576,$C3,COLUMN()) -> 1.1333821 | CA3: =INDEX($1:$1048576,$C3,COLUMN()) -> 1.0894212 | CB3: =INDEX($1:$1048576,$C3,COLUMN()) -> 0.70449589 | CC3: =INDEX($1:$1048576,$C3,COLUMN()) -> 0.014752965 | CD3: =INDEX($1:$1048576,$C3,COLUMN()) -> 3.5942552 | CE3: =INDEX($1:$1048576,$C3,COLUMN()) -> 1.0405936 | CF3: =INDEX($1:$1048576,$C3,COLUMN()) -> 1.1573009 | CG3: =INDEX($1:$1048576,$C3,COLUMN()) -> 0.76409797 | CH3: =INDEX($1:$1048576,$C3,COLUMN()) -> 0.12810349 | CI3: =INDEX($1:$1048576,$C3,COLUMN()) -> 0.12987279 | CJ3: =INDEX($1:$1048576,$C3,COLUMN()) -> 0.22413593 | CK3: =INDEX($1:$1048576,$C3,COLUMN()) -> 0.018602696 | CL3: =INDEX($1:$1048576,$C3,COLUMN()) -> 4.2786e-05 | CM3: =INDEX($1:$1048576,$C3,COLUMN()) -> 0.00023667086 | CN3: =INDEX($1:$1048576,$C3,COLUMN()) -> 0.00012737965 | CO3: =INDEX($1:$1048576,$C3,COLUMN()) -> 0.00014614726 | CP3: =INDEX($1:$1048576,$C3,COLUMN()) -> 0.00018173319 | CQ3: =INDEX($1:$1048576,$C3,COLUMN()) -> 0.00012593972 | CR3: =INDEX($1:$1048576,$C3,COLUMN()) -> 0.0038225555 | CS3: =INDEX($1:$1048576,$C3,COLUMN()) -> 0.016111113 | CT3: =INDEX($1:$1048576,$C3,COLUMN()) -> 0.59865697 | CU3: =INDEX($1:$1048576,$C3,COLUMN()) -> 0.084647179 | CV3: =INDEX($1:$1048576,$C3,COLUMN()) -> 0.36480127 | CW3: =INDEX($1:$1048576,$C3,COLUMN()) -> 1.5522025 | CX3: =INDEX($1:$1048576,$C3,COLUMN()) -> 0 | CY3: =INDEX($1:$1048576,$C3,COLUMN()) -> 0 | CZ3: =INDEX($1:$1048576,$C3,COLUMN()) -> 0 | DA3: =INDEX($1:$1048576,$C3,COLUMN()) -> 0 | DB3: =INDEX($1:$1048576,$C3,COLUMN()) -> 0
